Workbook

Sheet Options
E16: f
C21: Description and details of Macro
C23: Purpose: | E23: Macro to prepopulate HRBP tool (2023 MTEF)
C24: Sheets: | E24: Results Sheet
C25: Applicable to: | E25: 2023 MTEF HRBP Tool
C26: Date of macro: | E26: 2022-06-02
C27: Effective until: | E27: 2023-03-31
C28: More Information: | E28: This macro will make the following adjustments to the model: 1. Pre-populates the HRBP with PERSAL data for the 2021/22 financial year. 2. Please ensure that the correct department name is selected on the "Results" sheet in the HRBP tool before running the macro.
I39: =COUNTA(I41:I90) -> 49
H40: Department Names | I40: ImportSource | J40: DestinationSource
E41: Vote 03: Cooperative Governance | F41: =MATCH($E$41,Depts,0) -> 3 | H41: Vote 01: The Presidency | I41: C27:C42 | J41: C27:C42
H42: Vote 02: Parliament | I42: D59:F78 | J42: D59:F78
H43: Vote 03: Cooperative Governance | I43: H59:J78 | J43: H59:J78
H44: Vote 04: Government Communication and Information System | I44: L59:L78 | J44: L59:L78
H45: Vote 05: Home Affairs | I45: D88:F107 | J45: D88:F107
H46: Vote 06: International Relations and Cooperation | I46: H88:J107 | J46: H88:J107
H47: Vote 07: National School of Government | I47: L88:L107 | J47: L88:L107
H48: Vote 08: National Treasury | I48: D117:F136 | J48: D117:F136
H49: Vote 09: Planning, Monitoring and Evaluation | I49: H117:J136 | J49: H117:J136
H50: Vote 10: Public Enterprises | I50: L117:L136 | J50: L117:L136
H51: Vote 11: Public Service and Administration | I51: D146:F165 | J51: D146:F165
H52: Vote 12: Public Service Commission | I52: H146:J165 | J52: H146:J165
H53: Vote 13: Public Works and Infrastructure | I53: L146:L165 | J53: L146:L165
H54: Vote 14: Statistics South Africa | I54: D175:F194 | J54: D175:F194
H55: Vote 15: Traditional Affairs | I55: H175:J194 | J55: H175:J194
H56: Vote 16: Basic Education | I56: L175:L194 | J56: L175:L194
H57: Vote 17: Higher Education and Training | I57: D204:F223 | J57: D204:F223
H58: Vote 18: Health | I58: H204:J223 | J58: H204:J223
H59: Vote 19: Social Development | I59: L204:L223 | J59: L204:L223
H60: Vote 20: Women, Youth and Persons with Disabilities | I60: D233:F252 | J60: D233:F252
H61: Vote 21: Civilian Secretariat for the Police Service | I61: H233:J252 | J61: H233:J252
H62: Vote 22: Correctional Services | I62: L233:L252 | J62: L233:L252
H63: Vote 23: Defence | I63: D262:F281 | J63: D262:F281
H64: Vote 24: Independent Police Investigative Directorate | I64: H262:J281 | J64: H262:J281
H65: Vote 25: Justice and Constitutional Development | I65: L262:L281 | J65: L262:L281
H66: Vote 26: Military Veterans | I66: D291:F310 | J66: D291:F310
H67: Vote 27: Office of the Chief Justice | I67: H291:J310 | J67: H291:J310
H68: Vote 28: Police | I68: L291:L310 | J68: L291:L310
H69: Vote 29: Agriculture, Land Reform and Rural Development | I69: D320:F339 | J69: D320:F339
H70: Vote 30: Communications and Digital Technologies | I70: H320:J339 | J70: H320:J339
H71: Vote 31: Employment and Labour | I71: L320:L339 | J71: L320:L339
H72: Vote 32: Environment, Forestry and Fisheries | I72: D349:F368 | J72: D349:F368
H73: Vote 33: Human Settlements | I73: H349:J368 | J73: H349:J368
H74: Vote 34: Mineral Resources and Energy | I74: L349:L368 | J74: L349:L368
H75: Vote 35: Science and Innovation | I75: D378:F397 | J75: D378:F397
H76: Vote 36: Small Business Development | I76: H378:J397 | J76: H378:J397
H77: Vote 37: Sports, Arts and Culture | I77: L378:L397 | J77: L378:L397
H78: Vote 38: Tourism | I78: D407:F426 | J78: D407:F426
H79: Vote 39: Trade, Industry and Competition | I79: H407:J426 | J79: H407:J426
H80: Vote 40: Transport | I80: L407:L426 | J80: L407:L426
H81: Vote 41: Water and Sanitation | I81: D436:F455 | J81: D436:F455
H82: National Center for Public Service Innovation | I82: H436:J455 | J82: H436:J455
I83: L436:L455 | J83: L436:L455
I84: D465:F484 | J84: D465:F484
I85: H465:J484 | J85: H465:J484
I86: L465:L484 | J86: L465:L484
I87: D494:F513 | J87: D494:F513
I88: H494:J513 | J88: H494:J513
I89: L494:L513 | J89: L494:L513
CC107: EASTERN CAPE | CD107: Eastern Cape Rural Finance Corporation (Uvimba)
CC108: EASTERN CAPE | CD108: Coega Development Corporation
CC109: EASTERN CAPE | CD109: Eastern Cape Development Corporation
CC110: EASTERN CAPE | CD110: Eastern Cape Gambling and Betting Board
CC111: EASTERN CAPE | CD111: Eastern Cape Liquor Board
CC112: EASTERN CAPE | CD112: Eastern Cape Parks Board
CC113: EASTERN CAPE | CD113: Eastern Cape Tourism Board
CC114: EASTERN CAPE | CD114: East London Industrial Development Zone
CC115: EASTERN CAPE | CD115: Eastern Cape Appropriate Technology Unit
CC116: EASTERN CAPE | CD116: Eastern Cape Socio Economic Council
CC117: EASTERN CAPE | CD117: Eastern Cape Youth Commission
CC118: EASTERN CAPE | CD118: Mayibuye Transport Corp
CC119: EASTERN CAPE | CD119: Eastern Cape Provincial Arts Council
CC131: FREE STATE | CD131: Free State AgriEco
CC132: FREE STATE | CD132: Centre for Citizenship Education
CC133: FREE STATE | CD133: Free State Youth Commission
CC134: FREE STATE | CD134: Mmabana Arts and Cultural Centre
CC135: FREE STATE | CD135: Phakisa Major Sport Events and Development Corporation
CC136: FREE STATE | CD136: Free State Development Corporation
CC137: FREE STATE | CD137: Free State Gambling and Racing Board
CC138: FREE STATE | CD138: Free State Investment Promotion Agency
CC139: FREE STATE | CD139: Free State Liquor Authority
CC140: FREE STATE | CD140: Free State Tourism Marketing Authority
CC155: GAUTENG | CD155: Blue IQ
CC156: GAUTENG | CD156: Gauteng Development Economic Agency
CC157: GAUTENG | CD157: Gauteng Enterprise Propeller/GAUMAC
CC158: GAUTENG | CD158: Gauteng Film Office
CC159: GAUTENG | CD159: Gauteng Gambling Board
CC160: GAUTENG | CD160: Gauteng Liquor Board
CC161: GAUTENG | CD161: Gauteng Tourism Agency
CC162: GAUTENG | CD162: Gauteng Youth Commission
CC179: KWAZULU-NATAL | CD179: Ezemvelo KZN Wildlife
CC180: KWAZULU-NATAL | CD180: Ithala Development Finance Corporation
CC181: KWAZULU-NATAL | CD181: Mjindi Farming (Pty) Ltd
CC182: KWAZULU-NATAL | CD182: KZN Tourism Authority
CC183: KWAZULU-NATAL | CD183: Natal Sharks Board
CC184: KWAZULU-NATAL | CD184: The Playhouse Company
CC185: KWAZULU-NATAL | CD185: Provincial Planning and Development Commission
CC186: KWAZULU-NATAL | CD186: Umsekeli
CC187: KWAZULU-NATAL | CD187: Amafa aKwaZulu-Natali
CC188: KWAZULU-NATAL | CD188: KwaZulu-Natal Youth Commission
CC189: KWAZULU-NATAL | CD189: KwaZulu-Natal Gambling Board
CC190: KWAZULU-NATAL | CD190: KwaZulu-Natal Taxi Council
CC203: LIMPOPO | CD203: ARDC
CC204: LIMPOPO | CD204: Entrepreneurial Support Centre
CC205: LIMPOPO | CD205: Gateway International Airport
CC206: LIMPOPO | CD206: International Convention Centre
CC207: LIMPOPO | CD207: Limpopo Casino & Gaming Board
CC208: LIMPOPO | CD208: Limpopo Developmental Corporation
CC209: LIMPOPO | CD209: Limpopo Investment Initiative
CC210: LIMPOPO | CD210: Limpopo Support Agency
CC211: LIMPOPO | CD211: Limpopo Tourism and Parks Board
CC212: LIMPOPO | CD212: Local Business Service Centre
CC213: LIMPOPO | CD213: SMME for African Ivory Route
CC214: LIMPOPO | CD214: Trade Investment Limpopo
CC215: LIMPOPO | CD215: Polokwane International Airport
CC216: LIMPOPO | CD216: Road Agency Limpopo
CC227: MPUMALANGA | CD227: Mpumalanga Agricultural Development Corporation
CC228: MPUMALANGA | CD228: Mpumalanga Economic Growth Agency
CC229: MPUMALANGA | CD229: Mpumalanga Gaming Board
CC230: MPUMALANGA | CD230: Mpumalanga Tourism and Parks Agency
CC231: MPUMALANGA | CD231: Zithabiseng Resort (Pty) Ltd
CC232: MPUMALANGA | CD232: Mpumalanga Regional Training Trust
CC233: MPUMALANGA | CD233: Mpumalanga Housing Finance Company
CC234: MPUMALANGA | CD234: Mpumalanga House of Traditional Leaders
CC235: MPUMALANGA | CD235: Mpumalanga Youth Commission
CC251: NORTH WEST | CD251: Directorate Entrepreneurial Development - Agriserve
CC252: NORTH WEST | CD252: ESC
CC253: NORTH WEST | CD253: Gambling Board
CC254: NORTH WEST | CD254: Invest North West
CC255: NORTH WEST | CD255: Mafikeng Industrial Development Zone
CC256: NORTH WEST | CD256: North West Parks and Tourism Board
CC257: NORTH WEST | CD257: NW Development Corporation
CC258: NORTH WEST | CD258: Provincial Council on Aids
CC259: NORTH WEST | CD259: North West Housing Corporation
CC260: NORTH WEST | CD260: North West Communications
CC261: NORTH WEST | CD261: Youth Development Trust
CC262: NORTH WEST | CD262: Mmabana Arts, Culture and Sport Foundation
CC263: NORTH WEST | CD263: Provincial Arts and Culture Council
CC275: NORTHERN CAPE | CD275: Northern Cape Tourism Authority
CC276: NORTHERN CAPE | CD276: Northern Cape Gambling Public Entity
CC277: NORTHERN CAPE | CD277: Northern Cape Liquor Public Entity
CC278: NORTHERN CAPE | CD278: Northern Cape Youth Commission
CC299: WESTERN CAPE | CD299: Western Cape Provincial Development Council
CC300: WESTERN CAPE | CD300: Western Cape Provincial Youth Commission
CC301: WESTERN CAPE | CD301: Casidra (Pty) Ltd
CC302: WESTERN CAPE | CD302: Independent Development Trust
CC303: WESTERN CAPE | CD303: South African Rail Commuter Corporation
CC304: WESTERN CAPE | CD304: Agricultural Research Council
CC305: WESTERN CAPE | CD305: Council for Scientific and Industrial Research
CC306: WESTERN CAPE | CD306: Western Cape Destination Marketing Organisation
CC307: WESTERN CAPE | CD307: Western Cape Investment and Trade Promotion Agency (Wesgro)
CC308: WESTERN CAPE | CD308: Western Cape Liquor Board
CC309: WESTERN CAPE | CD309: Artscape
CC310: WESTERN CAPE | CD310: Western Cape Cultural Commission
CC311: WESTERN CAPE | CD311: Western Cape Language Committee
CC312: WESTERN CAPE | CD312: Western Cape Gambling and Racing Board
CC313: WESTERN CAPE | CD313: Western Cape Environmental Commissioner
CC314: WESTERN CAPE | CD314: Western Cape Nature Conservation Board
A500: qazx123

Sheet 1 (hidden)
A1: Filter | C1: HUMAN RESOURCE BUDGET PLAN | K1: 1
A2: 1
A3: 1 | C3: Financial Year: | D3: 2022/23
A4: 1 | C4: Sphere of Government: | D4: National
A5: 1 | C5: Name of Department: | D5: =Options!H41 -> Vote 01: The Presidency
A6: -14
A7: -13
A8: -12
A9: -11
A10: -10
A11: -9
A12: -8
A13: -7
A14: -6
A15: -5
A16: -4
A17: -3
A18: -2
A19: -1
A20: 0
A21: 1
A22: 1 | C22: Department Summary Details
A23: 1
A24: 1 | D24: Establishment Structure | F24: Previous Financial Year | J24: Medium-term expenditure estimates
A25: 1 | D25: As at 31 March 2022 | F25: =LEFT($D$3,4)-1 & "/" & RIGHT($D$3,2)-1 -> 2021/22
A26: 1 | C26: Programmes | D26: Total number of funded posts | E26: of which: number of funded posts additional to the establishment | F26: FTE Headcount | G26: Unit Costs | H26: of which: Once-off Payments per person | I26: Total Annual Cost | J26: Initial Headcount | K26: Unit Costs | L26: of which: Once-off Payments per person
A27: 1 | B27: =IF(LEN(C27)>2,ROW()-26,"") -> 1 | C27: Administration | D27: =IF($C27="",0,OFFSET($C55,MATCH($C27,$C$55:$C$514,0)+24-SUM($A$27:$A27),COLUMN(D$1)-3)) -> 465 | E27: =IF($C27="",0,OFFSET($C55,MATCH($C27,$C$55:$C$514,0)+24-SUM($A$27:$A27),COLUMN(E$1)-3)) -> 39 | F27: =IF($C27="",0,OFFSET($C55,MATCH($C27,$C$55:$C$514,0)+24-SUM($A$27:$A27),COLUMN(F$1)-3)) -> 479 | G27: =IF($C27="",0,OFFSET($C55,MATCH($C27,$C$55:$C$514,0)+24-SUM($A$27:$A27),COLUMN(G$1)-3)) -> 707.4815572 | H27: =IF($C27="",0,OFFSET($C55,MATCH($C27,$C$55:$C$514,0)+24-SUM($A$27:$A27),COLUMN(H$1)-3)) -> 0 | I27: =IF($C27="",0,OFFSET($C55,MATCH($C27,$C$55:$C$514,0)+24-SUM($A$27:$A27),COLUMN(I$1)-3)) -> 338883.6659 | J27: =IF($C27="",0,OFFSET($C55,MATCH($C27,$C$55:$C$514,0)+24-SUM($A$27:$A27),COLUMN(J$1)-3)) -> 462 | K27: =IF($C27="",0,OFFSET($C55,MATCH($C27,$C$55:$C$514,0)+24-SUM($A$27:$A27),COLUMN(K$1)-3)) -> 0 | L27: =IF($C27="",0,OFFSET($C55,MATCH($C27,$C$55:$C$514,0)+24-SUM($A$27:$A27),COLUMN(L$1)-3)) -> 0
A28: =IF(LEN(C28)>1,1,0) -> 1 | B28: 2 | C28: Executive Support | D28: =IF($C28="",0,OFFSET($C56,MATCH($C28,$C$55:$C$514,0)+24-SUM($A$27:$A28),COLUMN(D$1)-3)) -> 18 | E28: =IF($C28="",0,OFFSET($C56,MATCH($C28,$C$55:$C$514,0)+24-SUM($A$27:$A28),COLUMN(E$1)-3)) -> 0 | F28: =IF($C28="",0,OFFSET($C56,MATCH($C28,$C$55:$C$514,0)+24-SUM($A$27:$A28),COLUMN(F$1)-3)) -> 18 | G28: =IF($C28="",0,OFFSET($C56,MATCH($C28,$C$55:$C$514,0)+24-SUM($A$27:$A28),COLUMN(G$1)-3)) -> 823.5688167 | H28: =IF($C28="",0,OFFSET($C56,MATCH($C28,$C$55:$C$514,0)+24-SUM($A$27:$A28),COLUMN(H$1)-3)) -> 0 | I28: =IF($C28="",0,OFFSET($C56,MATCH($C28,$C$55:$C$514,0)+24-SUM($A$27:$A28),COLUMN(I$1)-3)) -> 14824.2387 | J28: =IF($C28="",0,OFFSET($C56,MATCH($C28,$C$55:$C$514,0)+24-SUM($A$27:$A28),COLUMN(J$1)-3)) -> 18 | K28: =IF($C28="",0,OFFSET($C56,MATCH($C28,$C$55:$C$514,0)+24-SUM($A$27:$A28),COLUMN(K$1)-3)) -> 0 | L28: =IF($C28="",0,OFFSET($C56,MATCH($C28,$C$55:$C$514,0)+24-SUM($A$27:$A28),COLUMN(L$1)-3)) -> 0
A29: 1 | B29: 3 | C29: Policy and Research Support Services | D29: =IF($C29="",0,OFFSET($C57,MATCH($C29,$C$55:$C$514,0)+24-SUM($A$27:$A29),COLUMN(D$1)-3)) -> 12 | E29: =IF($C29="",0,OFFSET($C57,MATCH($C29,$C$55:$C$514,0)+24-SUM($A$27:$A29),COLUMN(E$1)-3)) -> 1 | F29: =IF($C29="",0,OFFSET($C57,MATCH($C29,$C$55:$C$514,0)+24-SUM($A$27:$A29),COLUMN(F$1)-3)) -> 13.58333333 | G29: =IF($C29="",0,OFFSET($C57,MATCH($C29,$C$55:$C$514,0)+24-SUM($A$27:$A29),COLUMN(G$1)-3)) -> 1078.135442 | H29: =IF($C29="",0,OFFSET($C57,MATCH($C29,$C$55:$C$514,0)+24-SUM($A$27:$A29),COLUMN(H$1)-3)) -> 0 | I29: =IF($C29="",0,OFFSET($C57,MATCH($C29,$C$55:$C$514,0)+24-SUM($A$27:$A29),COLUMN(I$1)-3)) -> 14644.67309 | J29: =IF($C29="",0,OFFSET($C57,MATCH($C29,$C$55:$C$514,0)+24-SUM($A$27:$A29),COLUMN(J$1)-3)) -> 12 | K29: =IF($C29="",0,OFFSET($C57,MATCH($C29,$C$55:$C$514,0)+24-SUM($A$27:$A29),COLUMN(K$1)-3)) -> 0 | L29: =IF($C29="",0,OFFSET($C57,MATCH($C29,$C$55:$C$514,0)+24-SUM($A$27:$A29),COLUMN(L$1)-3)) -> 0
A30: 0 | D30: =IF($C30="",0,OFFSET($C58,MATCH($C30,$C$55:$C$514,0)+24-SUM($A$27:$A30),COLUMN(D$1)-3)) -> 0 | E30: =IF($C30="",0,OFFSET($C58,MATCH($C30,$C$55:$C$514,0)+24-SUM($A$27:$A30),COLUMN(E$1)-3)) -> 0 | F30: =IF($C30="",0,OFFSET($C58,MATCH($C30,$C$55:$C$514,0)+24-SUM($A$27:$A30),COLUMN(F$1)-3)) -> 0 | G30: =IF($C30="",0,OFFSET($C58,MATCH($C30,$C$55:$C$514,0)+24-SUM($A$27:$A30),COLUMN(G$1)-3)) -> 0 | H30: =IF($C30="",0,OFFSET($C58,MATCH($C30,$C$55:$C$514,0)+24-SUM($A$27:$A30),COLUMN(H$1)-3)) -> 0 | I30: =IF($C30="",0,OFFSET($C58,MATCH($C30,$C$55:$C$514,0)+24-SUM($A$27:$A30),COLUMN(I$1)-3)) -> 0 | J30: =IF($C30="",0,OFFSET($C58,MATCH($C30,$C$55:$C$514,0)+24-SUM($A$27:$A30),COLUMN(J$1)-3)) -> 0 | K30: =IF($C30="",0,OFFSET($C58,MATCH($C30,$C$55:$C$514,0)+24-SUM($A$27:$A30),COLUMN(K$1)-3)) -> 0 | L30: =IF($C30="",0,OFFSET($C58,MATCH($C30,$C$55:$C$514,0)+24-SUM($A$27:$A30),COLUMN(L$1)-3)) -> 0
A31: 0 | D31: =IF($C31="",0,OFFSET($C59,MATCH($C31,$C$55:$C$514,0)+24-SUM($A$27:$A31),COLUMN(D$1)-3)) -> 0 | E31: =IF($C31="",0,OFFSET($C59,MATCH($C31,$C$55:$C$514,0)+24-SUM($A$27:$A31),COLUMN(E$1)-3)) -> 0 | F31: =IF($C31="",0,OFFSET($C59,MATCH($C31,$C$55:$C$514,0)+24-SUM($A$27:$A31),COLUMN(F$1)-3)) -> 0 | G31: =IF($C31="",0,OFFSET($C59,MATCH($C31,$C$55:$C$514,0)+24-SUM($A$27:$A31),COLUMN(G$1)-3)) -> 0 | H31: =IF($C31="",0,OFFSET($C59,MATCH($C31,$C$55:$C$514,0)+24-SUM($A$27:$A31),COLUMN(H$1)-3)) -> 0 | I31: =IF($C31="",0,OFFSET($C59,MATCH($C31,$C$55:$C$514,0)+24-SUM($A$27:$A31),COLUMN(I$1)-3)) -> 0 | J31: =IF($C31="",0,OFFSET($C59,MATCH($C31,$C$55:$C$514,0)+24-SUM($A$27:$A31),COLUMN(J$1)-3)) -> 0 | K31: =IF($C31="",0,OFFSET($C59,MATCH($C31,$C$55:$C$514,0)+24-SUM($A$27:$A31),COLUMN(K$1)-3)) -> 0 | L31: =IF($C31="",0,OFFSET($C59,MATCH($C31,$C$55:$C$514,0)+24-SUM($A$27:$A31),COLUMN(L$1)-3)) -> 0
A32: 0 | D32: =IF($C32="",0,OFFSET($C60,MATCH($C32,$C$55:$C$514,0)+24-SUM($A$27:$A32),COLUMN(D$1)-3)) -> 0 | E32: =IF($C32="",0,OFFSET($C60,MATCH($C32,$C$55:$C$514,0)+24-SUM($A$27:$A32),COLUMN(E$1)-3)) -> 0 | F32: =IF($C32="",0,OFFSET($C60,MATCH($C32,$C$55:$C$514,0)+24-SUM($A$27:$A32),COLUMN(F$1)-3)) -> 0 | G32: =IF($C32="",0,OFFSET($C60,MATCH($C32,$C$55:$C$514,0)+24-SUM($A$27:$A32),COLUMN(G$1)-3)) -> 0 | H32: =IF($C32="",0,OFFSET($C60,MATCH($C32,$C$55:$C$514,0)+24-SUM($A$27:$A32),COLUMN(H$1)-3)) -> 0 | I32: =IF($C32="",0,OFFSET($C60,MATCH($C32,$C$55:$C$514,0)+24-SUM($A$27:$A32),COLUMN(I$1)-3)) -> 0 | J32: =IF($C32="",0,OFFSET($C60,MATCH($C32,$C$55:$C$514,0)+24-SUM($A$27:$A32),COLUMN(J$1)-3)) -> 0 | K32: =IF($C32="",0,OFFSET($C60,MATCH($C32,$C$55:$C$514,0)+24-SUM($A$27:$A32),COLUMN(K$1)-3)) -> 0 | L32: =IF($C32="",0,OFFSET($C60,MATCH($C32,$C$55:$C$514,0)+24-SUM($A$27:$A32),COLUMN(L$1)-3)) -> 0
A33: 0 | D33: =IF($C33="",0,OFFSET($C61,MATCH($C33,$C$55:$C$514,0)+24-SUM($A$27:$A33),COLUMN(D$1)-3)) -> 0 | E33: =IF($C33="",0,OFFSET($C61,MATCH($C33,$C$55:$C$514,0)+24-SUM($A$27:$A33),COLUMN(E$1)-3)) -> 0 | F33: =IF($C33="",0,OFFSET($C61,MATCH($C33,$C$55:$C$514,0)+24-SUM($A$27:$A33),COLUMN(F$1)-3)) -> 0 | G33: =IF($C33="",0,OFFSET($C61,MATCH($C33,$C$55:$C$514,0)+24-SUM($A$27:$A33),COLUMN(G$1)-3)) -> 0 | H33: =IF($C33="",0,OFFSET($C61,MATCH($C33,$C$55:$C$514,0)+24-SUM($A$27:$A33),COLUMN(H$1)-3)) -> 0 | I33: =IF($C33="",0,OFFSET($C61,MATCH($C33,$C$55:$C$514,0)+24-SUM($A$27:$A33),COLUMN(I$1)-3)) -> 0 | J33: =IF($C33="",0,OFFSET($C61,MATCH($C33,$C$55:$C$514,0)+24-SUM($A$27:$A33),COLUMN(J$1)-3)) -> 0 | K33: =IF($C33="",0,OFFSET($C61,MATCH($C33,$C$55:$C$514,0)+24-SUM($A$27:$A33),COLUMN(K$1)-3)) -> 0 | L33: =IF($C33="",0,OFFSET($C61,MATCH($C33,$C$55:$C$514,0)+24-SUM($A$27:$A33),COLUMN(L$1)-3)) -> 0
A34: 0 | D34: =IF($C34="",0,OFFSET($C62,MATCH($C34,$C$55:$C$514,0)+24-SUM($A$27:$A34),COLUMN(D$1)-3)) -> 0 | E34: =IF($C34="",0,OFFSET($C62,MATCH($C34,$C$55:$C$514,0)+24-SUM($A$27:$A34),COLUMN(E$1)-3)) -> 0 | F34: =IF($C34="",0,OFFSET($C62,MATCH($C34,$C$55:$C$514,0)+24-SUM($A$27:$A34),COLUMN(F$1)-3)) -> 0 | G34: =IF($C34="",0,OFFSET($C62,MATCH($C34,$C$55:$C$514,0)+24-SUM($A$27:$A34),COLUMN(G$1)-3)) -> 0 | H34: =IF($C34="",0,OFFSET($C62,MATCH($C34,$C$55:$C$514,0)+24-SUM($A$27:$A34),COLUMN(H$1)-3)) -> 0 | I34: =IF($C34="",0,OFFSET($C62,MATCH($C34,$C$55:$C$514,0)+24-SUM($A$27:$A34),COLUMN(I$1)-3)) -> 0 | J34: =IF($C34="",0,OFFSET($C62,MATCH($C34,$C$55:$C$514,0)+24-SUM($A$27:$A34),COLUMN(J$1)-3)) -> 0 | K34: =IF($C34="",0,OFFSET($C62,MATCH($C34,$C$55:$C$514,0)+24-SUM($A$27:$A34),COLUMN(K$1)-3)) -> 0 | L34: =IF($C34="",0,OFFSET($C62,MATCH($C34,$C$55:$C$514,0)+24-SUM($A$27:$A34),COLUMN(L$1)-3)) -> 0
A35: 0 | D35: =IF($C35="",0,OFFSET($C63,MATCH($C35,$C$55:$C$514,0)+24-SUM($A$27:$A35),COLUMN(D$1)-3)) -> 0 | E35: =IF($C35="",0,OFFSET($C63,MATCH($C35,$C$55:$C$514,0)+24-SUM($A$27:$A35),COLUMN(E$1)-3)) -> 0 | F35: =IF($C35="",0,OFFSET($C63,MATCH($C35,$C$55:$C$514,0)+24-SUM($A$27:$A35),COLUMN(F$1)-3)) -> 0 | G35: =IF($C35="",0,OFFSET($C63,MATCH($C35,$C$55:$C$514,0)+24-SUM($A$27:$A35),COLUMN(G$1)-3)) -> 0 | H35: =IF($C35="",0,OFFSET($C63,MATCH($C35,$C$55:$C$514,0)+24-SUM($A$27:$A35),COLUMN(H$1)-3)) -> 0 | I35: =IF($C35="",0,OFFSET($C63,MATCH($C35,$C$55:$C$514,0)+24-SUM($A$27:$A35),COLUMN(I$1)-3)) -> 0 | J35: =IF($C35="",0,OFFSET($C63,MATCH($C35,$C$55:$C$514,0)+24-SUM($A$27:$A35),COLUMN(J$1)-3)) -> 0 | K35: =IF($C35="",0,OFFSET($C63,MATCH($C35,$C$55:$C$514,0)+24-SUM($A$27:$A35),COLUMN(K$1)-3)) -> 0 | L35: =IF($C35="",0,OFFSET($C63,MATCH($C35,$C$55:$C$514,0)+24-SUM($A$27:$A35),COLUMN(L$1)-3)) -> 0
A36: 0 | D36: =IF($C36="",0,OFFSET($C64,MATCH($C36,$C$55:$C$514,0)+24-SUM($A$27:$A36),COLUMN(D$1)-3)) -> 0 | E36: =IF($C36="",0,OFFSET($C64,MATCH($C36,$C$55:$C$514,0)+24-SUM($A$27:$A36),COLUMN(E$1)-3)) -> 0 | F36: =IF($C36="",0,OFFSET($C64,MATCH($C36,$C$55:$C$514,0)+24-SUM($A$27:$A36),COLUMN(F$1)-3)) -> 0 | G36: =IF($C36="",0,OFFSET($C64,MATCH($C36,$C$55:$C$514,0)+24-SUM($A$27:$A36),COLUMN(G$1)-3)) -> 0 | H36: =IF($C36="",0,OFFSET($C64,MATCH($C36,$C$55:$C$514,0)+24-SUM($A$27:$A36),COLUMN(H$1)-3)) -> 0 | I36: =IF($C36="",0,OFFSET($C64,MATCH($C36,$C$55:$C$514,0)+24-SUM($A$27:$A36),COLUMN(I$1)-3)) -> 0 | J36: =IF($C36="",0,OFFSET($C64,MATCH($C36,$C$55:$C$514,0)+24-SUM($A$27:$A36),COLUMN(J$1)-3)) -> 0 | K36: =IF($C36="",0,OFFSET($C64,MATCH($C36,$C$55:$C$514,0)+24-SUM($A$27:$A36),COLUMN(K$1)-3)) -> 0 | L36: =IF($C36="",0,OFFSET($C64,MATCH($C36,$C$55:$C$514,0)+24-SUM($A$27:$A36),COLUMN(L$1)-3)) -> 0
A37: 0 | D37: =IF($C37="",0,OFFSET($C65,MATCH($C37,$C$55:$C$514,0)+24-SUM($A$27:$A37),COLUMN(D$1)-3)) -> 0 | E37: =IF($C37="",0,OFFSET($C65,MATCH($C37,$C$55:$C$514,0)+24-SUM($A$27:$A37),COLUMN(E$1)-3)) -> 0 | F37: =IF($C37="",0,OFFSET($C65,MATCH($C37,$C$55:$C$514,0)+24-SUM($A$27:$A37),COLUMN(F$1)-3)) -> 0 | G37: =IF($C37="",0,OFFSET($C65,MATCH($C37,$C$55:$C$514,0)+24-SUM($A$27:$A37),COLUMN(G$1)-3)) -> 0 | H37: =IF($C37="",0,OFFSET($C65,MATCH($C37,$C$55:$C$514,0)+24-SUM($A$27:$A37),COLUMN(H$1)-3)) -> 0 | I37: =IF($C37="",0,OFFSET($C65,MATCH($C37,$C$55:$C$514,0)+24-SUM($A$27:$A37),COLUMN(I$1)-3)) -> 0 | J37: =IF($C37="",0,OFFSET($C65,MATCH($C37,$C$55:$C$514,0)+24-SUM($A$27:$A37),COLUMN(J$1)-3)) -> 0 | K37: =IF($C37="",0,OFFSET($C65,MATCH($C37,$C$55:$C$514,0)+24-SUM($A$27:$A37),COLUMN(K$1)-3)) -> 0 | L37: =IF($C37="",0,OFFSET($C65,MATCH($C37,$C$55:$C$514,0)+24-SUM($A$27:$A37),COLUMN(L$1)-3)) -> 0
A38: 0 | D38: =IF($C38="",0,OFFSET($C66,MATCH($C38,$C$55:$C$514,0)+24-SUM($A$27:$A38),COLUMN(D$1)-3)) -> 0 | E38: =IF($C38="",0,OFFSET($C66,MATCH($C38,$C$55:$C$514,0)+24-SUM($A$27:$A38),COLUMN(E$1)-3)) -> 0 | F38: =IF($C38="",0,OFFSET($C66,MATCH($C38,$C$55:$C$514,0)+24-SUM($A$27:$A38),COLUMN(F$1)-3)) -> 0 | G38: =IF($C38="",0,OFFSET($C66,MATCH($C38,$C$55:$C$514,0)+24-SUM($A$27:$A38),COLUMN(G$1)-3)) -> 0 | H38: =IF($C38="",0,OFFSET($C66,MATCH($C38,$C$55:$C$514,0)+24-SUM($A$27:$A38),COLUMN(H$1)-3)) -> 0 | I38: =IF($C38="",0,OFFSET($C66,MATCH($C38,$C$55:$C$514,0)+24-SUM($A$27:$A38),COLUMN(I$1)-3)) -> 0 | J38: =IF($C38="",0,OFFSET($C66,MATCH($C38,$C$55:$C$514,0)+24-SUM($A$27:$A38),COLUMN(J$1)-3)) -> 0 | K38: =IF($C38="",0,OFFSET($C66,MATCH($C38,$C$55:$C$514,0)+24-SUM($A$27:$A38),COLUMN(K$1)-3)) -> 0 | L38: =IF($C38="",0,OFFSET($C66,MATCH($C38,$C$55:$C$514,0)+24-SUM($A$27:$A38),COLUMN(L$1)-3)) -> 0
A39: 0 | D39: =IF($C39="",0,OFFSET($C67,MATCH($C39,$C$55:$C$514,0)+24-SUM($A$27:$A39),COLUMN(D$1)-3)) -> 0 | E39: =IF($C39="",0,OFFSET($C67,MATCH($C39,$C$55:$C$514,0)+24-SUM($A$27:$A39),COLUMN(E$1)-3)) -> 0 | F39: =IF($C39="",0,OFFSET($C67,MATCH($C39,$C$55:$C$514,0)+24-SUM($A$27:$A39),COLUMN(F$1)-3)) -> 0 | G39: =IF($C39="",0,OFFSET($C67,MATCH($C39,$C$55:$C$514,0)+24-SUM($A$27:$A39),COLUMN(G$1)-3)) -> 0 | H39: =IF($C39="",0,OFFSET($C67,MATCH($C39,$C$55:$C$514,0)+24-SUM($A$27:$A39),COLUMN(H$1)-3)) -> 0 | I39: =IF($C39="",0,OFFSET($C67,MATCH($C39,$C$55:$C$514,0)+24-SUM($A$27:$A39),COLUMN(I$1)-3)) -> 0 | J39: =IF($C39="",0,OFFSET($C67,MATCH($C39,$C$55:$C$514,0)+24-SUM($A$27:$A39),COLUMN(J$1)-3)) -> 0 | K39: =IF($C39="",0,OFFSET($C67,MATCH($C39,$C$55:$C$514,0)+24-SUM($A$27:$A39),COLUMN(K$1)-3)) -> 0 | L39: =IF($C39="",0,OFFSET($C67,MATCH($C39,$C$55:$C$514,0)+24-SUM($A$27:$A39),COLUMN(L$1)-3)) -> 0
A40: 0 | D40: =IF($C40="",0,OFFSET($C68,MATCH($C40,$C$55:$C$514,0)+24-SUM($A$27:$A40),COLUMN(D$1)-3)) -> 0 | E40: =IF($C40="",0,OFFSET($C68,MATCH($C40,$C$55:$C$514,0)+24-SUM($A$27:$A40),COLUMN(E$1)-3)) -> 0 | F40: =IF($C40="",0,OFFSET($C68,MATCH($C40,$C$55:$C$514,0)+24-SUM($A$27:$A40),COLUMN(F$1)-3)) -> 0 | G40: =IF($C40="",0,OFFSET($C68,MATCH($C40,$C$55:$C$514,0)+24-SUM($A$27:$A40),COLUMN(G$1)-3)) -> 0 | H40: =IF($C40="",0,OFFSET($C68,MATCH($C40,$C$55:$C$514,0)+24-SUM($A$27:$A40),COLUMN(H$1)-3)) -> 0 | I40: =IF($C40="",0,OFFSET($C68,MATCH($C40,$C$55:$C$514,0)+24-SUM($A$27:$A40),COLUMN(I$1)-3)) -> 0 | J40: =IF($C40="",0,OFFSET($C68,MATCH($C40,$C$55:$C$514,0)+24-SUM($A$27:$A40),COLUMN(J$1)-3)) -> 0 | K40: =IF($C40="",0,OFFSET($C68,MATCH($C40,$C$55:$C$514,0)+24-SUM($A$27:$A40),COLUMN(K$1)-3)) -> 0 | L40: =IF($C40="",0,OFFSET($C68,MATCH($C40,$C$55:$C$514,0)+24-SUM($A$27:$A40),COLUMN(L$1)-3)) -> 0
A41: 0 | D41: =IF($C41="",0,OFFSET($C69,MATCH($C41,$C$55:$C$514,0)+24-SUM($A$27:$A41),COLUMN(D$1)-3)) -> 0 | E41: =IF($C41="",0,OFFSET($C69,MATCH($C41,$C$55:$C$514,0)+24-SUM($A$27:$A41),COLUMN(E$1)-3)) -> 0 | F41: =IF($C41="",0,OFFSET($C69,MATCH($C41,$C$55:$C$514,0)+24-SUM($A$27:$A41),COLUMN(F$1)-3)) -> 0 | G41: =IF($C41="",0,OFFSET($C69,MATCH($C41,$C$55:$C$514,0)+24-SUM($A$27:$A41),COLUMN(G$1)-3)) -> 0 | H41: =IF($C41="",0,OFFSET($C69,MATCH($C41,$C$55:$C$514,0)+24-SUM($A$27:$A41),COLUMN(H$1)-3)) -> 0 | I41: =IF($C41="",0,OFFSET($C69,MATCH($C41,$C$55:$C$514,0)+24-SUM($A$27:$A41),COLUMN(I$1)-3)) -> 0 | J41: =IF($C41="",0,OFFSET($C69,MATCH($C41,$C$55:$C$514,0)+24-SUM($A$27:$A41),COLUMN(J$1)-3)) -> 0 | K41: =IF($C41="",0,OFFSET($C69,MATCH($C41,$C$55:$C$514,0)+24-SUM($A$27:$A41),COLUMN(K$1)-3)) -> 0 | L41: =IF($C41="",0,OFFSET($C69,MATCH($C41,$C$55:$C$514,0)+24-SUM($A$27:$A41),COLUMN(L$1)-3)) -> 0
A42: 0 | D42: =IF($C42="",0,OFFSET($C70,MATCH($C42,$C$55:$C$514,0)+24-SUM($A$27:$A42),COLUMN(D$1)-3)) -> 0 | E42: =IF($C42="",0,OFFSET($C70,MATCH($C42,$C$55:$C$514,0)+24-SUM($A$27:$A42),COLUMN(E$1)-3)) -> 0 | F42: =IF($C42="",0,OFFSET($C70,MATCH($C42,$C$55:$C$514,0)+24-SUM($A$27:$A42),COLUMN(F$1)-3)) -> 0 | G42: =IF($C42="",0,OFFSET($C70,MATCH($C42,$C$55:$C$514,0)+24-SUM($A$27:$A42),COLUMN(G$1)-3)) -> 0 | H42: =IF($C42="",0,OFFSET($C70,MATCH($C42,$C$55:$C$514,0)+24-SUM($A$27:$A42),COLUMN(H$1)-3)) -> 0 | I42: =IF($C42="",0,OFFSET($C70,MATCH($C42,$C$55:$C$514,0)+24-SUM($A$27:$A42),COLUMN(I$1)-3)) -> 0 | J42: =IF($C42="",0,OFFSET($C70,MATCH($C42,$C$55:$C$514,0)+24-SUM($A$27:$A42),COLUMN(J$1)-3)) -> 0 | K42: =IF($C42="",0,OFFSET($C70,MATCH($C42,$C$55:$C$514,0)+24-SUM($A$27:$A42),COLUMN(K$1)-3)) -> 0 | L42: =IF($C42="",0,OFFSET($C70,MATCH($C42,$C$55:$C$514,0)+24-SUM($A$27:$A42),COLUMN(L$1)-3)) -> 0
A43: 1 | C43: Total | D43: =SUM(D23:D42) -> 495 | E43: =SUM(E23:E42) -> 40 | F43: =SUM(F23:F42) -> 510.5833333 | G43: =IFERROR(I43/F43,0) -> 721.4347857 | H43: =IFERROR(SUM(H27:H42)/COUNTIF(H27:H42,">0"),0) -> 0 | I43: =SUM(I23:I42) -> 368352.5777 | J43: =SUM(J23:J42) -> 492 | K43: =IFERROR(#REF!/#REF!,0) -> 0 | L43: =IFERROR(SUM(L27:L42)/COUNTIF(L27:L42,">0"),0) -> 0
A44: 1 | C44: Salary Bands
A45: 1 | C45: 1 - 6 | D45: =SUMIFS(D$55:D$514,$C$55:$C$514,">=1",$C$55:$C$514,"<=6") -> 172 | E45: =SUMIFS(E$55:E$514,$C$55:$C$514,">=1",$C$55:$C$514,"<=6") -> 1 | F45: =SUMIFS(F$55:F$514,$C$55:$C$514,">=1",$C$55:$C$514,"<=6") -> 178.75 | G45: =IFERROR(I45/F45,0) -> 334.4103796 | H45: =IFERROR(SUMIFS(H$55:H$514,$B$55:$B$514,">=1",$C$55:$C$514,"<>Total",$C$55:$C$514,">=1",$C$55:$C$514,"<=6")/COUNTIFS($B$55:$B$514,">=1",$C$55:$C$514,">=1",$C$55:$C$514,"<=6",#REF!,">0"),0) -> 0 | I45: =SUMIFS(I$55:I$514,$C$55:$C$514,">=1",$C$55:$C$514,"<=6") -> 59775.85535 | J45: =SUMIFS(J$55:J$514,$C$55:$C$514,">=1",$C$55:$C$514,"<=6") -> 172 | K45: =IFERROR(#REF!/#REF!,0) -> 0 | L45: =IFERROR(SUMIFS(L$55:L$514,$B$55:$B$514,">=1",$C$55:$C$514,"<>Total",$C$55:$C$514,">=1",$C$55:$C$514,"<=6")/COUNTIFS($B$55:$B$514,">=1",$C$55:$C$514,">=1",$C$55:$C$514,"<=6",#REF!,">0"),0) -> 0
A46: 1 | C46: 7 - 10 | D46: =SUMIFS(D$55:D$514,$C$55:$C$514,">=7",$C$55:$C$514,"<=10") -> 142 | E46: =SUMIFS(E$55:E$514,$C$55:$C$514,">=7",$C$55:$C$514,"<=10") -> 0 | F46: =SUMIFS(F$55:F$514,$C$55:$C$514,">=7",$C$55:$C$514,"<=10") -> 144.6666667 | G46: 584.6530184 | H46: =IFERROR(SUMIFS(H$55:H$514,$B$55:$B$514,">=1",$C$55:$C$514,"<>Total",$C$55:$C$514,">=7",$C$55:$C$514,"<=10")/COUNTIFS($B$55:$B$514,">=1",$C$55:$C$514,">=7",$C$55:$C$514,"<=10",#REF!,">0"),0) -> 0 | I46: =SUMIFS(I$55:I$514,$C$55:$C$514,">=7",$C$55:$C$514,"<=10") -> 84579.80333 | J46: =SUMIFS(J$55:J$514,$C$55:$C$514,">=7",$C$55:$C$514,"<=10") -> 141 | K46: =IFERROR(#REF!/#REF!,0) -> 0 | L46: =IFERROR(SUMIFS(L$55:L$514,$B$55:$B$514,">=1",$C$55:$C$514,"<>Total",$C$55:$C$514,">=7",$C$55:$C$514,"<=10")/COUNTIFS($B$55:$B$514,">=1",$C$55:$C$514,">=7",$C$55:$C$514,"<=10",#REF!,">0"),0) -> 0
A47: 1 | C47: 11 - 12 | D47: =SUMIFS(D$55:D$514,$C$55:$C$514,">=11",$C$55:$C$514,"<=12") -> 88 | E47: =SUMIFS(E$55:E$514,$C$55:$C$514,">=11",$C$55:$C$514,"<=12") -> 1 | F47: =SUMIFS(F$55:F$514,$C$55:$C$514,">=11",$C$55:$C$514,"<=12") -> 89.33333333 | G47: 1084.177151 | H47: =IFERROR(SUMIFS(H$55:H$514,$B$55:$B$514,">=1",$C$55:$C$514,"<>Total",$C$55:$C$514,">=11",$C$55:$C$514,"<=12")/COUNTIFS($B$55:$B$514,">=1",$C$55:$C$514,">=11",$C$55:$C$514,"<=12",#REF!,">0"),0) -> 0 | I47: =SUMIFS(I$55:I$514,$C$55:$C$514,">=11",$C$55:$C$514,"<=12") -> 96853.15881 | J47: =SUMIFS(J$55:J$514,$C$55:$C$514,">=11",$C$55:$C$514,"<=12") -> 87 | K47: =IFERROR(#REF!/#REF!,0) -> 0 | L47: =IFERROR(SUMIFS(L$55:L$514,$B$55:$B$514,">=1",$C$55:$C$514,"<>Total",$C$55:$C$514,">=11",$C$55:$C$514,"<=12")/COUNTIFS($B$55:$B$514,">=1",$C$55:$C$514,">=11",$C$55:$C$514,"<=12",#REF!,">0"),0) -> 0
A48: 1 | C48: 13 - 16 | D48: =SUMIFS(D$55:D$514,$C$55:$C$514,">=13",$C$55:$C$514,"<=16") -> 68 | E48: =SUMIFS(E$55:E$514,$C$55:$C$514,">=13",$C$55:$C$514,"<=16") -> 13 | F48: =SUMIFS(F$55:F$514,$C$55:$C$514,">=13",$C$55:$C$514,"<=16") -> 72 | G48: 1739.780601 | H48: =IFERROR(SUMIFS(H$55:H$514,$B$55:$B$514,">=1",$C$55:$C$514,"<>Total",$C$55:$C$514,">=13",$C$55:$C$514,"<=16")/COUNTIFS($B$55:$B$514,">=1",$C$55:$C$514,">=13",$C$55:$C$514,"<=16",#REF!,">0"),0) -> 0 | I48: =SUMIFS(I$55:I$514,$C$55:$C$514,">=13",$C$55:$C$514,"<=16") -> 125264.2033 | J48: =SUMIFS(J$55:J$514,$C$55:$C$514,">=13",$C$55:$C$514,"<=16") -> 67 | K48: =IFERROR(#REF!/#REF!,0) -> 0 | L48: =IFERROR(SUMIFS(L$55:L$514,$B$55:$B$514,">=1",$C$55:$C$514,"<>Total",$C$55:$C$514,">=13",$C$55:$C$514,"<=16")/COUNTIFS($B$55:$B$514,">=1",$C$55:$C$514,">=13",$C$55:$C$514,"<=16",#REF!,">0"),0) -> 0
A49: 1 | C49: Other | D49: =D43-SUM(D45:D48) -> 25 | E49: =E43-SUM(E45:E48) -> 25 | F49: =F43-SUM(F45:F48) -> 25.83333333 | G49: 72.7570409 | H49: =IFERROR((SUMIFS(H$55:H$514,$B$55:$B$514,">=1",$C$55:$C$514,"<>Total")-SUMIFS(H$55:H$514,$B$55:$B$514,">=1",$C$55:$C$514,"<=16"))/(COUNTIFS($B$55:$B$514,">=1",$C$55:$C$514,"<>Total",#REF!,">0")-COUNTIFS($B$55:$B$514,">=1",$C$55:$C$514,"<=16",#REF!,">0"=(SUMIFS(H$55:H$514,$B$55:$B$514,">=1",$C$55:$C$514,"<>Total")-SUMIFS(H$55:H$514,$B$55:$B$514,">=1",$C$55:$C$514,"<=16"))/(COUNTIFS($B$55:$B$514,">=1",$C$55:$C$514,"<>Total",#REF!,">0")-COUNTIFS($B$55:$B$514,">=1",$C$55:$C$514,"<=16",#REF!,">0")))),0) -> 0 | I49: =I43-SUM(I45:I48) -> 1879.55689 | J49: =J43-SUM(J45:J48) -> 25 | K49: =IFERROR(#REF!/#REF!,0) -> 0 | L49: =IFERROR((SUMIFS(L$55:L$514,$B$55:$B$514,">=1",$C$55:$C$514,"<>Total")-SUMIFS(L$55:L$514,$B$55:$B$514,">=1",$C$55:$C$514,"<=16"))/(COUNTIFS($B$55:$B$514,">=1",$C$55:$C$514,"<>Total",#REF!,">0")-COUNTIFS($B$55:$B$514,">=1",$C$55:$C$514,"<=16",#REF!,">0"=(SUMIFS(L$55:L$514,$B$55:$B$514,">=1",$C$55:$C$514,"<>Total")-SUMIFS(L$55:L$514,$B$55:$B$514,">=1",$C$55:$C$514,"<=16"))/(COUNTIFS($B$55:$B$514,">=1",$C$55:$C$514,"<>Total",#REF!,">0")-COUNTIFS($B$55:$B$514,">=1",$C$55:$C$514,"<=16",#REF!,">0")))),0) -> 0
A50: 1 | C50: Total | D50: =SUM(D45:D49) -> 495 | E50: =SUM(E45:E49) -> 40 | F50: =SUM(F45:F49) -> 510.5833333 | G50: 721.4347857 | H50: =IFERROR(SUMIF($C$55:$C$514,"Total",H$55:H$514)/COUNTIF(H27:H42,">0"),0) -> 0 | I50: =SUM(I45:I49) -> 368352.5777 | J50: =SUM(J45:J49) -> 492 | K50: =IFERROR(#REF!/#REF!,0) -> 0 | L50: =IFERROR(SUMIF($C$55:$C$514,"Total",L$55:L$514)/COUNTIF(L27:L42,">0"),0) -> 0
A51: 1 | C51: Checks | D51: =D43-D50 -> 0 | E51: 0 | F51: 0 | G51: 0 | H51: 0 | I51: 0 | J51: 0 | K51: 0 | L51: 0
A52: 1
A53: 1 | C53: Department Programme Details
A54: 1
A55: =$A$27 -> 1 | C55: =$C$27 -> Administration
A56: =A$55 -> 1 | D56: Establishment Structure | F56: Previous Financial Year | J56: Medium-term expenditure estimates
A57: 1 | D57: As at 31 March 2022 | F57: =LEFT($D$3,4)-1 & "/" & RIGHT($D$3,2)-1 -> 2021/22
A58: 1 | B58: ProgNo. | C58: Salary level | D58: Total number of funded posts | E58: of which: number of funded posts additional to the establishment | F58: FTE Headcount | G58: Unit Costs | H58: of which: Once-off Payments per person | I58: Total Annual Cost | J58: Initial Headcount | K58: Unit Costs | L58: of which: Once-off Payments per person
A59: 1 | B59: 1 | C59: 1 | G59: =IFERROR(IF(I59=0,O59,I59/F59),0) -> 99.95105925 | H59: 15 | K59: 101.2277495 | L59: 15 | O59: 99.95105925
A60: 1 | B60: 1 | C60: 2 | D60: 25 | F60: 25.75 | G60: =IFERROR(IF(I60=0,O60,I60/F60),0) -> 209.1752299 | H60: =1220/1000*12 -> 14.64 | I60: 5386.26217 | J60: 25 | K60: 214.1901289 | L60: =1220/1000*12 -> 14.64 | O60: 179.5147433
A61: 1 | B61: 1 | C61: 3 | D61: 13 | F61: 14.66666667 | G61: 245.6556395 | H61: =1220/1000*12 -> 14.64 | I61: 3602.94938 | J61: 13 | K61: 251.7238604 | L61: =1220/1000*12 -> 14.64 | O61: 216.6722944
A62: 1 | B62: 1 | C62: 4 | D62: 44 | F62: 47.66666667 | G62: 311.9468635 | H62: =1220/1000*12 -> 14.64 | I62: 14869.46716 | J62: 44 | K62: 319.8841556 | L62: =1220/1000*12 -> 14.64 | O62: 236.0392102
A63: 1 | B63: 1 | C63: 5 | D63: 40 | E63: 1 | F63: 39.58333333 | G63: 317.1674845 | H63: =1220/1000*12 -> 14.64 | I63: 12554.54626 | J63: 40 | K63: 324.143683 | L63: =1220/1000*12 -> 14.64 | O63: 290.5081548
A64: 1 | B64: 1 | C64: 6 | D64: 44 | F64: 45.08333333 | G64: 462.8947389 | H64: =1352/1000*12 -> 16.224 | I64: 20868.83781 | J64: 44 | K64: 473.4807134 | L64: =1352/1000*12 -> 16.224 | O64: 341.7085708
A65: 1 | B65: 1 | C65: 7 | D65: 55 | F65: 53.41666667 | G65: 489.2384379 | H65: =1352/1000*12 -> 16.224 | I65: 26133.48656 | J65: 54 | K65: 499.3917463 | L65: =1352/1000*12 -> 16.224 | O65: 455.5004418
A66: 1 | B66: 1 | C66: 8 | D66: 38 | F66: 40.16666667 | G66: 572.1569694 | H66: =1450/1000*12 -> 17.4 | I66: 22981.63827 | J66: 38 | K66: 584.3920265 | L66: =1450/1000*12 -> 17.4 | O66: 520.4674487
A67: 1 | B67: 1 | C67: 9 | D67: 29 | F67: 30.75 | G67: 651.968692 | H67: =1450/1000*12 -> 17.4 | I67: 20048.03728 | J67: 29 | K67: 666.387755 | L67: =1450/1000*12 -> 17.4 | O67: 586.4171069
A68: 1 | B68: 1 | C68: 10 | D68: 11 | F68: 11.25 | G68: 931.9297556 | H68: =1640/1000*12 -> 19.68 | I68: 10484.20975 | J68: 11 | K68: 949.0334 | L68: =1640/1000*12 -> 19.68 | O68: 699.4852566
A69: 1 | B69: 1 | C69: 11 | D69: 47 | E69: 1 | F69: 47 | G69: 919.57023 | H69: =1640/1000*12 -> 19.68 | I69: 43219.80081 | J69: 47 | K69: 937.3853877 | L69: =1640/1000*12 -> 19.68 | O69: 799.6834333
A70: 1 | B70: 1 | C70: 12 | D70: 35 | F70: 35.41666667 | G70: 1310.139315 | H70: =1695/1000*12 -> 20.34 | I70: 46400.7674 | J70: 34 | K70: 1333.862192 | L70: =1695/1000*12 -> 20.34 | O70: 1014.272904
A71: 1 | B71: 1 | C71: 13 | D71: 27 | F71: 27.91666667 | G71: 1284.07338 | H71: =1695/1000*12 -> 20.34 | I71: 35847.04852 | J71: 27 | K71: 1306.682139 | L71: =1695/1000*12 -> 20.34 | O71: 1152.258047
A72: 1 | B72: 1 | C72: 14 | D72: 16 | E72: 2 | F72: 16.66666667 | G72: 1915.884541 | H72: 20.34 | I72: 31931.40902 | J72: 15 | K72: 1949.407473 | L72: 20.34 | O72: 1409.161406
A73: 1 | B73: 1 | C73: 15 | D73: 3 | F73: 4.833333333 | G73: 2284.864136 | H73: 20.34 | I73: 11043.50999 | J73: 3 | K73: 2324.016424 | L73: 20.34 | O73: 1703.285814
A74: 1 | B74: 1 | C74: 16 | D74: 13 | E74: 10 | F74: 13 | G74: 2433.241432 | H74: =1818/1000*12 -> 21.816 | I74: 31632.13862 | J74: 13 | K74: 2469.391642 | L74: =1818/1000*12 -> 21.816 | O74: 2168.595147
A75: 1 | B75: 1 | C75: Deputy Minister | G75: 2007.461925 | K75: 2037.990877 | O75: 2007.461925
A76: 1 | B76: 1 | C76: Minister | G76: 2437.657495 | K76: 2474.728748 | O76: 2437.657495
A77: 1 | B77: 1 | C77: Other | D77: 25 | E77: 25 | F77: 25.83333333 | G77: 72.7570409 | I77: 1879.55689 | J77: 25 | K77: 73.84866335 | O77: 259.6159983
A78: 1 | B78: 1 | C78: Other | G78: 259.6159983 | K78: 263.5111904 | O78: 259.6159983
A79: 1 | B79: 1 | C79: Total | D79: =SUM(D59:D78) -> 465 | E79: =SUM(E59:E78) -> 39 | F79: 479 | G79: =IFERROR(I79/F79,0) -> 707.4815572 | H79: =IFERROR(SUM(H59:H78)/K79,0) -> 0 | I79: =SUM(I59:I78) -> 338883.6659 | J79: =SUM(J59:J78) -> 462 | K79: =IFERROR(#REF!/#REF!,0) -> 0 | L79: =IFERROR(SUM(L59:L78)/#REF!,0) -> 0
A80: 1
A81: 1
A82: 1
A83: 1
A84: =$A$28 -> 1 | C84: =$C$28 -> Executive Support
A85: =A$84 -> 1 | D85: Establishment Structure | F85: Previous Financial Year | J85: Medium-term expenditure estimates
A86: 1 | D86: As at 31 March 2022 | F86: =LEFT($D$3,4)-1 & "/" & RIGHT($D$3,2)-1 -> 2021/22
A87: 1 | C87: Salary level | D87: Total number of funded posts | E87: of which: number of funded posts additional to the establishment | F87: FTE Headcount | G87: Unit Costs | H87: of which: Once-off Payments per person | I87: Total Annual Cost | J87: Initial Headcount | K87: Unit Costs | L87: of which: Once-off Payments per person
A88: 1 | B88: 2 | C88: 1 | G88: =IFERROR(IF(I88=0,O88,I88/F88),0) -> 99.95105925 | H88: =1220/1000*12 -> 14.64 | K88: 101.2331598 | L88: =1220/1000*12 -> 14.64 | O88: 99.95105925
A89: 1 | B89: 2 | C89: 2 | G89: =IFERROR(IF(I89=0,O89,I89/F89),0) -> 179.5147433 | H89: =1220/1000*12 -> 14.64 | K89: 183.7650284 | L89: =1220/1000*12 -> 14.64 | O89: 179.5147433
A90: 1 | B90: 2 | C90: 3 | G90: 216.6722944 | H90: =1220/1000*12 -> 14.64 | K90: 221.9791931 | L90: =1220/1000*12 -> 14.64 | O90: 216.6722944
A91: 1 | B91: 2 | C91: 4 | G91: 236.0392102 | H91: =1220/1000*12 -> 14.64 | K91: 241.9499725 | L91: =1220/1000*12 -> 14.64 | O91: 236.0392102
A92: 1 | B92: 2 | C92: 5 | G92: 290.5081548 | H92: =1220/1000*12 -> 14.64 | K92: 296.8695967 | L92: =1220/1000*12 -> 14.64 | O92: 290.5081548
A93: 1 | B93: 2 | C93: 6 | D93: 6 | F93: 6 | G93: 415.632095 | H93: =1352/1000*12 -> 16.224 | I93: 2493.79257 | J93: 6 | K93: 425.0979578 | L93: =1352/1000*12 -> 16.224 | O93: 341.7085708
A94: 1 | B94: 2 | C94: 7 | D94: 2 | F94: 2 | G94: 455.116085 | H94: =1352/1000*12 -> 16.224 | I94: 910.23217 | J94: 2 | K94: 464.5369532 | L94: =1352/1000*12 -> 16.224 | O94: 455.5004418
A95: 1 | B95: 2 | C95: 8 | D95: 1 | F95: 1 | G95: 551.62922 | H95: =1450/1000*12 -> 17.4 | I95: 551.62922 | J95: 1 | K95: 563.4115416 | L95: =1450/1000*12 -> 17.4 | O95: 520.4674487
A96: 1 | B96: 2 | C96: 9 | D96: 1 | F96: 1 | G96: 562.34903 | H96: =1450/1000*12 -> 17.4 | I96: 562.34903 | J96: 1 | K96: 574.7316995 | L96: =1450/1000*12 -> 17.4 | O96: 586.4171069
A97: 1 | B97: 2 | C97: 10 | G97: 699.4852566 | H97: =1640/1000*12 -> 19.68 | K97: 712.2308313 | L97: =1640/1000*12 -> 19.68 | O97: 699.4852566
A98: 1 | B98: 2 | C98: 11 | D98: 1 | F98: 1 | G98: 955.18228 | H98: =1640/1000*12 -> 19.68 | I98: 955.18228 | J98: 1 | K98: 973.7024507 | L98: =1640/1000*12 -> 19.68 | O98: 799.6834333
A99: 1 | B99: 2 | C99: 12 | D99: 3 | F99: 3 | G99: 1058.09913 | H99: =1695/1000*12 -> 20.34 | I99: 3174.29739 | J99: 3 | K99: 1077.186311 | L99: =1695/1000*12 -> 20.34 | O99: 1014.272904
A100: 1 | B100: 2 | C100: 13 | G100: 1152.258047 | H100: =1695/1000*12 -> 20.34 | K100: 1172.50857 | L100: =1695/1000*12 -> 20.34 | O100: 1152.258047
A101: 1 | B101: 2 | C101: 14 | D101: 3 | F101: 3 | G101: 1403.288373 | H101: 20.34 | I101: 4209.86512 | J101: 3 | K101: 1427.745981 | L101: 20.34 | O101: 1409.161406
A102: 1 | B102: 2 | C102: 15 | D102: 1 | F102: 1 | G102: 1966.89092 | H102: 20.34 | I102: 1966.89092 | J102: 1 | K102: 2000.545639 | L102: 20.34 | O102: 1703.285814
A103: 1 | B103: 2 | C103: 16 | G103: 2168.595147 | H103: =1818/1000*12 -> 21.816 | K103: 2200.777986 | L103: =1818/1000*12 -> 21.816 | O103: 2168.595147
A104: 1 | B104: 2 | C104: Other | G104: 2007.461925 | K104: 2037.581216 | O104: 2007.461925
A105: 1 | B105: 2 | C105: Other | G105: 2437.657495 | K105: 2474.231298 | O105: 2437.657495
A106: 1 | B106: 2 | C106: Other | G106: 259.6159983 | K106: 263.5111904 | O106: 259.6159983
A107: 1 | B107: 2 | C107: Other | G107: 259.6159983 | K107: 263.5111904 | O107: 259.6159983
A108: 1 | B108: 2 | C108: Total | D108: =SUM(D88:D107) -> 18 | E108: =SUM(E88:E107) -> 0 | F108: 18 | G108: =IFERROR(I108/F108,0) -> 823.5688167 | H108: =IFERROR(SUM(H88:H107)/K108,0) -> 0 | I108: =SUM(I88:I107) -> 14824.2387 | J108: =SUM(J88:J107) -> 18 | K108: =IFERROR(#REF!/#REF!,0) -> 0 | L108: =IFERROR(SUM(L88:L107)/#REF!,0) -> 0
A109: 1
A110: 1
A111: 1
A112: 1
A113: =$A$29 -> 1 | C113: =$C$29 -> Policy and Research Support Services
A114: =A$113 -> 1 | D114: Establishment Structure | F114: Previous Financial Year | J114: Medium-term expenditure estimates
A115: 1 | D115: As at 31 March 2022 | F115: =LEFT($D$3,4)-1 & "/" & RIGHT($D$3,2)-1 -> 2021/22
A116: 1 | C116: Salary level | D116: Total number of funded posts | E116: of which: number of funded posts additional to the establishment | F116: FTE Headcount | G116: Unit Costs | H116: of which: Once-off Payments per person | I116: Total Annual Cost | J116: Initial Headcount | K116: Unit Costs | L116: of which: Once-off Payments per person
A117: 1 | B117: 3 | C117: 1 | G117: =IFERROR(IF(I117=0,O117,I117/F117),0) -> 99.95105925 | H117: =1220/1000*12 -> 14.64 | K117: 101.2331598 | L117: =1220/1000*12 -> 14.64 | O117: 99.95105925
A118: 1 | B118: 3 | C118: 2 | G118: =IFERROR(IF(I118=0,O118,I118/F118),0) -> 179.5147433 | H118: =1220/1000*12 -> 14.64 | K118: 183.7650284 | L118: =1220/1000*12 -> 14.64 | O118: 179.5147433
A119: 1 | B119: 3 | C119: 3 | G119: 216.6722944 | H119: =1220/1000*12 -> 14.64 | K119: 221.9791931 | L119: =1220/1000*12 -> 14.64 | O119: 216.6722944
A120: 1 | B120: 3 | C120: 4 | G120: 236.0392102 | H120: =1220/1000*12 -> 14.64 | K120: 241.9499725 | L120: =1220/1000*12 -> 14.64 | O120: 236.0392102
A121: 1 | B121: 3 | C121: 5 | G121: 290.5081548 | H121: =1220/1000*12 -> 14.64 | K121: 296.8695967 | L121: =1220/1000*12 -> 14.64 | O121: 290.5081548
A122: 1 | B122: 3 | C122: 6 | G122: 341.7085708 | H122: =1352/1000*12 -> 16.224 | K122: 349.4224663 | L122: =1352/1000*12 -> 16.224 | O122: 341.7085708
A123: 1 | B123: 3 | C123: 7 | D123: 2 | F123: 2.083333333 | G123: 442.244808 | H123: =1352/1000*12 -> 16.224 | I123: 921.34335 | J123: 2 | K123: 451.3893928 | L123: =1352/1000*12 -> 16.224 | O123: 455.5004418
A124: 1 | B124: 3 | C124: 8 | G124: 520.4674487 | H124: =1450/1000*12 -> 17.4 | K124: 531.5625035 | L124: =1450/1000*12 -> 17.4 | O124: 520.4674487
A125: 1 | B125: 3 | C125: 9 | G125: 586.4171069 | H125: =1450/1000*12 -> 17.4 | K125: 599.3466661 | L125: =1450/1000*12 -> 17.4 | O125: 586.4171069
A126: 1 | B126: 3 | C126: 10 | D126: 3 | F126: 3 | G126: 662.2925667 | H126: =1640/1000*12 -> 19.68 | I126: 1986.8777 | J126: 3 | K126: 674.3408208 | L126: =1640/1000*12 -> 19.68 | O126: 699.4852566
A127: 1 | B127: 3 | C127: 11 | G127: 799.6834333 | H127: =1640/1000*12 -> 19.68 | K127: 815.125188 | L127: =1640/1000*12 -> 19.68 | O127: 799.6834333
A128: 1 | B128: 3 | C128: 12 | D128: 2 | F128: 2.916666667 | G128: 1063.923747 | H128: =1695/1000*12 -> 20.34 | I128: 3103.11093 | J128: 2 | K128: 1083.118059 | L128: =1695/1000*12 -> 20.34 | O128: 1014.272904
A129: 1 | B129: 3 | C129: 13 | D129: 1 | F129: 1 | G129: 1211.53327 | H129: =1695/1000*12 -> 20.34 | I129: 1211.53327 | J129: 1 | K129: 1232.844254 | L129: =1695/1000*12 -> 20.34 | O129: 1152.258047
A130: 1 | B130: 3 | C130: 14 | D130: 3 | F130: 3 | G130: 1499.533207 | H130: 20.34 | I130: 4498.59962 | J130: 3 | K130: 1525.692916 | L130: 20.34 | O130: 1409.161406
A131: 1 | B131: 3 | C131: 15 | D131: 1 | F131: 1 | G131: 1709.19107 | H131: 20.34 | I131: 1709.19107 | J131: 1 | K131: 1738.39031 | L131: 20.34 | O131: 1703.285814
A132: 1 | B132: 3 | C132: 16 | E132: 1 | F132: 0.5833333333 | G132: 2081.172257 | H132: =1818/1000*12 -> 21.816 | I132: 1214.01715 | K132: 2112.04452 | L132: =1818/1000*12 -> 21.816 | O132: 2168.595147
A133: 1 | B133: 3 | C133: Other | G133: 2007.461925 | K133: 2037.581216 | O133: 2007.461925
A134: 1 | B134: 3 | C134: Other | G134: 2437.657495 | K134: 2474.231298 | O134: 2437.657495
A135: 1 | B135: 3 | C135: Other | G135: 259.6159983 | K135: 263.5111904 | O135: 259.6159983
A136: 1 | B136: 3 | C136: Other | G136: 259.6159983 | K136: 263.5111904 | O136: 259.6159983
A137: 1 | B137: 3 | C137: Total | D137: =SUM(D117:D136) -> 12 | E137: =SUM(E117:E136) -> 1 | F137: 13.58333333 | G137: =IFERROR(I137/F137,0) -> 1078.135442 | H137: =IFERROR(SUM(H117:H136)/K137,0) -> 0 | I137: =SUM(I117:I136) -> 14644.67309 | J137: =SUM(J117:J136) -> 12 | K137: =IFERROR(#REF!/#REF!,0) -> 0 | L137: =IFERROR(SUM(L117:L136)/#REF!,0) -> 0
A138: 1
A139: 1
A140: 1
A141: 1
A142: =$A$30 -> 0 | C142: =$C$30 -> 0
A143: =A$142 -> 0 | D143: Establishment Structure | F143: Previous Financial Year | J143: Medium-term expenditure estimates
A144: 0 | D144: As at 31 March 2022 | F144: =LEFT($D$3,4)-1 & "/" & RIGHT($D$3,2)-1 -> 2021/22
A145: 0 | C145: Salary level | D145: Total number of funded posts | E145: of which: number of funded posts additional to the establishment | F145: FTE Headcount | G145: Unit Costs | H145: of which: Once-off Payments per person | I145: Total Annual Cost | J145: Initial Headcount | K145: Unit Costs | L145: of which: Once-off Payments per person
A146: 0 | B146: 4 | C146: 1 | G146: =IFERROR(IF(I146=0,O146,I146/F146),0) -> 99.95105925 | H146: =1220/1000*12 -> 14.64 | K146: 101.2331598 | L146: =1220/1000*12 -> 14.64 | O146: 99.95105925
A147: 0 | B147: 4 | C147: 2 | G147: =IFERROR(IF(I147=0,O147,I147/F147),0) -> 179.5147433 | H147: =1220/1000*12 -> 14.64 | K147: 183.7650284 | L147: =1220/1000*12 -> 14.64 | O147: 179.5147433
A148: 0 | B148: 4 | C148: 3 | G148: 216.6722944 | H148: =1220/1000*12 -> 14.64 | K148: 221.9791931 | L148: =1220/1000*12 -> 14.64 | O148: 216.6722944
A149: 0 | B149: 4 | C149: 4 | G149: 236.0392102 | H149: =1220/1000*12 -> 14.64 | K149: 241.9499725 | L149: =1220/1000*12 -> 14.64 | O149: 236.0392102
A150: 0 | B150: 4 | C150: 5 | G150: 290.5081548 | H150: =1220/1000*12 -> 14.64 | K150: 296.8695967 | L150: =1220/1000*12 -> 14.64 | O150: 290.5081548
A151: 0 | B151: 4 | C151: 6 | G151: 341.7085708 | H151: =1352/1000*12 -> 16.224 | K151: 349.4224663 | L151: =1352/1000*12 -> 16.224 | O151: 341.7085708
A152: 0 | B152: 4 | C152: 7 | G152: 455.5004418 | H152: =1352/1000*12 -> 16.224 | K152: 464.9295602 | L152: =1352/1000*12 -> 16.224 | O152: 455.5004418
A153: 0 | B153: 4 | C153: 8 | G153: 520.4674487 | H153: =1450/1000*12 -> 17.4 | K153: 531.5625035 | L153: =1450/1000*12 -> 17.4 | O153: 520.4674487
A154: 0 | B154: 4 | C154: 9 | G154: 586.4171069 | H154: =1450/1000*12 -> 17.4 | K154: 599.3466661 | L154: =1450/1000*12 -> 17.4 | O154: 586.4171069
A155: 0 | B155: 4 | C155: 10 | G155: 699.4852566 | H155: =1640/1000*12 -> 19.68 | K155: 712.2308313 | L155: =1640/1000*12 -> 19.68 | O155: 699.4852566
A156: 0 | B156: 4 | C156: 11 | G156: 799.6834333 | H156: =1640/1000*12 -> 19.68 | K156: 815.125188 | L156: =1640/1000*12 -> 19.68 | O156: 799.6834333
A157: 0 | B157: 4 | C157: 12 | G157: 1014.272904 | H157: =1695/1000*12 -> 20.34 | K157: 1032.554003 | L157: =1695/1000*12 -> 20.34 | O157: 1014.272904
A158: 0 | B158: 4 | C158: 13 | G158: 1152.258047 | H158: =1695/1000*12 -> 20.34 | K158: 1172.50857 | L158: =1695/1000*12 -> 20.34 | O158: 1152.258047
A159: 0 | B159: 4 | C159: 14 | G159: 1409.161406 | H159: 20.34 | K159: 1433.722878 | L159: 20.34 | O159: 1409.161406
A160: 0 | B160: 4 | C160: 15 | G160: 1703.285814 | H160: 20.34 | K160: 1732.382956 | L160: 20.34 | O160: 1703.285814
A161: 0 | B161: 4 | C161: 16 | G161: 2168.595147 | H161: =1818/1000*12 -> 21.816 | K161: 2200.777986 | L161: =1818/1000*12 -> 21.816 | O161: 2168.595147
A162: 0 | B162: 4 | C162: Other | G162: 2007.461925 | K162: 2037.581216 | O162: 2007.461925
A163: 0 | B163: 4 | C163: Other | G163: 2437.657495 | K163: 2474.231298 | O163: 2437.657495
A164: 0 | B164: 4 | C164: Other | G164: 259.6159983 | K164: 263.5111904 | O164: 259.6159983
A165: 0 | B165: 4 | C165: Other | G165: 259.6159983 | K165: 263.5111904 | O165: 259.6159983
A166: 0 | B166: 4 | C166: Total | D166: =SUM(D146:D165) -> 0 | E166: =SUM(E146:E165) -> 0 | F166: 0 | G166: =IFERROR(I166/F166,0) -> 0 | H166: =IFERROR(SUM(H146:H165)/K166,0) -> 0 | I166: =SUM(I146:I165) -> 0 | J166: =SUM(J146:J165) -> 0 | K166: =IFERROR(#REF!/#REF!,0) -> 0 | L166: =IFERROR(SUM(L146:L165)/#REF!,0) -> 0
A167: 0
A168: 0
A169: 0
A170: 0
A171: =$A$31 -> 0 | C171: =$C$31 -> 0
A172: =A$171 -> 0 | D172: Establishment Structure | F172: Previous Financial Year | J172: Medium-term expenditure estimates
A173: 0 | D173: As at 31 March 2022 | F173: =LEFT($D$3,4)-1 & "/" & RIGHT($D$3,2)-1 -> 2021/22
A174: 0 | C174: Salary level | D174: Total number of funded posts | E174: of which: number of funded posts additional to the establishment | F174: FTE Headcount | G174: Unit Costs | H174: of which: Once-off Payments per person | I174: Total Annual Cost | J174: Initial Headcount | K174: Unit Costs | L174: of which: Once-off Payments per person
A175: 0 | B175: 5 | C175: 1 | G175: =IFERROR(IF(I175=0,O175,I175/F175),0) -> 99.95105925 | H175: =1220/1000*12 -> 14.64 | K175: 101.2331598 | L175: =1220/1000*12 -> 14.64 | O175: 99.95105925
A176: 0 | B176: 5 | C176: 2 | G176: =IFERROR(IF(I176=0,O176,I176/F176),0) -> 179.5147433 | H176: =1220/1000*12 -> 14.64 | K176: 183.7650284 | L176: =1220/1000*12 -> 14.64 | O176: 179.5147433
A177: 0 | B177: 5 | C177: 3 | G177: 216.6722944 | H177: =1220/1000*12 -> 14.64 | K177: 221.9791931 | L177: =1220/1000*12 -> 14.64 | O177: 216.6722944
A178: 0 | B178: 5 | C178: 4 | G178: 236.0392102 | H178: =1220/1000*12 -> 14.64 | K178: 241.9499725 | L178: =1220/1000*12 -> 14.64 | O178: 236.0392102
A179: 0 | B179: 5 | C179: 5 | G179: 290.5081548 | H179: =1220/1000*12 -> 14.64 | K179: 296.8695967 | L179: =1220/1000*12 -> 14.64 | O179: 290.5081548
A180: 0 | B180: 5 | C180: 6 | G180: 341.7085708 | H180: =1352/1000*12 -> 16.224 | K180: 349.4224663 | L180: =1352/1000*12 -> 16.224 | O180: 341.7085708
A181: 0 | B181: 5 | C181: 7 | G181: 455.5004418 | H181: =1352/1000*12 -> 16.224 | K181: 464.9295602 | L181: =1352/1000*12 -> 16.224 | O181: 455.5004418
A182: 0 | B182: 5 | C182: 8 | G182: 520.4674487 | H182: =1450/1000*12 -> 17.4 | K182: 531.5625035 | L182: =1450/1000*12 -> 17.4 | O182: 520.4674487
A183: 0 | B183: 5 | C183: 9 | G183: 586.4171069 | H183: =1450/1000*12 -> 17.4 | K183: 599.3466661 | L183: =1450/1000*12 -> 17.4 | O183: 586.4171069
A184: 0 | B184: 5 | C184: 10 | G184: 699.4852566 | H184: =1640/1000*12 -> 19.68 | K184: 712.2308313 | L184: =1640/1000*12 -> 19.68 | O184: 699.4852566
A185: 0 | B185: 5 | C185: 11 | G185: 799.6834333 | H185: =1640/1000*12 -> 19.68 | K185: 815.125188 | L185: =1640/1000*12 -> 19.68 | O185: 799.6834333
A186: 0 | B186: 5 | C186: 12 | G186: 1014.272904 | H186: =1695/1000*12 -> 20.34 | K186: 1032.554003 | L186: =1695/1000*12 -> 20.34 | O186: 1014.272904
A187: 0 | B187: 5 | C187: 13 | G187: 1152.258047 | H187: =1695/1000*12 -> 20.34 | K187: 1172.50857 | L187: =1695/1000*12 -> 20.34 | O187: 1152.258047
A188: 0 | B188: 5 | C188: 14 | G188: 1409.161406 | H188: 20.34 | K188: 1433.722878 | L188: 20.34 | O188: 1409.161406
A189: 0 | B189: 5 | C189: 15 | G189: 1703.285814 | H189: 20.34 | K189: 1732.382956 | L189: 20.34 | O189: 1703.285814
A190: 0 | B190: 5 | C190: 16 | G190: 2168.595147 | H190: =1818/1000*12 -> 21.816 | K190: 2200.777986 | L190: =1818/1000*12 -> 21.816 | O190: 2168.595147
A191: 0 | B191: 5 | C191: Other | G191: 2007.461925 | K191: 2037.581216 | O191: 2007.461925
A192: 0 | B192: 5 | C192: Other | G192: 2437.657495 | K192: 2474.231298 | O192: 2437.657495
A193: 0 | B193: 5 | C193: Other | G193: 259.6159983 | K193: 263.5111904 | O193: 259.6159983
A194: 0 | B194: 5 | C194: Other | G194: 259.6159983 | K194: 263.5111904 | O194: 259.6159983
A195: 0 | B195: 5 | C195: Total | D195: =SUM(D175:D194) -> 0 | E195: =SUM(E175:E194) -> 0 | F195: 0 | G195: =IFERROR(I195/F195,0) -> 0 | H195: =IFERROR(SUM(H175:H194)/K195,0) -> 0 | I195: =SUM(I175:I194) -> 0 | J195: =SUM(J175:J194) -> 0 | K195: =IFERROR(#REF!/#REF!,0) -> 0 | L195: =IFERROR(SUM(L175:L194)/#REF!,0) -> 0
A196: 0
A197: 0
A198: 0
A199: 0
A200: =$A$32 -> 0 | C200: =$C$32 -> 0
... 314 more rows

Sheet 2 (hidden)
A1: Filter | C1: HUMAN RESOURCE BUDGET PLAN | K1: 1
A2: 1
A3: 1 | C3: Financial Year: | D3: 2022/23
A4: 1 | C4: Sphere of Government: | D4: National
A5: 1 | C5: Name of Department: | D5: =Options!H42 -> Vote 02: Parliament
A6: -14
A7: -13
A8: -12
A9: -11
A10: -10
A11: -9
A12: -8
A13: -7
A14: -6
A15: -5
A16: -4
A17: -3
A18: -2
A19: -1
A20: 0
A21: 1
A22: 1 | C22: Department Summary Details
A23: 1
A24: 1 | D24: Establishment Structure | F24: Previous Financial Year | J24: Medium-term expenditure estimates
A25: 1 | D25: As at 31 March 2022 | F25: =LEFT($D$3,4)-1 & "/" & RIGHT($D$3,2)-1 -> 2021/22
A26: 1 | C26: Programmes | D26: Total number of funded posts | E26: of which: number of funded posts additional to the establishment | F26: FTE Headcount | G26: Unit Costs | H26: of which: Once-off Payments per person | I26: Total Annual Cost | J26: Initial Headcount | K26: Unit Costs | L26: of which: Once-off Payments per person
A27: 1 | B27: =IF(LEN(C27)>2,ROW()-26,"") -> 1 | C27: Administration | D27: =IF($C27="",0,OFFSET($C55,MATCH($C27,$C$55:$C$514,0)+24-SUM($A$27:$A27),COLUMN(D$1)-3)) -> 673 | E27: =IF($C27="",0,OFFSET($C55,MATCH($C27,$C$55:$C$514,0)+24-SUM($A$27:$A27),COLUMN(E$1)-3)) -> 0 | F27: =IF($C27="",0,OFFSET($C55,MATCH($C27,$C$55:$C$514,0)+24-SUM($A$27:$A27),COLUMN(F$1)-3)) -> 643.4023381 | G27: =IF($C27="",0,OFFSET($C55,MATCH($C27,$C$55:$C$514,0)+24-SUM($A$27:$A27),COLUMN(G$1)-3)) -> 650.9721448 | H27: =IF($C27="",0,OFFSET($C55,MATCH($C27,$C$55:$C$514,0)+24-SUM($A$27:$A27),COLUMN(H$1)-3)) -> 0 | I27: =IF($C27="",0,OFFSET($C55,MATCH($C27,$C$55:$C$514,0)+24-SUM($A$27:$A27),COLUMN(I$1)-3)) -> 418837 | J27: =IF($C27="",0,OFFSET($C55,MATCH($C27,$C$55:$C$514,0)+24-SUM($A$27:$A27),COLUMN(J$1)-3)) -> 667.3292946 | K27: =IF($C27="",0,OFFSET($C55,MATCH($C27,$C$55:$C$514,0)+24-SUM($A$27:$A27),COLUMN(K$1)-3)) -> 0 | L27: =IF($C27="",0,OFFSET($C55,MATCH($C27,$C$55:$C$514,0)+24-SUM($A$27:$A27),COLUMN(L$1)-3)) -> 0
A28: =IF(LEN(C28)>1,1,0) -> 1 | B28: 2 | C28: Legislation and Oversight | D28: =IF($C28="",0,OFFSET($C56,MATCH($C28,$C$55:$C$514,0)+24-SUM($A$27:$A28),COLUMN(D$1)-3)) -> 624 | E28: =IF($C28="",0,OFFSET($C56,MATCH($C28,$C$55:$C$514,0)+24-SUM($A$27:$A28),COLUMN(E$1)-3)) -> 0 | F28: =IF($C28="",0,OFFSET($C56,MATCH($C28,$C$55:$C$514,0)+24-SUM($A$27:$A28),COLUMN(F$1)-3)) -> 599.0814064 | G28: =IF($C28="",0,OFFSET($C56,MATCH($C28,$C$55:$C$514,0)+24-SUM($A$27:$A28),COLUMN(G$1)-3)) -> 712.8814138 | H28: =IF($C28="",0,OFFSET($C56,MATCH($C28,$C$55:$C$514,0)+24-SUM($A$27:$A28),COLUMN(H$1)-3)) -> 0 | I28: =IF($C28="",0,OFFSET($C56,MATCH($C28,$C$55:$C$514,0)+24-SUM($A$27:$A28),COLUMN(I$1)-3)) -> 427074 | J28: =IF($C28="",0,OFFSET($C56,MATCH($C28,$C$55:$C$514,0)+24-SUM($A$27:$A28),COLUMN(J$1)-3)) -> 587.5524474 | K28: =IF($C28="",0,OFFSET($C56,MATCH($C28,$C$55:$C$514,0)+24-SUM($A$27:$A28),COLUMN(K$1)-3)) -> 0 | L28: =IF($C28="",0,OFFSET($C56,MATCH($C28,$C$55:$C$514,0)+24-SUM($A$27:$A28),COLUMN(L$1)-3)) -> 0
A29: 1 | B29: 3 | C29: Associated Services | D29: =IF($C29="",0,OFFSET($C57,MATCH($C29,$C$55:$C$514,0)+24-SUM($A$27:$A29),COLUMN(D$1)-3)) -> 11 | E29: =IF($C29="",0,OFFSET($C57,MATCH($C29,$C$55:$C$514,0)+24-SUM($A$27:$A29),COLUMN(E$1)-3)) -> 0 | F29: =IF($C29="",0,OFFSET($C57,MATCH($C29,$C$55:$C$514,0)+24-SUM($A$27:$A29),COLUMN(F$1)-3)) -> 16.55 | G29: =IF($C29="",0,OFFSET($C57,MATCH($C29,$C$55:$C$514,0)+24-SUM($A$27:$A29),COLUMN(G$1)-3)) -> 4741.087613 | H29: =IF($C29="",0,OFFSET($C57,MATCH($C29,$C$55:$C$514,0)+24-SUM($A$27:$A29),COLUMN(H$1)-3)) -> 0 | I29: =IF($C29="",0,OFFSET($C57,MATCH($C29,$C$55:$C$514,0)+24-SUM($A$27:$A29),COLUMN(I$1)-3)) -> 78465 | J29: =IF($C29="",0,OFFSET($C57,MATCH($C29,$C$55:$C$514,0)+24-SUM($A$27:$A29),COLUMN(J$1)-3)) -> 15.35 | K29: =IF($C29="",0,OFFSET($C57,MATCH($C29,$C$55:$C$514,0)+24-SUM($A$27:$A29),COLUMN(K$1)-3)) -> 0 | L29: =IF($C29="",0,OFFSET($C57,MATCH($C29,$C$55:$C$514,0)+24-SUM($A$27:$A29),COLUMN(L$1)-3)) -> 0
A30: 1 | B30: 4 | C30: Direct charge against the National Revenue Fund | D30: =IF($C30="",0,OFFSET($C58,MATCH($C30,$C$55:$C$514,0)+24-SUM($A$27:$A30),COLUMN(D$1)-3)) -> 396 | E30: =IF($C30="",0,OFFSET($C58,MATCH($C30,$C$55:$C$514,0)+24-SUM($A$27:$A30),COLUMN(E$1)-3)) -> 0 | F30: =IF($C30="",0,OFFSET($C58,MATCH($C30,$C$55:$C$514,0)+24-SUM($A$27:$A30),COLUMN(F$1)-3)) -> 380.8290428 | G30: =IF($C30="",0,OFFSET($C58,MATCH($C30,$C$55:$C$514,0)+24-SUM($A$27:$A30),COLUMN(G$1)-3)) -> 1238.639775 | H30: =IF($C30="",0,OFFSET($C58,MATCH($C30,$C$55:$C$514,0)+24-SUM($A$27:$A30),COLUMN(H$1)-3)) -> 0 | I30: =IF($C30="",0,OFFSET($C58,MATCH($C30,$C$55:$C$514,0)+24-SUM($A$27:$A30),COLUMN(I$1)-3)) -> 471710 | J30: =IF($C30="",0,OFFSET($C58,MATCH($C30,$C$55:$C$514,0)+24-SUM($A$27:$A30),COLUMN(J$1)-3)) -> 380.8290428 | K30: =IF($C30="",0,OFFSET($C58,MATCH($C30,$C$55:$C$514,0)+24-SUM($A$27:$A30),COLUMN(K$1)-3)) -> 0 | L30: =IF($C30="",0,OFFSET($C58,MATCH($C30,$C$55:$C$514,0)+24-SUM($A$27:$A30),COLUMN(L$1)-3)) -> 0
A31: 0 | D31: =IF($C31="",0,OFFSET($C59,MATCH($C31,$C$55:$C$514,0)+24-SUM($A$27:$A31),COLUMN(D$1)-3)) -> 0 | E31: =IF($C31="",0,OFFSET($C59,MATCH($C31,$C$55:$C$514,0)+24-SUM($A$27:$A31),COLUMN(E$1)-3)) -> 0 | F31: =IF($C31="",0,OFFSET($C59,MATCH($C31,$C$55:$C$514,0)+24-SUM($A$27:$A31),COLUMN(F$1)-3)) -> 0 | G31: =IF($C31="",0,OFFSET($C59,MATCH($C31,$C$55:$C$514,0)+24-SUM($A$27:$A31),COLUMN(G$1)-3)) -> 0 | H31: =IF($C31="",0,OFFSET($C59,MATCH($C31,$C$55:$C$514,0)+24-SUM($A$27:$A31),COLUMN(H$1)-3)) -> 0 | I31: =IF($C31="",0,OFFSET($C59,MATCH($C31,$C$55:$C$514,0)+24-SUM($A$27:$A31),COLUMN(I$1)-3)) -> 0 | J31: =IF($C31="",0,OFFSET($C59,MATCH($C31,$C$55:$C$514,0)+24-SUM($A$27:$A31),COLUMN(J$1)-3)) -> 0 | K31: =IF($C31="",0,OFFSET($C59,MATCH($C31,$C$55:$C$514,0)+24-SUM($A$27:$A31),COLUMN(K$1)-3)) -> 0 | L31: =IF($C31="",0,OFFSET($C59,MATCH($C31,$C$55:$C$514,0)+24-SUM($A$27:$A31),COLUMN(L$1)-3)) -> 0
A32: 0 | D32: =IF($C32="",0,OFFSET($C60,MATCH($C32,$C$55:$C$514,0)+24-SUM($A$27:$A32),COLUMN(D$1)-3)) -> 0 | E32: =IF($C32="",0,OFFSET($C60,MATCH($C32,$C$55:$C$514,0)+24-SUM($A$27:$A32),COLUMN(E$1)-3)) -> 0 | F32: =IF($C32="",0,OFFSET($C60,MATCH($C32,$C$55:$C$514,0)+24-SUM($A$27:$A32),COLUMN(F$1)-3)) -> 0 | G32: =IF($C32="",0,OFFSET($C60,MATCH($C32,$C$55:$C$514,0)+24-SUM($A$27:$A32),COLUMN(G$1)-3)) -> 0 | H32: =IF($C32="",0,OFFSET($C60,MATCH($C32,$C$55:$C$514,0)+24-SUM($A$27:$A32),COLUMN(H$1)-3)) -> 0 | I32: =IF($C32="",0,OFFSET($C60,MATCH($C32,$C$55:$C$514,0)+24-SUM($A$27:$A32),COLUMN(I$1)-3)) -> 0 | J32: =IF($C32="",0,OFFSET($C60,MATCH($C32,$C$55:$C$514,0)+24-SUM($A$27:$A32),COLUMN(J$1)-3)) -> 0 | K32: =IF($C32="",0,OFFSET($C60,MATCH($C32,$C$55:$C$514,0)+24-SUM($A$27:$A32),COLUMN(K$1)-3)) -> 0 | L32: =IF($C32="",0,OFFSET($C60,MATCH($C32,$C$55:$C$514,0)+24-SUM($A$27:$A32),COLUMN(L$1)-3)) -> 0
A33: 0 | D33: =IF($C33="",0,OFFSET($C61,MATCH($C33,$C$55:$C$514,0)+24-SUM($A$27:$A33),COLUMN(D$1)-3)) -> 0 | E33: =IF($C33="",0,OFFSET($C61,MATCH($C33,$C$55:$C$514,0)+24-SUM($A$27:$A33),COLUMN(E$1)-3)) -> 0 | F33: =IF($C33="",0,OFFSET($C61,MATCH($C33,$C$55:$C$514,0)+24-SUM($A$27:$A33),COLUMN(F$1)-3)) -> 0 | G33: =IF($C33="",0,OFFSET($C61,MATCH($C33,$C$55:$C$514,0)+24-SUM($A$27:$A33),COLUMN(G$1)-3)) -> 0 | H33: =IF($C33="",0,OFFSET($C61,MATCH($C33,$C$55:$C$514,0)+24-SUM($A$27:$A33),COLUMN(H$1)-3)) -> 0 | I33: =IF($C33="",0,OFFSET($C61,MATCH($C33,$C$55:$C$514,0)+24-SUM($A$27:$A33),COLUMN(I$1)-3)) -> 0 | J33: =IF($C33="",0,OFFSET($C61,MATCH($C33,$C$55:$C$514,0)+24-SUM($A$27:$A33),COLUMN(J$1)-3)) -> 0 | K33: =IF($C33="",0,OFFSET($C61,MATCH($C33,$C$55:$C$514,0)+24-SUM($A$27:$A33),COLUMN(K$1)-3)) -> 0 | L33: =IF($C33="",0,OFFSET($C61,MATCH($C33,$C$55:$C$514,0)+24-SUM($A$27:$A33),COLUMN(L$1)-3)) -> 0
A34: 0 | D34: =IF($C34="",0,OFFSET($C62,MATCH($C34,$C$55:$C$514,0)+24-SUM($A$27:$A34),COLUMN(D$1)-3)) -> 0 | E34: =IF($C34="",0,OFFSET($C62,MATCH($C34,$C$55:$C$514,0)+24-SUM($A$27:$A34),COLUMN(E$1)-3)) -> 0 | F34: =IF($C34="",0,OFFSET($C62,MATCH($C34,$C$55:$C$514,0)+24-SUM($A$27:$A34),COLUMN(F$1)-3)) -> 0 | G34: =IF($C34="",0,OFFSET($C62,MATCH($C34,$C$55:$C$514,0)+24-SUM($A$27:$A34),COLUMN(G$1)-3)) -> 0 | H34: =IF($C34="",0,OFFSET($C62,MATCH($C34,$C$55:$C$514,0)+24-SUM($A$27:$A34),COLUMN(H$1)-3)) -> 0 | I34: =IF($C34="",0,OFFSET($C62,MATCH($C34,$C$55:$C$514,0)+24-SUM($A$27:$A34),COLUMN(I$1)-3)) -> 0 | J34: =IF($C34="",0,OFFSET($C62,MATCH($C34,$C$55:$C$514,0)+24-SUM($A$27:$A34),COLUMN(J$1)-3)) -> 0 | K34: =IF($C34="",0,OFFSET($C62,MATCH($C34,$C$55:$C$514,0)+24-SUM($A$27:$A34),COLUMN(K$1)-3)) -> 0 | L34: =IF($C34="",0,OFFSET($C62,MATCH($C34,$C$55:$C$514,0)+24-SUM($A$27:$A34),COLUMN(L$1)-3)) -> 0
A35: 0 | D35: =IF($C35="",0,OFFSET($C63,MATCH($C35,$C$55:$C$514,0)+24-SUM($A$27:$A35),COLUMN(D$1)-3)) -> 0 | E35: =IF($C35="",0,OFFSET($C63,MATCH($C35,$C$55:$C$514,0)+24-SUM($A$27:$A35),COLUMN(E$1)-3)) -> 0 | F35: =IF($C35="",0,OFFSET($C63,MATCH($C35,$C$55:$C$514,0)+24-SUM($A$27:$A35),COLUMN(F$1)-3)) -> 0 | G35: =IF($C35="",0,OFFSET($C63,MATCH($C35,$C$55:$C$514,0)+24-SUM($A$27:$A35),COLUMN(G$1)-3)) -> 0 | H35: =IF($C35="",0,OFFSET($C63,MATCH($C35,$C$55:$C$514,0)+24-SUM($A$27:$A35),COLUMN(H$1)-3)) -> 0 | I35: =IF($C35="",0,OFFSET($C63,MATCH($C35,$C$55:$C$514,0)+24-SUM($A$27:$A35),COLUMN(I$1)-3)) -> 0 | J35: =IF($C35="",0,OFFSET($C63,MATCH($C35,$C$55:$C$514,0)+24-SUM($A$27:$A35),COLUMN(J$1)-3)) -> 0 | K35: =IF($C35="",0,OFFSET($C63,MATCH($C35,$C$55:$C$514,0)+24-SUM($A$27:$A35),COLUMN(K$1)-3)) -> 0 | L35: =IF($C35="",0,OFFSET($C63,MATCH($C35,$C$55:$C$514,0)+24-SUM($A$27:$A35),COLUMN(L$1)-3)) -> 0
A36: 0 | D36: =IF($C36="",0,OFFSET($C64,MATCH($C36,$C$55:$C$514,0)+24-SUM($A$27:$A36),COLUMN(D$1)-3)) -> 0 | E36: =IF($C36="",0,OFFSET($C64,MATCH($C36,$C$55:$C$514,0)+24-SUM($A$27:$A36),COLUMN(E$1)-3)) -> 0 | F36: =IF($C36="",0,OFFSET($C64,MATCH($C36,$C$55:$C$514,0)+24-SUM($A$27:$A36),COLUMN(F$1)-3)) -> 0 | G36: =IF($C36="",0,OFFSET($C64,MATCH($C36,$C$55:$C$514,0)+24-SUM($A$27:$A36),COLUMN(G$1)-3)) -> 0 | H36: =IF($C36="",0,OFFSET($C64,MATCH($C36,$C$55:$C$514,0)+24-SUM($A$27:$A36),COLUMN(H$1)-3)) -> 0 | I36: =IF($C36="",0,OFFSET($C64,MATCH($C36,$C$55:$C$514,0)+24-SUM($A$27:$A36),COLUMN(I$1)-3)) -> 0 | J36: =IF($C36="",0,OFFSET($C64,MATCH($C36,$C$55:$C$514,0)+24-SUM($A$27:$A36),COLUMN(J$1)-3)) -> 0 | K36: =IF($C36="",0,OFFSET($C64,MATCH($C36,$C$55:$C$514,0)+24-SUM($A$27:$A36),COLUMN(K$1)-3)) -> 0 | L36: =IF($C36="",0,OFFSET($C64,MATCH($C36,$C$55:$C$514,0)+24-SUM($A$27:$A36),COLUMN(L$1)-3)) -> 0
A37: 0 | D37: =IF($C37="",0,OFFSET($C65,MATCH($C37,$C$55:$C$514,0)+24-SUM($A$27:$A37),COLUMN(D$1)-3)) -> 0 | E37: =IF($C37="",0,OFFSET($C65,MATCH($C37,$C$55:$C$514,0)+24-SUM($A$27:$A37),COLUMN(E$1)-3)) -> 0 | F37: =IF($C37="",0,OFFSET($C65,MATCH($C37,$C$55:$C$514,0)+24-SUM($A$27:$A37),COLUMN(F$1)-3)) -> 0 | G37: =IF($C37="",0,OFFSET($C65,MATCH($C37,$C$55:$C$514,0)+24-SUM($A$27:$A37),COLUMN(G$1)-3)) -> 0 | H37: =IF($C37="",0,OFFSET($C65,MATCH($C37,$C$55:$C$514,0)+24-SUM($A$27:$A37),COLUMN(H$1)-3)) -> 0 | I37: =IF($C37="",0,OFFSET($C65,MATCH($C37,$C$55:$C$514,0)+24-SUM($A$27:$A37),COLUMN(I$1)-3)) -> 0 | J37: =IF($C37="",0,OFFSET($C65,MATCH($C37,$C$55:$C$514,0)+24-SUM($A$27:$A37),COLUMN(J$1)-3)) -> 0 | K37: =IF($C37="",0,OFFSET($C65,MATCH($C37,$C$55:$C$514,0)+24-SUM($A$27:$A37),COLUMN(K$1)-3)) -> 0 | L37: =IF($C37="",0,OFFSET($C65,MATCH($C37,$C$55:$C$514,0)+24-SUM($A$27:$A37),COLUMN(L$1)-3)) -> 0
A38: 0 | D38: =IF($C38="",0,OFFSET($C66,MATCH($C38,$C$55:$C$514,0)+24-SUM($A$27:$A38),COLUMN(D$1)-3)) -> 0 | E38: =IF($C38="",0,OFFSET($C66,MATCH($C38,$C$55:$C$514,0)+24-SUM($A$27:$A38),COLUMN(E$1)-3)) -> 0 | F38: =IF($C38="",0,OFFSET($C66,MATCH($C38,$C$55:$C$514,0)+24-SUM($A$27:$A38),COLUMN(F$1)-3)) -> 0 | G38: =IF($C38="",0,OFFSET($C66,MATCH($C38,$C$55:$C$514,0)+24-SUM($A$27:$A38),COLUMN(G$1)-3)) -> 0 | H38: =IF($C38="",0,OFFSET($C66,MATCH($C38,$C$55:$C$514,0)+24-SUM($A$27:$A38),COLUMN(H$1)-3)) -> 0 | I38: =IF($C38="",0,OFFSET($C66,MATCH($C38,$C$55:$C$514,0)+24-SUM($A$27:$A38),COLUMN(I$1)-3)) -> 0 | J38: =IF($C38="",0,OFFSET($C66,MATCH($C38,$C$55:$C$514,0)+24-SUM($A$27:$A38),COLUMN(J$1)-3)) -> 0 | K38: =IF($C38="",0,OFFSET($C66,MATCH($C38,$C$55:$C$514,0)+24-SUM($A$27:$A38),COLUMN(K$1)-3)) -> 0 | L38: =IF($C38="",0,OFFSET($C66,MATCH($C38,$C$55:$C$514,0)+24-SUM($A$27:$A38),COLUMN(L$1)-3)) -> 0
A39: 0 | D39: =IF($C39="",0,OFFSET($C67,MATCH($C39,$C$55:$C$514,0)+24-SUM($A$27:$A39),COLUMN(D$1)-3)) -> 0 | E39: =IF($C39="",0,OFFSET($C67,MATCH($C39,$C$55:$C$514,0)+24-SUM($A$27:$A39),COLUMN(E$1)-3)) -> 0 | F39: =IF($C39="",0,OFFSET($C67,MATCH($C39,$C$55:$C$514,0)+24-SUM($A$27:$A39),COLUMN(F$1)-3)) -> 0 | G39: =IF($C39="",0,OFFSET($C67,MATCH($C39,$C$55:$C$514,0)+24-SUM($A$27:$A39),COLUMN(G$1)-3)) -> 0 | H39: =IF($C39="",0,OFFSET($C67,MATCH($C39,$C$55:$C$514,0)+24-SUM($A$27:$A39),COLUMN(H$1)-3)) -> 0 | I39: =IF($C39="",0,OFFSET($C67,MATCH($C39,$C$55:$C$514,0)+24-SUM($A$27:$A39),COLUMN(I$1)-3)) -> 0 | J39: =IF($C39="",0,OFFSET($C67,MATCH($C39,$C$55:$C$514,0)+24-SUM($A$27:$A39),COLUMN(J$1)-3)) -> 0 | K39: =IF($C39="",0,OFFSET($C67,MATCH($C39,$C$55:$C$514,0)+24-SUM($A$27:$A39),COLUMN(K$1)-3)) -> 0 | L39: =IF($C39="",0,OFFSET($C67,MATCH($C39,$C$55:$C$514,0)+24-SUM($A$27:$A39),COLUMN(L$1)-3)) -> 0
A40: 0 | D40: =IF($C40="",0,OFFSET($C68,MATCH($C40,$C$55:$C$514,0)+24-SUM($A$27:$A40),COLUMN(D$1)-3)) -> 0 | E40: =IF($C40="",0,OFFSET($C68,MATCH($C40,$C$55:$C$514,0)+24-SUM($A$27:$A40),COLUMN(E$1)-3)) -> 0 | F40: =IF($C40="",0,OFFSET($C68,MATCH($C40,$C$55:$C$514,0)+24-SUM($A$27:$A40),COLUMN(F$1)-3)) -> 0 | G40: =IF($C40="",0,OFFSET($C68,MATCH($C40,$C$55:$C$514,0)+24-SUM($A$27:$A40),COLUMN(G$1)-3)) -> 0 | H40: =IF($C40="",0,OFFSET($C68,MATCH($C40,$C$55:$C$514,0)+24-SUM($A$27:$A40),COLUMN(H$1)-3)) -> 0 | I40: =IF($C40="",0,OFFSET($C68,MATCH($C40,$C$55:$C$514,0)+24-SUM($A$27:$A40),COLUMN(I$1)-3)) -> 0 | J40: =IF($C40="",0,OFFSET($C68,MATCH($C40,$C$55:$C$514,0)+24-SUM($A$27:$A40),COLUMN(J$1)-3)) -> 0 | K40: =IF($C40="",0,OFFSET($C68,MATCH($C40,$C$55:$C$514,0)+24-SUM($A$27:$A40),COLUMN(K$1)-3)) -> 0 | L40: =IF($C40="",0,OFFSET($C68,MATCH($C40,$C$55:$C$514,0)+24-SUM($A$27:$A40),COLUMN(L$1)-3)) -> 0
A41: 0 | D41: =IF($C41="",0,OFFSET($C69,MATCH($C41,$C$55:$C$514,0)+24-SUM($A$27:$A41),COLUMN(D$1)-3)) -> 0 | E41: =IF($C41="",0,OFFSET($C69,MATCH($C41,$C$55:$C$514,0)+24-SUM($A$27:$A41),COLUMN(E$1)-3)) -> 0 | F41: =IF($C41="",0,OFFSET($C69,MATCH($C41,$C$55:$C$514,0)+24-SUM($A$27:$A41),COLUMN(F$1)-3)) -> 0 | G41: =IF($C41="",0,OFFSET($C69,MATCH($C41,$C$55:$C$514,0)+24-SUM($A$27:$A41),COLUMN(G$1)-3)) -> 0 | H41: =IF($C41="",0,OFFSET($C69,MATCH($C41,$C$55:$C$514,0)+24-SUM($A$27:$A41),COLUMN(H$1)-3)) -> 0 | I41: =IF($C41="",0,OFFSET($C69,MATCH($C41,$C$55:$C$514,0)+24-SUM($A$27:$A41),COLUMN(I$1)-3)) -> 0 | J41: =IF($C41="",0,OFFSET($C69,MATCH($C41,$C$55:$C$514,0)+24-SUM($A$27:$A41),COLUMN(J$1)-3)) -> 0 | K41: =IF($C41="",0,OFFSET($C69,MATCH($C41,$C$55:$C$514,0)+24-SUM($A$27:$A41),COLUMN(K$1)-3)) -> 0 | L41: =IF($C41="",0,OFFSET($C69,MATCH($C41,$C$55:$C$514,0)+24-SUM($A$27:$A41),COLUMN(L$1)-3)) -> 0
A42: 0 | D42: =IF($C42="",0,OFFSET($C70,MATCH($C42,$C$55:$C$514,0)+24-SUM($A$27:$A42),COLUMN(D$1)-3)) -> 0 | E42: =IF($C42="",0,OFFSET($C70,MATCH($C42,$C$55:$C$514,0)+24-SUM($A$27:$A42),COLUMN(E$1)-3)) -> 0 | F42: =IF($C42="",0,OFFSET($C70,MATCH($C42,$C$55:$C$514,0)+24-SUM($A$27:$A42),COLUMN(F$1)-3)) -> 0 | G42: =IF($C42="",0,OFFSET($C70,MATCH($C42,$C$55:$C$514,0)+24-SUM($A$27:$A42),COLUMN(G$1)-3)) -> 0 | H42: =IF($C42="",0,OFFSET($C70,MATCH($C42,$C$55:$C$514,0)+24-SUM($A$27:$A42),COLUMN(H$1)-3)) -> 0 | I42: =IF($C42="",0,OFFSET($C70,MATCH($C42,$C$55:$C$514,0)+24-SUM($A$27:$A42),COLUMN(I$1)-3)) -> 0 | J42: =IF($C42="",0,OFFSET($C70,MATCH($C42,$C$55:$C$514,0)+24-SUM($A$27:$A42),COLUMN(J$1)-3)) -> 0 | K42: =IF($C42="",0,OFFSET($C70,MATCH($C42,$C$55:$C$514,0)+24-SUM($A$27:$A42),COLUMN(K$1)-3)) -> 0 | L42: =IF($C42="",0,OFFSET($C70,MATCH($C42,$C$55:$C$514,0)+24-SUM($A$27:$A42),COLUMN(L$1)-3)) -> 0
A43: 1 | C43: Total | D43: =SUM(D23:D42) -> 1704 | E43: =SUM(E23:E42) -> 0 | F43: =SUM(F23:F42) -> 1639.862787 | G43: =IFERROR(I43/F43,0) -> 851.3431799 | H43: =IFERROR(SUM(H27:H42)/COUNTIF(H27:H42,">0"),0) -> 0 | I43: =SUM(I23:I42) -> 1396086 | J43: =SUM(J23:J42) -> 1651.060785 | K43: =IFERROR(#REF!/#REF!,0) -> 0 | L43: =IFERROR(SUM(L27:L42)/COUNTIF(L27:L42,">0"),0) -> 0
A44: 1 | C44: Salary Bands
A45: 1 | C45: 1 - 6 | D45: =SUMIFS(D$55:D$514,$C$55:$C$514,">=1",$C$55:$C$514,"<=6") -> 75 | E45: =SUMIFS(E$55:E$514,$C$55:$C$514,">=1",$C$55:$C$514,"<=6") -> 0 | F45: =SUMIFS(F$55:F$514,$C$55:$C$514,">=1",$C$55:$C$514,"<=6") -> 75 | G45: =IFERROR(I45/F45,0) -> 158.4933333 | H45: =IFERROR(SUMIFS(H$55:H$514,$B$55:$B$514,">=1",$C$55:$C$514,"<>Total",$C$55:$C$514,">=1",$C$55:$C$514,"<=6")/COUNTIFS($B$55:$B$514,">=1",$C$55:$C$514,">=1",$C$55:$C$514,"<=6",#REF!,">0"),0) -> 0 | I45: =SUMIFS(I$55:I$514,$C$55:$C$514,">=1",$C$55:$C$514,"<=6") -> 11887 | J45: =SUMIFS(J$55:J$514,$C$55:$C$514,">=1",$C$55:$C$514,"<=6") -> 75 | K45: =IFERROR(#REF!/#REF!,0) -> 0 | L45: =IFERROR(SUMIFS(L$55:L$514,$B$55:$B$514,">=1",$C$55:$C$514,"<>Total",$C$55:$C$514,">=1",$C$55:$C$514,"<=6")/COUNTIFS($B$55:$B$514,">=1",$C$55:$C$514,">=1",$C$55:$C$514,"<=6",#REF!,">0"),0) -> 0
A46: 1 | C46: 7 - 10 | D46: =SUMIFS(D$55:D$514,$C$55:$C$514,">=7",$C$55:$C$514,"<=10") -> 707 | E46: =SUMIFS(E$55:E$514,$C$55:$C$514,">=7",$C$55:$C$514,"<=10") -> 0 | F46: =SUMIFS(F$55:F$514,$C$55:$C$514,">=7",$C$55:$C$514,"<=10") -> 690.7487445 | G46: 536.5858468 | H46: =IFERROR(SUMIFS(H$55:H$514,$B$55:$B$514,">=1",$C$55:$C$514,"<>Total",$C$55:$C$514,">=7",$C$55:$C$514,"<=10")/COUNTIFS($B$55:$B$514,">=1",$C$55:$C$514,">=7",$C$55:$C$514,"<=10",#REF!,">0"),0) -> 0 | I46: =SUMIFS(I$55:I$514,$C$55:$C$514,">=7",$C$55:$C$514,"<=10") -> 370646 | J46: =SUMIFS(J$55:J$514,$C$55:$C$514,">=7",$C$55:$C$514,"<=10") -> 697.176742 | K46: =IFERROR(#REF!/#REF!,0) -> 0 | L46: =IFERROR(SUMIFS(L$55:L$514,$B$55:$B$514,">=1",$C$55:$C$514,"<>Total",$C$55:$C$514,">=7",$C$55:$C$514,"<=10")/COUNTIFS($B$55:$B$514,">=1",$C$55:$C$514,">=7",$C$55:$C$514,"<=10",#REF!,">0"),0) -> 0
A47: 1 | C47: 11 - 12 | D47: =SUMIFS(D$55:D$514,$C$55:$C$514,">=11",$C$55:$C$514,"<=12") -> 270 | E47: =SUMIFS(E$55:E$514,$C$55:$C$514,">=11",$C$55:$C$514,"<=12") -> 0 | F47: =SUMIFS(F$55:F$514,$C$55:$C$514,">=11",$C$55:$C$514,"<=12") -> 261.79 | G47: 818.3467665 | H47: =IFERROR(SUMIFS(H$55:H$514,$B$55:$B$514,">=1",$C$55:$C$514,"<>Total",$C$55:$C$514,">=11",$C$55:$C$514,"<=12")/COUNTIFS($B$55:$B$514,">=1",$C$55:$C$514,">=11",$C$55:$C$514,"<=12",#REF!,">0"),0) -> 0 | I47: =SUMIFS(I$55:I$514,$C$55:$C$514,">=11",$C$55:$C$514,"<=12") -> 214235 | J47: =SUMIFS(J$55:J$514,$C$55:$C$514,">=11",$C$55:$C$514,"<=12") -> 261.79 | K47: =IFERROR(#REF!/#REF!,0) -> 0 | L47: =IFERROR(SUMIFS(L$55:L$514,$B$55:$B$514,">=1",$C$55:$C$514,"<>Total",$C$55:$C$514,">=11",$C$55:$C$514,"<=12")/COUNTIFS($B$55:$B$514,">=1",$C$55:$C$514,">=11",$C$55:$C$514,"<=12",#REF!,">0"),0) -> 0
A48: 1 | C48: 13 - 16 | D48: =SUMIFS(D$55:D$514,$C$55:$C$514,">=13",$C$55:$C$514,"<=16") -> 255 | E48: =SUMIFS(E$55:E$514,$C$55:$C$514,">=13",$C$55:$C$514,"<=16") -> 0 | F48: =SUMIFS(F$55:F$514,$C$55:$C$514,">=13",$C$55:$C$514,"<=16") -> 230.495 | G48: 1150.311287 | H48: =IFERROR(SUMIFS(H$55:H$514,$B$55:$B$514,">=1",$C$55:$C$514,"<>Total",$C$55:$C$514,">=13",$C$55:$C$514,"<=16")/COUNTIFS($B$55:$B$514,">=1",$C$55:$C$514,">=13",$C$55:$C$514,"<=16",#REF!,">0"),0) -> 0 | I48: =SUMIFS(I$55:I$514,$C$55:$C$514,">=13",$C$55:$C$514,"<=16") -> 265141 | J48: =SUMIFS(J$55:J$514,$C$55:$C$514,">=13",$C$55:$C$514,"<=16") -> 235.265 | K48: =IFERROR(#REF!/#REF!,0) -> 0 | L48: =IFERROR(SUMIFS(L$55:L$514,$B$55:$B$514,">=1",$C$55:$C$514,"<>Total",$C$55:$C$514,">=13",$C$55:$C$514,"<=16")/COUNTIFS($B$55:$B$514,">=1",$C$55:$C$514,">=13",$C$55:$C$514,"<=16",#REF!,">0"),0) -> 0
A49: 1 | C49: Other | D49: =D43-SUM(D45:D48) -> 397 | E49: =E43-SUM(E45:E48) -> 0 | F49: =F43-SUM(F45:F48) -> 381.8290428 | G49: 1398.995205 | H49: =IFERROR((SUMIFS(H$55:H$514,$B$55:$B$514,">=1",$C$55:$C$514,"<>Total")-SUMIFS(H$55:H$514,$B$55:$B$514,">=1",$C$55:$C$514,"<=16"))/(COUNTIFS($B$55:$B$514,">=1",$C$55:$C$514,"<>Total",#REF!,">0")-COUNTIFS($B$55:$B$514,">=1",$C$55:$C$514,"<=16",#REF!,">0"=(SUMIFS(H$55:H$514,$B$55:$B$514,">=1",$C$55:$C$514,"<>Total")-SUMIFS(H$55:H$514,$B$55:$B$514,">=1",$C$55:$C$514,"<=16"))/(COUNTIFS($B$55:$B$514,">=1",$C$55:$C$514,"<>Total",#REF!,">0")-COUNTIFS($B$55:$B$514,">=1",$C$55:$C$514,"<=16",#REF!,">0")))),0) -> 0 | I49: =I43-SUM(I45:I48) -> 534177 | J49: =J43-SUM(J45:J48) -> 381.8290428 | K49: =IFERROR(#REF!/#REF!,0) -> 0 | L49: =IFERROR((SUMIFS(L$55:L$514,$B$55:$B$514,">=1",$C$55:$C$514,"<>Total")-SUMIFS(L$55:L$514,$B$55:$B$514,">=1",$C$55:$C$514,"<=16"))/(COUNTIFS($B$55:$B$514,">=1",$C$55:$C$514,"<>Total",#REF!,">0")-COUNTIFS($B$55:$B$514,">=1",$C$55:$C$514,"<=16",#REF!,">0"=(SUMIFS(L$55:L$514,$B$55:$B$514,">=1",$C$55:$C$514,"<>Total")-SUMIFS(L$55:L$514,$B$55:$B$514,">=1",$C$55:$C$514,"<=16"))/(COUNTIFS($B$55:$B$514,">=1",$C$55:$C$514,"<>Total",#REF!,">0")-COUNTIFS($B$55:$B$514,">=1",$C$55:$C$514,"<=16",#REF!,">0")))),0) -> 0
A50: 1 | C50: Total | D50: =SUM(D45:D49) -> 1704 | E50: =SUM(E45:E49) -> 0 | F50: =SUM(F45:F49) -> 1639.862787 | G50: 851.3431799 | H50: =IFERROR(SUMIF($C$55:$C$514,"Total",H$55:H$514)/COUNTIF(H27:H42,">0"),0) -> 0 | I50: =SUM(I45:I49) -> 1396086 | J50: =SUM(J45:J49) -> 1651.060785 | K50: =IFERROR(#REF!/#REF!,0) -> 0 | L50: =IFERROR(SUMIF($C$55:$C$514,"Total",L$55:L$514)/COUNTIF(L27:L42,">0"),0) -> 0
A51: 1 | C51: Checks | D51: =D43-D50 -> 0 | E51: 0 | F51: 0 | G51: 0 | H51: 0 | I51: 0 | J51: 0 | K51: 0 | L51: 0
A52: 1
A53: 1 | C53: Department Programme Details
A54: 1
A55: =$A$27 -> 1 | C55: =$C$27 -> Administration
A56: =A$55 -> 1 | D56: Establishment Structure | F56: Previous Financial Year | J56: Medium-term expenditure estimates
A57: 1 | D57: As at 31 March 2022 | F57: =LEFT($D$3,4)-1 & "/" & RIGHT($D$3,2)-1 -> 2021/22
A58: 1 | B58: ProgNo. | C58: Salary level | D58: Total number of funded posts | E58: of which: number of funded posts additional to the establishment | F58: FTE Headcount | G58: Unit Costs | H58: of which: Once-off Payments per person | I58: Total Annual Cost | J58: Initial Headcount | K58: Unit Costs | L58: of which: Once-off Payments per person
A59: 1 | B59: 1 | C59: 1 | G59: =IFERROR(IF(I59=0,O59,I59/F59),0) -> 99.95105925 | H59: =1220/1000*12 -> 14.64 | J59: 0 | K59: =IFERROR((1+INDEX('Weighted UnitCost'!$A$3:$CI$1000,MATCH(MyDept&$C59,'Weighted UnitCost'!$B$3:$B$1000&'Weighted UnitCost'!$C$3:$C$1000,0),24))*(G59-H59)+L59, (1+INDEX('Weighted UnitCost'!$A$3:$CI$1000,MATCH("General"&"Other",'Weighted UnitCost'!$B$3:$B$1000&'Weighted UnitCost'!$C$3:$C$1000,0),24))*(G59-H59)+L59) -> 102.0393863 | L59: =1220/1000*12 -> 14.64 | O59: 99.95105925
A60: 1 | B60: 1 | C60: 2 | G60: =IFERROR(IF(I60=0,O60,I60/F60),0) -> 179.5147433 | H60: =1220/1000*12 -> 14.64 | J60: 0 | K60: =IFERROR((1+INDEX('Weighted UnitCost'!$A$3:$CI$1000,MATCH(MyDept&$C60,'Weighted UnitCost'!$B$3:$B$1000&'Weighted UnitCost'!$C$3:$C$1000,0),24))*(G60-H60)+L60, (1+INDEX('Weighted UnitCost'!$A$3:$CI$1000,MATCH("General"&"Other",'Weighted UnitCost'!$B$3:$B$1000&'Weighted UnitCost'!$C$3:$C$1000,0),24))*(G60-H60)+L60) -> 183.5507075 | L60: =1220/1000*12 -> 14.64 | O60: 179.5147433
A61: 1 | B61: 1 | C61: 3 | D61: 75 | F61: 75 | G61: 158.4933333 | H61: =1220/1000*12 -> 14.64 | I61: 11887 | J61: 75 | K61: =IFERROR((1+INDEX('Weighted UnitCost'!$A$3:$CI$1000,MATCH(MyDept&$C61,'Weighted UnitCost'!$B$3:$B$1000&'Weighted UnitCost'!$C$3:$C$1000,0),24))*(G61-H61)+L61, (1+INDEX('Weighted UnitCost'!$A$3:$CI$1000,MATCH("General"&"Other",'Weighted UnitCost'!$B$3:$B$1000&'Weighted UnitCost'!$C$3:$C$1000,0),24))*(G61-H61)+L61) -> 162.014715 | L61: =1220/1000*12 -> 14.64 | O61: 216.6722944
A62: 1 | B62: 1 | C62: 4 | D62: 0 | F62: 0 | G62: 236.0392102 | H62: =1220/1000*12 -> 14.64 | I62: 0 | J62: 0 | K62: =IFERROR((1+INDEX('Weighted UnitCost'!$A$3:$CI$1000,MATCH(MyDept&$C62,'Weighted UnitCost'!$B$3:$B$1000&'Weighted UnitCost'!$C$3:$C$1000,0),24))*(G62-H62)+L62, (1+INDEX('Weighted UnitCost'!$A$3:$CI$1000,MATCH("General"&"Other",'Weighted UnitCost'!$B$3:$B$1000&'Weighted UnitCost'!$C$3:$C$1000,0),24))*(G62-H62)+L62) -> 241.4588353 | L62: =1220/1000*12 -> 14.64 | O62: 236.0392102
A63: 1 | B63: 1 | C63: 5 | D63: 0 | F63: 0 | G63: 290.5081548 | H63: =1220/1000*12 -> 14.64 | I63: 0 | J63: 0 | K63: =IFERROR((1+INDEX('Weighted UnitCost'!$A$3:$CI$1000,MATCH(MyDept&$C63,'Weighted UnitCost'!$B$3:$B$1000&'Weighted UnitCost'!$C$3:$C$1000,0),24))*(G63-H63)+L63, (1+INDEX('Weighted UnitCost'!$A$3:$CI$1000,MATCH("General"&"Other",'Weighted UnitCost'!$B$3:$B$1000&'Weighted UnitCost'!$C$3:$C$1000,0),24))*(G63-H63)+L63) -> 297.2611236 | L63: =1220/1000*12 -> 14.64 | O63: 290.5081548
A64: 1 | B64: 1 | C64: 6 | D64: 0 | F64: 0 | G64: 341.7085708 | H64: =1352/1000*12 -> 16.224 | I64: 0 | J64: 0 | K64: =IFERROR((1+INDEX('Weighted UnitCost'!$A$3:$CI$1000,MATCH(MyDept&$C64,'Weighted UnitCost'!$B$3:$B$1000&'Weighted UnitCost'!$C$3:$C$1000,0),24))*(G64-H64)+L64, (1+INDEX('Weighted UnitCost'!$A$3:$CI$1000,MATCH("General"&"Other",'Weighted UnitCost'!$B$3:$B$1000&'Weighted UnitCost'!$C$3:$C$1000,0),24))*(G64-H64)+L64) -> 349.6760985 | L64: =1352/1000*12 -> 16.224 | O64: 341.7085708
A65: 1 | B65: 1 | C65: 7 | D65: 16 | F65: 16 | G65: 342.375 | H65: =1352/1000*12 -> 16.224 | I65: 5478 | J65: 23 | K65: =IFERROR((1+INDEX('Weighted UnitCost'!$A$3:$CI$1000,MATCH(MyDept&$C65,'Weighted UnitCost'!$B$3:$B$1000&'Weighted UnitCost'!$C$3:$C$1000,0),24))*(G65-H65)+L65, (1+INDEX('Weighted UnitCost'!$A$3:$CI$1000,MATCH("General"&"Other",'Weighted UnitCost'!$B$3:$B$1000&'Weighted UnitCost'!$C$3:$C$1000,0),24))*(G65-H65)+L65) -> 350.3588412 | L65: =1352/1000*12 -> 16.224 | O65: 455.5004418
A66: 1 | B66: 1 | C66: 8 | D66: 54 | F66: 54 | G66: 373.3703704 | H66: =1450/1000*12 -> 17.4 | I66: 20162 | J66: 54 | K66: =IFERROR((1+INDEX('Weighted UnitCost'!$A$3:$CI$1000,MATCH(MyDept&$C66,'Weighted UnitCost'!$B$3:$B$1000&'Weighted UnitCost'!$C$3:$C$1000,0),24))*(G66-H66)+L66, (1+INDEX('Weighted UnitCost'!$A$3:$CI$1000,MATCH("General"&"Other",'Weighted UnitCost'!$B$3:$B$1000&'Weighted UnitCost'!$C$3:$C$1000,0),24))*(G66-H66)+L66) -> 382.0841591 | L66: =1450/1000*12 -> 17.4 | O66: 520.4674487
A67: 1 | B67: 1 | C67: 9 | D67: 98 | F67: 98 | G67: 452.5 | H67: =1450/1000*12 -> 17.4 | I67: 44345 | J67: 98 | K67: =IFERROR((1+INDEX('Weighted UnitCost'!$A$3:$CI$1000,MATCH(MyDept&$C67,'Weighted UnitCost'!$B$3:$B$1000&'Weighted UnitCost'!$C$3:$C$1000,0),24))*(G67-H67)+L67, (1+INDEX('Weighted UnitCost'!$A$3:$CI$1000,MATCH("General"&"Other",'Weighted UnitCost'!$B$3:$B$1000&'Weighted UnitCost'!$C$3:$C$1000,0),24))*(G67-H67)+L67) -> 463.1508007 | L67: =1450/1000*12 -> 17.4 | O67: 586.4171069
A68: 1 | B68: 1 | C68: 10 | D68: 216 | F68: 200.9073381 | G68: 613.9845422 | H68: =1640/1000*12 -> 19.68 | I68: 123354 | J68: 211.8642946 | K68: =IFERROR((1+INDEX('Weighted UnitCost'!$A$3:$CI$1000,MATCH(MyDept&$C68,'Weighted UnitCost'!$B$3:$B$1000&'Weighted UnitCost'!$C$3:$C$1000,0),24))*(G68-H68)+L68, (1+INDEX('Weighted UnitCost'!$A$3:$CI$1000,MATCH("General"&"Other",'Weighted UnitCost'!$B$3:$B$1000&'Weighted UnitCost'!$C$3:$C$1000,0),24))*(G68-H68)+L68) -> 628.5325064 | L68: =1640/1000*12 -> 19.68 | O68: 699.4852566
A69: 1 | B69: 1 | C69: 11 | D69: 16 | F69: 16 | G69: 685.1875 | H69: =1640/1000*12 -> 19.68 | I69: 10963 | J69: 16 | K69: =IFERROR((1+INDEX('Weighted UnitCost'!$A$3:$CI$1000,MATCH(MyDept&$C69,'Weighted UnitCost'!$B$3:$B$1000&'Weighted UnitCost'!$C$3:$C$1000,0),24))*(G69-H69)+L69, (1+INDEX('Weighted UnitCost'!$A$3:$CI$1000,MATCH("General"&"Other",'Weighted UnitCost'!$B$3:$B$1000&'Weighted UnitCost'!$C$3:$C$1000,0),24))*(G69-H69)+L69) -> 701.4784394 | L69: =1640/1000*12 -> 19.68 | O69: 799.6834333
A70: 1 | B70: 1 | C70: 12 | D70: 81 | F70: 81 | G70: 865.2592593 | H70: =1695/1000*12 -> 20.34 | I70: 70086 | J70: 81 | K70: =IFERROR((1+INDEX('Weighted UnitCost'!$A$3:$CI$1000,MATCH(MyDept&$C70,'Weighted UnitCost'!$B$3:$B$1000&'Weighted UnitCost'!$C$3:$C$1000,0),24))*(G70-H70)+L70, (1+INDEX('Weighted UnitCost'!$A$3:$CI$1000,MATCH("General"&"Other",'Weighted UnitCost'!$B$3:$B$1000&'Weighted UnitCost'!$C$3:$C$1000,0),24))*(G70-H70)+L70) -> 885.9420141 | L70: =1695/1000*12 -> 20.34 | O70: 1014.272904
A71: 1 | B71: 1 | C71: 13 | D71: 23 | F71: 23 | G71: 1181.391304 | H71: =1695/1000*12 -> 20.34 | I71: 27172 | J71: 23 | K71: =IFERROR((1+INDEX('Weighted UnitCost'!$A$3:$CI$1000,MATCH(MyDept&$C71,'Weighted UnitCost'!$B$3:$B$1000&'Weighted UnitCost'!$C$3:$C$1000,0),24))*(G71-H71)+L71, (1+INDEX('Weighted UnitCost'!$A$3:$CI$1000,MATCH("General"&"Other",'Weighted UnitCost'!$B$3:$B$1000&'Weighted UnitCost'!$C$3:$C$1000,0),24))*(G71-H71)+L71) -> 1209.812647 | L71: =1695/1000*12 -> 20.34 | O71: 1152.258047
A72: 1 | B72: 1 | C72: 14 | D72: 52 | F72: 44.848 | G72: 1296.780235 | H72: 20.34 | I72: 58158 | J72: 44.848 | K72: =IFERROR((1+INDEX('Weighted UnitCost'!$A$3:$CI$1000,MATCH(MyDept&$C72,'Weighted UnitCost'!$B$3:$B$1000&'Weighted UnitCost'!$C$3:$C$1000,0),24))*(G72-H72)+L72, (1+INDEX('Weighted UnitCost'!$A$3:$CI$1000,MATCH("General"&"Other",'Weighted UnitCost'!$B$3:$B$1000&'Weighted UnitCost'!$C$3:$C$1000,0),24))*(G72-H72)+L72) -> 1328.02618 | L72: 20.34 | O72: 1409.161406
A73: 1 | B73: 1 | C73: 15 | D73: 31 | F73: 23.647 | G73: 1360.553136 | H73: 20.34 | I73: 32173 | J73: 29.617 | K73: =IFERROR((1+INDEX('Weighted UnitCost'!$A$3:$CI$1000,MATCH(MyDept&$C73,'Weighted UnitCost'!$B$3:$B$1000&'Weighted UnitCost'!$C$3:$C$1000,0),24))*(G73-H73)+L73, (1+INDEX('Weighted UnitCost'!$A$3:$CI$1000,MATCH("General"&"Other",'Weighted UnitCost'!$B$3:$B$1000&'Weighted UnitCost'!$C$3:$C$1000,0),24))*(G73-H73)+L73) -> 1393.360175 | L73: 20.34 | O73: 1703.285814
A74: 1 | B74: 1 | C74: 16 | D74: 11 | F74: 11 | G74: 1369 | H74: =1818/1000*12 -> 21.816 | I74: 15059 | J74: 11 | K74: =IFERROR((1+INDEX('Weighted UnitCost'!$A$3:$CI$1000,MATCH(MyDept&$C74,'Weighted UnitCost'!$B$3:$B$1000&'Weighted UnitCost'!$C$3:$C$1000,0),24))*(G74-H74)+L74, (1+INDEX('Weighted UnitCost'!$A$3:$CI$1000,MATCH("General"&"Other",'Weighted UnitCost'!$B$3:$B$1000&'Weighted UnitCost'!$C$3:$C$1000,0),24))*(G74-H74)+L74) -> 1401.977679 | L74: =1818/1000*12 -> 21.816 | O74: 2168.595147
A75: 1 | B75: 1 | C75: Deputy Minister | G75: 2007.461925 | J75: 0 | K75: =IFERROR((1+INDEX('Weighted UnitCost'!$A$3:$CI$1000,MATCH(MyDept&$C75,'Weighted UnitCost'!$B$3:$B$1000&'Weighted UnitCost'!$C$3:$C$1000,0),24))*(G75-H75)+L75, (1+INDEX('Weighted UnitCost'!$A$3:$CI$1000,MATCH("General"&"Other",'Weighted UnitCost'!$B$3:$B$1000&'Weighted UnitCost'!$C$3:$C$1000,0),24))*(G75-H75)+L75) -> 2056.602529 | O75: 2007.461925
A76: 1 | B76: 1 | C76: Minister | G76: 2437.657495 | J76: 0 | K76: =IFERROR((1+INDEX('Weighted UnitCost'!$A$3:$CI$1000,MATCH(MyDept&$C76,'Weighted UnitCost'!$B$3:$B$1000&'Weighted UnitCost'!$C$3:$C$1000,0),24))*(G76-H76)+L76, (1+INDEX('Weighted UnitCost'!$A$3:$CI$1000,MATCH("General"&"Other",'Weighted UnitCost'!$B$3:$B$1000&'Weighted UnitCost'!$C$3:$C$1000,0),24))*(G76-H76)+L76) -> 2497.328844 | O76: 2437.657495
A77: 1 | B77: 1 | C77: Other | G77: 259.6159983 | J77: 0 | K77: =IFERROR((1+INDEX('Weighted UnitCost'!$A$3:$CI$1000,MATCH(MyDept&$C77,'Weighted UnitCost'!$B$3:$B$1000&'Weighted UnitCost'!$C$3:$C$1000,0),24))*(G77-H77)+L77, (1+INDEX('Weighted UnitCost'!$A$3:$CI$1000,MATCH("General"&"Other",'Weighted UnitCost'!$B$3:$B$1000&'Weighted UnitCost'!$C$3:$C$1000,0),24))*(G77-H77)+L77) -> 265.971131 | O77: 259.6159983
A78: 1 | B78: 1 | C78: Other | G78: 259.6159983 | J78: 0 | K78: =IFERROR((1+INDEX('Weighted UnitCost'!$A$3:$CI$1000,MATCH(MyDept&$C78,'Weighted UnitCost'!$B$3:$B$1000&'Weighted UnitCost'!$C$3:$C$1000,0),24))*(G78-H78)+L78, (1+INDEX('Weighted UnitCost'!$A$3:$CI$1000,MATCH("General"&"Other",'Weighted UnitCost'!$B$3:$B$1000&'Weighted UnitCost'!$C$3:$C$1000,0),24))*(G78-H78)+L78) -> 265.971131 | O78: 259.6159983
A79: 1 | B79: 1 | C79: Total | D79: =SUM(D59:D78) -> 673 | E79: =SUM(E59:E78) -> 0 | F79: 643.4023381 | G79: =IFERROR(I79/F79,0) -> 650.9721448 | H79: =IFERROR(SUM(H59:H78)/K79,0) -> 0 | I79: =SUM(I59:I78) -> 418837 | J79: =SUM(J59:J78) -> 667.3292946 | K79: =IFERROR(#REF!/#REF!,0) -> 0 | L79: =IFERROR(SUM(L59:L78)/#REF!,0) -> 0
A80: 1
A81: 1
A82: 1
A83: 1
A84: =$A$28 -> 1 | C84: =$C$28 -> Legislation and Oversight
A85: =A$84 -> 1 | D85: Establishment Structure | F85: Previous Financial Year | J85: Medium-term expenditure estimates
A86: 1 | D86: As at 31 March 2022 | F86: =LEFT($D$3,4)-1 & "/" & RIGHT($D$3,2)-1 -> 2021/22
A87: 1 | C87: Salary level | D87: Total number of funded posts | E87: of which: number of funded posts additional to the establishment | F87: FTE Headcount | G87: Unit Costs | H87: of which: Once-off Payments per person | I87: Total Annual Cost | J87: Initial Headcount | K87: Unit Costs | L87: of which: Once-off Payments per person
A88: 1 | B88: 2 | C88: 1 | G88: =IFERROR(IF(I88=0,O88,I88/F88),0) -> 99.95105925 | H88: =1220/1000*12 -> 14.64 | J88: 0 | K88: =IFERROR((1+INDEX('Weighted UnitCost'!$A$3:$CI$1000,MATCH(MyDept&$C88,'Weighted UnitCost'!$B$3:$B$1000&'Weighted UnitCost'!$C$3:$C$1000,0),24))*(G88-H88)+L88, (1+INDEX('Weighted UnitCost'!$A$3:$CI$1000,MATCH("General"&"Other",'Weighted UnitCost'!$B$3:$B$1000&'Weighted UnitCost'!$C$3:$C$1000,0),24))*(G88-H88)+L88) -> 102.0393863 | L88: =1220/1000*12 -> 14.64 | O88: 99.95105925
A89: 1 | B89: 2 | C89: 2 | G89: =IFERROR(IF(I89=0,O89,I89/F89),0) -> 179.5147433 | H89: =1220/1000*12 -> 14.64 | J89: 0 | K89: =IFERROR((1+INDEX('Weighted UnitCost'!$A$3:$CI$1000,MATCH(MyDept&$C89,'Weighted UnitCost'!$B$3:$B$1000&'Weighted UnitCost'!$C$3:$C$1000,0),24))*(G89-H89)+L89, (1+INDEX('Weighted UnitCost'!$A$3:$CI$1000,MATCH("General"&"Other",'Weighted UnitCost'!$B$3:$B$1000&'Weighted UnitCost'!$C$3:$C$1000,0),24))*(G89-H89)+L89) -> 183.5507075 | L89: =1220/1000*12 -> 14.64 | O89: 179.5147433
A90: 1 | B90: 2 | C90: 3 | G90: 216.6722944 | H90: =1220/1000*12 -> 14.64 | J90: 0 | K90: =IFERROR((1+INDEX('Weighted UnitCost'!$A$3:$CI$1000,MATCH(MyDept&$C90,'Weighted UnitCost'!$B$3:$B$1000&'Weighted UnitCost'!$C$3:$C$1000,0),24))*(G90-H90)+L90, (1+INDEX('Weighted UnitCost'!$A$3:$CI$1000,MATCH("General"&"Other",'Weighted UnitCost'!$B$3:$B$1000&'Weighted UnitCost'!$C$3:$C$1000,0),24))*(G90-H90)+L90) -> 221.6178373 | L90: =1220/1000*12 -> 14.64 | O90: 216.6722944
A91: 1 | B91: 2 | C91: 4 | G91: 236.0392102 | H91: =1220/1000*12 -> 14.64 | J91: 0 | K91: =IFERROR((1+INDEX('Weighted UnitCost'!$A$3:$CI$1000,MATCH(MyDept&$C91,'Weighted UnitCost'!$B$3:$B$1000&'Weighted UnitCost'!$C$3:$C$1000,0),24))*(G91-H91)+L91, (1+INDEX('Weighted UnitCost'!$A$3:$CI$1000,MATCH("General"&"Other",'Weighted UnitCost'!$B$3:$B$1000&'Weighted UnitCost'!$C$3:$C$1000,0),24))*(G91-H91)+L91) -> 241.4588353 | L91: =1220/1000*12 -> 14.64 | O91: 236.0392102
A92: 1 | B92: 2 | C92: 5 | G92: 290.5081548 | H92: =1220/1000*12 -> 14.64 | J92: 0 | K92: =IFERROR((1+INDEX('Weighted UnitCost'!$A$3:$CI$1000,MATCH(MyDept&$C92,'Weighted UnitCost'!$B$3:$B$1000&'Weighted UnitCost'!$C$3:$C$1000,0),24))*(G92-H92)+L92, (1+INDEX('Weighted UnitCost'!$A$3:$CI$1000,MATCH("General"&"Other",'Weighted UnitCost'!$B$3:$B$1000&'Weighted UnitCost'!$C$3:$C$1000,0),24))*(G92-H92)+L92) -> 297.2611236 | L92: =1220/1000*12 -> 14.64 | O92: 290.5081548
A93: 1 | B93: 2 | C93: 6 | G93: 341.7085708 | H93: =1352/1000*12 -> 16.224 | J93: 0 | K93: =IFERROR((1+INDEX('Weighted UnitCost'!$A$3:$CI$1000,MATCH(MyDept&$C93,'Weighted UnitCost'!$B$3:$B$1000&'Weighted UnitCost'!$C$3:$C$1000,0),24))*(G93-H93)+L93, (1+INDEX('Weighted UnitCost'!$A$3:$CI$1000,MATCH("General"&"Other",'Weighted UnitCost'!$B$3:$B$1000&'Weighted UnitCost'!$C$3:$C$1000,0),24))*(G93-H93)+L93) -> 349.6760985 | L93: =1352/1000*12 -> 16.224 | O93: 341.7085708
A94: 1 | B94: 2 | C94: 7 | G94: 455.5004418 | H94: =1352/1000*12 -> 16.224 | J94: 0 | K94: =IFERROR((1+INDEX('Weighted UnitCost'!$A$3:$CI$1000,MATCH(MyDept&$C94,'Weighted UnitCost'!$B$3:$B$1000&'Weighted UnitCost'!$C$3:$C$1000,0),24))*(G94-H94)+L94, (1+INDEX('Weighted UnitCost'!$A$3:$CI$1000,MATCH("General"&"Other",'Weighted UnitCost'!$B$3:$B$1000&'Weighted UnitCost'!$C$3:$C$1000,0),24))*(G94-H94)+L94) -> 466.2534775 | L94: =1352/1000*12 -> 16.224 | O94: 455.5004418
A95: 1 | B95: 2 | C95: 8 | D95: 5 | F95: 5 | G95: 278 | H95: =1450/1000*12 -> 17.4 | I95: 1390 | J95: 5 | K95: =IFERROR((1+INDEX('Weighted UnitCost'!$A$3:$CI$1000,MATCH(MyDept&$C95,'Weighted UnitCost'!$B$3:$B$1000&'Weighted UnitCost'!$C$3:$C$1000,0),24))*(G95-H95)+L95, (1+INDEX('Weighted UnitCost'!$A$3:$CI$1000,MATCH("General"&"Other",'Weighted UnitCost'!$B$3:$B$1000&'Weighted UnitCost'!$C$3:$C$1000,0),24))*(G95-H95)+L95) -> 284.3792201 | L95: =1450/1000*12 -> 17.4 | O95: 520.4674487
A96: 1 | B96: 2 | C96: 9 | D96: 44 | F96: 44 | G96: 408.2727273 | H96: =1450/1000*12 -> 17.4 | I96: 17964 | J96: 44 | K96: =IFERROR((1+INDEX('Weighted UnitCost'!$A$3:$CI$1000,MATCH(MyDept&$C96,'Weighted UnitCost'!$B$3:$B$1000&'Weighted UnitCost'!$C$3:$C$1000,0),24))*(G96-H96)+L96, (1+INDEX('Weighted UnitCost'!$A$3:$CI$1000,MATCH("General"&"Other",'Weighted UnitCost'!$B$3:$B$1000&'Weighted UnitCost'!$C$3:$C$1000,0),24))*(G96-H96)+L96) -> 417.8408898 | L96: =1450/1000*12 -> 17.4 | O96: 586.4171069
A97: 1 | B97: 2 | C97: 10 | D97: 273 | F97: 269.0414064 | G97: 576.4056992 | H97: =1640/1000*12 -> 19.68 | I97: 155077 | J97: 257.5124474 | K97: =IFERROR((1+INDEX('Weighted UnitCost'!$A$3:$CI$1000,MATCH(MyDept&$C97,'Weighted UnitCost'!$B$3:$B$1000&'Weighted UnitCost'!$C$3:$C$1000,0),24))*(G97-H97)+L97, (1+INDEX('Weighted UnitCost'!$A$3:$CI$1000,MATCH("General"&"Other",'Weighted UnitCost'!$B$3:$B$1000&'Weighted UnitCost'!$C$3:$C$1000,0),24))*(G97-H97)+L97) -> 590.033772 | L97: =1640/1000*12 -> 19.68 | O97: 699.4852566
A98: 1 | B98: 2 | C98: 11 | D98: 25 | F98: 25 | G98: 664.76 | H98: =1640/1000*12 -> 19.68 | I98: 16619 | J98: 25 | K98: =IFERROR((1+INDEX('Weighted UnitCost'!$A$3:$CI$1000,MATCH(MyDept&$C98,'Weighted UnitCost'!$B$3:$B$1000&'Weighted UnitCost'!$C$3:$C$1000,0),24))*(G98-H98)+L98, (1+INDEX('Weighted UnitCost'!$A$3:$CI$1000,MATCH("General"&"Other",'Weighted UnitCost'!$B$3:$B$1000&'Weighted UnitCost'!$C$3:$C$1000,0),24))*(G98-H98)+L98) -> 680.5508952 | L98: =1640/1000*12 -> 19.68 | O98: 799.6834333
A99: 1 | B99: 2 | C99: 12 | D99: 147 | F99: 136.04 | G99: 833.056454 | H99: =1695/1000*12 -> 20.34 | I99: 113329 | J99: 136.04 | K99: =IFERROR((1+INDEX('Weighted UnitCost'!$A$3:$CI$1000,MATCH(MyDept&$C99,'Weighted UnitCost'!$B$3:$B$1000&'Weighted UnitCost'!$C$3:$C$1000,0),24))*(G99-H99)+L99, (1+INDEX('Weighted UnitCost'!$A$3:$CI$1000,MATCH("General"&"Other",'Weighted UnitCost'!$B$3:$B$1000&'Weighted UnitCost'!$C$3:$C$1000,0),24))*(G99-H99)+L99) -> 852.9509173 | L99: =1695/1000*12 -> 20.34 | O99: 1014.272904
A100: 1 | B100: 2 | C100: 13 | D100: 5 | F100: 5 | G100: 912.2 | H100: =1695/1000*12 -> 20.34 | I100: 4561 | J100: 5 | K100: =IFERROR((1+INDEX('Weighted UnitCost'!$A$3:$CI$1000,MATCH(MyDept&$C100,'Weighted UnitCost'!$B$3:$B$1000&'Weighted UnitCost'!$C$3:$C$1000,0),24))*(G100-H100)+L100, (1+INDEX('Weighted UnitCost'!$A$3:$CI$1000,MATCH("General"&"Other",'Weighted UnitCost'!$B$3:$B$1000&'Weighted UnitCost'!$C$3:$C$1000,0),24))*(G100-H100)+L100) -> 934.0318159 | L100: =1695/1000*12 -> 20.34 | O100: 1152.258047
A101: 1 | B101: 2 | C101: 14 | D101: 85 | F101: 75 | G101: 943.16 | H101: 20.34 | I101: 70737 | J101: 75 | K101: =IFERROR((1+INDEX('Weighted UnitCost'!$A$3:$CI$1000,MATCH(MyDept&$C101,'Weighted UnitCost'!$B$3:$B$1000&'Weighted UnitCost'!$C$3:$C$1000,0),24))*(G101-H101)+L101, (1+INDEX('Weighted UnitCost'!$A$3:$CI$1000,MATCH("General"&"Other",'Weighted UnitCost'!$B$3:$B$1000&'Weighted UnitCost'!$C$3:$C$1000,0),24))*(G101-H101)+L101) -> 965.7496849 | L101: 20.34 | O101: 1409.161406
A102: 1 | B102: 2 | C102: 15 | D102: 33 | F102: 33 | G102: 1155.272727 | H102: 20.34 | I102: 38124 | J102: 33 | K102: =IFERROR((1+INDEX('Weighted UnitCost'!$A$3:$CI$1000,MATCH(MyDept&$C102,'Weighted UnitCost'!$B$3:$B$1000&'Weighted UnitCost'!$C$3:$C$1000,0),24))*(G102-H102)+L102, (1+INDEX('Weighted UnitCost'!$A$3:$CI$1000,MATCH("General"&"Other",'Weighted UnitCost'!$B$3:$B$1000&'Weighted UnitCost'!$C$3:$C$1000,0),24))*(G102-H102)+L102) -> 1183.054714 | L102: 20.34 | O102: 1703.285814
A103: 1 | B103: 2 | C103: 16 | D103: 7 | F103: 7 | G103: 1324.714286 | H103: =1818/1000*12 -> 21.816 | I103: 9273 | J103: 7 | K103: =IFERROR((1+INDEX('Weighted UnitCost'!$A$3:$CI$1000,MATCH(MyDept&$C103,'Weighted UnitCost'!$B$3:$B$1000&'Weighted UnitCost'!$C$3:$C$1000,0),24))*(G103-H103)+L103, (1+INDEX('Weighted UnitCost'!$A$3:$CI$1000,MATCH("General"&"Other",'Weighted UnitCost'!$B$3:$B$1000&'Weighted UnitCost'!$C$3:$C$1000,0),24))*(G103-H103)+L103) -> 1356.607896 | L103: =1818/1000*12 -> 21.816 | O103: 2168.595147
A104: 1 | B104: 2 | C104: Other | G104: 2007.461925 | J104: 0 | K104: =IFERROR((1+INDEX('Weighted UnitCost'!$A$3:$CI$1000,MATCH(MyDept&$C104,'Weighted UnitCost'!$B$3:$B$1000&'Weighted UnitCost'!$C$3:$C$1000,0),24))*(G104-H104)+L104, (1+INDEX('Weighted UnitCost'!$A$3:$CI$1000,MATCH("General"&"Other",'Weighted UnitCost'!$B$3:$B$1000&'Weighted UnitCost'!$C$3:$C$1000,0),24))*(G104-H104)+L104) -> 2056.602529 | O104: 2007.461925
A105: 1 | B105: 2 | C105: Other | G105: 2437.657495 | J105: 0 | K105: =IFERROR((1+INDEX('Weighted UnitCost'!$A$3:$CI$1000,MATCH(MyDept&$C105,'Weighted UnitCost'!$B$3:$B$1000&'Weighted UnitCost'!$C$3:$C$1000,0),24))*(G105-H105)+L105, (1+INDEX('Weighted UnitCost'!$A$3:$CI$1000,MATCH("General"&"Other",'Weighted UnitCost'!$B$3:$B$1000&'Weighted UnitCost'!$C$3:$C$1000,0),24))*(G105-H105)+L105) -> 2497.328844 | O105: 2437.657495
A106: 1 | B106: 2 | C106: Other | G106: 259.6159983 | J106: 0 | K106: =IFERROR((1+INDEX('Weighted UnitCost'!$A$3:$CI$1000,MATCH(MyDept&$C106,'Weighted UnitCost'!$B$3:$B$1000&'Weighted UnitCost'!$C$3:$C$1000,0),24))*(G106-H106)+L106, (1+INDEX('Weighted UnitCost'!$A$3:$CI$1000,MATCH("General"&"Other",'Weighted UnitCost'!$B$3:$B$1000&'Weighted UnitCost'!$C$3:$C$1000,0),24))*(G106-H106)+L106) -> 265.971131 | O106: 259.6159983
A107: 1 | B107: 2 | C107: Other | G107: 259.6159983 | J107: 0 | K107: =IFERROR((1+INDEX('Weighted UnitCost'!$A$3:$CI$1000,MATCH(MyDept&$C107,'Weighted UnitCost'!$B$3:$B$1000&'Weighted UnitCost'!$C$3:$C$1000,0),24))*(G107-H107)+L107, (1+INDEX('Weighted UnitCost'!$A$3:$CI$1000,MATCH("General"&"Other",'Weighted UnitCost'!$B$3:$B$1000&'Weighted UnitCost'!$C$3:$C$1000,0),24))*(G107-H107)+L107) -> 265.971131 | O107: 259.6159983
A108: 1 | B108: 2 | C108: Total | D108: =SUM(D88:D107) -> 624 | E108: =SUM(E88:E107) -> 0 | F108: 599.0814064 | G108: =IFERROR(I108/F108,0) -> 712.8814138 | H108: =IFERROR(SUM(H88:H107)/K108,0) -> 0 | I108: =SUM(I88:I107) -> 427074 | J108: =SUM(J88:J107) -> 587.5524474 | K108: =IFERROR(#REF!/#REF!,0) -> 0 | L108: =IFERROR(SUM(L88:L107)/#REF!,0) -> 0
A109: 1
A110: 1
A111: 1
A112: 1
A113: =$A$29 -> 1 | C113: =$C$29 -> Associated Services
A114: =A$113 -> 1 | D114: Establishment Structure | F114: Previous Financial Year | J114: Medium-term expenditure estimates
A115: 1 | D115: As at 31 March 2022 | F115: =LEFT($D$3,4)-1 & "/" & RIGHT($D$3,2)-1 -> 2021/22
A116: 1 | C116: Salary level | D116: Total number of funded posts | E116: of which: number of funded posts additional to the establishment | F116: FTE Headcount | G116: Unit Costs | H116: of which: Once-off Payments per person | I116: Total Annual Cost | J116: Initial Headcount | K116: Unit Costs | L116: of which: Once-off Payments per person
A117: 1 | B117: 3 | C117: 1 | G117: =IFERROR(IF(I117=0,O117,I117/F117),0) -> 99.95105925 | H117: =1220/1000*12 -> 14.64 | J117: 0 | K117: =IFERROR((1+INDEX('Weighted UnitCost'!$A$3:$CI$1000,MATCH(MyDept&$C117,'Weighted UnitCost'!$B$3:$B$1000&'Weighted UnitCost'!$C$3:$C$1000,0),24))*(G117-H117)+L117, (1+INDEX('Weighted UnitCost'!$A$3:$CI$1000,MATCH("General"&"Other",'Weighted UnitCost'!$B$3:$B$1000&'Weighted UnitCost'!$C$3:$C$1000,0),24))*(G117-H117)+L117) -> 102.0393863 | L117: =1220/1000*12 -> 14.64 | O117: 99.95105925
A118: 1 | B118: 3 | C118: 2 | G118: =IFERROR(IF(I118=0,O118,I118/F118),0) -> 179.5147433 | H118: =1220/1000*12 -> 14.64 | J118: 0 | K118: =IFERROR((1+INDEX('Weighted UnitCost'!$A$3:$CI$1000,MATCH(MyDept&$C118,'Weighted UnitCost'!$B$3:$B$1000&'Weighted UnitCost'!$C$3:$C$1000,0),24))*(G118-H118)+L118, (1+INDEX('Weighted UnitCost'!$A$3:$CI$1000,MATCH("General"&"Other",'Weighted UnitCost'!$B$3:$B$1000&'Weighted UnitCost'!$C$3:$C$1000,0),24))*(G118-H118)+L118) -> 183.5507075 | L118: =1220/1000*12 -> 14.64 | O118: 179.5147433
A119: 1 | B119: 3 | C119: 3 | G119: 216.6722944 | H119: =1220/1000*12 -> 14.64 | J119: 0 | K119: =IFERROR((1+INDEX('Weighted UnitCost'!$A$3:$CI$1000,MATCH(MyDept&$C119,'Weighted UnitCost'!$B$3:$B$1000&'Weighted UnitCost'!$C$3:$C$1000,0),24))*(G119-H119)+L119, (1+INDEX('Weighted UnitCost'!$A$3:$CI$1000,MATCH("General"&"Other",'Weighted UnitCost'!$B$3:$B$1000&'Weighted UnitCost'!$C$3:$C$1000,0),24))*(G119-H119)+L119) -> 221.6178373 | L119: =1220/1000*12 -> 14.64 | O119: 216.6722944
A120: 1 | B120: 3 | C120: 4 | G120: 236.0392102 | H120: =1220/1000*12 -> 14.64 | J120: 0 | K120: =IFERROR((1+INDEX('Weighted UnitCost'!$A$3:$CI$1000,MATCH(MyDept&$C120,'Weighted UnitCost'!$B$3:$B$1000&'Weighted UnitCost'!$C$3:$C$1000,0),24))*(G120-H120)+L120, (1+INDEX('Weighted UnitCost'!$A$3:$CI$1000,MATCH("General"&"Other",'Weighted UnitCost'!$B$3:$B$1000&'Weighted UnitCost'!$C$3:$C$1000,0),24))*(G120-H120)+L120) -> 241.4588353 | L120: =1220/1000*12 -> 14.64 | O120: 236.0392102
A121: 1 | B121: 3 | C121: 5 | G121: 290.5081548 | H121: =1220/1000*12 -> 14.64 | J121: 0 | K121: =IFERROR((1+INDEX('Weighted UnitCost'!$A$3:$CI$1000,MATCH(MyDept&$C121,'Weighted UnitCost'!$B$3:$B$1000&'Weighted UnitCost'!$C$3:$C$1000,0),24))*(G121-H121)+L121, (1+INDEX('Weighted UnitCost'!$A$3:$CI$1000,MATCH("General"&"Other",'Weighted UnitCost'!$B$3:$B$1000&'Weighted UnitCost'!$C$3:$C$1000,0),24))*(G121-H121)+L121) -> 297.2611236 | L121: =1220/1000*12 -> 14.64 | O121: 290.5081548
A122: 1 | B122: 3 | C122: 6 | G122: 341.7085708 | H122: =1352/1000*12 -> 16.224 | J122: 0 | K122: =IFERROR((1+INDEX('Weighted UnitCost'!$A$3:$CI$1000,MATCH(MyDept&$C122,'Weighted UnitCost'!$B$3:$B$1000&'Weighted UnitCost'!$C$3:$C$1000,0),24))*(G122-H122)+L122, (1+INDEX('Weighted UnitCost'!$A$3:$CI$1000,MATCH("General"&"Other",'Weighted UnitCost'!$B$3:$B$1000&'Weighted UnitCost'!$C$3:$C$1000,0),24))*(G122-H122)+L122) -> 349.6760985 | L122: =1352/1000*12 -> 16.224 | O122: 341.7085708
A123: 1 | B123: 3 | C123: 7 | G123: 455.5004418 | H123: =1352/1000*12 -> 16.224 | J123: 0 | K123: =IFERROR((1+INDEX('Weighted UnitCost'!$A$3:$CI$1000,MATCH(MyDept&$C123,'Weighted UnitCost'!$B$3:$B$1000&'Weighted UnitCost'!$C$3:$C$1000,0),24))*(G123-H123)+L123, (1+INDEX('Weighted UnitCost'!$A$3:$CI$1000,MATCH("General"&"Other",'Weighted UnitCost'!$B$3:$B$1000&'Weighted UnitCost'!$C$3:$C$1000,0),24))*(G123-H123)+L123) -> 466.2534775 | L123: =1352/1000*12 -> 16.224 | O123: 455.5004418
A124: 1 | B124: 3 | C124: 8 | G124: 520.4674487 | H124: =1450/1000*12 -> 17.4 | J124: 0 | K124: =IFERROR((1+INDEX('Weighted UnitCost'!$A$3:$CI$1000,MATCH(MyDept&$C124,'Weighted UnitCost'!$B$3:$B$1000&'Weighted UnitCost'!$C$3:$C$1000,0),24))*(G124-H124)+L124, (1+INDEX('Weighted UnitCost'!$A$3:$CI$1000,MATCH("General"&"Other",'Weighted UnitCost'!$B$3:$B$1000&'Weighted UnitCost'!$C$3:$C$1000,0),24))*(G124-H124)+L124) -> 532.7820227 | L124: =1450/1000*12 -> 17.4 | O124: 520.4674487
A125: 1 | B125: 3 | C125: 9 | G125: 586.4171069 | H125: =1450/1000*12 -> 17.4 | J125: 0 | K125: =IFERROR((1+INDEX('Weighted UnitCost'!$A$3:$CI$1000,MATCH(MyDept&$C125,'Weighted UnitCost'!$B$3:$B$1000&'Weighted UnitCost'!$C$3:$C$1000,0),24))*(G125-H125)+L125, (1+INDEX('Weighted UnitCost'!$A$3:$CI$1000,MATCH("General"&"Other",'Weighted UnitCost'!$B$3:$B$1000&'Weighted UnitCost'!$C$3:$C$1000,0),24))*(G125-H125)+L125) -> 600.3460607 | L125: =1450/1000*12 -> 17.4 | O125: 586.4171069
A126: 1 | B126: 3 | C126: 10 | D126: 1 | F126: 3.8 | G126: 756.8421053 | H126: =1640/1000*12 -> 19.68 | I126: 2876 | J126: 3.8 | K126: =IFERROR((1+INDEX('Weighted UnitCost'!$A$3:$CI$1000,MATCH(MyDept&$C126,'Weighted UnitCost'!$B$3:$B$1000&'Weighted UnitCost'!$C$3:$C$1000,0),24))*(G126-H126)+L126, (1+INDEX('Weighted UnitCost'!$A$3:$CI$1000,MATCH("General"&"Other",'Weighted UnitCost'!$B$3:$B$1000&'Weighted UnitCost'!$C$3:$C$1000,0),24))*(G126-H126)+L126) -> 774.8870758 | L126: =1640/1000*12 -> 19.68 | O126: 699.4852566
A127: 1 | B127: 3 | C127: 11 | F127: 2.75 | G127: 830.9090909 | H127: =1640/1000*12 -> 19.68 | I127: 2285 | J127: 2.75 | K127: =IFERROR((1+INDEX('Weighted UnitCost'!$A$3:$CI$1000,MATCH(MyDept&$C127,'Weighted UnitCost'!$B$3:$B$1000&'Weighted UnitCost'!$C$3:$C$1000,0),24))*(G127-H127)+L127, (1+INDEX('Weighted UnitCost'!$A$3:$CI$1000,MATCH("General"&"Other",'Weighted UnitCost'!$B$3:$B$1000&'Weighted UnitCost'!$C$3:$C$1000,0),24))*(G127-H127)+L127) -> 850.7671451 | L127: =1640/1000*12 -> 19.68 | O127: 799.6834333
A128: 1 | B128: 3 | C128: 12 | D128: 1 | F128: 1 | G128: 953 | H128: =1695/1000*12 -> 20.34 | I128: 953 | J128: 1 | K128: =IFERROR((1+INDEX('Weighted UnitCost'!$A$3:$CI$1000,MATCH(MyDept&$C128,'Weighted UnitCost'!$B$3:$B$1000&'Weighted UnitCost'!$C$3:$C$1000,0),24))*(G128-H128)+L128, (1+INDEX('Weighted UnitCost'!$A$3:$CI$1000,MATCH("General"&"Other",'Weighted UnitCost'!$B$3:$B$1000&'Weighted UnitCost'!$C$3:$C$1000,0),24))*(G128-H128)+L128) -> 975.830558 | L128: =1695/1000*12 -> 20.34 | O128: 1014.272904
A129: 1 | B129: 3 | C129: 13 | F129: 0 | G129: 1152.258047 | H129: =1695/1000*12 -> 20.34 | I129: 0 | J129: 0 | K129: =IFERROR((1+INDEX('Weighted UnitCost'!$A$3:$CI$1000,MATCH(MyDept&$C129,'Weighted UnitCost'!$B$3:$B$1000&'Weighted UnitCost'!$C$3:$C$1000,0),24))*(G129-H129)+L129, (1+INDEX('Weighted UnitCost'!$A$3:$CI$1000,MATCH("General"&"Other",'Weighted UnitCost'!$B$3:$B$1000&'Weighted UnitCost'!$C$3:$C$1000,0),24))*(G129-H129)+L129) -> 1179.966237 | L129: =1695/1000*12 -> 20.34 | O129: 1152.258047
A130: 1 | B130: 3 | C130: 14 | D130: 5 | F130: 5 | G130: 1053.6 | H130: 20.34 | I130: 5268 | J130: 5 | K130: =IFERROR((1+INDEX('Weighted UnitCost'!$A$3:$CI$1000,MATCH(MyDept&$C130,'Weighted UnitCost'!$B$3:$B$1000&'Weighted UnitCost'!$C$3:$C$1000,0),24))*(G130-H130)+L130, (1+INDEX('Weighted UnitCost'!$A$3:$CI$1000,MATCH("General"&"Other",'Weighted UnitCost'!$B$3:$B$1000&'Weighted UnitCost'!$C$3:$C$1000,0),24))*(G130-H130)+L130) -> 1078.893143 | L130: 20.34 | O130: 1409.161406
A131: 1 | B131: 3 | C131: 15 | D131: 2 | F131: 2 | G131: 1279 | H131: 20.34 | I131: 2558 | J131: 0.8 | K131: =IFERROR((1+INDEX('Weighted UnitCost'!$A$3:$CI$1000,MATCH(MyDept&$C131,'Weighted UnitCost'!$B$3:$B$1000&'Weighted UnitCost'!$C$3:$C$1000,0),24))*(G131-H131)+L131, (1+INDEX('Weighted UnitCost'!$A$3:$CI$1000,MATCH("General"&"Other",'Weighted UnitCost'!$B$3:$B$1000&'Weighted UnitCost'!$C$3:$C$1000,0),24))*(G131-H131)+L131) -> 1309.810703 | L131: 20.34 | O131: 1703.285814
A132: 1 | B132: 3 | C132: 16 | D132: 1 | F132: 1 | G132: 2058 | H132: =1818/1000*12 -> 21.816 | I132: 2058 | J132: 1 | K132: =IFERROR((1+INDEX('Weighted UnitCost'!$A$3:$CI$1000,MATCH(MyDept&$C132,'Weighted UnitCost'!$B$3:$B$1000&'Weighted UnitCost'!$C$3:$C$1000,0),24))*(G132-H132)+L132, (1+INDEX('Weighted UnitCost'!$A$3:$CI$1000,MATCH("General"&"Other",'Weighted UnitCost'!$B$3:$B$1000&'Weighted UnitCost'!$C$3:$C$1000,0),24))*(G132-H132)+L132) -> 2107.843691 | L132: =1818/1000*12 -> 21.816 | O132: 2168.595147
A133: 1 | B133: 3 | C133: Other | D133: 1 | F133: 1 | G133: 62467 | I133: 62467 | J133: 1 | K133: =IFERROR((1+INDEX('Weighted UnitCost'!$A$3:$CI$1000,MATCH(MyDept&$C133,'Weighted UnitCost'!$B$3:$B$1000&'Weighted UnitCost'!$C$3:$C$1000,0),24))*(G133-H133)+L133, (1+INDEX('Weighted UnitCost'!$A$3:$CI$1000,MATCH("General"&"Other",'Weighted UnitCost'!$B$3:$B$1000&'Weighted UnitCost'!$C$3:$C$1000,0),24))*(G133-H133)+L133) -> 63996.12794 | O133: 2007.461925
A134: 1 | B134: 3 | C134: Other | G134: 2437.657495 | J134: 0 | K134: =IFERROR((1+INDEX('Weighted UnitCost'!$A$3:$CI$1000,MATCH(MyDept&$C134,'Weighted UnitCost'!$B$3:$B$1000&'Weighted UnitCost'!$C$3:$C$1000,0),24))*(G134-H134)+L134, (1+INDEX('Weighted UnitCost'!$A$3:$CI$1000,MATCH("General"&"Other",'Weighted UnitCost'!$B$3:$B$1000&'Weighted UnitCost'!$C$3:$C$1000,0),24))*(G134-H134)+L134) -> 2497.328844 | O134: 2437.657495
A135: 1 | B135: 3 | C135: Other | G135: 259.6159983 | J135: 0 | K135: =IFERROR((1+INDEX('Weighted UnitCost'!$A$3:$CI$1000,MATCH(MyDept&$C135,'Weighted UnitCost'!$B$3:$B$1000&'Weighted UnitCost'!$C$3:$C$1000,0),24))*(G135-H135)+L135, (1+INDEX('Weighted UnitCost'!$A$3:$CI$1000,MATCH("General"&"Other",'Weighted UnitCost'!$B$3:$B$1000&'Weighted UnitCost'!$C$3:$C$1000,0),24))*(G135-H135)+L135) -> 265.971131 | O135: 259.6159983
A136: 1 | B136: 3 | C136: Other | G136: 259.6159983 | J136: 0 | K136: =IFERROR((1+INDEX('Weighted UnitCost'!$A$3:$CI$1000,MATCH(MyDept&$C136,'Weighted UnitCost'!$B$3:$B$1000&'Weighted UnitCost'!$C$3:$C$1000,0),24))*(G136-H136)+L136, (1+INDEX('Weighted UnitCost'!$A$3:$CI$1000,MATCH("General"&"Other",'Weighted UnitCost'!$B$3:$B$1000&'Weighted UnitCost'!$C$3:$C$1000,0),24))*(G136-H136)+L136) -> 265.971131 | O136: 259.6159983
A137: 1 | B137: 3 | C137: Total | D137: =SUM(D117:D136) -> 11 | E137: =SUM(E117:E136) -> 0 | F137: 16.55 | G137: =IFERROR(I137/F137,0) -> 4741.087613 | H137: =IFERROR(SUM(H117:H136)/K137,0) -> 0 | I137: =SUM(I117:I136) -> 78465 | J137: =SUM(J117:J136) -> 15.35 | K137: =IFERROR(#REF!/#REF!,0) -> 0 | L137: =IFERROR(SUM(L117:L136)/#REF!,0) -> 0
A138: 1
A139: 1
A140: 1
A141: 1
A142: =$A$30 -> 1 | C142: =$C$30 -> Direct charge against the National Revenue Fund
A143: =A$142 -> 1 | D143: Establishment Structure | F143: Previous Financial Year | J143: Medium-term expenditure estimates
A144: 1 | D144: As at 31 March 2022 | F144: =LEFT($D$3,4)-1 & "/" & RIGHT($D$3,2)-1 -> 2021/22
A145: 1 | C145: Salary level | D145: Total number of funded posts | E145: of which: number of funded posts additional to the establishment | F145: FTE Headcount | G145: Unit Costs | H145: of which: Once-off Payments per person | I145: Total Annual Cost | J145: Initial Headcount | K145: Unit Costs | L145: of which: Once-off Payments per person
A146: 1 | B146: 4 | C146: 1 | G146: =IFERROR(IF(I146=0,O146,I146/F146),0) -> 99.95105925 | H146: =1220/1000*12 -> 14.64 | K146: =IFERROR((1+INDEX('Weighted UnitCost'!$A$3:$CI$1000,MATCH(MyDept&$C146,'Weighted UnitCost'!$B$3:$B$1000&'Weighted UnitCost'!$C$3:$C$1000,0),24))*(G146-H146)+L146, (1+INDEX('Weighted UnitCost'!$A$3:$CI$1000,MATCH("General"&"Other",'Weighted UnitCost'!$B$3:$B$1000&'Weighted UnitCost'!$C$3:$C$1000,0),24))*(G146-H146)+L146) -> 102.0393863 | L146: =1220/1000*12 -> 14.64 | O146: 99.95105925
A147: 1 | B147: 4 | C147: 2 | G147: =IFERROR(IF(I147=0,O147,I147/F147),0) -> 179.5147433 | H147: =1220/1000*12 -> 14.64 | K147: =IFERROR((1+INDEX('Weighted UnitCost'!$A$3:$CI$1000,MATCH(MyDept&$C147,'Weighted UnitCost'!$B$3:$B$1000&'Weighted UnitCost'!$C$3:$C$1000,0),24))*(G147-H147)+L147, (1+INDEX('Weighted UnitCost'!$A$3:$CI$1000,MATCH("General"&"Other",'Weighted UnitCost'!$B$3:$B$1000&'Weighted UnitCost'!$C$3:$C$1000,0),24))*(G147-H147)+L147) -> 183.5507075 | L147: =1220/1000*12 -> 14.64 | O147: 179.5147433
A148: 1 | B148: 4 | C148: 3 | G148: 216.6722944 | H148: =1220/1000*12 -> 14.64 | K148: =IFERROR((1+INDEX('Weighted UnitCost'!$A$3:$CI$1000,MATCH(MyDept&$C148,'Weighted UnitCost'!$B$3:$B$1000&'Weighted UnitCost'!$C$3:$C$1000,0),24))*(G148-H148)+L148, (1+INDEX('Weighted UnitCost'!$A$3:$CI$1000,MATCH("General"&"Other",'Weighted UnitCost'!$B$3:$B$1000&'Weighted UnitCost'!$C$3:$C$1000,0),24))*(G148-H148)+L148) -> 221.6178373 | L148: =1220/1000*12 -> 14.64 | O148: 216.6722944
A149: 1 | B149: 4 | C149: 4 | G149: 236.0392102 | H149: =1220/1000*12 -> 14.64 | K149: =IFERROR((1+INDEX('Weighted UnitCost'!$A$3:$CI$1000,MATCH(MyDept&$C149,'Weighted UnitCost'!$B$3:$B$1000&'Weighted UnitCost'!$C$3:$C$1000,0),24))*(G149-H149)+L149, (1+INDEX('Weighted UnitCost'!$A$3:$CI$1000,MATCH("General"&"Other",'Weighted UnitCost'!$B$3:$B$1000&'Weighted UnitCost'!$C$3:$C$1000,0),24))*(G149-H149)+L149) -> 241.4588353 | L149: =1220/1000*12 -> 14.64 | O149: 236.0392102
A150: 1 | B150: 4 | C150: 5 | G150: 290.5081548 | H150: =1220/1000*12 -> 14.64 | K150: =IFERROR((1+INDEX('Weighted UnitCost'!$A$3:$CI$1000,MATCH(MyDept&$C150,'Weighted UnitCost'!$B$3:$B$1000&'Weighted UnitCost'!$C$3:$C$1000,0),24))*(G150-H150)+L150, (1+INDEX('Weighted UnitCost'!$A$3:$CI$1000,MATCH("General"&"Other",'Weighted UnitCost'!$B$3:$B$1000&'Weighted UnitCost'!$C$3:$C$1000,0),24))*(G150-H150)+L150) -> 297.2611236 | L150: =1220/1000*12 -> 14.64 | O150: 290.5081548
A151: 1 | B151: 4 | C151: 6 | G151: 341.7085708 | H151: =1352/1000*12 -> 16.224 | K151: =IFERROR((1+INDEX('Weighted UnitCost'!$A$3:$CI$1000,MATCH(MyDept&$C151,'Weighted UnitCost'!$B$3:$B$1000&'Weighted UnitCost'!$C$3:$C$1000,0),24))*(G151-H151)+L151, (1+INDEX('Weighted UnitCost'!$A$3:$CI$1000,MATCH("General"&"Other",'Weighted UnitCost'!$B$3:$B$1000&'Weighted UnitCost'!$C$3:$C$1000,0),24))*(G151-H151)+L151) -> 349.6760985 | L151: =1352/1000*12 -> 16.224 | O151: 341.7085708
A152: 1 | B152: 4 | C152: 7 | G152: 455.5004418 | H152: =1352/1000*12 -> 16.224 | K152: =IFERROR((1+INDEX('Weighted UnitCost'!$A$3:$CI$1000,MATCH(MyDept&$C152,'Weighted UnitCost'!$B$3:$B$1000&'Weighted UnitCost'!$C$3:$C$1000,0),24))*(G152-H152)+L152, (1+INDEX('Weighted UnitCost'!$A$3:$CI$1000,MATCH("General"&"Other",'Weighted UnitCost'!$B$3:$B$1000&'Weighted UnitCost'!$C$3:$C$1000,0),24))*(G152-H152)+L152) -> 466.2534775 | L152: =1352/1000*12 -> 16.224 | O152: 455.5004418
A153: 1 | B153: 4 | C153: 8 | G153: 520.4674487 | H153: =1450/1000*12 -> 17.4 | K153: =IFERROR((1+INDEX('Weighted UnitCost'!$A$3:$CI$1000,MATCH(MyDept&$C153,'Weighted UnitCost'!$B$3:$B$1000&'Weighted UnitCost'!$C$3:$C$1000,0),24))*(G153-H153)+L153, (1+INDEX('Weighted UnitCost'!$A$3:$CI$1000,MATCH("General"&"Other",'Weighted UnitCost'!$B$3:$B$1000&'Weighted UnitCost'!$C$3:$C$1000,0),24))*(G153-H153)+L153) -> 532.7820227 | L153: =1450/1000*12 -> 17.4 | O153: 520.4674487
A154: 1 | B154: 4 | C154: 9 | G154: 586.4171069 | H154: =1450/1000*12 -> 17.4 | K154: =IFERROR((1+INDEX('Weighted UnitCost'!$A$3:$CI$1000,MATCH(MyDept&$C154,'Weighted UnitCost'!$B$3:$B$1000&'Weighted UnitCost'!$C$3:$C$1000,0),24))*(G154-H154)+L154, (1+INDEX('Weighted UnitCost'!$A$3:$CI$1000,MATCH("General"&"Other",'Weighted UnitCost'!$B$3:$B$1000&'Weighted UnitCost'!$C$3:$C$1000,0),24))*(G154-H154)+L154) -> 600.3460607 | L154: =1450/1000*12 -> 17.4 | O154: 586.4171069
A155: 1 | B155: 4 | C155: 10 | G155: 699.4852566 | H155: =1640/1000*12 -> 19.68 | K155: =IFERROR((1+INDEX('Weighted UnitCost'!$A$3:$CI$1000,MATCH(MyDept&$C155,'Weighted UnitCost'!$B$3:$B$1000&'Weighted UnitCost'!$C$3:$C$1000,0),24))*(G155-H155)+L155, (1+INDEX('Weighted UnitCost'!$A$3:$CI$1000,MATCH("General"&"Other",'Weighted UnitCost'!$B$3:$B$1000&'Weighted UnitCost'!$C$3:$C$1000,0),24))*(G155-H155)+L155) -> 716.1261904 | L155: =1640/1000*12 -> 19.68 | O155: 699.4852566
A156: 1 | B156: 4 | C156: 11 | G156: 799.6834333 | H156: =1640/1000*12 -> 19.68 | K156: =IFERROR((1+INDEX('Weighted UnitCost'!$A$3:$CI$1000,MATCH(MyDept&$C156,'Weighted UnitCost'!$B$3:$B$1000&'Weighted UnitCost'!$C$3:$C$1000,0),24))*(G156-H156)+L156, (1+INDEX('Weighted UnitCost'!$A$3:$CI$1000,MATCH("General"&"Other",'Weighted UnitCost'!$B$3:$B$1000&'Weighted UnitCost'!$C$3:$C$1000,0),24))*(G156-H156)+L156) -> 818.7771154 | L156: =1640/1000*12 -> 19.68 | O156: 799.6834333
A157: 1 | B157: 4 | C157: 12 | G157: 1014.272904 | H157: =1695/1000*12 -> 20.34 | K157: =IFERROR((1+INDEX('Weighted UnitCost'!$A$3:$CI$1000,MATCH(MyDept&$C157,'Weighted UnitCost'!$B$3:$B$1000&'Weighted UnitCost'!$C$3:$C$1000,0),24))*(G157-H157)+L157, (1+INDEX('Weighted UnitCost'!$A$3:$CI$1000,MATCH("General"&"Other",'Weighted UnitCost'!$B$3:$B$1000&'Weighted UnitCost'!$C$3:$C$1000,0),24))*(G157-H157)+L157) -> 1038.60336 | L157: =1695/1000*12 -> 20.34 | O157: 1014.272904
A158: 1 | B158: 4 | C158: 13 | G158: 1152.258047 | H158: =1695/1000*12 -> 20.34 | K158: =IFERROR((1+INDEX('Weighted UnitCost'!$A$3:$CI$1000,MATCH(MyDept&$C158,'Weighted UnitCost'!$B$3:$B$1000&'Weighted UnitCost'!$C$3:$C$1000,0),24))*(G158-H158)+L158, (1+INDEX('Weighted UnitCost'!$A$3:$CI$1000,MATCH("General"&"Other",'Weighted UnitCost'!$B$3:$B$1000&'Weighted UnitCost'!$C$3:$C$1000,0),24))*(G158-H158)+L158) -> 1179.966237 | L158: =1695/1000*12 -> 20.34 | O158: 1152.258047
A159: 1 | B159: 4 | C159: 14 | G159: 1409.161406 | H159: 20.34 | K159: =IFERROR((1+INDEX('Weighted UnitCost'!$A$3:$CI$1000,MATCH(MyDept&$C159,'Weighted UnitCost'!$B$3:$B$1000&'Weighted UnitCost'!$C$3:$C$1000,0),24))*(G159-H159)+L159, (1+INDEX('Weighted UnitCost'!$A$3:$CI$1000,MATCH("General"&"Other",'Weighted UnitCost'!$B$3:$B$1000&'Weighted UnitCost'!$C$3:$C$1000,0),24))*(G159-H159)+L159) -> 1443.158326 | L159: 20.34 | O159: 1409.161406
A160: 1 | B160: 4 | C160: 15 | G160: 1703.285814 | H160: 20.34 | K160: =IFERROR((1+INDEX('Weighted UnitCost'!$A$3:$CI$1000,MATCH(MyDept&$C160,'Weighted UnitCost'!$B$3:$B$1000&'Weighted UnitCost'!$C$3:$C$1000,0),24))*(G160-H160)+L160, (1+INDEX('Weighted UnitCost'!$A$3:$CI$1000,MATCH("General"&"Other",'Weighted UnitCost'!$B$3:$B$1000&'Weighted UnitCost'!$C$3:$C$1000,0),24))*(G160-H160)+L160) -> 1744.482598 | L160: 20.34 | O160: 1703.285814
A161: 1 | B161: 4 | C161: 16 | G161: 2168.595147 | H161: =1818/1000*12 -> 21.816 | K161: =IFERROR((1+INDEX('Weighted UnitCost'!$A$3:$CI$1000,MATCH(MyDept&$C161,'Weighted UnitCost'!$B$3:$B$1000&'Weighted UnitCost'!$C$3:$C$1000,0),24))*(G161-H161)+L161, (1+INDEX('Weighted UnitCost'!$A$3:$CI$1000,MATCH("General"&"Other",'Weighted UnitCost'!$B$3:$B$1000&'Weighted UnitCost'!$C$3:$C$1000,0),24))*(G161-H161)+L161) -> 2221.146094 | L161: =1818/1000*12 -> 21.816 | O161: 2168.595147
A162: 1 | B162: 4 | C162: Member's remuneration | D162: 396 | F162: 380.8290428 | G162: 1238.639775 | I162: 471710 | J162: 380.8290428 | K162: =IFERROR((1+INDEX('Weighted UnitCost'!$A$3:$CI$1000,MATCH(MyDept&$C162,'Weighted UnitCost'!$B$3:$B$1000&'Weighted UnitCost'!$C$3:$C$1000,0),24))*(G162-H162)+L162, (1+INDEX('Weighted UnitCost'!$A$3:$CI$1000,MATCH("General"&"Other",'Weighted UnitCost'!$B$3:$B$1000&'Weighted UnitCost'!$C$3:$C$1000,0),24))*(G162-H162)+L162) -> 1268.960404 | O162: 2007.461925
A163: 1 | B163: 4 | C163: Other | G163: 2437.657495 | K163: =IFERROR((1+INDEX('Weighted UnitCost'!$A$3:$CI$1000,MATCH(MyDept&$C163,'Weighted UnitCost'!$B$3:$B$1000&'Weighted UnitCost'!$C$3:$C$1000,0),24))*(G163-H163)+L163, (1+INDEX('Weighted UnitCost'!$A$3:$CI$1000,MATCH("General"&"Other",'Weighted UnitCost'!$B$3:$B$1000&'Weighted UnitCost'!$C$3:$C$1000,0),24))*(G163-H163)+L163) -> 2497.328844 | O163: 2437.657495
A164: 1 | B164: 4 | C164: Other | G164: 259.6159983 | K164: =IFERROR((1+INDEX('Weighted UnitCost'!$A$3:$CI$1000,MATCH(MyDept&$C164,'Weighted UnitCost'!$B$3:$B$1000&'Weighted UnitCost'!$C$3:$C$1000,0),24))*(G164-H164)+L164, (1+INDEX('Weighted UnitCost'!$A$3:$CI$1000,MATCH("General"&"Other",'Weighted UnitCost'!$B$3:$B$1000&'Weighted UnitCost'!$C$3:$C$1000,0),24))*(G164-H164)+L164) -> 265.971131 | O164: 259.6159983
A165: 1 | B165: 4 | C165: Other | G165: 259.6159983 | K165: =IFERROR((1+INDEX('Weighted UnitCost'!$A$3:$CI$1000,MATCH(MyDept&$C165,'Weighted UnitCost'!$B$3:$B$1000&'Weighted UnitCost'!$C$3:$C$1000,0),24))*(G165-H165)+L165, (1+INDEX('Weighted UnitCost'!$A$3:$CI$1000,MATCH("General"&"Other",'Weighted UnitCost'!$B$3:$B$1000&'Weighted UnitCost'!$C$3:$C$1000,0),24))*(G165-H165)+L165) -> 265.971131 | O165: 259.6159983
A166: 1 | B166: 4 | C166: Total | D166: =SUM(D146:D165) -> 396 | E166: =SUM(E146:E165) -> 0 | F166: 380.8290428 | G166: =IFERROR(I166/F166,0) -> 1238.639775 | H166: =IFERROR(SUM(H146:H165)/K166,0) -> 0 | I166: =SUM(I146:I165) -> 471710 | J166: =SUM(J146:J165) -> 380.8290428 | K166: =IFERROR(#REF!/#REF!,0) -> 0 | L166: =IFERROR(SUM(L146:L165)/#REF!,0) -> 0
A167: 1
A168: 1
A169: 1
A170: 1
A171: =$A$31 -> 0 | C171: =$C$31 -> 0
A172: =A$171 -> 0 | D172: Establishment Structure | F172: Previous Financial Year | J172: Medium-term expenditure estimates
A173: 0 | D173: As at 31 March 2022 | F173: =LEFT($D$3,4)-1 & "/" & RIGHT($D$3,2)-1 -> 2021/22
A174: 0 | C174: Salary level | D174: Total number of funded posts | E174: of which: number of funded posts additional to the establishment | F174: FTE Headcount | G174: Unit Costs | H174: of which: Once-off Payments per person | I174: Total Annual Cost | J174: Initial Headcount | K174: Unit Costs | L174: of which: Once-off Payments per person
A175: 0 | B175: 5 | C175: 1 | G175: =IFERROR(IF(I175=0,O175,I175/F175),0) -> 99.95105925 | H175: =1220/1000*12 -> 14.64 | K175: =IFERROR((1+INDEX('Weighted UnitCost'!$A$3:$CI$1000,MATCH(MyDept&$C175,'Weighted UnitCost'!$B$3:$B$1000&'Weighted UnitCost'!$C$3:$C$1000,0),24))*(G175-H175)+L175, (1+INDEX('Weighted UnitCost'!$A$3:$CI$1000,MATCH("General"&"Other",'Weighted UnitCost'!$B$3:$B$1000&'Weighted UnitCost'!$C$3:$C$1000,0),24))*(G175-H175)+L175) -> 102.0393863 | L175: =1220/1000*12 -> 14.64 | O175: 99.95105925
A176: 0 | B176: 5 | C176: 2 | G176: =IFERROR(IF(I176=0,O176,I176/F176),0) -> 179.5147433 | H176: =1220/1000*12 -> 14.64 | K176: =IFERROR((1+INDEX('Weighted UnitCost'!$A$3:$CI$1000,MATCH(MyDept&$C176,'Weighted UnitCost'!$B$3:$B$1000&'Weighted UnitCost'!$C$3:$C$1000,0),24))*(G176-H176)+L176, (1+INDEX('Weighted UnitCost'!$A$3:$CI$1000,MATCH("General"&"Other",'Weighted UnitCost'!$B$3:$B$1000&'Weighted UnitCost'!$C$3:$C$1000,0),24))*(G176-H176)+L176) -> 183.5507075 | L176: =1220/1000*12 -> 14.64 | O176: 179.5147433
A177: 0 | B177: 5 | C177: 3 | G177: 216.6722944 | H177: =1220/1000*12 -> 14.64 | K177: =IFERROR((1+INDEX('Weighted UnitCost'!$A$3:$CI$1000,MATCH(MyDept&$C177,'Weighted UnitCost'!$B$3:$B$1000&'Weighted UnitCost'!$C$3:$C$1000,0),24))*(G177-H177)+L177, (1+INDEX('Weighted UnitCost'!$A$3:$CI$1000,MATCH("General"&"Other",'Weighted UnitCost'!$B$3:$B$1000&'Weighted UnitCost'!$C$3:$C$1000,0),24))*(G177-H177)+L177) -> 221.6178373 | L177: =1220/1000*12 -> 14.64 | O177: 216.6722944
A178: 0 | B178: 5 | C178: 4 | G178: 236.0392102 | H178: =1220/1000*12 -> 14.64 | K178: =IFERROR((1+INDEX('Weighted UnitCost'!$A$3:$CI$1000,MATCH(MyDept&$C178,'Weighted UnitCost'!$B$3:$B$1000&'Weighted UnitCost'!$C$3:$C$1000,0),24))*(G178-H178)+L178, (1+INDEX('Weighted UnitCost'!$A$3:$CI$1000,MATCH("General"&"Other",'Weighted UnitCost'!$B$3:$B$1000&'Weighted UnitCost'!$C$3:$C$1000,0),24))*(G178-H178)+L178) -> 241.4588353 | L178: =1220/1000*12 -> 14.64 | O178: 236.0392102
A179: 0 | B179: 5 | C179: 5 | G179: 290.5081548 | H179: =1220/1000*12 -> 14.64 | K179: =IFERROR((1+INDEX('Weighted UnitCost'!$A$3:$CI$1000,MATCH(MyDept&$C179,'Weighted UnitCost'!$B$3:$B$1000&'Weighted UnitCost'!$C$3:$C$1000,0),24))*(G179-H179)+L179, (1+INDEX('Weighted UnitCost'!$A$3:$CI$1000,MATCH("General"&"Other",'Weighted UnitCost'!$B$3:$B$1000&'Weighted UnitCost'!$C$3:$C$1000,0),24))*(G179-H179)+L179) -> 297.2611236 | L179: =1220/1000*12 -> 14.64 | O179: 290.5081548
A180: 0 | B180: 5 | C180: 6 | G180: 341.7085708 | H180: =1352/1000*12 -> 16.224 | K180: =IFERROR((1+INDEX('Weighted UnitCost'!$A$3:$CI$1000,MATCH(MyDept&$C180,'Weighted UnitCost'!$B$3:$B$1000&'Weighted UnitCost'!$C$3:$C$1000,0),24))*(G180-H180)+L180, (1+INDEX('Weighted UnitCost'!$A$3:$CI$1000,MATCH("General"&"Other",'Weighted UnitCost'!$B$3:$B$1000&'Weighted UnitCost'!$C$3:$C$1000,0),24))*(G180-H180)+L180) -> 349.6760985 | L180: =1352/1000*12 -> 16.224 | O180: 341.7085708
A181: 0 | B181: 5 | C181: 7 | G181: 455.5004418 | H181: =1352/1000*12 -> 16.224 | K181: =IFERROR((1+INDEX('Weighted UnitCost'!$A$3:$CI$1000,MATCH(MyDept&$C181,'Weighted UnitCost'!$B$3:$B$1000&'Weighted UnitCost'!$C$3:$C$1000,0),24))*(G181-H181)+L181, (1+INDEX('Weighted UnitCost'!$A$3:$CI$1000,MATCH("General"&"Other",'Weighted UnitCost'!$B$3:$B$1000&'Weighted UnitCost'!$C$3:$C$1000,0),24))*(G181-H181)+L181) -> 466.2534775 | L181: =1352/1000*12 -> 16.224 | O181: 455.5004418
A182: 0 | B182: 5 | C182: 8 | G182: 520.4674487 | H182: =1450/1000*12 -> 17.4 | K182: =IFERROR((1+INDEX('Weighted UnitCost'!$A$3:$CI$1000,MATCH(MyDept&$C182,'Weighted UnitCost'!$B$3:$B$1000&'Weighted UnitCost'!$C$3:$C$1000,0),24))*(G182-H182)+L182, (1+INDEX('Weighted UnitCost'!$A$3:$CI$1000,MATCH("General"&"Other",'Weighted UnitCost'!$B$3:$B$1000&'Weighted UnitCost'!$C$3:$C$1000,0),24))*(G182-H182)+L182) -> 532.7820227 | L182: =1450/1000*12 -> 17.4 | O182: 520.4674487
A183: 0 | B183: 5 | C183: 9 | G183: 586.4171069 | H183: =1450/1000*12 -> 17.4 | K183: =IFERROR((1+INDEX('Weighted UnitCost'!$A$3:$CI$1000,MATCH(MyDept&$C183,'Weighted UnitCost'!$B$3:$B$1000&'Weighted UnitCost'!$C$3:$C$1000,0),24))*(G183-H183)+L183, (1+INDEX('Weighted UnitCost'!$A$3:$CI$1000,MATCH("General"&"Other",'Weighted UnitCost'!$B$3:$B$1000&'Weighted UnitCost'!$C$3:$C$1000,0),24))*(G183-H183)+L183) -> 600.3460607 | L183: =1450/1000*12 -> 17.4 | O183: 586.4171069
A184: 0 | B184: 5 | C184: 10 | G184: 699.4852566 | H184: =1640/1000*12 -> 19.68 | K184: =IFERROR((1+INDEX('Weighted UnitCost'!$A$3:$CI$1000,MATCH(MyDept&$C184,'Weighted UnitCost'!$B$3:$B$1000&'Weighted UnitCost'!$C$3:$C$1000,0),24))*(G184-H184)+L184, (1+INDEX('Weighted UnitCost'!$A$3:$CI$1000,MATCH("General"&"Other",'Weighted UnitCost'!$B$3:$B$1000&'Weighted UnitCost'!$C$3:$C$1000,0),24))*(G184-H184)+L184) -> 716.1261904 | L184: =1640/1000*12 -> 19.68 | O184: 699.4852566
A185: 0 | B185: 5 | C185: 11 | G185: 799.6834333 | H185: =1640/1000*12 -> 19.68 | K185: =IFERROR((1+INDEX('Weighted UnitCost'!$A$3:$CI$1000,MATCH(MyDept&$C185,'Weighted UnitCost'!$B$3:$B$1000&'Weighted UnitCost'!$C$3:$C$1000,0),24))*(G185-H185)+L185, (1+INDEX('Weighted UnitCost'!$A$3:$CI$1000,MATCH("General"&"Other",'Weighted UnitCost'!$B$3:$B$1000&'Weighted UnitCost'!$C$3:$C$1000,0),24))*(G185-H185)+L185) -> 818.7771154 | L185: =1640/1000*12 -> 19.68 | O185: 799.6834333
A186: 0 | B186: 5 | C186: 12 | G186: 1014.272904 | H186: =1695/1000*12 -> 20.34 | K186: =IFERROR((1+INDEX('Weighted UnitCost'!$A$3:$CI$1000,MATCH(MyDept&$C186,'Weighted UnitCost'!$B$3:$B$1000&'Weighted UnitCost'!$C$3:$C$1000,0),24))*(G186-H186)+L186, (1+INDEX('Weighted UnitCost'!$A$3:$CI$1000,MATCH("General"&"Other",'Weighted UnitCost'!$B$3:$B$1000&'Weighted UnitCost'!$C$3:$C$1000,0),24))*(G186-H186)+L186) -> 1038.60336 | L186: =1695/1000*12 -> 20.34 | O186: 1014.272904
A187: 0 | B187: 5 | C187: 13 | G187: 1152.258047 | H187: =1695/1000*12 -> 20.34 | K187: =IFERROR((1+INDEX('Weighted UnitCost'!$A$3:$CI$1000,MATCH(MyDept&$C187,'Weighted UnitCost'!$B$3:$B$1000&'Weighted UnitCost'!$C$3:$C$1000,0),24))*(G187-H187)+L187, (1+INDEX('Weighted UnitCost'!$A$3:$CI$1000,MATCH("General"&"Other",'Weighted UnitCost'!$B$3:$B$1000&'Weighted UnitCost'!$C$3:$C$1000,0),24))*(G187-H187)+L187) -> 1179.966237 | L187: =1695/1000*12 -> 20.34 | O187: 1152.258047
A188: 0 | B188: 5 | C188: 14 | G188: 1409.161406 | H188: 20.34 | K188: =IFERROR((1+INDEX('Weighted UnitCost'!$A$3:$CI$1000,MATCH(MyDept&$C188,'Weighted UnitCost'!$B$3:$B$1000&'Weighted UnitCost'!$C$3:$C$1000,0),24))*(G188-H188)+L188, (1+INDEX('Weighted UnitCost'!$A$3:$CI$1000,MATCH("General"&"Other",'Weighted UnitCost'!$B$3:$B$1000&'Weighted UnitCost'!$C$3:$C$1000,0),24))*(G188-H188)+L188) -> 1443.158326 | L188: 20.34 | O188: 1409.161406
A189: 0 | B189: 5 | C189: 15 | G189: 1703.285814 | H189: 20.34 | K189: =IFERROR((1+INDEX('Weighted UnitCost'!$A$3:$CI$1000,MATCH(MyDept&$C189,'Weighted UnitCost'!$B$3:$B$1000&'Weighted UnitCost'!$C$3:$C$1000,0),24))*(G189-H189)+L189, (1+INDEX('Weighted UnitCost'!$A$3:$CI$1000,MATCH("General"&"Other",'Weighted UnitCost'!$B$3:$B$1000&'Weighted UnitCost'!$C$3:$C$1000,0),24))*(G189-H189)+L189) -> 1744.482598 | L189: 20.34 | O189: 1703.285814
A190: 0 | B190: 5 | C190: 16 | G190: 2168.595147 | H190: =1818/1000*12 -> 21.816 | K190: =IFERROR((1+INDEX('Weighted UnitCost'!$A$3:$CI$1000,MATCH(MyDept&$C190,'Weighted UnitCost'!$B$3:$B$1000&'Weighted UnitCost'!$C$3:$C$1000,0),24))*(G190-H190)+L190, (1+INDEX('Weighted UnitCost'!$A$3:$CI$1000,MATCH("General"&"Other",'Weighted UnitCost'!$B$3:$B$1000&'Weighted UnitCost'!$C$3:$C$1000,0),24))*(G190-H190)+L190) -> 2221.146094 | L190: =1818/1000*12 -> 21.816 | O190: 2168.595147
A191: 0 | B191: 5 | C191: Other | G191: 2007.461925 | K191: =IFERROR((1+INDEX('Weighted UnitCost'!$A$3:$CI$1000,MATCH(MyDept&$C191,'Weighted UnitCost'!$B$3:$B$1000&'Weighted UnitCost'!$C$3:$C$1000,0),24))*(G191-H191)+L191, (1+INDEX('Weighted UnitCost'!$A$3:$CI$1000,MATCH("General"&"Other",'Weighted UnitCost'!$B$3:$B$1000&'Weighted UnitCost'!$C$3:$C$1000,0),24))*(G191-H191)+L191) -> 2056.602529 | O191: 2007.461925
A192: 0 | B192: 5 | C192: Other | G192: 2437.657495 | K192: =IFERROR((1+INDEX('Weighted UnitCost'!$A$3:$CI$1000,MATCH(MyDept&$C192,'Weighted UnitCost'!$B$3:$B$1000&'Weighted UnitCost'!$C$3:$C$1000,0),24))*(G192-H192)+L192, (1+INDEX('Weighted UnitCost'!$A$3:$CI$1000,MATCH("General"&"Other",'Weighted UnitCost'!$B$3:$B$1000&'Weighted UnitCost'!$C$3:$C$1000,0),24))*(G192-H192)+L192) -> 2497.328844 | O192: 2437.657495
A193: 0 | B193: 5 | C193: Other | G193: 259.6159983 | K193: =IFERROR((1+INDEX('Weighted UnitCost'!$A$3:$CI$1000,MATCH(MyDept&$C193,'Weighted UnitCost'!$B$3:$B$1000&'Weighted UnitCost'!$C$3:$C$1000,0),24))*(G193-H193)+L193, (1+INDEX('Weighted UnitCost'!$A$3:$CI$1000,MATCH("General"&"Other",'Weighted UnitCost'!$B$3:$B$1000&'Weighted UnitCost'!$C$3:$C$1000,0),24))*(G193-H193)+L193) -> 265.971131 | O193: 259.6159983
A194: 0 | B194: 5 | C194: Other | G194: 259.6159983 | K194: =IFERROR((1+INDEX('Weighted UnitCost'!$A$3:$CI$1000,MATCH(MyDept&$C194,'Weighted UnitCost'!$B$3:$B$1000&'Weighted UnitCost'!$C$3:$C$1000,0),24))*(G194-H194)+L194, (1+INDEX('Weighted UnitCost'!$A$3:$CI$1000,MATCH("General"&"Other",'Weighted UnitCost'!$B$3:$B$1000&'Weighted UnitCost'!$C$3:$C$1000,0),24))*(G194-H194)+L194) -> 265.971131 | O194: 259.6159983
A195: 0 | B195: 5 | C195: Total | D195: =SUM(D175:D194) -> 0 | E195: =SUM(E175:E194) -> 0 | F195: 0 | G195: =IFERROR(I195/F195,0) -> 0 | H195: =IFERROR(SUM(H175:H194)/K195,0) -> 0 | I195: =SUM(I175:I194) -> 0 | J195: =SUM(J175:J194) -> 0 | K195: =IFERROR(#REF!/#REF!,0) -> 0 | L195: =IFERROR(SUM(L175:L194)/#REF!,0) -> 0
A196: 0
A197: 0
A198: 0
A199: 0
A200: =$A$32 -> 0 | C200: =$C$32 -> 0
... 314 more rows

Sheet 3 (hidden)
A1: Filter | C1: HUMAN RESOURCE BUDGET PLAN | K1: 1
A2: 1
A3: 1 | C3: Financial Year: | D3: 2022/23
A4: 1 | C4: Sphere of Government: | D4: National
A5: 1 | C5: Name of Department: | D5: =Options!H43 -> Vote 03: Cooperative Governance
A6: -14
A7: -13
A8: -12
A9: -11
A10: -10
A11: -9
A12: -8
A13: -7
A14: -6
A15: -5
A16: -4
A17: -3
A18: -2
A19: -1
A20: 0
A21: 1
A22: 1 | C22: Department Summary Details
A23: 1
A24: 1 | D24: Establishment Structure | F24: Previous Financial Year | J24: Medium-term expenditure estimates
A25: 1 | D25: As at 31 March 2022 | F25: =LEFT($D$3,4)-1 & "/" & RIGHT($D$3,2)-1 -> 2021/22
A26: 1 | C26: Programmes | D26: Total number of funded posts | E26: of which: number of funded posts additional to the establishment | F26: FTE Headcount | G26: Unit Costs | H26: of which: Once-off Payments per person | I26: Total Annual Cost | J26: Initial Headcount | K26: Unit Costs | L26: of which: Once-off Payments per person
A27: 1 | B27: =IF(LEN(C27)>2,ROW()-26,"") -> 1 | C27: Administration | D27: =IF($C27="",0,OFFSET($C55,MATCH($C27,$C$55:$C$514,0)+24-SUM($A$27:$A27),COLUMN(D$1)-3)) -> 293 | E27: =IF($C27="",0,OFFSET($C55,MATCH($C27,$C$55:$C$514,0)+24-SUM($A$27:$A27),COLUMN(E$1)-3)) -> 69 | F27: =IF($C27="",0,OFFSET($C55,MATCH($C27,$C$55:$C$514,0)+24-SUM($A$27:$A27),COLUMN(F$1)-3)) -> 259.0833333 | G27: =IF($C27="",0,OFFSET($C55,MATCH($C27,$C$55:$C$514,0)+24-SUM($A$27:$A27),COLUMN(G$1)-3)) -> 611.4375158 | H27: =IF($C27="",0,OFFSET($C55,MATCH($C27,$C$55:$C$514,0)+24-SUM($A$27:$A27),COLUMN(H$1)-3)) -> 0 | I27: =IF($C27="",0,OFFSET($C55,MATCH($C27,$C$55:$C$514,0)+24-SUM($A$27:$A27),COLUMN(I$1)-3)) -> 158413.2697 | J27: =IF($C27="",0,OFFSET($C55,MATCH($C27,$C$55:$C$514,0)+24-SUM($A$27:$A27),COLUMN(J$1)-3)) -> 288 | K27: =IF($C27="",0,OFFSET($C55,MATCH($C27,$C$55:$C$514,0)+24-SUM($A$27:$A27),COLUMN(K$1)-3)) -> 0 | L27: =IF($C27="",0,OFFSET($C55,MATCH($C27,$C$55:$C$514,0)+24-SUM($A$27:$A27),COLUMN(L$1)-3)) -> 0
A28: =IF(LEN(C28)>1,1,0) -> 1 | B28: 2 | C28: Local Government Support and Intervention Management | D28: =IF($C28="",0,OFFSET($C56,MATCH($C28,$C$55:$C$514,0)+24-SUM($A$27:$A28),COLUMN(D$1)-3)) -> 110 | E28: =IF($C28="",0,OFFSET($C56,MATCH($C28,$C$55:$C$514,0)+24-SUM($A$27:$A28),COLUMN(E$1)-3)) -> 6 | F28: =IF($C28="",0,OFFSET($C56,MATCH($C28,$C$55:$C$514,0)+24-SUM($A$27:$A28),COLUMN(F$1)-3)) -> 110.1666667 | G28: =IF($C28="",0,OFFSET($C56,MATCH($C28,$C$55:$C$514,0)+24-SUM($A$27:$A28),COLUMN(G$1)-3)) -> 773.3675218 | H28: =IF($C28="",0,OFFSET($C56,MATCH($C28,$C$55:$C$514,0)+24-SUM($A$27:$A28),COLUMN(H$1)-3)) -> 0 | I28: =IF($C28="",0,OFFSET($C56,MATCH($C28,$C$55:$C$514,0)+24-SUM($A$27:$A28),COLUMN(I$1)-3)) -> 85199.32199 | J28: =IF($C28="",0,OFFSET($C56,MATCH($C28,$C$55:$C$514,0)+24-SUM($A$27:$A28),COLUMN(J$1)-3)) -> 111 | K28: =IF($C28="",0,OFFSET($C56,MATCH($C28,$C$55:$C$514,0)+24-SUM($A$27:$A28),COLUMN(K$1)-3)) -> 0 | L28: =IF($C28="",0,OFFSET($C56,MATCH($C28,$C$55:$C$514,0)+24-SUM($A$27:$A28),COLUMN(L$1)-3)) -> 0
A29: 1 | B29: 3 | C29: Institutional Development | D29: =IF($C29="",0,OFFSET($C57,MATCH($C29,$C$55:$C$514,0)+24-SUM($A$27:$A29),COLUMN(D$1)-3)) -> 46 | E29: =IF($C29="",0,OFFSET($C57,MATCH($C29,$C$55:$C$514,0)+24-SUM($A$27:$A29),COLUMN(E$1)-3)) -> 0 | F29: =IF($C29="",0,OFFSET($C57,MATCH($C29,$C$55:$C$514,0)+24-SUM($A$27:$A29),COLUMN(F$1)-3)) -> 47.83333333 | G29: =IF($C29="",0,OFFSET($C57,MATCH($C29,$C$55:$C$514,0)+24-SUM($A$27:$A29),COLUMN(G$1)-3)) -> 789.8559897 | H29: =IF($C29="",0,OFFSET($C57,MATCH($C29,$C$55:$C$514,0)+24-SUM($A$27:$A29),COLUMN(H$1)-3)) -> 0 | I29: =IF($C29="",0,OFFSET($C57,MATCH($C29,$C$55:$C$514,0)+24-SUM($A$27:$A29),COLUMN(I$1)-3)) -> 37781.44484 | J29: =IF($C29="",0,OFFSET($C57,MATCH($C29,$C$55:$C$514,0)+24-SUM($A$27:$A29),COLUMN(J$1)-3)) -> 46 | K29: =IF($C29="",0,OFFSET($C57,MATCH($C29,$C$55:$C$514,0)+24-SUM($A$27:$A29),COLUMN(K$1)-3)) -> 0 | L29: =IF($C29="",0,OFFSET($C57,MATCH($C29,$C$55:$C$514,0)+24-SUM($A$27:$A29),COLUMN(L$1)-3)) -> 0
A30: 1 | B30: 4 | C30: National Disaster Management Centre | D30: =IF($C30="",0,OFFSET($C58,MATCH($C30,$C$55:$C$514,0)+24-SUM($A$27:$A30),COLUMN(D$1)-3)) -> 30 | E30: =IF($C30="",0,OFFSET($C58,MATCH($C30,$C$55:$C$514,0)+24-SUM($A$27:$A30),COLUMN(E$1)-3)) -> 1 | F30: =IF($C30="",0,OFFSET($C58,MATCH($C30,$C$55:$C$514,0)+24-SUM($A$27:$A30),COLUMN(F$1)-3)) -> 31.16666667 | G30: =IF($C30="",0,OFFSET($C58,MATCH($C30,$C$55:$C$514,0)+24-SUM($A$27:$A30),COLUMN(G$1)-3)) -> 799.9649195 | H30: =IF($C30="",0,OFFSET($C58,MATCH($C30,$C$55:$C$514,0)+24-SUM($A$27:$A30),COLUMN(H$1)-3)) -> 0 | I30: =IF($C30="",0,OFFSET($C58,MATCH($C30,$C$55:$C$514,0)+24-SUM($A$27:$A30),COLUMN(I$1)-3)) -> 24932.23999 | J30: =IF($C30="",0,OFFSET($C58,MATCH($C30,$C$55:$C$514,0)+24-SUM($A$27:$A30),COLUMN(J$1)-3)) -> 30 | K30: =IF($C30="",0,OFFSET($C58,MATCH($C30,$C$55:$C$514,0)+24-SUM($A$27:$A30),COLUMN(K$1)-3)) -> 0 | L30: =IF($C30="",0,OFFSET($C58,MATCH($C30,$C$55:$C$514,0)+24-SUM($A$27:$A30),COLUMN(L$1)-3)) -> 0
A31: 1 | B31: 5 | C31: Community Work Programme | D31: =IF($C31="",0,OFFSET($C59,MATCH($C31,$C$55:$C$514,0)+24-SUM($A$27:$A31),COLUMN(D$1)-3)) -> 39 | E31: =IF($C31="",0,OFFSET($C59,MATCH($C31,$C$55:$C$514,0)+24-SUM($A$27:$A31),COLUMN(E$1)-3)) -> 4 | F31: =IF($C31="",0,OFFSET($C59,MATCH($C31,$C$55:$C$514,0)+24-SUM($A$27:$A31),COLUMN(F$1)-3)) -> 39.83333333 | G31: =IF($C31="",0,OFFSET($C59,MATCH($C31,$C$55:$C$514,0)+24-SUM($A$27:$A31),COLUMN(G$1)-3)) -> 789.5743278 | H31: =IF($C31="",0,OFFSET($C59,MATCH($C31,$C$55:$C$514,0)+24-SUM($A$27:$A31),COLUMN(H$1)-3)) -> 0 | I31: =IF($C31="",0,OFFSET($C59,MATCH($C31,$C$55:$C$514,0)+24-SUM($A$27:$A31),COLUMN(I$1)-3)) -> 31451.37739 | J31: =IF($C31="",0,OFFSET($C59,MATCH($C31,$C$55:$C$514,0)+24-SUM($A$27:$A31),COLUMN(J$1)-3)) -> 39 | K31: =IF($C31="",0,OFFSET($C59,MATCH($C31,$C$55:$C$514,0)+24-SUM($A$27:$A31),COLUMN(K$1)-3)) -> 0 | L31: =IF($C31="",0,OFFSET($C59,MATCH($C31,$C$55:$C$514,0)+24-SUM($A$27:$A31),COLUMN(L$1)-3)) -> 0
A32: 0 | D32: =IF($C32="",0,OFFSET($C60,MATCH($C32,$C$55:$C$514,0)+24-SUM($A$27:$A32),COLUMN(D$1)-3)) -> 0 | E32: =IF($C32="",0,OFFSET($C60,MATCH($C32,$C$55:$C$514,0)+24-SUM($A$27:$A32),COLUMN(E$1)-3)) -> 0 | F32: =IF($C32="",0,OFFSET($C60,MATCH($C32,$C$55:$C$514,0)+24-SUM($A$27:$A32),COLUMN(F$1)-3)) -> 0 | G32: =IF($C32="",0,OFFSET($C60,MATCH($C32,$C$55:$C$514,0)+24-SUM($A$27:$A32),COLUMN(G$1)-3)) -> 0 | H32: =IF($C32="",0,OFFSET($C60,MATCH($C32,$C$55:$C$514,0)+24-SUM($A$27:$A32),COLUMN(H$1)-3)) -> 0 | I32: =IF($C32="",0,OFFSET($C60,MATCH($C32,$C$55:$C$514,0)+24-SUM($A$27:$A32),COLUMN(I$1)-3)) -> 0 | J32: =IF($C32="",0,OFFSET($C60,MATCH($C32,$C$55:$C$514,0)+24-SUM($A$27:$A32),COLUMN(J$1)-3)) -> 0 | K32: =IF($C32="",0,OFFSET($C60,MATCH($C32,$C$55:$C$514,0)+24-SUM($A$27:$A32),COLUMN(K$1)-3)) -> 0 | L32: =IF($C32="",0,OFFSET($C60,MATCH($C32,$C$55:$C$514,0)+24-SUM($A$27:$A32),COLUMN(L$1)-3)) -> 0
A33: 0 | D33: =IF($C33="",0,OFFSET($C61,MATCH($C33,$C$55:$C$514,0)+24-SUM($A$27:$A33),COLUMN(D$1)-3)) -> 0 | E33: =IF($C33="",0,OFFSET($C61,MATCH($C33,$C$55:$C$514,0)+24-SUM($A$27:$A33),COLUMN(E$1)-3)) -> 0 | F33: =IF($C33="",0,OFFSET($C61,MATCH($C33,$C$55:$C$514,0)+24-SUM($A$27:$A33),COLUMN(F$1)-3)) -> 0 | G33: =IF($C33="",0,OFFSET($C61,MATCH($C33,$C$55:$C$514,0)+24-SUM($A$27:$A33),COLUMN(G$1)-3)) -> 0 | H33: =IF($C33="",0,OFFSET($C61,MATCH($C33,$C$55:$C$514,0)+24-SUM($A$27:$A33),COLUMN(H$1)-3)) -> 0 | I33: =IF($C33="",0,OFFSET($C61,MATCH($C33,$C$55:$C$514,0)+24-SUM($A$27:$A33),COLUMN(I$1)-3)) -> 0 | J33: =IF($C33="",0,OFFSET($C61,MATCH($C33,$C$55:$C$514,0)+24-SUM($A$27:$A33),COLUMN(J$1)-3)) -> 0 | K33: =IF($C33="",0,OFFSET($C61,MATCH($C33,$C$55:$C$514,0)+24-SUM($A$27:$A33),COLUMN(K$1)-3)) -> 0 | L33: =IF($C33="",0,OFFSET($C61,MATCH($C33,$C$55:$C$514,0)+24-SUM($A$27:$A33),COLUMN(L$1)-3)) -> 0
A34: 0 | D34: =IF($C34="",0,OFFSET($C62,MATCH($C34,$C$55:$C$514,0)+24-SUM($A$27:$A34),COLUMN(D$1)-3)) -> 0 | E34: =IF($C34="",0,OFFSET($C62,MATCH($C34,$C$55:$C$514,0)+24-SUM($A$27:$A34),COLUMN(E$1)-3)) -> 0 | F34: =IF($C34="",0,OFFSET($C62,MATCH($C34,$C$55:$C$514,0)+24-SUM($A$27:$A34),COLUMN(F$1)-3)) -> 0 | G34: =IF($C34="",0,OFFSET($C62,MATCH($C34,$C$55:$C$514,0)+24-SUM($A$27:$A34),COLUMN(G$1)-3)) -> 0 | H34: =IF($C34="",0,OFFSET($C62,MATCH($C34,$C$55:$C$514,0)+24-SUM($A$27:$A34),COLUMN(H$1)-3)) -> 0 | I34: =IF($C34="",0,OFFSET($C62,MATCH($C34,$C$55:$C$514,0)+24-SUM($A$27:$A34),COLUMN(I$1)-3)) -> 0 | J34: =IF($C34="",0,OFFSET($C62,MATCH($C34,$C$55:$C$514,0)+24-SUM($A$27:$A34),COLUMN(J$1)-3)) -> 0 | K34: =IF($C34="",0,OFFSET($C62,MATCH($C34,$C$55:$C$514,0)+24-SUM($A$27:$A34),COLUMN(K$1)-3)) -> 0 | L34: =IF($C34="",0,OFFSET($C62,MATCH($C34,$C$55:$C$514,0)+24-SUM($A$27:$A34),COLUMN(L$1)-3)) -> 0
A35: 0 | D35: =IF($C35="",0,OFFSET($C63,MATCH($C35,$C$55:$C$514,0)+24-SUM($A$27:$A35),COLUMN(D$1)-3)) -> 0 | E35: =IF($C35="",0,OFFSET($C63,MATCH($C35,$C$55:$C$514,0)+24-SUM($A$27:$A35),COLUMN(E$1)-3)) -> 0 | F35: =IF($C35="",0,OFFSET($C63,MATCH($C35,$C$55:$C$514,0)+24-SUM($A$27:$A35),COLUMN(F$1)-3)) -> 0 | G35: =IF($C35="",0,OFFSET($C63,MATCH($C35,$C$55:$C$514,0)+24-SUM($A$27:$A35),COLUMN(G$1)-3)) -> 0 | H35: =IF($C35="",0,OFFSET($C63,MATCH($C35,$C$55:$C$514,0)+24-SUM($A$27:$A35),COLUMN(H$1)-3)) -> 0 | I35: =IF($C35="",0,OFFSET($C63,MATCH($C35,$C$55:$C$514,0)+24-SUM($A$27:$A35),COLUMN(I$1)-3)) -> 0 | J35: =IF($C35="",0,OFFSET($C63,MATCH($C35,$C$55:$C$514,0)+24-SUM($A$27:$A35),COLUMN(J$1)-3)) -> 0 | K35: =IF($C35="",0,OFFSET($C63,MATCH($C35,$C$55:$C$514,0)+24-SUM($A$27:$A35),COLUMN(K$1)-3)) -> 0 | L35: =IF($C35="",0,OFFSET($C63,MATCH($C35,$C$55:$C$514,0)+24-SUM($A$27:$A35),COLUMN(L$1)-3)) -> 0
A36: 0 | D36: =IF($C36="",0,OFFSET($C64,MATCH($C36,$C$55:$C$514,0)+24-SUM($A$27:$A36),COLUMN(D$1)-3)) -> 0 | E36: =IF($C36="",0,OFFSET($C64,MATCH($C36,$C$55:$C$514,0)+24-SUM($A$27:$A36),COLUMN(E$1)-3)) -> 0 | F36: =IF($C36="",0,OFFSET($C64,MATCH($C36,$C$55:$C$514,0)+24-SUM($A$27:$A36),COLUMN(F$1)-3)) -> 0 | G36: =IF($C36="",0,OFFSET($C64,MATCH($C36,$C$55:$C$514,0)+24-SUM($A$27:$A36),COLUMN(G$1)-3)) -> 0 | H36: =IF($C36="",0,OFFSET($C64,MATCH($C36,$C$55:$C$514,0)+24-SUM($A$27:$A36),COLUMN(H$1)-3)) -> 0 | I36: =IF($C36="",0,OFFSET($C64,MATCH($C36,$C$55:$C$514,0)+24-SUM($A$27:$A36),COLUMN(I$1)-3)) -> 0 | J36: =IF($C36="",0,OFFSET($C64,MATCH($C36,$C$55:$C$514,0)+24-SUM($A$27:$A36),COLUMN(J$1)-3)) -> 0 | K36: =IF($C36="",0,OFFSET($C64,MATCH($C36,$C$55:$C$514,0)+24-SUM($A$27:$A36),COLUMN(K$1)-3)) -> 0 | L36: =IF($C36="",0,OFFSET($C64,MATCH($C36,$C$55:$C$514,0)+24-SUM($A$27:$A36),COLUMN(L$1)-3)) -> 0
A37: 0 | D37: =IF($C37="",0,OFFSET($C65,MATCH($C37,$C$55:$C$514,0)+24-SUM($A$27:$A37),COLUMN(D$1)-3)) -> 0 | E37: =IF($C37="",0,OFFSET($C65,MATCH($C37,$C$55:$C$514,0)+24-SUM($A$27:$A37),COLUMN(E$1)-3)) -> 0 | F37: =IF($C37="",0,OFFSET($C65,MATCH($C37,$C$55:$C$514,0)+24-SUM($A$27:$A37),COLUMN(F$1)-3)) -> 0 | G37: =IF($C37="",0,OFFSET($C65,MATCH($C37,$C$55:$C$514,0)+24-SUM($A$27:$A37),COLUMN(G$1)-3)) -> 0 | H37: =IF($C37="",0,OFFSET($C65,MATCH($C37,$C$55:$C$514,0)+24-SUM($A$27:$A37),COLUMN(H$1)-3)) -> 0 | I37: =IF($C37="",0,OFFSET($C65,MATCH($C37,$C$55:$C$514,0)+24-SUM($A$27:$A37),COLUMN(I$1)-3)) -> 0 | J37: =IF($C37="",0,OFFSET($C65,MATCH($C37,$C$55:$C$514,0)+24-SUM($A$27:$A37),COLUMN(J$1)-3)) -> 0 | K37: =IF($C37="",0,OFFSET($C65,MATCH($C37,$C$55:$C$514,0)+24-SUM($A$27:$A37),COLUMN(K$1)-3)) -> 0 | L37: =IF($C37="",0,OFFSET($C65,MATCH($C37,$C$55:$C$514,0)+24-SUM($A$27:$A37),COLUMN(L$1)-3)) -> 0
A38: 0 | D38: =IF($C38="",0,OFFSET($C66,MATCH($C38,$C$55:$C$514,0)+24-SUM($A$27:$A38),COLUMN(D$1)-3)) -> 0 | E38: =IF($C38="",0,OFFSET($C66,MATCH($C38,$C$55:$C$514,0)+24-SUM($A$27:$A38),COLUMN(E$1)-3)) -> 0 | F38: =IF($C38="",0,OFFSET($C66,MATCH($C38,$C$55:$C$514,0)+24-SUM($A$27:$A38),COLUMN(F$1)-3)) -> 0 | G38: =IF($C38="",0,OFFSET($C66,MATCH($C38,$C$55:$C$514,0)+24-SUM($A$27:$A38),COLUMN(G$1)-3)) -> 0 | H38: =IF($C38="",0,OFFSET($C66,MATCH($C38,$C$55:$C$514,0)+24-SUM($A$27:$A38),COLUMN(H$1)-3)) -> 0 | I38: =IF($C38="",0,OFFSET($C66,MATCH($C38,$C$55:$C$514,0)+24-SUM($A$27:$A38),COLUMN(I$1)-3)) -> 0 | J38: =IF($C38="",0,OFFSET($C66,MATCH($C38,$C$55:$C$514,0)+24-SUM($A$27:$A38),COLUMN(J$1)-3)) -> 0 | K38: =IF($C38="",0,OFFSET($C66,MATCH($C38,$C$55:$C$514,0)+24-SUM($A$27:$A38),COLUMN(K$1)-3)) -> 0 | L38: =IF($C38="",0,OFFSET($C66,MATCH($C38,$C$55:$C$514,0)+24-SUM($A$27:$A38),COLUMN(L$1)-3)) -> 0
A39: 0 | D39: =IF($C39="",0,OFFSET($C67,MATCH($C39,$C$55:$C$514,0)+24-SUM($A$27:$A39),COLUMN(D$1)-3)) -> 0 | E39: =IF($C39="",0,OFFSET($C67,MATCH($C39,$C$55:$C$514,0)+24-SUM($A$27:$A39),COLUMN(E$1)-3)) -> 0 | F39: =IF($C39="",0,OFFSET($C67,MATCH($C39,$C$55:$C$514,0)+24-SUM($A$27:$A39),COLUMN(F$1)-3)) -> 0 | G39: =IF($C39="",0,OFFSET($C67,MATCH($C39,$C$55:$C$514,0)+24-SUM($A$27:$A39),COLUMN(G$1)-3)) -> 0 | H39: =IF($C39="",0,OFFSET($C67,MATCH($C39,$C$55:$C$514,0)+24-SUM($A$27:$A39),COLUMN(H$1)-3)) -> 0 | I39: =IF($C39="",0,OFFSET($C67,MATCH($C39,$C$55:$C$514,0)+24-SUM($A$27:$A39),COLUMN(I$1)-3)) -> 0 | J39: =IF($C39="",0,OFFSET($C67,MATCH($C39,$C$55:$C$514,0)+24-SUM($A$27:$A39),COLUMN(J$1)-3)) -> 0 | K39: =IF($C39="",0,OFFSET($C67,MATCH($C39,$C$55:$C$514,0)+24-SUM($A$27:$A39),COLUMN(K$1)-3)) -> 0 | L39: =IF($C39="",0,OFFSET($C67,MATCH($C39,$C$55:$C$514,0)+24-SUM($A$27:$A39),COLUMN(L$1)-3)) -> 0
A40: 0 | D40: =IF($C40="",0,OFFSET($C68,MATCH($C40,$C$55:$C$514,0)+24-SUM($A$27:$A40),COLUMN(D$1)-3)) -> 0 | E40: =IF($C40="",0,OFFSET($C68,MATCH($C40,$C$55:$C$514,0)+24-SUM($A$27:$A40),COLUMN(E$1)-3)) -> 0 | F40: =IF($C40="",0,OFFSET($C68,MATCH($C40,$C$55:$C$514,0)+24-SUM($A$27:$A40),COLUMN(F$1)-3)) -> 0 | G40: =IF($C40="",0,OFFSET($C68,MATCH($C40,$C$55:$C$514,0)+24-SUM($A$27:$A40),COLUMN(G$1)-3)) -> 0 | H40: =IF($C40="",0,OFFSET($C68,MATCH($C40,$C$55:$C$514,0)+24-SUM($A$27:$A40),COLUMN(H$1)-3)) -> 0 | I40: =IF($C40="",0,OFFSET($C68,MATCH($C40,$C$55:$C$514,0)+24-SUM($A$27:$A40),COLUMN(I$1)-3)) -> 0 | J40: =IF($C40="",0,OFFSET($C68,MATCH($C40,$C$55:$C$514,0)+24-SUM($A$27:$A40),COLUMN(J$1)-3)) -> 0 | K40: =IF($C40="",0,OFFSET($C68,MATCH($C40,$C$55:$C$514,0)+24-SUM($A$27:$A40),COLUMN(K$1)-3)) -> 0 | L40: =IF($C40="",0,OFFSET($C68,MATCH($C40,$C$55:$C$514,0)+24-SUM($A$27:$A40),COLUMN(L$1)-3)) -> 0
A41: 0 | D41: =IF($C41="",0,OFFSET($C69,MATCH($C41,$C$55:$C$514,0)+24-SUM($A$27:$A41),COLUMN(D$1)-3)) -> 0 | E41: =IF($C41="",0,OFFSET($C69,MATCH($C41,$C$55:$C$514,0)+24-SUM($A$27:$A41),COLUMN(E$1)-3)) -> 0 | F41: =IF($C41="",0,OFFSET($C69,MATCH($C41,$C$55:$C$514,0)+24-SUM($A$27:$A41),COLUMN(F$1)-3)) -> 0 | G41: =IF($C41="",0,OFFSET($C69,MATCH($C41,$C$55:$C$514,0)+24-SUM($A$27:$A41),COLUMN(G$1)-3)) -> 0 | H41: =IF($C41="",0,OFFSET($C69,MATCH($C41,$C$55:$C$514,0)+24-SUM($A$27:$A41),COLUMN(H$1)-3)) -> 0 | I41: =IF($C41="",0,OFFSET($C69,MATCH($C41,$C$55:$C$514,0)+24-SUM($A$27:$A41),COLUMN(I$1)-3)) -> 0 | J41: =IF($C41="",0,OFFSET($C69,MATCH($C41,$C$55:$C$514,0)+24-SUM($A$27:$A41),COLUMN(J$1)-3)) -> 0 | K41: =IF($C41="",0,OFFSET($C69,MATCH($C41,$C$55:$C$514,0)+24-SUM($A$27:$A41),COLUMN(K$1)-3)) -> 0 | L41: =IF($C41="",0,OFFSET($C69,MATCH($C41,$C$55:$C$514,0)+24-SUM($A$27:$A41),COLUMN(L$1)-3)) -> 0
A42: 0 | D42: =IF($C42="",0,OFFSET($C70,MATCH($C42,$C$55:$C$514,0)+24-SUM($A$27:$A42),COLUMN(D$1)-3)) -> 0 | E42: =IF($C42="",0,OFFSET($C70,MATCH($C42,$C$55:$C$514,0)+24-SUM($A$27:$A42),COLUMN(E$1)-3)) -> 0 | F42: =IF($C42="",0,OFFSET($C70,MATCH($C42,$C$55:$C$514,0)+24-SUM($A$27:$A42),COLUMN(F$1)-3)) -> 0 | G42: =IF($C42="",0,OFFSET($C70,MATCH($C42,$C$55:$C$514,0)+24-SUM($A$27:$A42),COLUMN(G$1)-3)) -> 0 | H42: =IF($C42="",0,OFFSET($C70,MATCH($C42,$C$55:$C$514,0)+24-SUM($A$27:$A42),COLUMN(H$1)-3)) -> 0 | I42: =IF($C42="",0,OFFSET($C70,MATCH($C42,$C$55:$C$514,0)+24-SUM($A$27:$A42),COLUMN(I$1)-3)) -> 0 | J42: =IF($C42="",0,OFFSET($C70,MATCH($C42,$C$55:$C$514,0)+24-SUM($A$27:$A42),COLUMN(J$1)-3)) -> 0 | K42: =IF($C42="",0,OFFSET($C70,MATCH($C42,$C$55:$C$514,0)+24-SUM($A$27:$A42),COLUMN(K$1)-3)) -> 0 | L42: =IF($C42="",0,OFFSET($C70,MATCH($C42,$C$55:$C$514,0)+24-SUM($A$27:$A42),COLUMN(L$1)-3)) -> 0
A43: 1 | C43: Total | D43: =SUM(D23:D42) -> 518 | E43: =SUM(E23:E42) -> 80 | F43: =SUM(F23:F42) -> 488.0833333 | G43: =IFERROR(I43/F43,0) -> 692.0491459 | H43: =IFERROR(SUM(H27:H42)/COUNTIF(H27:H42,">0"),0) -> 0 | I43: =SUM(I23:I42) -> 337777.6539 | J43: =SUM(J23:J42) -> 514 | K43: =IFERROR(#REF!/#REF!,0) -> 0 | L43: =IFERROR(SUM(L27:L42)/COUNTIF(L27:L42,">0"),0) -> 0
A44: 1 | C44: Salary Bands
A45: 1 | C45: 1 - 6 | D45: =SUMIFS(D$55:D$514,$C$55:$C$514,">=1",$C$55:$C$514,"<=6") -> 171 | E45: =SUMIFS(E$55:E$514,$C$55:$C$514,">=1",$C$55:$C$514,"<=6") -> 44 | F45: =SUMIFS(F$55:F$514,$C$55:$C$514,">=1",$C$55:$C$514,"<=6") -> 140 | G45: =IFERROR(I45/F45,0) -> 314.2995006 | H45: =IFERROR(SUMIFS(H$55:H$514,$B$55:$B$514,">=1",$C$55:$C$514,"<>Total",$C$55:$C$514,">=1",$C$55:$C$514,"<=6")/COUNTIFS($B$55:$B$514,">=1",$C$55:$C$514,">=1",$C$55:$C$514,"<=6",#REF!,">0"),0) -> 0 | I45: =SUMIFS(I$55:I$514,$C$55:$C$514,">=1",$C$55:$C$514,"<=6") -> 44001.93009 | J45: =SUMIFS(J$55:J$514,$C$55:$C$514,">=1",$C$55:$C$514,"<=6") -> 168 | K45: =IFERROR(#REF!/#REF!,0) -> 0 | L45: =IFERROR(SUMIFS(L$55:L$514,$B$55:$B$514,">=1",$C$55:$C$514,"<>Total",$C$55:$C$514,">=1",$C$55:$C$514,"<=6")/COUNTIFS($B$55:$B$514,">=1",$C$55:$C$514,">=1",$C$55:$C$514,"<=6",#REF!,">0"),0) -> 0
A46: 1 | C46: 7 - 10 | D46: =SUMIFS(D$55:D$514,$C$55:$C$514,">=7",$C$55:$C$514,"<=10") -> 119 | E46: =SUMIFS(E$55:E$514,$C$55:$C$514,">=7",$C$55:$C$514,"<=10") -> 7 | F46: =SUMIFS(F$55:F$514,$C$55:$C$514,">=7",$C$55:$C$514,"<=10") -> 119.75 | G46: 533.4529179 | H46: =IFERROR(SUMIFS(H$55:H$514,$B$55:$B$514,">=1",$C$55:$C$514,"<>Total",$C$55:$C$514,">=7",$C$55:$C$514,"<=10")/COUNTIFS($B$55:$B$514,">=1",$C$55:$C$514,">=7",$C$55:$C$514,"<=10",#REF!,">0"),0) -> 0 | I46: =SUMIFS(I$55:I$514,$C$55:$C$514,">=7",$C$55:$C$514,"<=10") -> 63880.98692 | J46: =SUMIFS(J$55:J$514,$C$55:$C$514,">=7",$C$55:$C$514,"<=10") -> 120 | K46: =IFERROR(#REF!/#REF!,0) -> 0 | L46: =IFERROR(SUMIFS(L$55:L$514,$B$55:$B$514,">=1",$C$55:$C$514,"<>Total",$C$55:$C$514,">=7",$C$55:$C$514,"<=10")/COUNTIFS($B$55:$B$514,">=1",$C$55:$C$514,">=7",$C$55:$C$514,"<=10",#REF!,">0"),0) -> 0
A47: 1 | C47: 11 - 12 | D47: =SUMIFS(D$55:D$514,$C$55:$C$514,">=11",$C$55:$C$514,"<=12") -> 98 | E47: =SUMIFS(E$55:E$514,$C$55:$C$514,">=11",$C$55:$C$514,"<=12") -> 2 | F47: =SUMIFS(F$55:F$514,$C$55:$C$514,">=11",$C$55:$C$514,"<=12") -> 93.83333333 | G47: 846.5432344 | H47: =IFERROR(SUMIFS(H$55:H$514,$B$55:$B$514,">=1",$C$55:$C$514,"<>Total",$C$55:$C$514,">=11",$C$55:$C$514,"<=12")/COUNTIFS($B$55:$B$514,">=1",$C$55:$C$514,">=11",$C$55:$C$514,"<=12",#REF!,">0"),0) -> 0 | I47: =SUMIFS(I$55:I$514,$C$55:$C$514,">=11",$C$55:$C$514,"<=12") -> 79433.97349 | J47: =SUMIFS(J$55:J$514,$C$55:$C$514,">=11",$C$55:$C$514,"<=12") -> 98 | K47: =IFERROR(#REF!/#REF!,0) -> 0 | L47: =IFERROR(SUMIFS(L$55:L$514,$B$55:$B$514,">=1",$C$55:$C$514,"<>Total",$C$55:$C$514,">=11",$C$55:$C$514,"<=12")/COUNTIFS($B$55:$B$514,">=1",$C$55:$C$514,">=11",$C$55:$C$514,"<=12",#REF!,">0"),0) -> 0
A48: 1 | C48: 13 - 16 | D48: =SUMIFS(D$55:D$514,$C$55:$C$514,">=13",$C$55:$C$514,"<=16") -> 109 | E48: =SUMIFS(E$55:E$514,$C$55:$C$514,">=13",$C$55:$C$514,"<=16") -> 10 | F48: =SUMIFS(F$55:F$514,$C$55:$C$514,">=13",$C$55:$C$514,"<=16") -> 111.75 | G48: 1330.722206 | H48: =IFERROR(SUMIFS(H$55:H$514,$B$55:$B$514,">=1",$C$55:$C$514,"<>Total",$C$55:$C$514,">=13",$C$55:$C$514,"<=16")/COUNTIFS($B$55:$B$514,">=1",$C$55:$C$514,">=13",$C$55:$C$514,"<=16",#REF!,">0"),0) -> 0 | I48: =SUMIFS(I$55:I$514,$C$55:$C$514,">=13",$C$55:$C$514,"<=16") -> 148708.2065 | J48: =SUMIFS(J$55:J$514,$C$55:$C$514,">=13",$C$55:$C$514,"<=16") -> 108 | K48: =IFERROR(#REF!/#REF!,0) -> 0 | L48: =IFERROR(SUMIFS(L$55:L$514,$B$55:$B$514,">=1",$C$55:$C$514,"<>Total",$C$55:$C$514,">=13",$C$55:$C$514,"<=16")/COUNTIFS($B$55:$B$514,">=1",$C$55:$C$514,">=13",$C$55:$C$514,"<=16",#REF!,">0"),0) -> 0
A49: 1 | C49: Other | D49: =D43-SUM(D45:D48) -> 21 | E49: =E43-SUM(E45:E48) -> 17 | F49: =F43-SUM(F45:F48) -> 22.75 | G49: 77.03546813 | H49: =IFERROR((SUMIFS(H$55:H$514,$B$55:$B$514,">=1",$C$55:$C$514,"<>Total")-SUMIFS(H$55:H$514,$B$55:$B$514,">=1",$C$55:$C$514,"<=16"))/(COUNTIFS($B$55:$B$514,">=1",$C$55:$C$514,"<>Total",#REF!,">0")-COUNTIFS($B$55:$B$514,">=1",$C$55:$C$514,"<=16",#REF!,">0"=(SUMIFS(H$55:H$514,$B$55:$B$514,">=1",$C$55:$C$514,"<>Total")-SUMIFS(H$55:H$514,$B$55:$B$514,">=1",$C$55:$C$514,"<=16"))/(COUNTIFS($B$55:$B$514,">=1",$C$55:$C$514,"<>Total",#REF!,">0")-COUNTIFS($B$55:$B$514,">=1",$C$55:$C$514,"<=16",#REF!,">0")))),0) -> 0 | I49: =I43-SUM(I45:I48) -> 1752.5569 | J49: =J43-SUM(J45:J48) -> 20 | K49: =IFERROR(#REF!/#REF!,0) -> 0 | L49: =IFERROR((SUMIFS(L$55:L$514,$B$55:$B$514,">=1",$C$55:$C$514,"<>Total")-SUMIFS(L$55:L$514,$B$55:$B$514,">=1",$C$55:$C$514,"<=16"))/(COUNTIFS($B$55:$B$514,">=1",$C$55:$C$514,"<>Total",#REF!,">0")-COUNTIFS($B$55:$B$514,">=1",$C$55:$C$514,"<=16",#REF!,">0"=(SUMIFS(L$55:L$514,$B$55:$B$514,">=1",$C$55:$C$514,"<>Total")-SUMIFS(L$55:L$514,$B$55:$B$514,">=1",$C$55:$C$514,"<=16"))/(COUNTIFS($B$55:$B$514,">=1",$C$55:$C$514,"<>Total",#REF!,">0")-COUNTIFS($B$55:$B$514,">=1",$C$55:$C$514,"<=16",#REF!,">0")))),0) -> 0
A50: 1 | C50: Total | D50: =SUM(D45:D49) -> 518 | E50: =SUM(E45:E49) -> 80 | F50: =SUM(F45:F49) -> 488.0833333 | G50: 692.0491459 | H50: =IFERROR(SUMIF($C$55:$C$514,"Total",H$55:H$514)/COUNTIF(H27:H42,">0"),0) -> 0 | I50: =SUM(I45:I49) -> 337777.6539 | J50: =SUM(J45:J49) -> 514 | K50: =IFERROR(#REF!/#REF!,0) -> 0 | L50: =IFERROR(SUMIF($C$55:$C$514,"Total",L$55:L$514)/COUNTIF(L27:L42,">0"),0) -> 0
A51: 1 | C51: Checks | D51: =D43-D50 -> 0 | E51: 0 | F51: 0 | G51: 0 | H51: 0 | I51: 0 | J51: 0 | K51: 0 | L51: 0
A52: 1
A53: 1 | C53: Department Programme Details
A54: 1
A55: =$A$27 -> 1 | C55: =$C$27 -> Administration
A56: =A$55 -> 1 | D56: Establishment Structure | F56: Previous Financial Year | J56: Medium-term expenditure estimates
A57: 1 | D57: As at 31 March 2022 | F57: =LEFT($D$3,4)-1 & "/" & RIGHT($D$3,2)-1 -> 2021/22
A58: 1 | B58: ProgNo. | C58: Salary level | D58: Total number of funded posts | E58: of which: number of funded posts additional to the establishment | F58: FTE Headcount | G58: Unit Costs | H58: of which: Once-off Payments per person | I58: Total Annual Cost | J58: Initial Headcount | K58: Unit Costs | L58: of which: Once-off Payments per person
A59: 1 | B59: 1 | C59: 1 | G59: =IFERROR(IF(I59=0,O59,I59/F59),0) -> 99.95105925 | H59: =1220/1000*12 -> 14.64 | K59: 101.2331598 | L59: =1220/1000*12 -> 14.64 | O59: 99.95105925
A60: 1 | B60: 1 | C60: 2 | D60: 1 | F60: 1 | G60: =IFERROR(IF(I60=0,O60,I60/F60),0) -> 182.07987 | H60: =1220/1000*12 -> 14.64 | I60: 182.07987 | J60: 1 | K60: 186.3962812 | L60: =1220/1000*12 -> 14.64 | O60: 179.5147433
A61: 1 | B61: 1 | C61: 3 | D61: 25 | F61: 24.58333333 | G61: 224.2457752 | H61: =1220/1000*12 -> 14.64 | I61: 5512.70864 | J61: 25 | K61: 229.7516108 | L61: =1220/1000*12 -> 14.64 | O61: 216.6722944
A62: 1 | B62: 1 | C62: 4 | D62: 4 | F62: 4 | G62: 247.6242 | H62: =1220/1000*12 -> 14.64 | I62: 990.4968 | J62: 4 | K62: 253.8442503 | L62: =1220/1000*12 -> 14.64 | O62: 236.0392102
A63: 1 | B63: 1 | C63: 5 | D63: 69 | E63: 40 | F63: 39.58333333 | G63: 293.7967162 | H63: =1220/1000*12 -> 14.64 | I63: 11629.45335 | J63: 67 | K63: 300.2339914 | L63: =1220/1000*12 -> 14.64 | O63: 290.5081548
A64: 1 | B64: 1 | C64: 6 | D64: 33 | E64: 4 | F64: 31.83333333 | G64: 371.5950493 | H64: =1352/1000*12 -> 16.224 | I64: 11829.10907 | J64: 32 | K64: 380.0172462 | L64: =1352/1000*12 -> 16.224 | O64: 341.7085708
A65: 1 | B65: 1 | C65: 7 | D65: 12 | E65: 3 | F65: 11.66666667 | G65: 437.4743186 | H65: =1352/1000*12 -> 16.224 | I65: 5103.86705 | J65: 12 | K65: 446.5165043 | L65: =1352/1000*12 -> 16.224 | O65: 455.5004418
A66: 1 | B66: 1 | C66: 8 | D66: 23 | F66: 24.75 | G66: 505.9767616 | H66: =1450/1000*12 -> 17.4 | I66: 12522.92485 | J66: 24 | K66: 516.7522271 | L66: =1450/1000*12 -> 17.4 | O66: 520.4674487
A67: 1 | B67: 1 | C67: 9 | D67: 24 | E67: 2 | F67: 24.5 | G67: 606.1078927 | H67: =1450/1000*12 -> 17.4 | I67: 14849.64337 | J67: 24 | K67: 619.4848781 | L67: =1450/1000*12 -> 17.4 | O67: 586.4171069
A68: 1 | B68: 1 | C68: 10 | D68: 3 | F68: 2.416666667 | G68: 791.9972359 | H68: =1640/1000*12 -> 19.68 | I68: 1913.99332 | J68: 3 | K68: 806.4773049 | L68: =1640/1000*12 -> 19.68 | O68: 699.4852566
A69: 1 | B69: 1 | C69: 11 | D69: 37 | E69: 1 | F69: 35.91666667 | G69: 832.9321924 | H69: =1640/1000*12 -> 19.68 | I69: 29916.14791 | J69: 37 | K69: 849.0321739 | L69: =1640/1000*12 -> 19.68 | O69: 799.6834333
A70: 1 | B70: 1 | C70: 12 | D70: 6 | F70: 4.666666667 | G70: 946.9962429 | H70: =1695/1000*12 -> 20.34 | I70: 4419.3158 | J70: 6 | K70: 964.0399428 | L70: =1695/1000*12 -> 20.34 | O70: 1014.272904
A71: 1 | B71: 1 | C71: 13 | D71: 30 | E71: 4 | F71: 28.5 | G71: 1189.472913 | H71: =1695/1000*12 -> 20.34 | I71: 33899.97803 | J71: 29 | K71: 1210.389228 | L71: =1695/1000*12 -> 20.34 | O71: 1152.258047
A72: 1 | B72: 1 | C72: 14 | D72: 9 | E72: 2 | F72: 8.75 | G72: 1401.544358 | H72: 20.34 | I72: 12263.51313 | J72: 8 | K72: 1425.971122 | L72: 20.34 | O72: 1409.161406
A73: 1 | B73: 1 | C73: 15 | D73: 2 | E73: 1 | F73: 2 | G73: 1736.463495 | H73: 20.34 | I73: 3472.92699 | J73: 2 | K73: 1766.134259 | L73: 20.34 | O73: 1703.285814
A74: 1 | B74: 1 | C74: 16 | D74: 5 | E74: 2 | F74: 4.166666667 | G74: 2178.583234 | H74: =1818/1000*12 -> 21.816 | I74: 9077.43014 | J74: 5 | K74: 2210.915806 | L74: =1818/1000*12 -> 21.816 | O74: 2168.595147
A75: 1 | B75: 1 | C75: Deputy Minister | G75: 2007.461925 | K75: 2037.990877 | O75: 2007.461925
A76: 1 | B76: 1 | C76: Minister | G76: 2437.657495 | K76: 2474.728748 | O76: 2437.657495
A77: 1 | B77: 1 | C77: Other | D77: 10 | E77: 10 | F77: 10.75 | G77: 77.17966605 | I77: 829.68141 | J77: 9 | K77: 78.33764409 | O77: 259.6159983
A78: 1 | B78: 1 | C78: Other | G78: 259.6159983 | K78: 263.5111904 | O78: 259.6159983
A79: 1 | B79: 1 | C79: Total | D79: =SUM(D59:D78) -> 293 | E79: =SUM(E59:E78) -> 69 | F79: 259.0833333 | G79: =IFERROR(I79/F79,0) -> 611.4375158 | H79: =IFERROR(SUM(H59:H78)/K79,0) -> 0 | I79: =SUM(I59:I78) -> 158413.2697 | J79: =SUM(J59:J78) -> 288 | K79: =IFERROR(#REF!/#REF!,0) -> 0 | L79: =IFERROR(SUM(L59:L78)/#REF!,0) -> 0
A80: 1
A81: 1
A82: 1
A83: 1
A84: =$A$28 -> 1 | C84: =$C$28 -> Local Government Support and Intervention Management
A85: =A$84 -> 1 | D85: Establishment Structure | F85: Previous Financial Year | J85: Medium-term expenditure estimates
A86: 1 | D86: As at 31 March 2022 | F86: =LEFT($D$3,4)-1 & "/" & RIGHT($D$3,2)-1 -> 2021/22
A87: 1 | C87: Salary level | D87: Total number of funded posts | E87: of which: number of funded posts additional to the establishment | F87: FTE Headcount | G87: Unit Costs | H87: of which: Once-off Payments per person | I87: Total Annual Cost | J87: Initial Headcount | K87: Unit Costs | L87: of which: Once-off Payments per person
A88: 1 | B88: 2 | C88: 1 | G88: =IFERROR(IF(I88=0,O88,I88/F88),0) -> 99.95105925 | H88: =1220/1000*12 -> 14.64 | K88: 101.2331598 | L88: =1220/1000*12 -> 14.64 | O88: 99.95105925
A89: 1 | B89: 2 | C89: 2 | G89: =IFERROR(IF(I89=0,O89,I89/F89),0) -> 179.5147433 | H89: =1220/1000*12 -> 14.64 | K89: 183.7650284 | L89: =1220/1000*12 -> 14.64 | O89: 179.5147433
A90: 1 | B90: 2 | C90: 3 | G90: 216.6722944 | H90: =1220/1000*12 -> 14.64 | K90: 221.9791931 | L90: =1220/1000*12 -> 14.64 | O90: 216.6722944
A91: 1 | B91: 2 | C91: 4 | G91: 236.0392102 | H91: =1220/1000*12 -> 14.64 | K91: 241.9499725 | L91: =1220/1000*12 -> 14.64 | O91: 236.0392102
A92: 1 | B92: 2 | C92: 5 | D92: 2 | F92: 2 | G92: 284.596145 | H92: =1220/1000*12 -> 14.64 | I92: 569.19229 | J92: 2 | K92: 290.8212577 | L92: =1220/1000*12 -> 14.64 | O92: 290.5081548
A93: 1 | B93: 2 | C93: 6 | D93: 15 | F93: 15 | G93: 365.0271727 | H93: =1352/1000*12 -> 16.224 | I93: 5475.40759 | J93: 15 | K93: 373.2937127 | L93: =1352/1000*12 -> 16.224 | O93: 341.7085708
A94: 1 | B94: 2 | C94: 7 | D94: 3 | F94: 3.25 | G94: 439.4354677 | H94: =1352/1000*12 -> 16.224 | I94: 1428.16527 | J94: 3 | K94: 448.5197497 | L94: =1352/1000*12 -> 16.224 | O94: 455.5004418
A95: 1 | B95: 2 | C95: 8 | D95: 8 | F95: 8 | G95: 496.7589675 | H95: =1450/1000*12 -> 17.4 | I95: 3974.07174 | J95: 8 | K95: 507.3311363 | L95: =1450/1000*12 -> 17.4 | O95: 520.4674487
A96: 1 | B96: 2 | C96: 9 | D96: 19 | F96: 18.25 | G96: 561.0372455 | H96: =1450/1000*12 -> 17.4 | I96: 10238.92973 | J96: 19 | K96: 573.3901078 | L96: =1450/1000*12 -> 17.4 | O96: 586.4171069
A97: 1 | B97: 2 | C97: 10 | G97: 699.4852566 | H97: =1640/1000*12 -> 19.68 | K97: 712.2308313 | L97: =1640/1000*12 -> 19.68 | O97: 699.4852566
A98: 1 | B98: 2 | C98: 11 | D98: 24 | F98: 23.16666667 | G98: 822.0619399 | H98: =1640/1000*12 -> 19.68 | I98: 19044.43494 | J98: 24 | K98: 837.9467226 | L98: =1640/1000*12 -> 19.68 | O98: 799.6834333
A99: 1 | B99: 2 | C99: 12 | D99: 6 | F99: 5.166666667 | G99: 976.1861439 | H99: =1695/1000*12 -> 20.34 | I99: 5043.62841 | J99: 6 | K99: 993.7667246 | L99: =1695/1000*12 -> 20.34 | O99: 1014.272904
A100: 1 | B100: 2 | C100: 13 | D100: 21 | F100: 22.58333333 | G100: 1260.500642 | H100: =1695/1000*12 -> 20.34 | I100: 28466.30616 | J100: 22 | K100: 1282.687674 | L100: =1695/1000*12 -> 20.34 | O100: 1152.258047
A101: 1 | B101: 2 | C101: 14 | D101: 6 | F101: 6 | G101: 1482.734638 | H101: 20.34 | I101: 8896.40783 | J101: 6 | K101: 1508.597263 | L101: 20.34 | O101: 1409.161406
A102: 1 | B102: 2 | C102: 15 | F102: 0.75 | G102: 2150.902413 | H102: 20.34 | I102: 1613.17681 | K102: 2187.738582 | L102: 20.34 | O102: 1703.285814
A103: 1 | B103: 2 | C103: 16 | G103: 2168.595147 | H103: =1818/1000*12 -> 21.816 | K103: 2200.777986 | L103: =1818/1000*12 -> 21.816 | O103: 2168.595147
A104: 1 | B104: 2 | C104: Other | D104: 6 | E104: 6 | F104: 6 | G104: 74.93353667 | I104: 449.60122 | J104: 6 | K104: 76.05781453 | O104: 2007.461925
A105: 1 | B105: 2 | C105: Other | G105: 2437.657495 | K105: 2474.231298 | O105: 2437.657495
A106: 1 | B106: 2 | C106: Other | G106: 259.6159983 | K106: 263.5111904 | O106: 259.6159983
A107: 1 | B107: 2 | C107: Other | G107: 259.6159983 | K107: 263.5111904 | O107: 259.6159983
A108: 1 | B108: 2 | C108: Total | D108: =SUM(D88:D107) -> 110 | E108: =SUM(E88:E107) -> 6 | F108: 110.1666667 | G108: =IFERROR(I108/F108,0) -> 773.3675218 | H108: =IFERROR(SUM(H88:H107)/K108,0) -> 0 | I108: =SUM(I88:I107) -> 85199.32199 | J108: =SUM(J88:J107) -> 111 | K108: =IFERROR(#REF!/#REF!,0) -> 0 | L108: =IFERROR(SUM(L88:L107)/#REF!,0) -> 0
A109: 1
A110: 1
A111: 1
A112: 1
A113: =$A$29 -> 1 | C113: =$C$29 -> Institutional Development
A114: =A$113 -> 1 | D114: Establishment Structure | F114: Previous Financial Year | J114: Medium-term expenditure estimates
A115: 1 | D115: As at 31 March 2022 | F115: =LEFT($D$3,4)-1 & "/" & RIGHT($D$3,2)-1 -> 2021/22
A116: 1 | C116: Salary level | D116: Total number of funded posts | E116: of which: number of funded posts additional to the establishment | F116: FTE Headcount | G116: Unit Costs | H116: of which: Once-off Payments per person | I116: Total Annual Cost | J116: Initial Headcount | K116: Unit Costs | L116: of which: Once-off Payments per person
A117: 1 | B117: 3 | C117: 1 | G117: =IFERROR(IF(I117=0,O117,I117/F117),0) -> 99.95105925 | H117: =1220/1000*12 -> 14.64 | K117: 101.2331598 | L117: =1220/1000*12 -> 14.64 | O117: 99.95105925
A118: 1 | B118: 3 | C118: 2 | G118: =IFERROR(IF(I118=0,O118,I118/F118),0) -> 179.5147433 | H118: =1220/1000*12 -> 14.64 | K118: 183.7650284 | L118: =1220/1000*12 -> 14.64 | O118: 179.5147433
A119: 1 | B119: 3 | C119: 3 | G119: 216.6722944 | H119: =1220/1000*12 -> 14.64 | K119: 221.9791931 | L119: =1220/1000*12 -> 14.64 | O119: 216.6722944
A120: 1 | B120: 3 | C120: 4 | G120: 236.0392102 | H120: =1220/1000*12 -> 14.64 | K120: 241.9499725 | L120: =1220/1000*12 -> 14.64 | O120: 236.0392102
A121: 1 | B121: 3 | C121: 5 | G121: 290.5081548 | H121: =1220/1000*12 -> 14.64 | K121: 296.8695967 | L121: =1220/1000*12 -> 14.64 | O121: 290.5081548
A122: 1 | B122: 3 | C122: 6 | D122: 11 | F122: 10.66666667 | G122: 362.0744709 | H122: =1352/1000*12 -> 16.224 | I122: 3862.12769 | J122: 11 | K122: 370.2710327 | L122: =1352/1000*12 -> 16.224 | O122: 341.7085708
A123: 1 | B123: 3 | C123: 7 | D123: 2 | F123: 2 | G123: 428.86445 | H123: =1352/1000*12 -> 16.224 | I123: 857.7289 | J123: 2 | K123: 437.7218239 | L123: =1352/1000*12 -> 16.224 | O123: 455.5004418
A124: 1 | B124: 3 | C124: 8 | D124: 1 | F124: 1.833333333 | G124: 533.7200236 | H124: =1450/1000*12 -> 17.4 | I124: 978.48671 | J124: 1 | K124: 545.1073614 | L124: =1450/1000*12 -> 17.4 | O124: 520.4674487
A125: 1 | B125: 3 | C125: 9 | D125: 3 | F125: 4.166666667 | G125: 547.1787264 | H125: =1450/1000*12 -> 17.4 | I125: 2279.91136 | J125: 3 | K125: 559.2166868 | L125: =1450/1000*12 -> 17.4 | O125: 586.4171069
A126: 1 | B126: 3 | C126: 10 | D126: 1 | F126: 0.1666666667 | G126: 1040.33136 | H126: =1640/1000*12 -> 19.68 | I126: 173.38856 | J126: 1 | K126: 1059.467411 | L126: =1640/1000*12 -> 19.68 | O126: 699.4852566
A127: 1 | B127: 3 | C127: 11 | D127: 12 | F127: 11.58333333 | G127: 847.9239919 | H127: =1640/1000*12 -> 19.68 | I127: 9821.78624 | J127: 12 | K127: 864.3207666 | L127: =1640/1000*12 -> 19.68 | O127: 799.6834333
A128: 1 | B128: 3 | C128: 12 | F128: 0.25 | G128: 916.78212 | H128: =1695/1000*12 -> 20.34 | I128: 229.19553 | K128: 933.270101 | L128: =1695/1000*12 -> 20.34 | O128: 1014.272904
A129: 1 | B129: 3 | C129: 13 | D129: 10 | F129: 10.75 | G129: 1201.596945 | H129: =1695/1000*12 -> 20.34 | I129: 12917.16716 | J129: 10 | K129: 1222.730164 | L129: =1695/1000*12 -> 20.34 | O129: 1152.258047
A130: 1 | B130: 3 | C130: 14 | D130: 4 | F130: 4.416666667 | G130: 1475.190297 | H130: 20.34 | I130: 6515.42381 | J130: 4 | K130: 1500.919498 | L130: 20.34 | O130: 1409.161406
A131: 1 | B131: 3 | C131: 15 | G131: 1703.285814 | H131: 20.34 | K131: 1732.382956 | L131: 20.34 | O131: 1703.285814
A132: 1 | B132: 3 | C132: 16 | G132: 2168.595147 | H132: =1818/1000*12 -> 21.816 | K132: 2200.777986 | L132: =1818/1000*12 -> 21.816 | O132: 2168.595147
A133: 1 | B133: 3 | C133: Other | D133: 2 | F133: 2 | G133: 73.11444 | I133: 146.22888 | J133: 2 | K133: 74.21142475 | O133: 2007.461925
A134: 1 | B134: 3 | C134: Other | G134: 2437.657495 | K134: 2474.231298 | O134: 2437.657495
A135: 1 | B135: 3 | C135: Other | G135: 259.6159983 | K135: 263.5111904 | O135: 259.6159983
A136: 1 | B136: 3 | C136: Other | G136: 259.6159983 | K136: 263.5111904 | O136: 259.6159983
A137: 1 | B137: 3 | C137: Total | D137: =SUM(D117:D136) -> 46 | E137: =SUM(E117:E136) -> 0 | F137: 47.83333333 | G137: =IFERROR(I137/F137,0) -> 789.8559897 | H137: =IFERROR(SUM(H117:H136)/K137,0) -> 0 | I137: =SUM(I117:I136) -> 37781.44484 | J137: =SUM(J117:J136) -> 46 | K137: =IFERROR(#REF!/#REF!,0) -> 0 | L137: =IFERROR(SUM(L117:L136)/#REF!,0) -> 0
A138: 1
A139: 1
A140: 1
A141: 1
A142: =$A$30 -> 1 | C142: =$C$30 -> National Disaster Management Centre
A143: =A$142 -> 1 | D143: Establishment Structure | F143: Previous Financial Year | J143: Medium-term expenditure estimates
A144: 1 | D144: As at 31 March 2022 | F144: =LEFT($D$3,4)-1 & "/" & RIGHT($D$3,2)-1 -> 2021/22
A145: 1 | C145: Salary level | D145: Total number of funded posts | E145: of which: number of funded posts additional to the establishment | F145: FTE Headcount | G145: Unit Costs | H145: of which: Once-off Payments per person | I145: Total Annual Cost | J145: Initial Headcount | K145: Unit Costs | L145: of which: Once-off Payments per person
A146: 1 | B146: 4 | C146: 1 | G146: =IFERROR(IF(I146=0,O146,I146/F146),0) -> 99.95105925 | H146: =1220/1000*12 -> 14.64 | K146: 101.2331598 | L146: =1220/1000*12 -> 14.64 | O146: 99.95105925
A147: 1 | B147: 4 | C147: 2 | G147: =IFERROR(IF(I147=0,O147,I147/F147),0) -> 179.5147433 | H147: =1220/1000*12 -> 14.64 | K147: 183.7650284 | L147: =1220/1000*12 -> 14.64 | O147: 179.5147433
A148: 1 | B148: 4 | C148: 3 | G148: 216.6722944 | H148: =1220/1000*12 -> 14.64 | K148: 221.9791931 | L148: =1220/1000*12 -> 14.64 | O148: 216.6722944
A149: 1 | B149: 4 | C149: 4 | G149: 236.0392102 | H149: =1220/1000*12 -> 14.64 | K149: 241.9499725 | L149: =1220/1000*12 -> 14.64 | O149: 236.0392102
A150: 1 | B150: 4 | C150: 5 | G150: 290.5081548 | H150: =1220/1000*12 -> 14.64 | K150: 296.8695967 | L150: =1220/1000*12 -> 14.64 | O150: 290.5081548
A151: 1 | B151: 4 | C151: 6 | D151: 3 | F151: 3 | G151: 368.7659867 | H151: =1352/1000*12 -> 16.224 | I151: 1106.29796 | J151: 3 | K151: 377.1211355 | L151: =1352/1000*12 -> 16.224 | O151: 341.7085708
A152: 1 | B152: 4 | C152: 7 | D152: 3 | F152: 3 | G152: 379.4310867 | H152: =1352/1000*12 -> 16.224 | I152: 1138.29326 | J152: 3 | K152: 387.2273678 | L152: =1352/1000*12 -> 16.224 | O152: 455.5004418
A153: 1 | B153: 4 | C153: 8 | D153: 2 | F153: 2 | G153: 516.25675 | H153: =1450/1000*12 -> 17.4 | I153: 1032.5135 | J153: 2 | K153: 527.2589386 | L153: =1450/1000*12 -> 17.4 | O153: 520.4674487
A154: 1 | B154: 4 | C154: 9 | D154: 4 | F154: 2.75 | G154: 489.7429309 | H154: =1450/1000*12 -> 17.4 | I154: 1346.79306 | J154: 4 | K154: 500.4757996 | L154: =1450/1000*12 -> 17.4 | O154: 586.4171069
A155: 1 | B155: 4 | C155: 10 | G155: 699.4852566 | H155: =1640/1000*12 -> 19.68 | K155: 712.2308313 | L155: =1640/1000*12 -> 19.68 | O155: 699.4852566
A156: 1 | B156: 4 | C156: 11 | D156: 8 | F156: 7.583333333 | G156: 774.8746787 | H156: =1640/1000*12 -> 19.68 | I156: 5876.13298 | J156: 8 | K156: 789.8252936 | L156: =1640/1000*12 -> 19.68 | O156: 799.6834333
A157: 1 | B157: 4 | C157: 12 | D157: 2 | F157: 2 | G157: 1157.857885 | H157: =1695/1000*12 -> 20.34 | I157: 2315.71577 | J157: 2 | K157: 1178.779898 | L157: =1695/1000*12 -> 20.34 | O157: 1014.272904
A158: 1 | B158: 4 | C158: 13 | D158: 5 | F158: 5.916666667 | G158: 1210.752233 | H158: =1695/1000*12 -> 20.34 | I158: 7163.61738 | J158: 5 | K158: 1232.049244 | L158: =1695/1000*12 -> 20.34 | O158: 1152.258047
A159: 1 | B159: 4 | C159: 14 | D159: 1 | F159: 1.916666667 | G159: 1488.406664 | H159: 20.34 | I159: 2852.77944 | J159: 1 | K159: 1514.369599 | L159: 20.34 | O159: 1409.161406
A160: 1 | B160: 4 | C160: 15 | D160: 1 | F160: 1 | G160: 1953.86776 | H160: 20.34 | I160: 1953.86776 | J160: 1 | K160: 1987.297316 | L160: 20.34 | O160: 1703.285814
A161: 1 | B161: 4 | C161: 16 | G161: 2168.595147 | H161: =1818/1000*12 -> 21.816 | K161: 2200.777986 | L161: =1818/1000*12 -> 21.816 | O161: 2168.595147
A162: 1 | B162: 4 | C162: Other | D162: 1 | E162: 1 | F162: 2 | G162: 73.11444 | I162: 146.22888 | J162: 1 | K162: 74.21142475 | O162: 2007.461925
A163: 1 | B163: 4 | C163: Other | G163: 2437.657495 | K163: 2474.231298 | O163: 2437.657495
A164: 1 | B164: 4 | C164: Other | G164: 259.6159983 | K164: 263.5111904 | O164: 259.6159983
A165: 1 | B165: 4 | C165: Other | G165: 259.6159983 | K165: 263.5111904 | O165: 259.6159983
A166: 1 | B166: 4 | C166: Total | D166: =SUM(D146:D165) -> 30 | E166: =SUM(E146:E165) -> 1 | F166: 31.16666667 | G166: =IFERROR(I166/F166,0) -> 799.9649195 | H166: =IFERROR(SUM(H146:H165)/K166,0) -> 0 | I166: =SUM(I146:I165) -> 24932.23999 | J166: =SUM(J146:J165) -> 30 | K166: =IFERROR(#REF!/#REF!,0) -> 0 | L166: =IFERROR(SUM(L146:L165)/#REF!,0) -> 0
A167: 1
A168: 1
A169: 1
A170: 1
A171: =$A$31 -> 1 | C171: =$C$31 -> Community Work Programme
A172: =A$171 -> 1 | D172: Establishment Structure | F172: Previous Financial Year | J172: Medium-term expenditure estimates
A173: 1 | D173: As at 31 March 2022 | F173: =LEFT($D$3,4)-1 & "/" & RIGHT($D$3,2)-1 -> 2021/22
A174: 1 | C174: Salary level | D174: Total number of funded posts | E174: of which: number of funded posts additional to the establishment | F174: FTE Headcount | G174: Unit Costs | H174: of which: Once-off Payments per person | I174: Total Annual Cost | J174: Initial Headcount | K174: Unit Costs | L174: of which: Once-off Payments per person
A175: 1 | B175: 5 | C175: 1 | G175: =IFERROR(IF(I175=0,O175,I175/F175),0) -> 99.95105925 | H175: =1220/1000*12 -> 14.64 | K175: 101.2331598 | L175: =1220/1000*12 -> 14.64 | O175: 99.95105925
A176: 1 | B176: 5 | C176: 2 | G176: =IFERROR(IF(I176=0,O176,I176/F176),0) -> 179.5147433 | H176: =1220/1000*12 -> 14.64 | K176: 183.7650284 | L176: =1220/1000*12 -> 14.64 | O176: 179.5147433
A177: 1 | B177: 5 | C177: 3 | G177: 216.6722944 | H177: =1220/1000*12 -> 14.64 | K177: 221.9791931 | L177: =1220/1000*12 -> 14.64 | O177: 216.6722944
A178: 1 | B178: 5 | C178: 4 | G178: 236.0392102 | H178: =1220/1000*12 -> 14.64 | K178: 241.9499725 | L178: =1220/1000*12 -> 14.64 | O178: 236.0392102
A179: 1 | B179: 5 | C179: 5 | D179: 7 | F179: 7.333333333 | G179: 338.0292805 | H179: =1220/1000*12 -> 14.64 | I179: 2478.88139 | J179: 7 | K179: 345.4865462 | L179: =1220/1000*12 -> 14.64 | O179: 290.5081548
A180: 1 | B180: 5 | C180: 6 | D180: 1 | F180: 1 | G180: 366.17544 | H180: =1352/1000*12 -> 16.224 | I180: 366.17544 | J180: 1 | K180: 374.4691936 | L180: =1352/1000*12 -> 16.224 | O180: 341.7085708
A181: 1 | B181: 5 | C181: 7 | G181: 455.5004418 | H181: =1352/1000*12 -> 16.224 | K181: 464.9295602 | L181: =1352/1000*12 -> 16.224 | O181: 455.5004418
A182: 1 | B182: 5 | C182: 8 | D182: 9 | E182: 2 | F182: 9 | G182: 536.6257222 | H182: =1450/1000*12 -> 17.4 | I182: 4829.6315 | J182: 9 | K182: 548.0771446 | L182: =1450/1000*12 -> 17.4 | O182: 520.4674487
A183: 1 | B183: 5 | C183: 9 | D183: 2 | F183: 2 | G183: 606.32237 | H183: =1450/1000*12 -> 17.4 | I183: 1212.64474 | J183: 2 | K183: 619.7042289 | L183: =1450/1000*12 -> 17.4 | O183: 586.4171069
A184: 1 | B184: 5 | C184: 10 | G184: 699.4852566 | H184: =1640/1000*12 -> 19.68 | K184: 712.2308313 | L184: =1640/1000*12 -> 19.68 | O184: 699.4852566
A185: 1 | B185: 5 | C185: 11 | D185: 3 | E185: 1 | F185: 3.5 | G185: 790.7474029 | H185: =1640/1000*12 -> 19.68 | I185: 2767.61591 | J185: 3 | K185: 806.0122507 | L185: =1640/1000*12 -> 19.68 | O185: 799.6834333
A186: 1 | B186: 5 | C186: 12 | G186: 1014.272904 | H186: =1695/1000*12 -> 20.34 | K186: 1032.554003 | L186: =1695/1000*12 -> 20.34 | O186: 1014.272904
A187: 1 | B187: 5 | C187: 13 | D187: 10 | F187: 10 | G187: 1252.512281 | H187: =1695/1000*12 -> 20.34 | I187: 12525.12281 | J187: 10 | K187: 1274.556398 | L187: =1695/1000*12 -> 20.34 | O187: 1152.258047
A188: 1 | B188: 5 | C188: 14 | D188: 5 | E188: 1 | F188: 5 | G188: 1418.097818 | H188: 20.34 | I188: 7090.48909 | J188: 5 | K188: 1442.817332 | L188: 20.34 | O188: 1409.161406
A189: 1 | B189: 5 | C189: 15 | G189: 1703.285814 | H189: 20.34 | K189: 1732.382956 | L189: 20.34 | O189: 1703.285814
A190: 1 | B190: 5 | C190: 16 | G190: 2168.595147 | H190: =1818/1000*12 -> 21.816 | K190: 2200.777986 | L190: =1818/1000*12 -> 21.816 | O190: 2168.595147
A191: 1 | B191: 5 | C191: Other | D191: 2 | F191: 2 | G191: 90.408255 | I191: 180.81651 | J191: 2 | K191: 91.7647104 | O191: 2007.461925
A192: 1 | B192: 5 | C192: Other | G192: 2437.657495 | K192: 2474.231298 | O192: 2437.657495
A193: 1 | B193: 5 | C193: Other | G193: 259.6159983 | K193: 263.5111904 | O193: 259.6159983
A194: 1 | B194: 5 | C194: Other | G194: 259.6159983 | K194: 263.5111904 | O194: 259.6159983
A195: 1 | B195: 5 | C195: Total | D195: =SUM(D175:D194) -> 39 | E195: =SUM(E175:E194) -> 4 | F195: 39.83333333 | G195: =IFERROR(I195/F195,0) -> 789.5743278 | H195: =IFERROR(SUM(H175:H194)/K195,0) -> 0 | I195: =SUM(I175:I194) -> 31451.37739 | J195: =SUM(J175:J194) -> 39 | K195: =IFERROR(#REF!/#REF!,0) -> 0 | L195: =IFERROR(SUM(L175:L194)/#REF!,0) -> 0
A196: 1
A197: 1
A198: 1
A199: 1
A200: =$A$32 -> 0 | C200: =$C$32 -> 0
... 314 more rows

Sheet 4 (hidden)
A1: Filter | C1: HUMAN RESOURCE BUDGET PLAN | K1: 1
A2: 1
A3: 1 | C3: Financial Year: | D3: 2022/23
A4: 1 | C4: Sphere of Government: | D4: National
A5: 1 | C5: Name of Department: | D5: =Options!H44 -> Vote 04: Government Communication and Information System
A6: -14
A7: -13
A8: -12
A9: -11
A10: -10
A11: -9
A12: -8
A13: -7
A14: -6
A15: -5
A16: -4
A17: -3
A18: -2
A19: -1
A20: 0
A21: 1
A22: 1 | C22: Department Summary Details
A23: 1
A24: 1 | D24: Establishment Structure | F24: Previous Financial Year | J24: Medium-term expenditure estimates
A25: 1 | D25: As at 31 March 2022 | F25: =LEFT($D$3,4)-1 & "/" & RIGHT($D$3,2)-1 -> 2021/22
A26: 1 | C26: Programmes | D26: Total number of funded posts | E26: of which: number of funded posts additional to the establishment | F26: FTE Headcount | G26: Unit Costs | H26: of which: Once-off Payments per person | I26: Total Annual Cost | J26: Initial Headcount | K26: Unit Costs | L26: of which: Once-off Payments per person
A27: 1 | B27: =IF(LEN(C27)>2,ROW()-26,"") -> 1 | C27: Administration | D27: =IF($C27="",0,OFFSET($C55,MATCH($C27,$C$55:$C$514,0)+24-SUM($A$27:$A27),COLUMN(D$1)-3)) -> 153 | E27: =IF($C27="",0,OFFSET($C55,MATCH($C27,$C$55:$C$514,0)+24-SUM($A$27:$A27),COLUMN(E$1)-3)) -> 13 | F27: =IF($C27="",0,OFFSET($C55,MATCH($C27,$C$55:$C$514,0)+24-SUM($A$27:$A27),COLUMN(F$1)-3)) -> 154.0833333 | G27: =IF($C27="",0,OFFSET($C55,MATCH($C27,$C$55:$C$514,0)+24-SUM($A$27:$A27),COLUMN(G$1)-3)) -> 516.3874429 | H27: =IF($C27="",0,OFFSET($C55,MATCH($C27,$C$55:$C$514,0)+24-SUM($A$27:$A27),COLUMN(H$1)-3)) -> 0 | I27: =IF($C27="",0,OFFSET($C55,MATCH($C27,$C$55:$C$514,0)+24-SUM($A$27:$A27),COLUMN(I$1)-3)) -> 79566.6985 | J27: =IF($C27="",0,OFFSET($C55,MATCH($C27,$C$55:$C$514,0)+24-SUM($A$27:$A27),COLUMN(J$1)-3)) -> 155 | K27: =IF($C27="",0,OFFSET($C55,MATCH($C27,$C$55:$C$514,0)+24-SUM($A$27:$A27),COLUMN(K$1)-3)) -> 0 | L27: =IF($C27="",0,OFFSET($C55,MATCH($C27,$C$55:$C$514,0)+24-SUM($A$27:$A27),COLUMN(L$1)-3)) -> 0
A28: =IF(LEN(C28)>1,1,0) -> 1 | B28: 2 | C28: Content Processing and Dissemination | D28: =IF($C28="",0,OFFSET($C56,MATCH($C28,$C$55:$C$514,0)+24-SUM($A$27:$A28),COLUMN(D$1)-3)) -> 97 | E28: =IF($C28="",0,OFFSET($C56,MATCH($C28,$C$55:$C$514,0)+24-SUM($A$27:$A28),COLUMN(E$1)-3)) -> 9 | F28: =IF($C28="",0,OFFSET($C56,MATCH($C28,$C$55:$C$514,0)+24-SUM($A$27:$A28),COLUMN(F$1)-3)) -> 104.0833333 | G28: =IF($C28="",0,OFFSET($C56,MATCH($C28,$C$55:$C$514,0)+24-SUM($A$27:$A28),COLUMN(G$1)-3)) -> 631.6995667 | H28: =IF($C28="",0,OFFSET($C56,MATCH($C28,$C$55:$C$514,0)+24-SUM($A$27:$A28),COLUMN(H$1)-3)) -> 0 | I28: =IF($C28="",0,OFFSET($C56,MATCH($C28,$C$55:$C$514,0)+24-SUM($A$27:$A28),COLUMN(I$1)-3)) -> 65749.39657 | J28: =IF($C28="",0,OFFSET($C56,MATCH($C28,$C$55:$C$514,0)+24-SUM($A$27:$A28),COLUMN(J$1)-3)) -> 102 | K28: =IF($C28="",0,OFFSET($C56,MATCH($C28,$C$55:$C$514,0)+24-SUM($A$27:$A28),COLUMN(K$1)-3)) -> 0 | L28: =IF($C28="",0,OFFSET($C56,MATCH($C28,$C$55:$C$514,0)+24-SUM($A$27:$A28),COLUMN(L$1)-3)) -> 0
A29: 1 | B29: 3 | C29: Intergovernmental Coordination and Stakeholder Management | D29: =IF($C29="",0,OFFSET($C57,MATCH($C29,$C$55:$C$514,0)+24-SUM($A$27:$A29),COLUMN(D$1)-3)) -> 232 | E29: =IF($C29="",0,OFFSET($C57,MATCH($C29,$C$55:$C$514,0)+24-SUM($A$27:$A29),COLUMN(E$1)-3)) -> 18 | F29: =IF($C29="",0,OFFSET($C57,MATCH($C29,$C$55:$C$514,0)+24-SUM($A$27:$A29),COLUMN(F$1)-3)) -> 236.6666667 | G29: =IF($C29="",0,OFFSET($C57,MATCH($C29,$C$55:$C$514,0)+24-SUM($A$27:$A29),COLUMN(G$1)-3)) -> 581.4110705 | H29: =IF($C29="",0,OFFSET($C57,MATCH($C29,$C$55:$C$514,0)+24-SUM($A$27:$A29),COLUMN(H$1)-3)) -> 0 | I29: =IF($C29="",0,OFFSET($C57,MATCH($C29,$C$55:$C$514,0)+24-SUM($A$27:$A29),COLUMN(I$1)-3)) -> 137600.62 | J29: =IF($C29="",0,OFFSET($C57,MATCH($C29,$C$55:$C$514,0)+24-SUM($A$27:$A29),COLUMN(J$1)-3)) -> 258 | K29: =IF($C29="",0,OFFSET($C57,MATCH($C29,$C$55:$C$514,0)+24-SUM($A$27:$A29),COLUMN(K$1)-3)) -> 0 | L29: =IF($C29="",0,OFFSET($C57,MATCH($C29,$C$55:$C$514,0)+24-SUM($A$27:$A29),COLUMN(L$1)-3)) -> 0
A30: 0 | D30: =IF($C30="",0,OFFSET($C58,MATCH($C30,$C$55:$C$514,0)+24-SUM($A$27:$A30),COLUMN(D$1)-3)) -> 0 | E30: =IF($C30="",0,OFFSET($C58,MATCH($C30,$C$55:$C$514,0)+24-SUM($A$27:$A30),COLUMN(E$1)-3)) -> 0 | F30: =IF($C30="",0,OFFSET($C58,MATCH($C30,$C$55:$C$514,0)+24-SUM($A$27:$A30),COLUMN(F$1)-3)) -> 0 | G30: =IF($C30="",0,OFFSET($C58,MATCH($C30,$C$55:$C$514,0)+24-SUM($A$27:$A30),COLUMN(G$1)-3)) -> 0 | H30: =IF($C30="",0,OFFSET($C58,MATCH($C30,$C$55:$C$514,0)+24-SUM($A$27:$A30),COLUMN(H$1)-3)) -> 0 | I30: =IF($C30="",0,OFFSET($C58,MATCH($C30,$C$55:$C$514,0)+24-SUM($A$27:$A30),COLUMN(I$1)-3)) -> 0 | J30: =IF($C30="",0,OFFSET($C58,MATCH($C30,$C$55:$C$514,0)+24-SUM($A$27:$A30),COLUMN(J$1)-3)) -> 0 | K30: =IF($C30="",0,OFFSET($C58,MATCH($C30,$C$55:$C$514,0)+24-SUM($A$27:$A30),COLUMN(K$1)-3)) -> 0 | L30: =IF($C30="",0,OFFSET($C58,MATCH($C30,$C$55:$C$514,0)+24-SUM($A$27:$A30),COLUMN(L$1)-3)) -> 0
A31: 0 | D31: =IF($C31="",0,OFFSET($C59,MATCH($C31,$C$55:$C$514,0)+24-SUM($A$27:$A31),COLUMN(D$1)-3)) -> 0 | E31: =IF($C31="",0,OFFSET($C59,MATCH($C31,$C$55:$C$514,0)+24-SUM($A$27:$A31),COLUMN(E$1)-3)) -> 0 | F31: =IF($C31="",0,OFFSET($C59,MATCH($C31,$C$55:$C$514,0)+24-SUM($A$27:$A31),COLUMN(F$1)-3)) -> 0 | G31: =IF($C31="",0,OFFSET($C59,MATCH($C31,$C$55:$C$514,0)+24-SUM($A$27:$A31),COLUMN(G$1)-3)) -> 0 | H31: =IF($C31="",0,OFFSET($C59,MATCH($C31,$C$55:$C$514,0)+24-SUM($A$27:$A31),COLUMN(H$1)-3)) -> 0 | I31: =IF($C31="",0,OFFSET($C59,MATCH($C31,$C$55:$C$514,0)+24-SUM($A$27:$A31),COLUMN(I$1)-3)) -> 0 | J31: =IF($C31="",0,OFFSET($C59,MATCH($C31,$C$55:$C$514,0)+24-SUM($A$27:$A31),COLUMN(J$1)-3)) -> 0 | K31: =IF($C31="",0,OFFSET($C59,MATCH($C31,$C$55:$C$514,0)+24-SUM($A$27:$A31),COLUMN(K$1)-3)) -> 0 | L31: =IF($C31="",0,OFFSET($C59,MATCH($C31,$C$55:$C$514,0)+24-SUM($A$27:$A31),COLUMN(L$1)-3)) -> 0
A32: 0 | D32: =IF($C32="",0,OFFSET($C60,MATCH($C32,$C$55:$C$514,0)+24-SUM($A$27:$A32),COLUMN(D$1)-3)) -> 0 | E32: =IF($C32="",0,OFFSET($C60,MATCH($C32,$C$55:$C$514,0)+24-SUM($A$27:$A32),COLUMN(E$1)-3)) -> 0 | F32: =IF($C32="",0,OFFSET($C60,MATCH($C32,$C$55:$C$514,0)+24-SUM($A$27:$A32),COLUMN(F$1)-3)) -> 0 | G32: =IF($C32="",0,OFFSET($C60,MATCH($C32,$C$55:$C$514,0)+24-SUM($A$27:$A32),COLUMN(G$1)-3)) -> 0 | H32: =IF($C32="",0,OFFSET($C60,MATCH($C32,$C$55:$C$514,0)+24-SUM($A$27:$A32),COLUMN(H$1)-3)) -> 0 | I32: =IF($C32="",0,OFFSET($C60,MATCH($C32,$C$55:$C$514,0)+24-SUM($A$27:$A32),COLUMN(I$1)-3)) -> 0 | J32: =IF($C32="",0,OFFSET($C60,MATCH($C32,$C$55:$C$514,0)+24-SUM($A$27:$A32),COLUMN(J$1)-3)) -> 0 | K32: =IF($C32="",0,OFFSET($C60,MATCH($C32,$C$55:$C$514,0)+24-SUM($A$27:$A32),COLUMN(K$1)-3)) -> 0 | L32: =IF($C32="",0,OFFSET($C60,MATCH($C32,$C$55:$C$514,0)+24-SUM($A$27:$A32),COLUMN(L$1)-3)) -> 0
A33: 0 | D33: =IF($C33="",0,OFFSET($C61,MATCH($C33,$C$55:$C$514,0)+24-SUM($A$27:$A33),COLUMN(D$1)-3)) -> 0 | E33: =IF($C33="",0,OFFSET($C61,MATCH($C33,$C$55:$C$514,0)+24-SUM($A$27:$A33),COLUMN(E$1)-3)) -> 0 | F33: =IF($C33="",0,OFFSET($C61,MATCH($C33,$C$55:$C$514,0)+24-SUM($A$27:$A33),COLUMN(F$1)-3)) -> 0 | G33: =IF($C33="",0,OFFSET($C61,MATCH($C33,$C$55:$C$514,0)+24-SUM($A$27:$A33),COLUMN(G$1)-3)) -> 0 | H33: =IF($C33="",0,OFFSET($C61,MATCH($C33,$C$55:$C$514,0)+24-SUM($A$27:$A33),COLUMN(H$1)-3)) -> 0 | I33: =IF($C33="",0,OFFSET($C61,MATCH($C33,$C$55:$C$514,0)+24-SUM($A$27:$A33),COLUMN(I$1)-3)) -> 0 | J33: =IF($C33="",0,OFFSET($C61,MATCH($C33,$C$55:$C$514,0)+24-SUM($A$27:$A33),COLUMN(J$1)-3)) -> 0 | K33: =IF($C33="",0,OFFSET($C61,MATCH($C33,$C$55:$C$514,0)+24-SUM($A$27:$A33),COLUMN(K$1)-3)) -> 0 | L33: =IF($C33="",0,OFFSET($C61,MATCH($C33,$C$55:$C$514,0)+24-SUM($A$27:$A33),COLUMN(L$1)-3)) -> 0
A34: 0 | D34: =IF($C34="",0,OFFSET($C62,MATCH($C34,$C$55:$C$514,0)+24-SUM($A$27:$A34),COLUMN(D$1)-3)) -> 0 | E34: =IF($C34="",0,OFFSET($C62,MATCH($C34,$C$55:$C$514,0)+24-SUM($A$27:$A34),COLUMN(E$1)-3)) -> 0 | F34: =IF($C34="",0,OFFSET($C62,MATCH($C34,$C$55:$C$514,0)+24-SUM($A$27:$A34),COLUMN(F$1)-3)) -> 0 | G34: =IF($C34="",0,OFFSET($C62,MATCH($C34,$C$55:$C$514,0)+24-SUM($A$27:$A34),COLUMN(G$1)-3)) -> 0 | H34: =IF($C34="",0,OFFSET($C62,MATCH($C34,$C$55:$C$514,0)+24-SUM($A$27:$A34),COLUMN(H$1)-3)) -> 0 | I34: =IF($C34="",0,OFFSET($C62,MATCH($C34,$C$55:$C$514,0)+24-SUM($A$27:$A34),COLUMN(I$1)-3)) -> 0 | J34: =IF($C34="",0,OFFSET($C62,MATCH($C34,$C$55:$C$514,0)+24-SUM($A$27:$A34),COLUMN(J$1)-3)) -> 0 | K34: =IF($C34="",0,OFFSET($C62,MATCH($C34,$C$55:$C$514,0)+24-SUM($A$27:$A34),COLUMN(K$1)-3)) -> 0 | L34: =IF($C34="",0,OFFSET($C62,MATCH($C34,$C$55:$C$514,0)+24-SUM($A$27:$A34),COLUMN(L$1)-3)) -> 0
A35: 0 | D35: =IF($C35="",0,OFFSET($C63,MATCH($C35,$C$55:$C$514,0)+24-SUM($A$27:$A35),COLUMN(D$1)-3)) -> 0 | E35: =IF($C35="",0,OFFSET($C63,MATCH($C35,$C$55:$C$514,0)+24-SUM($A$27:$A35),COLUMN(E$1)-3)) -> 0 | F35: =IF($C35="",0,OFFSET($C63,MATCH($C35,$C$55:$C$514,0)+24-SUM($A$27:$A35),COLUMN(F$1)-3)) -> 0 | G35: =IF($C35="",0,OFFSET($C63,MATCH($C35,$C$55:$C$514,0)+24-SUM($A$27:$A35),COLUMN(G$1)-3)) -> 0 | H35: =IF($C35="",0,OFFSET($C63,MATCH($C35,$C$55:$C$514,0)+24-SUM($A$27:$A35),COLUMN(H$1)-3)) -> 0 | I35: =IF($C35="",0,OFFSET($C63,MATCH($C35,$C$55:$C$514,0)+24-SUM($A$27:$A35),COLUMN(I$1)-3)) -> 0 | J35: =IF($C35="",0,OFFSET($C63,MATCH($C35,$C$55:$C$514,0)+24-SUM($A$27:$A35),COLUMN(J$1)-3)) -> 0 | K35: =IF($C35="",0,OFFSET($C63,MATCH($C35,$C$55:$C$514,0)+24-SUM($A$27:$A35),COLUMN(K$1)-3)) -> 0 | L35: =IF($C35="",0,OFFSET($C63,MATCH($C35,$C$55:$C$514,0)+24-SUM($A$27:$A35),COLUMN(L$1)-3)) -> 0
A36: 0 | D36: =IF($C36="",0,OFFSET($C64,MATCH($C36,$C$55:$C$514,0)+24-SUM($A$27:$A36),COLUMN(D$1)-3)) -> 0 | E36: =IF($C36="",0,OFFSET($C64,MATCH($C36,$C$55:$C$514,0)+24-SUM($A$27:$A36),COLUMN(E$1)-3)) -> 0 | F36: =IF($C36="",0,OFFSET($C64,MATCH($C36,$C$55:$C$514,0)+24-SUM($A$27:$A36),COLUMN(F$1)-3)) -> 0 | G36: =IF($C36="",0,OFFSET($C64,MATCH($C36,$C$55:$C$514,0)+24-SUM($A$27:$A36),COLUMN(G$1)-3)) -> 0 | H36: =IF($C36="",0,OFFSET($C64,MATCH($C36,$C$55:$C$514,0)+24-SUM($A$27:$A36),COLUMN(H$1)-3)) -> 0 | I36: =IF($C36="",0,OFFSET($C64,MATCH($C36,$C$55:$C$514,0)+24-SUM($A$27:$A36),COLUMN(I$1)-3)) -> 0 | J36: =IF($C36="",0,OFFSET($C64,MATCH($C36,$C$55:$C$514,0)+24-SUM($A$27:$A36),COLUMN(J$1)-3)) -> 0 | K36: =IF($C36="",0,OFFSET($C64,MATCH($C36,$C$55:$C$514,0)+24-SUM($A$27:$A36),COLUMN(K$1)-3)) -> 0 | L36: =IF($C36="",0,OFFSET($C64,MATCH($C36,$C$55:$C$514,0)+24-SUM($A$27:$A36),COLUMN(L$1)-3)) -> 0
A37: 0 | D37: =IF($C37="",0,OFFSET($C65,MATCH($C37,$C$55:$C$514,0)+24-SUM($A$27:$A37),COLUMN(D$1)-3)) -> 0 | E37: =IF($C37="",0,OFFSET($C65,MATCH($C37,$C$55:$C$514,0)+24-SUM($A$27:$A37),COLUMN(E$1)-3)) -> 0 | F37: =IF($C37="",0,OFFSET($C65,MATCH($C37,$C$55:$C$514,0)+24-SUM($A$27:$A37),COLUMN(F$1)-3)) -> 0 | G37: =IF($C37="",0,OFFSET($C65,MATCH($C37,$C$55:$C$514,0)+24-SUM($A$27:$A37),COLUMN(G$1)-3)) -> 0 | H37: =IF($C37="",0,OFFSET($C65,MATCH($C37,$C$55:$C$514,0)+24-SUM($A$27:$A37),COLUMN(H$1)-3)) -> 0 | I37: =IF($C37="",0,OFFSET($C65,MATCH($C37,$C$55:$C$514,0)+24-SUM($A$27:$A37),COLUMN(I$1)-3)) -> 0 | J37: =IF($C37="",0,OFFSET($C65,MATCH($C37,$C$55:$C$514,0)+24-SUM($A$27:$A37),COLUMN(J$1)-3)) -> 0 | K37: =IF($C37="",0,OFFSET($C65,MATCH($C37,$C$55:$C$514,0)+24-SUM($A$27:$A37),COLUMN(K$1)-3)) -> 0 | L37: =IF($C37="",0,OFFSET($C65,MATCH($C37,$C$55:$C$514,0)+24-SUM($A$27:$A37),COLUMN(L$1)-3)) -> 0
A38: 0 | D38: =IF($C38="",0,OFFSET($C66,MATCH($C38,$C$55:$C$514,0)+24-SUM($A$27:$A38),COLUMN(D$1)-3)) -> 0 | E38: =IF($C38="",0,OFFSET($C66,MATCH($C38,$C$55:$C$514,0)+24-SUM($A$27:$A38),COLUMN(E$1)-3)) -> 0 | F38: =IF($C38="",0,OFFSET($C66,MATCH($C38,$C$55:$C$514,0)+24-SUM($A$27:$A38),COLUMN(F$1)-3)) -> 0 | G38: =IF($C38="",0,OFFSET($C66,MATCH($C38,$C$55:$C$514,0)+24-SUM($A$27:$A38),COLUMN(G$1)-3)) -> 0 | H38: =IF($C38="",0,OFFSET($C66,MATCH($C38,$C$55:$C$514,0)+24-SUM($A$27:$A38),COLUMN(H$1)-3)) -> 0 | I38: =IF($C38="",0,OFFSET($C66,MATCH($C38,$C$55:$C$514,0)+24-SUM($A$27:$A38),COLUMN(I$1)-3)) -> 0 | J38: =IF($C38="",0,OFFSET($C66,MATCH($C38,$C$55:$C$514,0)+24-SUM($A$27:$A38),COLUMN(J$1)-3)) -> 0 | K38: =IF($C38="",0,OFFSET($C66,MATCH($C38,$C$55:$C$514,0)+24-SUM($A$27:$A38),COLUMN(K$1)-3)) -> 0 | L38: =IF($C38="",0,OFFSET($C66,MATCH($C38,$C$55:$C$514,0)+24-SUM($A$27:$A38),COLUMN(L$1)-3)) -> 0
A39: 0 | D39: =IF($C39="",0,OFFSET($C67,MATCH($C39,$C$55:$C$514,0)+24-SUM($A$27:$A39),COLUMN(D$1)-3)) -> 0 | E39: =IF($C39="",0,OFFSET($C67,MATCH($C39,$C$55:$C$514,0)+24-SUM($A$27:$A39),COLUMN(E$1)-3)) -> 0 | F39: =IF($C39="",0,OFFSET($C67,MATCH($C39,$C$55:$C$514,0)+24-SUM($A$27:$A39),COLUMN(F$1)-3)) -> 0 | G39: =IF($C39="",0,OFFSET($C67,MATCH($C39,$C$55:$C$514,0)+24-SUM($A$27:$A39),COLUMN(G$1)-3)) -> 0 | H39: =IF($C39="",0,OFFSET($C67,MATCH($C39,$C$55:$C$514,0)+24-SUM($A$27:$A39),COLUMN(H$1)-3)) -> 0 | I39: =IF($C39="",0,OFFSET($C67,MATCH($C39,$C$55:$C$514,0)+24-SUM($A$27:$A39),COLUMN(I$1)-3)) -> 0 | J39: =IF($C39="",0,OFFSET($C67,MATCH($C39,$C$55:$C$514,0)+24-SUM($A$27:$A39),COLUMN(J$1)-3)) -> 0 | K39: =IF($C39="",0,OFFSET($C67,MATCH($C39,$C$55:$C$514,0)+24-SUM($A$27:$A39),COLUMN(K$1)-3)) -> 0 | L39: =IF($C39="",0,OFFSET($C67,MATCH($C39,$C$55:$C$514,0)+24-SUM($A$27:$A39),COLUMN(L$1)-3)) -> 0
A40: 0 | D40: =IF($C40="",0,OFFSET($C68,MATCH($C40,$C$55:$C$514,0)+24-SUM($A$27:$A40),COLUMN(D$1)-3)) -> 0 | E40: =IF($C40="",0,OFFSET($C68,MATCH($C40,$C$55:$C$514,0)+24-SUM($A$27:$A40),COLUMN(E$1)-3)) -> 0 | F40: =IF($C40="",0,OFFSET($C68,MATCH($C40,$C$55:$C$514,0)+24-SUM($A$27:$A40),COLUMN(F$1)-3)) -> 0 | G40: =IF($C40="",0,OFFSET($C68,MATCH($C40,$C$55:$C$514,0)+24-SUM($A$27:$A40),COLUMN(G$1)-3)) -> 0 | H40: =IF($C40="",0,OFFSET($C68,MATCH($C40,$C$55:$C$514,0)+24-SUM($A$27:$A40),COLUMN(H$1)-3)) -> 0 | I40: =IF($C40="",0,OFFSET($C68,MATCH($C40,$C$55:$C$514,0)+24-SUM($A$27:$A40),COLUMN(I$1)-3)) -> 0 | J40: =IF($C40="",0,OFFSET($C68,MATCH($C40,$C$55:$C$514,0)+24-SUM($A$27:$A40),COLUMN(J$1)-3)) -> 0 | K40: =IF($C40="",0,OFFSET($C68,MATCH($C40,$C$55:$C$514,0)+24-SUM($A$27:$A40),COLUMN(K$1)-3)) -> 0 | L40: =IF($C40="",0,OFFSET($C68,MATCH($C40,$C$55:$C$514,0)+24-SUM($A$27:$A40),COLUMN(L$1)-3)) -> 0
A41: 0 | D41: =IF($C41="",0,OFFSET($C69,MATCH($C41,$C$55:$C$514,0)+24-SUM($A$27:$A41),COLUMN(D$1)-3)) -> 0 | E41: =IF($C41="",0,OFFSET($C69,MATCH($C41,$C$55:$C$514,0)+24-SUM($A$27:$A41),COLUMN(E$1)-3)) -> 0 | F41: =IF($C41="",0,OFFSET($C69,MATCH($C41,$C$55:$C$514,0)+24-SUM($A$27:$A41),COLUMN(F$1)-3)) -> 0 | G41: =IF($C41="",0,OFFSET($C69,MATCH($C41,$C$55:$C$514,0)+24-SUM($A$27:$A41),COLUMN(G$1)-3)) -> 0 | H41: =IF($C41="",0,OFFSET($C69,MATCH($C41,$C$55:$C$514,0)+24-SUM($A$27:$A41),COLUMN(H$1)-3)) -> 0 | I41: =IF($C41="",0,OFFSET($C69,MATCH($C41,$C$55:$C$514,0)+24-SUM($A$27:$A41),COLUMN(I$1)-3)) -> 0 | J41: =IF($C41="",0,OFFSET($C69,MATCH($C41,$C$55:$C$514,0)+24-SUM($A$27:$A41),COLUMN(J$1)-3)) -> 0 | K41: =IF($C41="",0,OFFSET($C69,MATCH($C41,$C$55:$C$514,0)+24-SUM($A$27:$A41),COLUMN(K$1)-3)) -> 0 | L41: =IF($C41="",0,OFFSET($C69,MATCH($C41,$C$55:$C$514,0)+24-SUM($A$27:$A41),COLUMN(L$1)-3)) -> 0
A42: 0 | D42: =IF($C42="",0,OFFSET($C70,MATCH($C42,$C$55:$C$514,0)+24-SUM($A$27:$A42),COLUMN(D$1)-3)) -> 0 | E42: =IF($C42="",0,OFFSET($C70,MATCH($C42,$C$55:$C$514,0)+24-SUM($A$27:$A42),COLUMN(E$1)-3)) -> 0 | F42: =IF($C42="",0,OFFSET($C70,MATCH($C42,$C$55:$C$514,0)+24-SUM($A$27:$A42),COLUMN(F$1)-3)) -> 0 | G42: =IF($C42="",0,OFFSET($C70,MATCH($C42,$C$55:$C$514,0)+24-SUM($A$27:$A42),COLUMN(G$1)-3)) -> 0 | H42: =IF($C42="",0,OFFSET($C70,MATCH($C42,$C$55:$C$514,0)+24-SUM($A$27:$A42),COLUMN(H$1)-3)) -> 0 | I42: =IF($C42="",0,OFFSET($C70,MATCH($C42,$C$55:$C$514,0)+24-SUM($A$27:$A42),COLUMN(I$1)-3)) -> 0 | J42: =IF($C42="",0,OFFSET($C70,MATCH($C42,$C$55:$C$514,0)+24-SUM($A$27:$A42),COLUMN(J$1)-3)) -> 0 | K42: =IF($C42="",0,OFFSET($C70,MATCH($C42,$C$55:$C$514,0)+24-SUM($A$27:$A42),COLUMN(K$1)-3)) -> 0 | L42: =IF($C42="",0,OFFSET($C70,MATCH($C42,$C$55:$C$514,0)+24-SUM($A$27:$A42),COLUMN(L$1)-3)) -> 0
A43: 1 | C43: Total | D43: =SUM(D23:D42) -> 482 | E43: =SUM(E23:E42) -> 40 | F43: =SUM(F23:F42) -> 494.8333333 | G43: =IFERROR(I43/F43,0) -> 571.7414249 | H43: =IFERROR(SUM(H27:H42)/COUNTIF(H27:H42,">0"),0) -> 0 | I43: =SUM(I23:I42) -> 282916.7151 | J43: =SUM(J23:J42) -> 515 | K43: =IFERROR(#REF!/#REF!,0) -> 0 | L43: =IFERROR(SUM(L27:L42)/COUNTIF(L27:L42,">0"),0) -> 0
A44: 1 | C44: Salary Bands
A45: 1 | C45: 1 - 6 | D45: =SUMIFS(D$55:D$514,$C$55:$C$514,">=1",$C$55:$C$514,"<=6") -> 109 | E45: =SUMIFS(E$55:E$514,$C$55:$C$514,">=1",$C$55:$C$514,"<=6") -> 1 | F45: =SUMIFS(F$55:F$514,$C$55:$C$514,">=1",$C$55:$C$514,"<=6") -> 107.9166667 | G45: =IFERROR(I45/F45,0) -> 290.7177498 | H45: =IFERROR(SUMIFS(H$55:H$514,$B$55:$B$514,">=1",$C$55:$C$514,"<>Total",$C$55:$C$514,">=1",$C$55:$C$514,"<=6")/COUNTIFS($B$55:$B$514,">=1",$C$55:$C$514,">=1",$C$55:$C$514,"<=6",#REF!,">0"),0) -> 0 | I45: =SUMIFS(I$55:I$514,$C$55:$C$514,">=1",$C$55:$C$514,"<=6") -> 31373.2905 | J45: =SUMIFS(J$55:J$514,$C$55:$C$514,">=1",$C$55:$C$514,"<=6") -> 108 | K45: =IFERROR(#REF!/#REF!,0) -> 0 | L45: =IFERROR(SUMIFS(L$55:L$514,$B$55:$B$514,">=1",$C$55:$C$514,"<>Total",$C$55:$C$514,">=1",$C$55:$C$514,"<=6")/COUNTIFS($B$55:$B$514,">=1",$C$55:$C$514,">=1",$C$55:$C$514,"<=6",#REF!,">0"),0) -> 0
A46: 1 | C46: 7 - 10 | D46: =SUMIFS(D$55:D$514,$C$55:$C$514,">=7",$C$55:$C$514,"<=10") -> 208 | E46: =SUMIFS(E$55:E$514,$C$55:$C$514,">=7",$C$55:$C$514,"<=10") -> 5 | F46: =SUMIFS(F$55:F$514,$C$55:$C$514,">=7",$C$55:$C$514,"<=10") -> 212.5 | G46: 522.1985112 | H46: =IFERROR(SUMIFS(H$55:H$514,$B$55:$B$514,">=1",$C$55:$C$514,"<>Total",$C$55:$C$514,">=7",$C$55:$C$514,"<=10")/COUNTIFS($B$55:$B$514,">=1",$C$55:$C$514,">=7",$C$55:$C$514,"<=10",#REF!,">0"),0) -> 0 | I46: =SUMIFS(I$55:I$514,$C$55:$C$514,">=7",$C$55:$C$514,"<=10") -> 110967.1836 | J46: =SUMIFS(J$55:J$514,$C$55:$C$514,">=7",$C$55:$C$514,"<=10") -> 206 | K46: =IFERROR(#REF!/#REF!,0) -> 0 | L46: =IFERROR(SUMIFS(L$55:L$514,$B$55:$B$514,">=1",$C$55:$C$514,"<>Total",$C$55:$C$514,">=7",$C$55:$C$514,"<=10")/COUNTIFS($B$55:$B$514,">=1",$C$55:$C$514,">=7",$C$55:$C$514,"<=10",#REF!,">0"),0) -> 0
A47: 1 | C47: 11 - 12 | D47: =SUMIFS(D$55:D$514,$C$55:$C$514,">=11",$C$55:$C$514,"<=12") -> 80 | E47: =SUMIFS(E$55:E$514,$C$55:$C$514,">=11",$C$55:$C$514,"<=12") -> 1 | F47: =SUMIFS(F$55:F$514,$C$55:$C$514,">=11",$C$55:$C$514,"<=12") -> 83.5 | G47: 850.822646 | H47: =IFERROR(SUMIFS(H$55:H$514,$B$55:$B$514,">=1",$C$55:$C$514,"<>Total",$C$55:$C$514,">=11",$C$55:$C$514,"<=12")/COUNTIFS($B$55:$B$514,">=1",$C$55:$C$514,">=11",$C$55:$C$514,"<=12",#REF!,">0"),0) -> 0 | I47: =SUMIFS(I$55:I$514,$C$55:$C$514,">=11",$C$55:$C$514,"<=12") -> 71043.69094 | J47: =SUMIFS(J$55:J$514,$C$55:$C$514,">=11",$C$55:$C$514,"<=12") -> 81 | K47: =IFERROR(#REF!/#REF!,0) -> 0 | L47: =IFERROR(SUMIFS(L$55:L$514,$B$55:$B$514,">=1",$C$55:$C$514,"<>Total",$C$55:$C$514,">=11",$C$55:$C$514,"<=12")/COUNTIFS($B$55:$B$514,">=1",$C$55:$C$514,">=11",$C$55:$C$514,"<=12",#REF!,">0"),0) -> 0
A48: 1 | C48: 13 - 16 | D48: =SUMIFS(D$55:D$514,$C$55:$C$514,">=13",$C$55:$C$514,"<=16") -> 52 | E48: =SUMIFS(E$55:E$514,$C$55:$C$514,">=13",$C$55:$C$514,"<=16") -> 0 | F48: =SUMIFS(F$55:F$514,$C$55:$C$514,">=13",$C$55:$C$514,"<=16") -> 50.66666667 | G48: 1293.209874 | H48: =IFERROR(SUMIFS(H$55:H$514,$B$55:$B$514,">=1",$C$55:$C$514,"<>Total",$C$55:$C$514,">=13",$C$55:$C$514,"<=16")/COUNTIFS($B$55:$B$514,">=1",$C$55:$C$514,">=13",$C$55:$C$514,"<=16",#REF!,">0"),0) -> 0 | I48: =SUMIFS(I$55:I$514,$C$55:$C$514,">=13",$C$55:$C$514,"<=16") -> 65522.63361 | J48: =SUMIFS(J$55:J$514,$C$55:$C$514,">=13",$C$55:$C$514,"<=16") -> 53 | K48: =IFERROR(#REF!/#REF!,0) -> 0 | L48: =IFERROR(SUMIFS(L$55:L$514,$B$55:$B$514,">=1",$C$55:$C$514,"<>Total",$C$55:$C$514,">=13",$C$55:$C$514,"<=16")/COUNTIFS($B$55:$B$514,">=1",$C$55:$C$514,">=13",$C$55:$C$514,"<=16",#REF!,">0"),0) -> 0
A49: 1 | C49: Other | D49: =D43-SUM(D45:D48) -> 33 | E49: =E43-SUM(E45:E48) -> 33 | F49: =F43-SUM(F45:F48) -> 40.25 | G49: 99.62525267 | H49: =IFERROR((SUMIFS(H$55:H$514,$B$55:$B$514,">=1",$C$55:$C$514,"<>Total")-SUMIFS(H$55:H$514,$B$55:$B$514,">=1",$C$55:$C$514,"<=16"))/(COUNTIFS($B$55:$B$514,">=1",$C$55:$C$514,"<>Total",#REF!,">0")-COUNTIFS($B$55:$B$514,">=1",$C$55:$C$514,"<=16",#REF!,">0"=(SUMIFS(H$55:H$514,$B$55:$B$514,">=1",$C$55:$C$514,"<>Total")-SUMIFS(H$55:H$514,$B$55:$B$514,">=1",$C$55:$C$514,"<=16"))/(COUNTIFS($B$55:$B$514,">=1",$C$55:$C$514,"<>Total",#REF!,">0")-COUNTIFS($B$55:$B$514,">=1",$C$55:$C$514,"<=16",#REF!,">0")))),0) -> 0 | I49: =I43-SUM(I45:I48) -> 4009.91642 | J49: =J43-SUM(J45:J48) -> 67 | K49: =IFERROR(#REF!/#REF!,0) -> 0 | L49: =IFERROR((SUMIFS(L$55:L$514,$B$55:$B$514,">=1",$C$55:$C$514,"<>Total")-SUMIFS(L$55:L$514,$B$55:$B$514,">=1",$C$55:$C$514,"<=16"))/(COUNTIFS($B$55:$B$514,">=1",$C$55:$C$514,"<>Total",#REF!,">0")-COUNTIFS($B$55:$B$514,">=1",$C$55:$C$514,"<=16",#REF!,">0"=(SUMIFS(L$55:L$514,$B$55:$B$514,">=1",$C$55:$C$514,"<>Total")-SUMIFS(L$55:L$514,$B$55:$B$514,">=1",$C$55:$C$514,"<=16"))/(COUNTIFS($B$55:$B$514,">=1",$C$55:$C$514,"<>Total",#REF!,">0")-COUNTIFS($B$55:$B$514,">=1",$C$55:$C$514,"<=16",#REF!,">0")))),0) -> 0
A50: 1 | C50: Total | D50: =SUM(D45:D49) -> 482 | E50: =SUM(E45:E49) -> 40 | F50: =SUM(F45:F49) -> 494.8333333 | G50: 571.7414249 | H50: =IFERROR(SUMIF($C$55:$C$514,"Total",H$55:H$514)/COUNTIF(H27:H42,">0"),0) -> 0 | I50: =SUM(I45:I49) -> 282916.7151 | J50: =SUM(J45:J49) -> 515 | K50: =IFERROR(#REF!/#REF!,0) -> 0 | L50: =IFERROR(SUMIF($C$55:$C$514,"Total",L$55:L$514)/COUNTIF(L27:L42,">0"),0) -> 0
A51: 1 | C51: Checks | D51: =D43-D50 -> 0 | E51: 0 | F51: 0 | G51: 0 | H51: 0 | I51: 0 | J51: 0 | K51: 0 | L51: 0
A52: 1
A53: 1 | C53: Department Programme Details
A54: 1
A55: =$A$27 -> 1 | C55: =$C$27 -> Administration
A56: =A$55 -> 1 | D56: Establishment Structure | F56: Previous Financial Year | J56: Medium-term expenditure estimates
A57: 1 | D57: As at 31 March 2022 | F57: =LEFT($D$3,4)-1 & "/" & RIGHT($D$3,2)-1 -> 2021/22
A58: 1 | B58: ProgNo. | C58: Salary level | D58: Total number of funded posts | E58: of which: number of funded posts additional to the establishment | F58: FTE Headcount | G58: Unit Costs | H58: of which: Once-off Payments per person | I58: Total Annual Cost | J58: Initial Headcount | K58: Unit Costs | L58: of which: Once-off Payments per person
A59: 1 | B59: 1 | C59: 1 | G59: =IFERROR(IF(I59=0,O59,I59/F59),0) -> 99.95105925 | H59: =1220/1000*12 -> 14.64 | K59: =IFERROR((1+INDEX('Weighted UnitCost'!$A$3:$CI$1000,MATCH(MyDept&$C59,'Weighted UnitCost'!$B$3:$B$1000&'Weighted UnitCost'!$C$3:$C$1000,0),24))*(G59-H59)+L59, (1+INDEX('Weighted UnitCost'!$A$3:$CI$1000,MATCH("General"&"Other",'Weighted UnitCost'!$B$3:$B$1000&'Weighted UnitCost'!$C$3:$C$1000,0),24))*(G59-H59)+L59) -> 101.2331598 | L59: =1220/1000*12 -> 14.64 | O59: 99.95105925
A60: 1 | B60: 1 | C60: 2 | D60: 2 | F60: 1.5 | G60: =IFERROR(IF(I60=0,O60,I60/F60),0) -> 148.3426933 | H60: =1220/1000*12 -> 14.64 | I60: 222.51404 | J60: 2 | K60: =IFERROR((1+INDEX('Weighted UnitCost'!$A$3:$CI$1000,MATCH(MyDept&$C60,'Weighted UnitCost'!$B$3:$B$1000&'Weighted UnitCost'!$C$3:$C$1000,0),24))*(G60-H60)+L60, (1+INDEX('Weighted UnitCost'!$A$3:$CI$1000,MATCH("General"&"Other",'Weighted UnitCost'!$B$3:$B$1000&'Weighted UnitCost'!$C$3:$C$1000,0),24))*(G60-H60)+L60) -> 150.7983052 | L60: =1220/1000*12 -> 14.64 | O60: 179.5147433
A61: 1 | B61: 1 | C61: 3 | D61: 11 | F61: 11.83333333 | G61: 229.8972144 | H61: =1220/1000*12 -> 14.64 | I61: 2720.45037 | J61: 11 | K61: =IFERROR((1+INDEX('Weighted UnitCost'!$A$3:$CI$1000,MATCH(MyDept&$C61,'Weighted UnitCost'!$B$3:$B$1000&'Weighted UnitCost'!$C$3:$C$1000,0),24))*(G61-H61)+L61, (1+INDEX('Weighted UnitCost'!$A$3:$CI$1000,MATCH("General"&"Other",'Weighted UnitCost'!$B$3:$B$1000&'Weighted UnitCost'!$C$3:$C$1000,0),24))*(G61-H61)+L61) -> 235.383988 | L61: =1220/1000*12 -> 14.64 | O61: 216.6722944
A62: 1 | B62: 1 | C62: 4 | D62: 3 | F62: 3 | G62: 241.0395433 | H62: =1220/1000*12 -> 14.64 | I62: 723.11863 | J62: 3 | K62: =IFERROR((1+INDEX('Weighted UnitCost'!$A$3:$CI$1000,MATCH(MyDept&$C62,'Weighted UnitCost'!$B$3:$B$1000&'Weighted UnitCost'!$C$3:$C$1000,0),24))*(G62-H62)+L62, (1+INDEX('Weighted UnitCost'!$A$3:$CI$1000,MATCH("General"&"Other",'Weighted UnitCost'!$B$3:$B$1000&'Weighted UnitCost'!$C$3:$C$1000,0),24))*(G62-H62)+L62) -> 246.8285524 | L62: =1220/1000*12 -> 14.64 | O62: 236.0392102
A63: 1 | B63: 1 | C63: 5 | D63: 8 | F63: 8 | G63: 277.6237 | H63: =1220/1000*12 -> 14.64 | I63: 2220.9896 | J63: 8 | K63: =IFERROR((1+INDEX('Weighted UnitCost'!$A$3:$CI$1000,MATCH(MyDept&$C63,'Weighted UnitCost'!$B$3:$B$1000&'Weighted UnitCost'!$C$3:$C$1000,0),24))*(G63-H63)+L63, (1+INDEX('Weighted UnitCost'!$A$3:$CI$1000,MATCH("General"&"Other",'Weighted UnitCost'!$B$3:$B$1000&'Weighted UnitCost'!$C$3:$C$1000,0),24))*(G63-H63)+L63) -> 283.3220801 | L63: =1220/1000*12 -> 14.64 | O63: 290.5081548
A64: 1 | B64: 1 | C64: 6 | D64: 33 | E64: 1 | F64: 31.66666667 | G64: 323.7754273 | H64: =1352/1000*12 -> 16.224 | I64: 10252.88853 | J64: 32 | K64: =IFERROR((1+INDEX('Weighted UnitCost'!$A$3:$CI$1000,MATCH(MyDept&$C64,'Weighted UnitCost'!$B$3:$B$1000&'Weighted UnitCost'!$C$3:$C$1000,0),24))*(G64-H64)+L64, (1+INDEX('Weighted UnitCost'!$A$3:$CI$1000,MATCH("General"&"Other",'Weighted UnitCost'!$B$3:$B$1000&'Weighted UnitCost'!$C$3:$C$1000,0),24))*(G64-H64)+L64) -> 330.2047796 | L64: =1352/1000*12 -> 16.224 | O64: 341.7085708
A65: 1 | B65: 1 | C65: 7 | D65: 25 | E65: 1 | F65: 24.83333333 | G65: 402.7347217 | H65: =1352/1000*12 -> 16.224 | I65: 10001.24559 | J65: 24 | K65: =IFERROR((1+INDEX('Weighted UnitCost'!$A$3:$CI$1000,MATCH(MyDept&$C65,'Weighted UnitCost'!$B$3:$B$1000&'Weighted UnitCost'!$C$3:$C$1000,0),24))*(G65-H65)+L65, (1+INDEX('Weighted UnitCost'!$A$3:$CI$1000,MATCH("General"&"Other",'Weighted UnitCost'!$B$3:$B$1000&'Weighted UnitCost'!$C$3:$C$1000,0),24))*(G65-H65)+L65) -> 411.1019297 | L65: =1352/1000*12 -> 16.224 | O65: 455.5004418
A66: 1 | B66: 1 | C66: 8 | D66: 8 | F66: 8 | G66: 495.8881387 | H66: =1450/1000*12 -> 17.4 | I66: 3967.10511 | J66: 8 | K66: =IFERROR((1+INDEX('Weighted UnitCost'!$A$3:$CI$1000,MATCH(MyDept&$C66,'Weighted UnitCost'!$B$3:$B$1000&'Weighted UnitCost'!$C$3:$C$1000,0),24))*(G66-H66)+L66, (1+INDEX('Weighted UnitCost'!$A$3:$CI$1000,MATCH("General"&"Other",'Weighted UnitCost'!$B$3:$B$1000&'Weighted UnitCost'!$C$3:$C$1000,0),24))*(G66-H66)+L66) -> 505.5835159 | L66: =1450/1000*12 -> 17.4 | O66: 520.4674487
A67: 1 | B67: 1 | C67: 9 | D67: 15 | F67: 16.33333333 | G67: 575.4087729 | H67: =1450/1000*12 -> 17.4 | I67: 9398.34329 | J67: 15 | K67: =IFERROR((1+INDEX('Weighted UnitCost'!$A$3:$CI$1000,MATCH(MyDept&$C67,'Weighted UnitCost'!$B$3:$B$1000&'Weighted UnitCost'!$C$3:$C$1000,0),24))*(G67-H67)+L67, (1+INDEX('Weighted UnitCost'!$A$3:$CI$1000,MATCH("General"&"Other",'Weighted UnitCost'!$B$3:$B$1000&'Weighted UnitCost'!$C$3:$C$1000,0),24))*(G67-H67)+L67) -> 586.6402762 | L67: =1450/1000*12 -> 17.4 | O67: 586.4171069
A68: 1 | B68: 1 | C68: 10 | D68: 2 | F68: 1.583333333 | G68: 713.6893642 | H68: =1640/1000*12 -> 19.68 | I68: 1130.00816 | J68: 2 | K68: =IFERROR((1+INDEX('Weighted UnitCost'!$A$3:$CI$1000,MATCH(MyDept&$C68,'Weighted UnitCost'!$B$3:$B$1000&'Weighted UnitCost'!$C$3:$C$1000,0),24))*(G68-H68)+L68, (1+INDEX('Weighted UnitCost'!$A$3:$CI$1000,MATCH("General"&"Other",'Weighted UnitCost'!$B$3:$B$1000&'Weighted UnitCost'!$C$3:$C$1000,0),24))*(G68-H68)+L68) -> 727.0198446 | L68: =1640/1000*12 -> 19.68 | O68: 699.4852566
A69: 1 | B69: 1 | C69: 11 | D69: 19 | E69: 1 | F69: 19.5 | G69: 842.9992405 | H69: =1640/1000*12 -> 19.68 | I69: 16438.48519 | J69: 19 | K69: =IFERROR((1+INDEX('Weighted UnitCost'!$A$3:$CI$1000,MATCH(MyDept&$C69,'Weighted UnitCost'!$B$3:$B$1000&'Weighted UnitCost'!$C$3:$C$1000,0),24))*(G69-H69)+L69, (1+INDEX('Weighted UnitCost'!$A$3:$CI$1000,MATCH("General"&"Other",'Weighted UnitCost'!$B$3:$B$1000&'Weighted UnitCost'!$C$3:$C$1000,0),24))*(G69-H69)+L69) -> 857.5153554 | L69: =1640/1000*12 -> 19.68 | O69: 799.6834333
A70: 1 | B70: 1 | C70: 12 | D70: 3 | F70: 3 | G70: 928.5178867 | H70: =1695/1000*12 -> 20.34 | I70: 2785.55366 | J70: 3 | K70: =IFERROR((1+INDEX('Weighted UnitCost'!$A$3:$CI$1000,MATCH(MyDept&$C70,'Weighted UnitCost'!$B$3:$B$1000&'Weighted UnitCost'!$C$3:$C$1000,0),24))*(G70-H70)+L70, (1+INDEX('Weighted UnitCost'!$A$3:$CI$1000,MATCH("General"&"Other",'Weighted UnitCost'!$B$3:$B$1000&'Weighted UnitCost'!$C$3:$C$1000,0),24))*(G70-H70)+L70) -> 944.5421386 | L70: =1695/1000*12 -> 20.34 | O70: 1014.272904
A71: 1 | B71: 1 | C71: 13 | D71: 8 | F71: 9.25 | G71: 1188.251904 | H71: =1695/1000*12 -> 20.34 | I71: 10991.33011 | J71: 8 | K71: =IFERROR((1+INDEX('Weighted UnitCost'!$A$3:$CI$1000,MATCH(MyDept&$C71,'Weighted UnitCost'!$B$3:$B$1000&'Weighted UnitCost'!$C$3:$C$1000,0),24))*(G71-H71)+L71, (1+INDEX('Weighted UnitCost'!$A$3:$CI$1000,MATCH("General"&"Other",'Weighted UnitCost'!$B$3:$B$1000&'Weighted UnitCost'!$C$3:$C$1000,0),24))*(G71-H71)+L71) -> 1207.6604 | L71: =1695/1000*12 -> 20.34 | O71: 1152.258047
A72: 1 | B72: 1 | C72: 14 | D72: 5 | F72: 4.416666667 | G72: 1468.009334 | H72: 20.34 | I72: 6483.70789 | J72: 5 | K72: =IFERROR((1+INDEX('Weighted UnitCost'!$A$3:$CI$1000,MATCH(MyDept&$C72,'Weighted UnitCost'!$B$3:$B$1000&'Weighted UnitCost'!$C$3:$C$1000,0),24))*(G72-H72)+L72, (1+INDEX('Weighted UnitCost'!$A$3:$CI$1000,MATCH("General"&"Other",'Weighted UnitCost'!$B$3:$B$1000&'Weighted UnitCost'!$C$3:$C$1000,0),24))*(G72-H72)+L72) -> 1493.520964 | L72: 20.34 | O72: 1409.161406
A73: 1 | B73: 1 | C73: 15 | D73: 1 | F73: 1 | G73: 2230.95833 | H73: 20.34 | I73: 2230.95833 | J73: 1 | K73: =IFERROR((1+INDEX('Weighted UnitCost'!$A$3:$CI$1000,MATCH(MyDept&$C73,'Weighted UnitCost'!$B$3:$B$1000&'Weighted UnitCost'!$C$3:$C$1000,0),24))*(G73-H73)+L73, (1+INDEX('Weighted UnitCost'!$A$3:$CI$1000,MATCH("General"&"Other",'Weighted UnitCost'!$B$3:$B$1000&'Weighted UnitCost'!$C$3:$C$1000,0),24))*(G73-H73)+L73) -> 2266.842016 | L73: 20.34 | O73: 1703.285814
A74: 1 | B74: 1 | C74: 16 | G74: 2168.595147 | H74: =1818/1000*12 -> 21.816 | J74: 1 | K74: =IFERROR((1+INDEX('Weighted UnitCost'!$A$3:$CI$1000,MATCH(MyDept&$C74,'Weighted UnitCost'!$B$3:$B$1000&'Weighted UnitCost'!$C$3:$C$1000,0),24))*(G74-H74)+L74, (1+INDEX('Weighted UnitCost'!$A$3:$CI$1000,MATCH("General"&"Other",'Weighted UnitCost'!$B$3:$B$1000&'Weighted UnitCost'!$C$3:$C$1000,0),24))*(G74-H74)+L74) -> 2205.086784 | L74: =1818/1000*12 -> 21.816 | O74: 2168.595147
A75: 1 | B75: 1 | C75: Deputy Minister | G75: 2007.461925 | K75: =IFERROR((1+INDEX('Weighted UnitCost'!$A$3:$CI$1000,MATCH(MyDept&$C75,'Weighted UnitCost'!$B$3:$B$1000&'Weighted UnitCost'!$C$3:$C$1000,0),24))*(G75-H75)+L75, (1+INDEX('Weighted UnitCost'!$A$3:$CI$1000,MATCH("General"&"Other",'Weighted UnitCost'!$B$3:$B$1000&'Weighted UnitCost'!$C$3:$C$1000,0),24))*(G75-H75)+L75) -> 2007.461925 | O75: 2007.461925
A76: 1 | B76: 1 | C76: Minister | G76: 2437.657495 | K76: =IFERROR((1+INDEX('Weighted UnitCost'!$A$3:$CI$1000,MATCH(MyDept&$C76,'Weighted UnitCost'!$B$3:$B$1000&'Weighted UnitCost'!$C$3:$C$1000,0),24))*(G76-H76)+L76, (1+INDEX('Weighted UnitCost'!$A$3:$CI$1000,MATCH("General"&"Other",'Weighted UnitCost'!$B$3:$B$1000&'Weighted UnitCost'!$C$3:$C$1000,0),24))*(G76-H76)+L76) -> 2437.657495 | O76: 2437.657495
A77: 1 | B77: 1 | C77: Other | D77: 10 | E77: 10 | F77: 10.16666667 | G77: 259.6159983 | J77: 13 | K77: =IFERROR((1+INDEX('Weighted UnitCost'!$A$3:$CI$1000,MATCH(MyDept&$C77,'Weighted UnitCost'!$B$3:$B$1000&'Weighted UnitCost'!$C$3:$C$1000,0),24))*(G77-H77)+L77, (1+INDEX('Weighted UnitCost'!$A$3:$CI$1000,MATCH("General"&"Other",'Weighted UnitCost'!$B$3:$B$1000&'Weighted UnitCost'!$C$3:$C$1000,0),24))*(G77-H77)+L77) -> 269.1443542 | O77: 259.6159983
A78: 1 | B78: 1 | C78: Other | G78: 259.6159983 | K78: =IFERROR((1+INDEX('Weighted UnitCost'!$A$3:$CI$1000,MATCH(MyDept&$C78,'Weighted UnitCost'!$B$3:$B$1000&'Weighted UnitCost'!$C$3:$C$1000,0),24))*(G78-H78)+L78, (1+INDEX('Weighted UnitCost'!$A$3:$CI$1000,MATCH("General"&"Other",'Weighted UnitCost'!$B$3:$B$1000&'Weighted UnitCost'!$C$3:$C$1000,0),24))*(G78-H78)+L78) -> 269.1443542 | O78: 259.6159983
A79: 1 | B79: 1 | C79: Total | D79: =SUM(D59:D78) -> 153 | E79: =SUM(E59:E78) -> 13 | F79: 154.0833333 | G79: =IFERROR(I79/F79,0) -> 516.3874429 | H79: =IFERROR(SUM(H59:H78)/K79,0) -> 0 | I79: =SUM(I59:I78) -> 79566.6985 | J79: =SUM(J59:J78) -> 155 | K79: =IFERROR(#REF!/#REF!,0) -> 0 | L79: =IFERROR(SUM(L59:L78)/#REF!,0) -> 0
A80: 1
A81: 1
A82: 1
A83: 1
A84: =$A$28 -> 1 | C84: =$C$28 -> Content Processing and Dissemination
A85: =A$84 -> 1 | D85: Establishment Structure | F85: Previous Financial Year | J85: Medium-term expenditure estimates
A86: 1 | D86: As at 31 March 2022 | F86: =LEFT($D$3,4)-1 & "/" & RIGHT($D$3,2)-1 -> 2021/22
A87: 1 | C87: Salary level | D87: Total number of funded posts | E87: of which: number of funded posts additional to the establishment | F87: FTE Headcount | G87: Unit Costs | H87: of which: Once-off Payments per person | I87: Total Annual Cost | J87: Initial Headcount | K87: Unit Costs | L87: of which: Once-off Payments per person
A88: 1 | B88: 2 | C88: 1 | G88: =IFERROR(IF(I88=0,O88,I88/F88),0) -> 99.95105925 | H88: =1220/1000*12 -> 14.64 | K88: =IFERROR((1+INDEX('Weighted UnitCost'!$A$3:$CI$1000,MATCH(MyDept&$C88,'Weighted UnitCost'!$B$3:$B$1000&'Weighted UnitCost'!$C$3:$C$1000,0),24))*(G88-H88)+L88, (1+INDEX('Weighted UnitCost'!$A$3:$CI$1000,MATCH("General"&"Other",'Weighted UnitCost'!$B$3:$B$1000&'Weighted UnitCost'!$C$3:$C$1000,0),24))*(G88-H88)+L88) -> 101.2331598 | L88: =1220/1000*12 -> 14.64 | O88: 99.95105925
A89: 1 | B89: 2 | C89: 2 | G89: =IFERROR(IF(I89=0,O89,I89/F89),0) -> 179.5147433 | H89: =1220/1000*12 -> 14.64 | K89: =IFERROR((1+INDEX('Weighted UnitCost'!$A$3:$CI$1000,MATCH(MyDept&$C89,'Weighted UnitCost'!$B$3:$B$1000&'Weighted UnitCost'!$C$3:$C$1000,0),24))*(G89-H89)+L89, (1+INDEX('Weighted UnitCost'!$A$3:$CI$1000,MATCH("General"&"Other",'Weighted UnitCost'!$B$3:$B$1000&'Weighted UnitCost'!$C$3:$C$1000,0),24))*(G89-H89)+L89) -> 182.5428677 | L89: =1220/1000*12 -> 14.64 | O89: 179.5147433
A90: 1 | B90: 2 | C90: 3 | G90: 216.6722944 | H90: =1220/1000*12 -> 14.64 | K90: =IFERROR((1+INDEX('Weighted UnitCost'!$A$3:$CI$1000,MATCH(MyDept&$C90,'Weighted UnitCost'!$B$3:$B$1000&'Weighted UnitCost'!$C$3:$C$1000,0),24))*(G90-H90)+L90, (1+INDEX('Weighted UnitCost'!$A$3:$CI$1000,MATCH("General"&"Other",'Weighted UnitCost'!$B$3:$B$1000&'Weighted UnitCost'!$C$3:$C$1000,0),24))*(G90-H90)+L90) -> 221.821973 | L90: =1220/1000*12 -> 14.64 | O90: 216.6722944
A91: 1 | B91: 2 | C91: 4 | G91: 236.0392102 | H91: =1220/1000*12 -> 14.64 | K91: =IFERROR((1+INDEX('Weighted UnitCost'!$A$3:$CI$1000,MATCH(MyDept&$C91,'Weighted UnitCost'!$B$3:$B$1000&'Weighted UnitCost'!$C$3:$C$1000,0),24))*(G91-H91)+L91, (1+INDEX('Weighted UnitCost'!$A$3:$CI$1000,MATCH("General"&"Other",'Weighted UnitCost'!$B$3:$B$1000&'Weighted UnitCost'!$C$3:$C$1000,0),24))*(G91-H91)+L91) -> 241.7003613 | L91: =1220/1000*12 -> 14.64 | O91: 236.0392102
A92: 1 | B92: 2 | C92: 5 | D92: 1 | F92: 0.9166666667 | G92: 239.3707418 | H92: =1220/1000*12 -> 14.64 | I92: 219.42318 | J92: 1 | K92: =IFERROR((1+INDEX('Weighted UnitCost'!$A$3:$CI$1000,MATCH(MyDept&$C92,'Weighted UnitCost'!$B$3:$B$1000&'Weighted UnitCost'!$C$3:$C$1000,0),24))*(G92-H92)+L92, (1+INDEX('Weighted UnitCost'!$A$3:$CI$1000,MATCH("General"&"Other",'Weighted UnitCost'!$B$3:$B$1000&'Weighted UnitCost'!$C$3:$C$1000,0),24))*(G92-H92)+L92) -> 244.2402497 | L92: =1220/1000*12 -> 14.64 | O92: 290.5081548
A93: 1 | B93: 2 | C93: 6 | D93: 6 | F93: 6.833333333 | G93: 358.573939 | H93: =1352/1000*12 -> 16.224 | I93: 2450.25525 | J93: 6 | K93: =IFERROR((1+INDEX('Weighted UnitCost'!$A$3:$CI$1000,MATCH(MyDept&$C93,'Weighted UnitCost'!$B$3:$B$1000&'Weighted UnitCost'!$C$3:$C$1000,0),24))*(G93-H93)+L93, (1+INDEX('Weighted UnitCost'!$A$3:$CI$1000,MATCH("General"&"Other",'Weighted UnitCost'!$B$3:$B$1000&'Weighted UnitCost'!$C$3:$C$1000,0),24))*(G93-H93)+L93) -> 365.7307531 | L93: =1352/1000*12 -> 16.224 | O93: 341.7085708
A94: 1 | B94: 2 | C94: 7 | D94: 4 | F94: 3.416666667 | G94: 390.8560976 | H94: =1352/1000*12 -> 16.224 | I94: 1335.425 | J94: 4 | K94: =IFERROR((1+INDEX('Weighted UnitCost'!$A$3:$CI$1000,MATCH(MyDept&$C94,'Weighted UnitCost'!$B$3:$B$1000&'Weighted UnitCost'!$C$3:$C$1000,0),24))*(G94-H94)+L94, (1+INDEX('Weighted UnitCost'!$A$3:$CI$1000,MATCH("General"&"Other",'Weighted UnitCost'!$B$3:$B$1000&'Weighted UnitCost'!$C$3:$C$1000,0),24))*(G94-H94)+L94) -> 398.9661563 | L94: =1352/1000*12 -> 16.224 | O94: 455.5004418
A95: 1 | B95: 2 | C95: 8 | D95: 12 | F95: 12.83333333 | G95: 476.4336281 | H95: =1450/1000*12 -> 17.4 | I95: 6114.23156 | J95: 12 | K95: =IFERROR((1+INDEX('Weighted UnitCost'!$A$3:$CI$1000,MATCH(MyDept&$C95,'Weighted UnitCost'!$B$3:$B$1000&'Weighted UnitCost'!$C$3:$C$1000,0),24))*(G95-H95)+L95, (1+INDEX('Weighted UnitCost'!$A$3:$CI$1000,MATCH("General"&"Other",'Weighted UnitCost'!$B$3:$B$1000&'Weighted UnitCost'!$C$3:$C$1000,0),24))*(G95-H95)+L95) -> 485.7348078 | L95: =1450/1000*12 -> 17.4 | O95: 520.4674487
A96: 1 | B96: 2 | C96: 9 | D96: 28 | F96: 28.91666667 | G96: 549.5465765 | H96: =1450/1000*12 -> 17.4 | I96: 15891.05517 | J96: 27 | K96: =IFERROR((1+INDEX('Weighted UnitCost'!$A$3:$CI$1000,MATCH(MyDept&$C96,'Weighted UnitCost'!$B$3:$B$1000&'Weighted UnitCost'!$C$3:$C$1000,0),24))*(G96-H96)+L96, (1+INDEX('Weighted UnitCost'!$A$3:$CI$1000,MATCH("General"&"Other",'Weighted UnitCost'!$B$3:$B$1000&'Weighted UnitCost'!$C$3:$C$1000,0),24))*(G96-H96)+L96) -> 560.2575301 | L96: =1450/1000*12 -> 17.4 | O96: 586.4171069
A97: 1 | B97: 2 | C97: 10 | G97: 699.4852566 | H97: =1640/1000*12 -> 19.68 | K97: =IFERROR((1+INDEX('Weighted UnitCost'!$A$3:$CI$1000,MATCH(MyDept&$C97,'Weighted UnitCost'!$B$3:$B$1000&'Weighted UnitCost'!$C$3:$C$1000,0),24))*(G97-H97)+L97, (1+INDEX('Weighted UnitCost'!$A$3:$CI$1000,MATCH("General"&"Other",'Weighted UnitCost'!$B$3:$B$1000&'Weighted UnitCost'!$C$3:$C$1000,0),24))*(G97-H97)+L97) -> 712.5429055 | L97: =1640/1000*12 -> 19.68 | O97: 699.4852566
A98: 1 | B98: 2 | C98: 11 | D98: 22 | F98: 22.41666667 | G98: 864.2801335 | H98: =1640/1000*12 -> 19.68 | I98: 19374.27966 | J98: 22 | K98: =IFERROR((1+INDEX('Weighted UnitCost'!$A$3:$CI$1000,MATCH(MyDept&$C98,'Weighted UnitCost'!$B$3:$B$1000&'Weighted UnitCost'!$C$3:$C$1000,0),24))*(G98-H98)+L98, (1+INDEX('Weighted UnitCost'!$A$3:$CI$1000,MATCH("General"&"Other",'Weighted UnitCost'!$B$3:$B$1000&'Weighted UnitCost'!$C$3:$C$1000,0),24))*(G98-H98)+L98) -> 879.1714563 | L98: =1640/1000*12 -> 19.68 | O98: 799.6834333
A99: 1 | B99: 2 | C99: 12 | D99: 1 | F99: 1 | G99: 936.85783 | H99: =1695/1000*12 -> 20.34 | I99: 936.85783 | J99: 1 | K99: =IFERROR((1+INDEX('Weighted UnitCost'!$A$3:$CI$1000,MATCH(MyDept&$C99,'Weighted UnitCost'!$B$3:$B$1000&'Weighted UnitCost'!$C$3:$C$1000,0),24))*(G99-H99)+L99, (1+INDEX('Weighted UnitCost'!$A$3:$CI$1000,MATCH("General"&"Other",'Weighted UnitCost'!$B$3:$B$1000&'Weighted UnitCost'!$C$3:$C$1000,0),24))*(G99-H99)+L99) -> 953.0292352 | L99: =1695/1000*12 -> 20.34 | O99: 1014.272904
A100: 1 | B100: 2 | C100: 13 | D100: 9 | F100: 8.666666667 | G100: 1197.843496 | H100: =1695/1000*12 -> 20.34 | I100: 10381.3103 | J100: 9 | K100: =IFERROR((1+INDEX('Weighted UnitCost'!$A$3:$CI$1000,MATCH(MyDept&$C100,'Weighted UnitCost'!$B$3:$B$1000&'Weighted UnitCost'!$C$3:$C$1000,0),24))*(G100-H100)+L100, (1+INDEX('Weighted UnitCost'!$A$3:$CI$1000,MATCH("General"&"Other",'Weighted UnitCost'!$B$3:$B$1000&'Weighted UnitCost'!$C$3:$C$1000,0),24))*(G100-H100)+L100) -> 1217.411387 | L100: =1695/1000*12 -> 20.34 | O100: 1152.258047
A101: 1 | B101: 2 | C101: 14 | D101: 2 | F101: 2 | G101: 1419.42494 | H101: 20.34 | I101: 2838.84988 | J101: 2 | K101: =IFERROR((1+INDEX('Weighted UnitCost'!$A$3:$CI$1000,MATCH(MyDept&$C101,'Weighted UnitCost'!$B$3:$B$1000&'Weighted UnitCost'!$C$3:$C$1000,0),24))*(G101-H101)+L101, (1+INDEX('Weighted UnitCost'!$A$3:$CI$1000,MATCH("General"&"Other",'Weighted UnitCost'!$B$3:$B$1000&'Weighted UnitCost'!$C$3:$C$1000,0),24))*(G101-H101)+L101) -> 1444.08039 | L101: 20.34 | O101: 1409.161406
A102: 1 | B102: 2 | C102: 15 | D102: 3 | F102: 2.083333333 | G102: 1652.247302 | H102: 20.34 | I102: 3442.18188 | J102: 3 | K102: =IFERROR((1+INDEX('Weighted UnitCost'!$A$3:$CI$1000,MATCH(MyDept&$C102,'Weighted UnitCost'!$B$3:$B$1000&'Weighted UnitCost'!$C$3:$C$1000,0),24))*(G102-H102)+L102, (1+INDEX('Weighted UnitCost'!$A$3:$CI$1000,MATCH("General"&"Other",'Weighted UnitCost'!$B$3:$B$1000&'Weighted UnitCost'!$C$3:$C$1000,0),24))*(G102-H102)+L102) -> 1678.737108 | L102: 20.34 | O102: 1703.285814
A103: 1 | B103: 2 | C103: 16 | G103: 2168.595147 | H103: =1818/1000*12 -> 21.816 | K103: =IFERROR((1+INDEX('Weighted UnitCost'!$A$3:$CI$1000,MATCH(MyDept&$C103,'Weighted UnitCost'!$B$3:$B$1000&'Weighted UnitCost'!$C$3:$C$1000,0),24))*(G103-H103)+L103, (1+INDEX('Weighted UnitCost'!$A$3:$CI$1000,MATCH("General"&"Other",'Weighted UnitCost'!$B$3:$B$1000&'Weighted UnitCost'!$C$3:$C$1000,0),24))*(G103-H103)+L103) -> 2205.086784 | L103: =1818/1000*12 -> 21.816 | O103: 2168.595147
A104: 1 | B104: 2 | C104: Other | D104: 9 | E104: 9 | F104: 15 | G104: 184.3684573 | I104: 2765.52686 | J104: 15 | K104: =IFERROR((1+INDEX('Weighted UnitCost'!$A$3:$CI$1000,MATCH(MyDept&$C104,'Weighted UnitCost'!$B$3:$B$1000&'Weighted UnitCost'!$C$3:$C$1000,0),24))*(G104-H104)+L104, (1+INDEX('Weighted UnitCost'!$A$3:$CI$1000,MATCH("General"&"Other",'Weighted UnitCost'!$B$3:$B$1000&'Weighted UnitCost'!$C$3:$C$1000,0),24))*(G104-H104)+L104) -> 191.1350984 | O104: 2007.461925
A105: 1 | B105: 2 | C105: Other | G105: 2437.657495 | K105: =IFERROR((1+INDEX('Weighted UnitCost'!$A$3:$CI$1000,MATCH(MyDept&$C105,'Weighted UnitCost'!$B$3:$B$1000&'Weighted UnitCost'!$C$3:$C$1000,0),24))*(G105-H105)+L105, (1+INDEX('Weighted UnitCost'!$A$3:$CI$1000,MATCH("General"&"Other",'Weighted UnitCost'!$B$3:$B$1000&'Weighted UnitCost'!$C$3:$C$1000,0),24))*(G105-H105)+L105) -> 2527.123739 | O105: 2437.657495
A106: 1 | B106: 2 | C106: Other | G106: 259.6159983 | K106: =IFERROR((1+INDEX('Weighted UnitCost'!$A$3:$CI$1000,MATCH(MyDept&$C106,'Weighted UnitCost'!$B$3:$B$1000&'Weighted UnitCost'!$C$3:$C$1000,0),24))*(G106-H106)+L106, (1+INDEX('Weighted UnitCost'!$A$3:$CI$1000,MATCH("General"&"Other",'Weighted UnitCost'!$B$3:$B$1000&'Weighted UnitCost'!$C$3:$C$1000,0),24))*(G106-H106)+L106) -> 269.1443542 | O106: 259.6159983
A107: 1 | B107: 2 | C107: Other | G107: 259.6159983 | K107: =IFERROR((1+INDEX('Weighted UnitCost'!$A$3:$CI$1000,MATCH(MyDept&$C107,'Weighted UnitCost'!$B$3:$B$1000&'Weighted UnitCost'!$C$3:$C$1000,0),24))*(G107-H107)+L107, (1+INDEX('Weighted UnitCost'!$A$3:$CI$1000,MATCH("General"&"Other",'Weighted UnitCost'!$B$3:$B$1000&'Weighted UnitCost'!$C$3:$C$1000,0),24))*(G107-H107)+L107) -> 269.1443542 | O107: 259.6159983
A108: 1 | B108: 2 | C108: Total | D108: =SUM(D88:D107) -> 97 | E108: =SUM(E88:E107) -> 9 | F108: 104.0833333 | G108: =IFERROR(I108/F108,0) -> 631.6995667 | H108: =IFERROR(SUM(H88:H107)/K108,0) -> 0 | I108: =SUM(I88:I107) -> 65749.39657 | J108: =SUM(J88:J107) -> 102 | K108: =IFERROR(#REF!/#REF!,0) -> 0 | L108: =IFERROR(SUM(L88:L107)/#REF!,0) -> 0
A109: 1
A110: 1
A111: 1
A112: 1
A113: =$A$29 -> 1 | C113: =$C$29 -> Intergovernmental Coordination and Stakeholder Management
A114: =A$113 -> 1 | D114: Establishment Structure | F114: Previous Financial Year | J114: Medium-term expenditure estimates
A115: 1 | D115: As at 31 March 2022 | F115: =LEFT($D$3,4)-1 & "/" & RIGHT($D$3,2)-1 -> 2021/22
A116: 1 | C116: Salary level | D116: Total number of funded posts | E116: of which: number of funded posts additional to the establishment | F116: FTE Headcount | G116: Unit Costs | H116: of which: Once-off Payments per person | I116: Total Annual Cost | J116: Initial Headcount | K116: Unit Costs | L116: of which: Once-off Payments per person
A117: 1 | B117: 3 | C117: 1 | G117: =IFERROR(IF(I117=0,O117,I117/F117),0) -> 99.95105925 | H117: =1220/1000*12 -> 14.64 | K117: =IFERROR((1+INDEX('Weighted UnitCost'!$A$3:$CI$1000,MATCH(MyDept&$C117,'Weighted UnitCost'!$B$3:$B$1000&'Weighted UnitCost'!$C$3:$C$1000,0),24))*(G117-H117)+L117, (1+INDEX('Weighted UnitCost'!$A$3:$CI$1000,MATCH("General"&"Other",'Weighted UnitCost'!$B$3:$B$1000&'Weighted UnitCost'!$C$3:$C$1000,0),24))*(G117-H117)+L117) -> 101.2331598 | L117: =1220/1000*12 -> 14.64 | O117: 99.95105925
A118: 1 | B118: 3 | C118: 2 | G118: =IFERROR(IF(I118=0,O118,I118/F118),0) -> 179.5147433 | H118: =1220/1000*12 -> 14.64 | K118: =IFERROR((1+INDEX('Weighted UnitCost'!$A$3:$CI$1000,MATCH(MyDept&$C118,'Weighted UnitCost'!$B$3:$B$1000&'Weighted UnitCost'!$C$3:$C$1000,0),24))*(G118-H118)+L118, (1+INDEX('Weighted UnitCost'!$A$3:$CI$1000,MATCH("General"&"Other",'Weighted UnitCost'!$B$3:$B$1000&'Weighted UnitCost'!$C$3:$C$1000,0),24))*(G118-H118)+L118) -> 182.5428677 | L118: =1220/1000*12 -> 14.64 | O118: 179.5147433
A119: 1 | B119: 3 | C119: 3 | D119: 8 | F119: 8 | G119: 211.9565637 | H119: =1220/1000*12 -> 14.64 | I119: 1695.65251 | J119: 8 | K119: =IFERROR((1+INDEX('Weighted UnitCost'!$A$3:$CI$1000,MATCH(MyDept&$C119,'Weighted UnitCost'!$B$3:$B$1000&'Weighted UnitCost'!$C$3:$C$1000,0),24))*(G119-H119)+L119, (1+INDEX('Weighted UnitCost'!$A$3:$CI$1000,MATCH("General"&"Other",'Weighted UnitCost'!$B$3:$B$1000&'Weighted UnitCost'!$C$3:$C$1000,0),24))*(G119-H119)+L119) -> 216.9860412 | L119: =1220/1000*12 -> 14.64 | O119: 216.6722944
A120: 1 | B120: 3 | C120: 4 | G120: 236.0392102 | H120: =1220/1000*12 -> 14.64 | K120: =IFERROR((1+INDEX('Weighted UnitCost'!$A$3:$CI$1000,MATCH(MyDept&$C120,'Weighted UnitCost'!$B$3:$B$1000&'Weighted UnitCost'!$C$3:$C$1000,0),24))*(G120-H120)+L120, (1+INDEX('Weighted UnitCost'!$A$3:$CI$1000,MATCH("General"&"Other",'Weighted UnitCost'!$B$3:$B$1000&'Weighted UnitCost'!$C$3:$C$1000,0),24))*(G120-H120)+L120) -> 241.7003613 | L120: =1220/1000*12 -> 14.64 | O120: 236.0392102
A121: 1 | B121: 3 | C121: 5 | D121: 13 | F121: 10.16666667 | G121: 261.0452902 | H121: =1220/1000*12 -> 14.64 | I121: 2653.96045 | J121: 13 | K121: =IFERROR((1+INDEX('Weighted UnitCost'!$A$3:$CI$1000,MATCH(MyDept&$C121,'Weighted UnitCost'!$B$3:$B$1000&'Weighted UnitCost'!$C$3:$C$1000,0),24))*(G121-H121)+L121, (1+INDEX('Weighted UnitCost'!$A$3:$CI$1000,MATCH("General"&"Other",'Weighted UnitCost'!$B$3:$B$1000&'Weighted UnitCost'!$C$3:$C$1000,0),24))*(G121-H121)+L121) -> 266.3844462 | L121: =1220/1000*12 -> 14.64 | O121: 290.5081548
A122: 1 | B122: 3 | C122: 6 | D122: 24 | F122: 26 | G122: 315.9245362 | H122: =1352/1000*12 -> 16.224 | I122: 8214.03794 | J122: 24 | K122: =IFERROR((1+INDEX('Weighted UnitCost'!$A$3:$CI$1000,MATCH(MyDept&$C122,'Weighted UnitCost'!$B$3:$B$1000&'Weighted UnitCost'!$C$3:$C$1000,0),24))*(G122-H122)+L122, (1+INDEX('Weighted UnitCost'!$A$3:$CI$1000,MATCH("General"&"Other",'Weighted UnitCost'!$B$3:$B$1000&'Weighted UnitCost'!$C$3:$C$1000,0),24))*(G122-H122)+L122) -> 322.1897659 | L122: =1352/1000*12 -> 16.224 | O122: 341.7085708
A123: 1 | B123: 3 | C123: 7 | D123: 21 | F123: 21.5 | G123: 418.1365874 | H123: =1352/1000*12 -> 16.224 | I123: 8989.93663 | J123: 21 | K123: =IFERROR((1+INDEX('Weighted UnitCost'!$A$3:$CI$1000,MATCH(MyDept&$C123,'Weighted UnitCost'!$B$3:$B$1000&'Weighted UnitCost'!$C$3:$C$1000,0),24))*(G123-H123)+L123, (1+INDEX('Weighted UnitCost'!$A$3:$CI$1000,MATCH("General"&"Other",'Weighted UnitCost'!$B$3:$B$1000&'Weighted UnitCost'!$C$3:$C$1000,0),24))*(G123-H123)+L123) -> 426.837216 | L123: =1352/1000*12 -> 16.224 | O123: 455.5004418
A124: 1 | B124: 3 | C124: 8 | D124: 12 | E124: 3 | F124: 12 | G124: 476.2245983 | H124: =1450/1000*12 -> 17.4 | I124: 5714.69518 | J124: 13 | K124: =IFERROR((1+INDEX('Weighted UnitCost'!$A$3:$CI$1000,MATCH(MyDept&$C124,'Weighted UnitCost'!$B$3:$B$1000&'Weighted UnitCost'!$C$3:$C$1000,0),24))*(G124-H124)+L124, (1+INDEX('Weighted UnitCost'!$A$3:$CI$1000,MATCH("General"&"Other",'Weighted UnitCost'!$B$3:$B$1000&'Weighted UnitCost'!$C$3:$C$1000,0),24))*(G124-H124)+L124) -> 485.5215426 | L124: =1450/1000*12 -> 17.4 | O124: 520.4674487
A125: 1 | B125: 3 | C125: 9 | D125: 78 | E125: 1 | F125: 80.66666667 | G125: 578.065603 | H125: =1450/1000*12 -> 17.4 | I125: 46630.62531 | J125: 77 | K125: =IFERROR((1+INDEX('Weighted UnitCost'!$A$3:$CI$1000,MATCH(MyDept&$C125,'Weighted UnitCost'!$B$3:$B$1000&'Weighted UnitCost'!$C$3:$C$1000,0),24))*(G125-H125)+L125, (1+INDEX('Weighted UnitCost'!$A$3:$CI$1000,MATCH("General"&"Other",'Weighted UnitCost'!$B$3:$B$1000&'Weighted UnitCost'!$C$3:$C$1000,0),24))*(G125-H125)+L125) -> 589.3505826 | L125: =1450/1000*12 -> 17.4 | O125: 586.4171069
A126: 1 | B126: 3 | C126: 10 | D126: 3 | F126: 2.416666667 | G126: 742.5569503 | H126: =1640/1000*12 -> 19.68 | I126: 1794.51263 | J126: 3 | K126: =IFERROR((1+INDEX('Weighted UnitCost'!$A$3:$CI$1000,MATCH(MyDept&$C126,'Weighted UnitCost'!$B$3:$B$1000&'Weighted UnitCost'!$C$3:$C$1000,0),24))*(G126-H126)+L126, (1+INDEX('Weighted UnitCost'!$A$3:$CI$1000,MATCH("General"&"Other",'Weighted UnitCost'!$B$3:$B$1000&'Weighted UnitCost'!$C$3:$C$1000,0),24))*(G126-H126)+L126) -> 756.4419171 | L126: =1640/1000*12 -> 19.68 | O126: 699.4852566
A127: 1 | B127: 3 | C127: 11 | D127: 31 | F127: 34.83333333 | G127: 833.0554389 | H127: =1640/1000*12 -> 19.68 | I127: 29018.09779 | J127: 32 | K127: =IFERROR((1+INDEX('Weighted UnitCost'!$A$3:$CI$1000,MATCH(MyDept&$C127,'Weighted UnitCost'!$B$3:$B$1000&'Weighted UnitCost'!$C$3:$C$1000,0),24))*(G127-H127)+L127, (1+INDEX('Weighted UnitCost'!$A$3:$CI$1000,MATCH("General"&"Other",'Weighted UnitCost'!$B$3:$B$1000&'Weighted UnitCost'!$C$3:$C$1000,0),24))*(G127-H127)+L127) -> 847.3962326 | L127: =1640/1000*12 -> 19.68 | O127: 799.6834333
A128: 1 | B128: 3 | C128: 12 | D128: 4 | F128: 2.75 | G128: 905.6061127 | H128: =1695/1000*12 -> 20.34 | I128: 2490.41681 | J128: 4 | K128: =IFERROR((1+INDEX('Weighted UnitCost'!$A$3:$CI$1000,MATCH(MyDept&$C128,'Weighted UnitCost'!$B$3:$B$1000&'Weighted UnitCost'!$C$3:$C$1000,0),24))*(G128-H128)+L128, (1+INDEX('Weighted UnitCost'!$A$3:$CI$1000,MATCH("General"&"Other",'Weighted UnitCost'!$B$3:$B$1000&'Weighted UnitCost'!$C$3:$C$1000,0),24))*(G128-H128)+L128) -> 921.2261002 | L128: =1695/1000*12 -> 20.34 | O128: 1014.272904
A129: 1 | B129: 3 | C129: 13 | D129: 19 | F129: 18.25 | G129: 1201.84268 | H129: =1695/1000*12 -> 20.34 | I129: 21933.62891 | J129: 19 | K129: =IFERROR((1+INDEX('Weighted UnitCost'!$A$3:$CI$1000,MATCH(MyDept&$C129,'Weighted UnitCost'!$B$3:$B$1000&'Weighted UnitCost'!$C$3:$C$1000,0),24))*(G129-H129)+L129, (1+INDEX('Weighted UnitCost'!$A$3:$CI$1000,MATCH("General"&"Other",'Weighted UnitCost'!$B$3:$B$1000&'Weighted UnitCost'!$C$3:$C$1000,0),24))*(G129-H129)+L129) -> 1221.47703 | L129: =1695/1000*12 -> 20.34 | O129: 1152.258047
A130: 1 | B130: 3 | C130: 14 | D130: 4 | F130: 4 | G130: 1353.359453 | H130: 20.34 | I130: 5413.43781 | J130: 4 | K130: =IFERROR((1+INDEX('Weighted UnitCost'!$A$3:$CI$1000,MATCH(MyDept&$C130,'Weighted UnitCost'!$B$3:$B$1000&'Weighted UnitCost'!$C$3:$C$1000,0),24))*(G130-H130)+L130, (1+INDEX('Weighted UnitCost'!$A$3:$CI$1000,MATCH("General"&"Other",'Weighted UnitCost'!$B$3:$B$1000&'Weighted UnitCost'!$C$3:$C$1000,0),24))*(G130-H130)+L130) -> 1376.85066 | L130: 20.34 | O130: 1409.161406
A131: 1 | B131: 3 | C131: 15 | D131: 1 | F131: 1 | G131: 1807.2285 | H131: 20.34 | I131: 1807.2285 | J131: 1 | K131: =IFERROR((1+INDEX('Weighted UnitCost'!$A$3:$CI$1000,MATCH(MyDept&$C131,'Weighted UnitCost'!$B$3:$B$1000&'Weighted UnitCost'!$C$3:$C$1000,0),24))*(G131-H131)+L131, (1+INDEX('Weighted UnitCost'!$A$3:$CI$1000,MATCH("General"&"Other",'Weighted UnitCost'!$B$3:$B$1000&'Weighted UnitCost'!$C$3:$C$1000,0),24))*(G131-H131)+L131) -> 1836.234025 | L131: 20.34 | O131: 1703.285814
A132: 1 | B132: 3 | C132: 16 | G132: 2168.595147 | H132: =1818/1000*12 -> 21.816 | K132: =IFERROR((1+INDEX('Weighted UnitCost'!$A$3:$CI$1000,MATCH(MyDept&$C132,'Weighted UnitCost'!$B$3:$B$1000&'Weighted UnitCost'!$C$3:$C$1000,0),24))*(G132-H132)+L132, (1+INDEX('Weighted UnitCost'!$A$3:$CI$1000,MATCH("General"&"Other",'Weighted UnitCost'!$B$3:$B$1000&'Weighted UnitCost'!$C$3:$C$1000,0),24))*(G132-H132)+L132) -> 2205.086784 | L132: =1818/1000*12 -> 21.816 | O132: 2168.595147
A133: 1 | B133: 3 | C133: Other | D133: 14 | E133: 14 | F133: 15.08333333 | G133: 82.5009653 | I133: 1244.38956 | J133: 39 | K133: =IFERROR((1+INDEX('Weighted UnitCost'!$A$3:$CI$1000,MATCH(MyDept&$C133,'Weighted UnitCost'!$B$3:$B$1000&'Weighted UnitCost'!$C$3:$C$1000,0),24))*(G133-H133)+L133, (1+INDEX('Weighted UnitCost'!$A$3:$CI$1000,MATCH("General"&"Other",'Weighted UnitCost'!$B$3:$B$1000&'Weighted UnitCost'!$C$3:$C$1000,0),24))*(G133-H133)+L133) -> 85.52889334 | O133: 2007.461925
A134: 1 | B134: 3 | C134: Other | G134: 2437.657495 | K134: =IFERROR((1+INDEX('Weighted UnitCost'!$A$3:$CI$1000,MATCH(MyDept&$C134,'Weighted UnitCost'!$B$3:$B$1000&'Weighted UnitCost'!$C$3:$C$1000,0),24))*(G134-H134)+L134, (1+INDEX('Weighted UnitCost'!$A$3:$CI$1000,MATCH("General"&"Other",'Weighted UnitCost'!$B$3:$B$1000&'Weighted UnitCost'!$C$3:$C$1000,0),24))*(G134-H134)+L134) -> 2527.123739 | O134: 2437.657495
A135: 1 | B135: 3 | C135: Other | G135: 259.6159983 | K135: =IFERROR((1+INDEX('Weighted UnitCost'!$A$3:$CI$1000,MATCH(MyDept&$C135,'Weighted UnitCost'!$B$3:$B$1000&'Weighted UnitCost'!$C$3:$C$1000,0),24))*(G135-H135)+L135, (1+INDEX('Weighted UnitCost'!$A$3:$CI$1000,MATCH("General"&"Other",'Weighted UnitCost'!$B$3:$B$1000&'Weighted UnitCost'!$C$3:$C$1000,0),24))*(G135-H135)+L135) -> 269.1443542 | O135: 259.6159983
A136: 1 | B136: 3 | C136: Other | G136: 259.6159983 | K136: =IFERROR((1+INDEX('Weighted UnitCost'!$A$3:$CI$1000,MATCH(MyDept&$C136,'Weighted UnitCost'!$B$3:$B$1000&'Weighted UnitCost'!$C$3:$C$1000,0),24))*(G136-H136)+L136, (1+INDEX('Weighted UnitCost'!$A$3:$CI$1000,MATCH("General"&"Other",'Weighted UnitCost'!$B$3:$B$1000&'Weighted UnitCost'!$C$3:$C$1000,0),24))*(G136-H136)+L136) -> 269.1443542 | O136: 259.6159983
A137: 1 | B137: 3 | C137: Total | D137: =SUM(D117:D136) -> 232 | E137: =SUM(E117:E136) -> 18 | F137: 236.6666667 | G137: =IFERROR(I137/F137,0) -> 581.4110705 | H137: =IFERROR(SUM(H117:H136)/K137,0) -> 0 | I137: =SUM(I117:I136) -> 137600.62 | J137: =SUM(J117:J136) -> 258 | K137: =IFERROR(#REF!/#REF!,0) -> 0 | L137: =IFERROR(SUM(L117:L136)/#REF!,0) -> 0
A138: 1
A139: 1
A140: 1
A141: 1
A142: =$A$30 -> 0 | C142: =$C$30 -> 0
A143: =A$142 -> 0 | D143: Establishment Structure | F143: Previous Financial Year | J143: Medium-term expenditure estimates
A144: 0 | D144: As at 31 March 2022 | F144: =LEFT($D$3,4)-1 & "/" & RIGHT($D$3,2)-1 -> 2021/22
A145: 0 | C145: Salary level | D145: Total number of funded posts | E145: of which: number of funded posts additional to the establishment | F145: FTE Headcount | G145: Unit Costs | H145: of which: Once-off Payments per person | I145: Total Annual Cost | J145: Initial Headcount | K145: Unit Costs | L145: of which: Once-off Payments per person
A146: 0 | B146: 4 | C146: 1 | G146: =IFERROR(IF(I146=0,O146,I146/F146),0) -> 99.95105925 | H146: =1220/1000*12 -> 14.64 | K146: =IFERROR((1+INDEX('Weighted UnitCost'!$A$3:$CI$1000,MATCH(MyDept&$C146,'Weighted UnitCost'!$B$3:$B$1000&'Weighted UnitCost'!$C$3:$C$1000,0),24))*(G146-H146)+L146, (1+INDEX('Weighted UnitCost'!$A$3:$CI$1000,MATCH("General"&"Other",'Weighted UnitCost'!$B$3:$B$1000&'Weighted UnitCost'!$C$3:$C$1000,0),24))*(G146-H146)+L146) -> 101.2331598 | L146: =1220/1000*12 -> 14.64 | O146: 99.95105925
A147: 0 | B147: 4 | C147: 2 | G147: =IFERROR(IF(I147=0,O147,I147/F147),0) -> 179.5147433 | H147: =1220/1000*12 -> 14.64 | K147: =IFERROR((1+INDEX('Weighted UnitCost'!$A$3:$CI$1000,MATCH(MyDept&$C147,'Weighted UnitCost'!$B$3:$B$1000&'Weighted UnitCost'!$C$3:$C$1000,0),24))*(G147-H147)+L147, (1+INDEX('Weighted UnitCost'!$A$3:$CI$1000,MATCH("General"&"Other",'Weighted UnitCost'!$B$3:$B$1000&'Weighted UnitCost'!$C$3:$C$1000,0),24))*(G147-H147)+L147) -> 182.5428677 | L147: =1220/1000*12 -> 14.64 | O147: 179.5147433
A148: 0 | B148: 4 | C148: 3 | G148: 216.6722944 | H148: =1220/1000*12 -> 14.64 | K148: =IFERROR((1+INDEX('Weighted UnitCost'!$A$3:$CI$1000,MATCH(MyDept&$C148,'Weighted UnitCost'!$B$3:$B$1000&'Weighted UnitCost'!$C$3:$C$1000,0),24))*(G148-H148)+L148, (1+INDEX('Weighted UnitCost'!$A$3:$CI$1000,MATCH("General"&"Other",'Weighted UnitCost'!$B$3:$B$1000&'Weighted UnitCost'!$C$3:$C$1000,0),24))*(G148-H148)+L148) -> 221.821973 | L148: =1220/1000*12 -> 14.64 | O148: 216.6722944
A149: 0 | B149: 4 | C149: 4 | G149: 236.0392102 | H149: =1220/1000*12 -> 14.64 | K149: =IFERROR((1+INDEX('Weighted UnitCost'!$A$3:$CI$1000,MATCH(MyDept&$C149,'Weighted UnitCost'!$B$3:$B$1000&'Weighted UnitCost'!$C$3:$C$1000,0),24))*(G149-H149)+L149, (1+INDEX('Weighted UnitCost'!$A$3:$CI$1000,MATCH("General"&"Other",'Weighted UnitCost'!$B$3:$B$1000&'Weighted UnitCost'!$C$3:$C$1000,0),24))*(G149-H149)+L149) -> 241.7003613 | L149: =1220/1000*12 -> 14.64 | O149: 236.0392102
A150: 0 | B150: 4 | C150: 5 | G150: 290.5081548 | H150: =1220/1000*12 -> 14.64 | K150: =IFERROR((1+INDEX('Weighted UnitCost'!$A$3:$CI$1000,MATCH(MyDept&$C150,'Weighted UnitCost'!$B$3:$B$1000&'Weighted UnitCost'!$C$3:$C$1000,0),24))*(G150-H150)+L150, (1+INDEX('Weighted UnitCost'!$A$3:$CI$1000,MATCH("General"&"Other",'Weighted UnitCost'!$B$3:$B$1000&'Weighted UnitCost'!$C$3:$C$1000,0),24))*(G150-H150)+L150) -> 296.4857177 | L150: =1220/1000*12 -> 14.64 | O150: 290.5081548
A151: 0 | B151: 4 | C151: 6 | G151: 341.7085708 | H151: =1352/1000*12 -> 16.224 | K151: =IFERROR((1+INDEX('Weighted UnitCost'!$A$3:$CI$1000,MATCH(MyDept&$C151,'Weighted UnitCost'!$B$3:$B$1000&'Weighted UnitCost'!$C$3:$C$1000,0),24))*(G151-H151)+L151, (1+INDEX('Weighted UnitCost'!$A$3:$CI$1000,MATCH("General"&"Other",'Weighted UnitCost'!$B$3:$B$1000&'Weighted UnitCost'!$C$3:$C$1000,0),24))*(G151-H151)+L151) -> 348.5128149 | L151: =1352/1000*12 -> 16.224 | O151: 341.7085708
A152: 0 | B152: 4 | C152: 7 | G152: 455.5004418 | H152: =1352/1000*12 -> 16.224 | K152: =IFERROR((1+INDEX('Weighted UnitCost'!$A$3:$CI$1000,MATCH(MyDept&$C152,'Weighted UnitCost'!$B$3:$B$1000&'Weighted UnitCost'!$C$3:$C$1000,0),24))*(G152-H152)+L152, (1+INDEX('Weighted UnitCost'!$A$3:$CI$1000,MATCH("General"&"Other",'Weighted UnitCost'!$B$3:$B$1000&'Weighted UnitCost'!$C$3:$C$1000,0),24))*(G152-H152)+L152) -> 465.0099253 | L152: =1352/1000*12 -> 16.224 | O152: 455.5004418
A153: 0 | B153: 4 | C153: 8 | G153: 520.4674487 | H153: =1450/1000*12 -> 17.4 | K153: =IFERROR((1+INDEX('Weighted UnitCost'!$A$3:$CI$1000,MATCH(MyDept&$C153,'Weighted UnitCost'!$B$3:$B$1000&'Weighted UnitCost'!$C$3:$C$1000,0),24))*(G153-H153)+L153, (1+INDEX('Weighted UnitCost'!$A$3:$CI$1000,MATCH("General"&"Other",'Weighted UnitCost'!$B$3:$B$1000&'Weighted UnitCost'!$C$3:$C$1000,0),24))*(G153-H153)+L153) -> 530.6608648 | L153: =1450/1000*12 -> 17.4 | O153: 520.4674487
A154: 0 | B154: 4 | C154: 9 | G154: 586.4171069 | H154: =1450/1000*12 -> 17.4 | K154: =IFERROR((1+INDEX('Weighted UnitCost'!$A$3:$CI$1000,MATCH(MyDept&$C154,'Weighted UnitCost'!$B$3:$B$1000&'Weighted UnitCost'!$C$3:$C$1000,0),24))*(G154-H154)+L154, (1+INDEX('Weighted UnitCost'!$A$3:$CI$1000,MATCH("General"&"Other",'Weighted UnitCost'!$B$3:$B$1000&'Weighted UnitCost'!$C$3:$C$1000,0),24))*(G154-H154)+L154) -> 597.8701841 | L154: =1450/1000*12 -> 17.4 | O154: 586.4171069
A155: 0 | B155: 4 | C155: 10 | G155: 699.4852566 | H155: =1640/1000*12 -> 19.68 | K155: =IFERROR((1+INDEX('Weighted UnitCost'!$A$3:$CI$1000,MATCH(MyDept&$C155,'Weighted UnitCost'!$B$3:$B$1000&'Weighted UnitCost'!$C$3:$C$1000,0),24))*(G155-H155)+L155, (1+INDEX('Weighted UnitCost'!$A$3:$CI$1000,MATCH("General"&"Other",'Weighted UnitCost'!$B$3:$B$1000&'Weighted UnitCost'!$C$3:$C$1000,0),24))*(G155-H155)+L155) -> 712.5429055 | L155: =1640/1000*12 -> 19.68 | O155: 699.4852566
A156: 0 | B156: 4 | C156: 11 | G156: 799.6834333 | H156: =1640/1000*12 -> 19.68 | K156: =IFERROR((1+INDEX('Weighted UnitCost'!$A$3:$CI$1000,MATCH(MyDept&$C156,'Weighted UnitCost'!$B$3:$B$1000&'Weighted UnitCost'!$C$3:$C$1000,0),24))*(G156-H156)+L156, (1+INDEX('Weighted UnitCost'!$A$3:$CI$1000,MATCH("General"&"Other",'Weighted UnitCost'!$B$3:$B$1000&'Weighted UnitCost'!$C$3:$C$1000,0),24))*(G156-H156)+L156) -> 813.435838 | L156: =1640/1000*12 -> 19.68 | O156: 799.6834333
A157: 0 | B157: 4 | C157: 12 | G157: 1014.272904 | H157: =1695/1000*12 -> 20.34 | K157: =IFERROR((1+INDEX('Weighted UnitCost'!$A$3:$CI$1000,MATCH(MyDept&$C157,'Weighted UnitCost'!$B$3:$B$1000&'Weighted UnitCost'!$C$3:$C$1000,0),24))*(G157-H157)+L157, (1+INDEX('Weighted UnitCost'!$A$3:$CI$1000,MATCH("General"&"Other",'Weighted UnitCost'!$B$3:$B$1000&'Weighted UnitCost'!$C$3:$C$1000,0),24))*(G157-H157)+L157) -> 1031.810252 | L157: =1695/1000*12 -> 20.34 | O157: 1014.272904
A158: 0 | B158: 4 | C158: 13 | G158: 1152.258047 | H158: =1695/1000*12 -> 20.34 | K158: =IFERROR((1+INDEX('Weighted UnitCost'!$A$3:$CI$1000,MATCH(MyDept&$C158,'Weighted UnitCost'!$B$3:$B$1000&'Weighted UnitCost'!$C$3:$C$1000,0),24))*(G158-H158)+L158, (1+INDEX('Weighted UnitCost'!$A$3:$CI$1000,MATCH("General"&"Other",'Weighted UnitCost'!$B$3:$B$1000&'Weighted UnitCost'!$C$3:$C$1000,0),24))*(G158-H158)+L158) -> 1171.068393 | L158: =1695/1000*12 -> 20.34 | O158: 1152.258047
A159: 0 | B159: 4 | C159: 14 | G159: 1409.161406 | H159: 20.34 | K159: =IFERROR((1+INDEX('Weighted UnitCost'!$A$3:$CI$1000,MATCH(MyDept&$C159,'Weighted UnitCost'!$B$3:$B$1000&'Weighted UnitCost'!$C$3:$C$1000,0),24))*(G159-H159)+L159, (1+INDEX('Weighted UnitCost'!$A$3:$CI$1000,MATCH("General"&"Other",'Weighted UnitCost'!$B$3:$B$1000&'Weighted UnitCost'!$C$3:$C$1000,0),24))*(G159-H159)+L159) -> 1433.635986 | L159: 20.34 | O159: 1409.161406
A160: 0 | B160: 4 | C160: 15 | G160: 1703.285814 | H160: 20.34 | K160: =IFERROR((1+INDEX('Weighted UnitCost'!$A$3:$CI$1000,MATCH(MyDept&$C160,'Weighted UnitCost'!$B$3:$B$1000&'Weighted UnitCost'!$C$3:$C$1000,0),24))*(G160-H160)+L160, (1+INDEX('Weighted UnitCost'!$A$3:$CI$1000,MATCH("General"&"Other",'Weighted UnitCost'!$B$3:$B$1000&'Weighted UnitCost'!$C$3:$C$1000,0),24))*(G160-H160)+L160) -> 1730.604098 | L160: 20.34 | O160: 1703.285814
A161: 0 | B161: 4 | C161: 16 | G161: 2168.595147 | H161: =1818/1000*12 -> 21.816 | K161: =IFERROR((1+INDEX('Weighted UnitCost'!$A$3:$CI$1000,MATCH(MyDept&$C161,'Weighted UnitCost'!$B$3:$B$1000&'Weighted UnitCost'!$C$3:$C$1000,0),24))*(G161-H161)+L161, (1+INDEX('Weighted UnitCost'!$A$3:$CI$1000,MATCH("General"&"Other",'Weighted UnitCost'!$B$3:$B$1000&'Weighted UnitCost'!$C$3:$C$1000,0),24))*(G161-H161)+L161) -> 2205.086784 | L161: =1818/1000*12 -> 21.816 | O161: 2168.595147
A162: 0 | B162: 4 | C162: Other | G162: 2007.461925 | K162: =IFERROR((1+INDEX('Weighted UnitCost'!$A$3:$CI$1000,MATCH(MyDept&$C162,'Weighted UnitCost'!$B$3:$B$1000&'Weighted UnitCost'!$C$3:$C$1000,0),24))*(G162-H162)+L162, (1+INDEX('Weighted UnitCost'!$A$3:$CI$1000,MATCH("General"&"Other",'Weighted UnitCost'!$B$3:$B$1000&'Weighted UnitCost'!$C$3:$C$1000,0),24))*(G162-H162)+L162) -> 2081.139248 | O162: 2007.461925
A163: 0 | B163: 4 | C163: Other | G163: 2437.657495 | K163: =IFERROR((1+INDEX('Weighted UnitCost'!$A$3:$CI$1000,MATCH(MyDept&$C163,'Weighted UnitCost'!$B$3:$B$1000&'Weighted UnitCost'!$C$3:$C$1000,0),24))*(G163-H163)+L163, (1+INDEX('Weighted UnitCost'!$A$3:$CI$1000,MATCH("General"&"Other",'Weighted UnitCost'!$B$3:$B$1000&'Weighted UnitCost'!$C$3:$C$1000,0),24))*(G163-H163)+L163) -> 2527.123739 | O163: 2437.657495
A164: 0 | B164: 4 | C164: Other | G164: 259.6159983 | K164: =IFERROR((1+INDEX('Weighted UnitCost'!$A$3:$CI$1000,MATCH(MyDept&$C164,'Weighted UnitCost'!$B$3:$B$1000&'Weighted UnitCost'!$C$3:$C$1000,0),24))*(G164-H164)+L164, (1+INDEX('Weighted UnitCost'!$A$3:$CI$1000,MATCH("General"&"Other",'Weighted UnitCost'!$B$3:$B$1000&'Weighted UnitCost'!$C$3:$C$1000,0),24))*(G164-H164)+L164) -> 269.1443542 | O164: 259.6159983
A165: 0 | B165: 4 | C165: Other | G165: 259.6159983 | K165: =IFERROR((1+INDEX('Weighted UnitCost'!$A$3:$CI$1000,MATCH(MyDept&$C165,'Weighted UnitCost'!$B$3:$B$1000&'Weighted UnitCost'!$C$3:$C$1000,0),24))*(G165-H165)+L165, (1+INDEX('Weighted UnitCost'!$A$3:$CI$1000,MATCH("General"&"Other",'Weighted UnitCost'!$B$3:$B$1000&'Weighted UnitCost'!$C$3:$C$1000,0),24))*(G165-H165)+L165) -> 269.1443542 | O165: 259.6159983
A166: 0 | B166: 4 | C166: Total | D166: =SUM(D146:D165) -> 0 | E166: =SUM(E146:E165) -> 0 | F166: 0 | G166: =IFERROR(I166/F166,0) -> 0 | H166: =IFERROR(SUM(H146:H165)/K166,0) -> 0 | I166: =SUM(I146:I165) -> 0 | J166: =SUM(J146:J165) -> 0 | K166: =IFERROR(#REF!/#REF!,0) -> 0 | L166: =IFERROR(SUM(L146:L165)/#REF!,0) -> 0
A167: 0
A168: 0
A169: 0
A170: 0
A171: =$A$31 -> 0 | C171: =$C$31 -> 0
A172: =A$171 -> 0 | D172: Establishment Structure | F172: Previous Financial Year | J172: Medium-term expenditure estimates
A173: 0 | D173: As at 31 March 2022 | F173: =LEFT($D$3,4)-1 & "/" & RIGHT($D$3,2)-1 -> 2021/22
A174: 0 | C174: Salary level | D174: Total number of funded posts | E174: of which: number of funded posts additional to the establishment | F174: FTE Headcount | G174: Unit Costs | H174: of which: Once-off Payments per person | I174: Total Annual Cost | J174: Initial Headcount | K174: Unit Costs | L174: of which: Once-off Payments per person
A175: 0 | B175: 5 | C175: 1 | G175: =IFERROR(IF(I175=0,O175,I175/F175),0) -> 99.95105925 | H175: =1220/1000*12 -> 14.64 | K175: =IFERROR((1+INDEX('Weighted UnitCost'!$A$3:$CI$1000,MATCH(MyDept&$C175,'Weighted UnitCost'!$B$3:$B$1000&'Weighted UnitCost'!$C$3:$C$1000,0),24))*(G175-H175)+L175, (1+INDEX('Weighted UnitCost'!$A$3:$CI$1000,MATCH("General"&"Other",'Weighted UnitCost'!$B$3:$B$1000&'Weighted UnitCost'!$C$3:$C$1000,0),24))*(G175-H175)+L175) -> 101.2331598 | L175: =1220/1000*12 -> 14.64 | O175: 99.95105925
A176: 0 | B176: 5 | C176: 2 | G176: =IFERROR(IF(I176=0,O176,I176/F176),0) -> 179.5147433 | H176: =1220/1000*12 -> 14.64 | K176: =IFERROR((1+INDEX('Weighted UnitCost'!$A$3:$CI$1000,MATCH(MyDept&$C176,'Weighted UnitCost'!$B$3:$B$1000&'Weighted UnitCost'!$C$3:$C$1000,0),24))*(G176-H176)+L176, (1+INDEX('Weighted UnitCost'!$A$3:$CI$1000,MATCH("General"&"Other",'Weighted UnitCost'!$B$3:$B$1000&'Weighted UnitCost'!$C$3:$C$1000,0),24))*(G176-H176)+L176) -> 182.5428677 | L176: =1220/1000*12 -> 14.64 | O176: 179.5147433
A177: 0 | B177: 5 | C177: 3 | G177: 216.6722944 | H177: =1220/1000*12 -> 14.64 | K177: =IFERROR((1+INDEX('Weighted UnitCost'!$A$3:$CI$1000,MATCH(MyDept&$C177,'Weighted UnitCost'!$B$3:$B$1000&'Weighted UnitCost'!$C$3:$C$1000,0),24))*(G177-H177)+L177, (1+INDEX('Weighted UnitCost'!$A$3:$CI$1000,MATCH("General"&"Other",'Weighted UnitCost'!$B$3:$B$1000&'Weighted UnitCost'!$C$3:$C$1000,0),24))*(G177-H177)+L177) -> 221.821973 | L177: =1220/1000*12 -> 14.64 | O177: 216.6722944
A178: 0 | B178: 5 | C178: 4 | G178: 236.0392102 | H178: =1220/1000*12 -> 14.64 | K178: =IFERROR((1+INDEX('Weighted UnitCost'!$A$3:$CI$1000,MATCH(MyDept&$C178,'Weighted UnitCost'!$B$3:$B$1000&'Weighted UnitCost'!$C$3:$C$1000,0),24))*(G178-H178)+L178, (1+INDEX('Weighted UnitCost'!$A$3:$CI$1000,MATCH("General"&"Other",'Weighted UnitCost'!$B$3:$B$1000&'Weighted UnitCost'!$C$3:$C$1000,0),24))*(G178-H178)+L178) -> 241.7003613 | L178: =1220/1000*12 -> 14.64 | O178: 236.0392102
A179: 0 | B179: 5 | C179: 5 | G179: 290.5081548 | H179: =1220/1000*12 -> 14.64 | K179: =IFERROR((1+INDEX('Weighted UnitCost'!$A$3:$CI$1000,MATCH(MyDept&$C179,'Weighted UnitCost'!$B$3:$B$1000&'Weighted UnitCost'!$C$3:$C$1000,0),24))*(G179-H179)+L179, (1+INDEX('Weighted UnitCost'!$A$3:$CI$1000,MATCH("General"&"Other",'Weighted UnitCost'!$B$3:$B$1000&'Weighted UnitCost'!$C$3:$C$1000,0),24))*(G179-H179)+L179) -> 296.4857177 | L179: =1220/1000*12 -> 14.64 | O179: 290.5081548
A180: 0 | B180: 5 | C180: 6 | G180: 341.7085708 | H180: =1352/1000*12 -> 16.224 | K180: =IFERROR((1+INDEX('Weighted UnitCost'!$A$3:$CI$1000,MATCH(MyDept&$C180,'Weighted UnitCost'!$B$3:$B$1000&'Weighted UnitCost'!$C$3:$C$1000,0),24))*(G180-H180)+L180, (1+INDEX('Weighted UnitCost'!$A$3:$CI$1000,MATCH("General"&"Other",'Weighted UnitCost'!$B$3:$B$1000&'Weighted UnitCost'!$C$3:$C$1000,0),24))*(G180-H180)+L180) -> 348.5128149 | L180: =1352/1000*12 -> 16.224 | O180: 341.7085708
A181: 0 | B181: 5 | C181: 7 | G181: 455.5004418 | H181: =1352/1000*12 -> 16.224 | K181: =IFERROR((1+INDEX('Weighted UnitCost'!$A$3:$CI$1000,MATCH(MyDept&$C181,'Weighted UnitCost'!$B$3:$B$1000&'Weighted UnitCost'!$C$3:$C$1000,0),24))*(G181-H181)+L181, (1+INDEX('Weighted UnitCost'!$A$3:$CI$1000,MATCH("General"&"Other",'Weighted UnitCost'!$B$3:$B$1000&'Weighted UnitCost'!$C$3:$C$1000,0),24))*(G181-H181)+L181) -> 465.0099253 | L181: =1352/1000*12 -> 16.224 | O181: 455.5004418
A182: 0 | B182: 5 | C182: 8 | G182: 520.4674487 | H182: =1450/1000*12 -> 17.4 | K182: =IFERROR((1+INDEX('Weighted UnitCost'!$A$3:$CI$1000,MATCH(MyDept&$C182,'Weighted UnitCost'!$B$3:$B$1000&'Weighted UnitCost'!$C$3:$C$1000,0),24))*(G182-H182)+L182, (1+INDEX('Weighted UnitCost'!$A$3:$CI$1000,MATCH("General"&"Other",'Weighted UnitCost'!$B$3:$B$1000&'Weighted UnitCost'!$C$3:$C$1000,0),24))*(G182-H182)+L182) -> 530.6608648 | L182: =1450/1000*12 -> 17.4 | O182: 520.4674487
A183: 0 | B183: 5 | C183: 9 | G183: 586.4171069 | H183: =1450/1000*12 -> 17.4 | K183: =IFERROR((1+INDEX('Weighted UnitCost'!$A$3:$CI$1000,MATCH(MyDept&$C183,'Weighted UnitCost'!$B$3:$B$1000&'Weighted UnitCost'!$C$3:$C$1000,0),24))*(G183-H183)+L183, (1+INDEX('Weighted UnitCost'!$A$3:$CI$1000,MATCH("General"&"Other",'Weighted UnitCost'!$B$3:$B$1000&'Weighted UnitCost'!$C$3:$C$1000,0),24))*(G183-H183)+L183) -> 597.8701841 | L183: =1450/1000*12 -> 17.4 | O183: 586.4171069
A184: 0 | B184: 5 | C184: 10 | G184: 699.4852566 | H184: =1640/1000*12 -> 19.68 | K184: =IFERROR((1+INDEX('Weighted UnitCost'!$A$3:$CI$1000,MATCH(MyDept&$C184,'Weighted UnitCost'!$B$3:$B$1000&'Weighted UnitCost'!$C$3:$C$1000,0),24))*(G184-H184)+L184, (1+INDEX('Weighted UnitCost'!$A$3:$CI$1000,MATCH("General"&"Other",'Weighted UnitCost'!$B$3:$B$1000&'Weighted UnitCost'!$C$3:$C$1000,0),24))*(G184-H184)+L184) -> 712.5429055 | L184: =1640/1000*12 -> 19.68 | O184: 699.4852566
A185: 0 | B185: 5 | C185: 11 | G185: 799.6834333 | H185: =1640/1000*12 -> 19.68 | K185: =IFERROR((1+INDEX('Weighted UnitCost'!$A$3:$CI$1000,MATCH(MyDept&$C185,'Weighted UnitCost'!$B$3:$B$1000&'Weighted UnitCost'!$C$3:$C$1000,0),24))*(G185-H185)+L185, (1+INDEX('Weighted UnitCost'!$A$3:$CI$1000,MATCH("General"&"Other",'Weighted UnitCost'!$B$3:$B$1000&'Weighted UnitCost'!$C$3:$C$1000,0),24))*(G185-H185)+L185) -> 813.435838 | L185: =1640/1000*12 -> 19.68 | O185: 799.6834333
A186: 0 | B186: 5 | C186: 12 | G186: 1014.272904 | H186: =1695/1000*12 -> 20.34 | K186: =IFERROR((1+INDEX('Weighted UnitCost'!$A$3:$CI$1000,MATCH(MyDept&$C186,'Weighted UnitCost'!$B$3:$B$1000&'Weighted UnitCost'!$C$3:$C$1000,0),24))*(G186-H186)+L186, (1+INDEX('Weighted UnitCost'!$A$3:$CI$1000,MATCH("General"&"Other",'Weighted UnitCost'!$B$3:$B$1000&'Weighted UnitCost'!$C$3:$C$1000,0),24))*(G186-H186)+L186) -> 1031.810252 | L186: =1695/1000*12 -> 20.34 | O186: 1014.272904
A187: 0 | B187: 5 | C187: 13 | G187: 1152.258047 | H187: =1695/1000*12 -> 20.34 | K187: =IFERROR((1+INDEX('Weighted UnitCost'!$A$3:$CI$1000,MATCH(MyDept&$C187,'Weighted UnitCost'!$B$3:$B$1000&'Weighted UnitCost'!$C$3:$C$1000,0),24))*(G187-H187)+L187, (1+INDEX('Weighted UnitCost'!$A$3:$CI$1000,MATCH("General"&"Other",'Weighted UnitCost'!$B$3:$B$1000&'Weighted UnitCost'!$C$3:$C$1000,0),24))*(G187-H187)+L187) -> 1171.068393 | L187: =1695/1000*12 -> 20.34 | O187: 1152.258047
A188: 0 | B188: 5 | C188: 14 | G188: 1409.161406 | H188: 20.34 | K188: =IFERROR((1+INDEX('Weighted UnitCost'!$A$3:$CI$1000,MATCH(MyDept&$C188,'Weighted UnitCost'!$B$3:$B$1000&'Weighted UnitCost'!$C$3:$C$1000,0),24))*(G188-H188)+L188, (1+INDEX('Weighted UnitCost'!$A$3:$CI$1000,MATCH("General"&"Other",'Weighted UnitCost'!$B$3:$B$1000&'Weighted UnitCost'!$C$3:$C$1000,0),24))*(G188-H188)+L188) -> 1433.635986 | L188: 20.34 | O188: 1409.161406
A189: 0 | B189: 5 | C189: 15 | G189: 1703.285814 | H189: 20.34 | K189: =IFERROR((1+INDEX('Weighted UnitCost'!$A$3:$CI$1000,MATCH(MyDept&$C189,'Weighted UnitCost'!$B$3:$B$1000&'Weighted UnitCost'!$C$3:$C$1000,0),24))*(G189-H189)+L189, (1+INDEX('Weighted UnitCost'!$A$3:$CI$1000,MATCH("General"&"Other",'Weighted UnitCost'!$B$3:$B$1000&'Weighted UnitCost'!$C$3:$C$1000,0),24))*(G189-H189)+L189) -> 1730.604098 | L189: 20.34 | O189: 1703.285814
A190: 0 | B190: 5 | C190: 16 | G190: 2168.595147 | H190: =1818/1000*12 -> 21.816 | K190: =IFERROR((1+INDEX('Weighted UnitCost'!$A$3:$CI$1000,MATCH(MyDept&$C190,'Weighted UnitCost'!$B$3:$B$1000&'Weighted UnitCost'!$C$3:$C$1000,0),24))*(G190-H190)+L190, (1+INDEX('Weighted UnitCost'!$A$3:$CI$1000,MATCH("General"&"Other",'Weighted UnitCost'!$B$3:$B$1000&'Weighted UnitCost'!$C$3:$C$1000,0),24))*(G190-H190)+L190) -> 2205.086784 | L190: =1818/1000*12 -> 21.816 | O190: 2168.595147
A191: 0 | B191: 5 | C191: Other | G191: 2007.461925 | K191: =IFERROR((1+INDEX('Weighted UnitCost'!$A$3:$CI$1000,MATCH(MyDept&$C191,'Weighted UnitCost'!$B$3:$B$1000&'Weighted UnitCost'!$C$3:$C$1000,0),24))*(G191-H191)+L191, (1+INDEX('Weighted UnitCost'!$A$3:$CI$1000,MATCH("General"&"Other",'Weighted UnitCost'!$B$3:$B$1000&'Weighted UnitCost'!$C$3:$C$1000,0),24))*(G191-H191)+L191) -> 2081.139248 | O191: 2007.461925
A192: 0 | B192: 5 | C192: Other | G192: 2437.657495 | K192: =IFERROR((1+INDEX('Weighted UnitCost'!$A$3:$CI$1000,MATCH(MyDept&$C192,'Weighted UnitCost'!$B$3:$B$1000&'Weighted UnitCost'!$C$3:$C$1000,0),24))*(G192-H192)+L192, (1+INDEX('Weighted UnitCost'!$A$3:$CI$1000,MATCH("General"&"Other",'Weighted UnitCost'!$B$3:$B$1000&'Weighted UnitCost'!$C$3:$C$1000,0),24))*(G192-H192)+L192) -> 2527.123739 | O192: 2437.657495
A193: 0 | B193: 5 | C193: Other | G193: 259.6159983 | K193: =IFERROR((1+INDEX('Weighted UnitCost'!$A$3:$CI$1000,MATCH(MyDept&$C193,'Weighted UnitCost'!$B$3:$B$1000&'Weighted UnitCost'!$C$3:$C$1000,0),24))*(G193-H193)+L193, (1+INDEX('Weighted UnitCost'!$A$3:$CI$1000,MATCH("General"&"Other",'Weighted UnitCost'!$B$3:$B$1000&'Weighted UnitCost'!$C$3:$C$1000,0),24))*(G193-H193)+L193) -> 269.1443542 | O193: 259.6159983
A194: 0 | B194: 5 | C194: Other | G194: 259.6159983 | K194: =IFERROR((1+INDEX('Weighted UnitCost'!$A$3:$CI$1000,MATCH(MyDept&$C194,'Weighted UnitCost'!$B$3:$B$1000&'Weighted UnitCost'!$C$3:$C$1000,0),24))*(G194-H194)+L194, (1+INDEX('Weighted UnitCost'!$A$3:$CI$1000,MATCH("General"&"Other",'Weighted UnitCost'!$B$3:$B$1000&'Weighted UnitCost'!$C$3:$C$1000,0),24))*(G194-H194)+L194) -> 269.1443542 | O194: 259.6159983
A195: 0 | B195: 5 | C195: Total | D195: =SUM(D175:D194) -> 0 | E195: =SUM(E175:E194) -> 0 | F195: 0 | G195: =IFERROR(I195/F195,0) -> 0 | H195: =IFERROR(SUM(H175:H194)/K195,0) -> 0 | I195: =SUM(I175:I194) -> 0 | J195: =SUM(J175:J194) -> 0 | K195: =IFERROR(#REF!/#REF!,0) -> 0 | L195: =IFERROR(SUM(L175:L194)/#REF!,0) -> 0
A196: 0
A197: 0
A198: 0
A199: 0
A200: =$A$32 -> 0 | C200: =$C$32 -> 0
... 314 more rows

Sheet 5 (hidden)
A1: Filter | C1: HUMAN RESOURCE BUDGET PLAN | K1: 1
A2: 1
A3: 1 | C3: Financial Year: | D3: 2022/23
A4: 1 | C4: Sphere of Government: | D4: National
A5: 1 | C5: Name of Department: | D5: =Options!H45 -> Vote 05: Home Affairs
A6: -14
A7: -13
A8: -12
A9: -11
A10: -10
A11: -9
A12: -8
A13: -7
A14: -6
A15: -5
A16: -4
A17: -3
A18: -2
A19: -1
A20: 0
A21: 1
A22: 1 | C22: Department Summary Details
A23: 1
A24: 1 | D24: Establishment Structure | F24: Previous Financial Year | J24: Medium-term expenditure estimates
A25: 1 | D25: As at 31 March 2022 | F25: =LEFT($D$3,4)-1 & "/" & RIGHT($D$3,2)-1 -> 2021/22
A26: 1 | C26: Programmes | D26: Total number of funded posts | E26: of which: number of funded posts additional to the establishment | F26: FTE Headcount | G26: Unit Costs | H26: of which: Once-off Payments per person | I26: Total Annual Cost | J26: Initial Headcount | K26: Unit Costs | L26: of which: Once-off Payments per person
A27: 1 | B27: =IF(LEN(C27)>2,ROW()-26,"") -> 1 | C27: Administration | D27: =IF($C27="",0,OFFSET($C55,MATCH($C27,$C$55:$C$514,0)+24-SUM($A$27:$A27),COLUMN(D$1)-3)) -> 1019 | E27: =IF($C27="",0,OFFSET($C55,MATCH($C27,$C$55:$C$514,0)+24-SUM($A$27:$A27),COLUMN(E$1)-3)) -> 33 | F27: =IF($C27="",0,OFFSET($C55,MATCH($C27,$C$55:$C$514,0)+24-SUM($A$27:$A27),COLUMN(F$1)-3)) -> 1034.666667 | G27: =IF($C27="",0,OFFSET($C55,MATCH($C27,$C$55:$C$514,0)+24-SUM($A$27:$A27),COLUMN(G$1)-3)) -> 577.8253424 | H27: =IF($C27="",0,OFFSET($C55,MATCH($C27,$C$55:$C$514,0)+24-SUM($A$27:$A27),COLUMN(H$1)-3)) -> 0 | I27: =IF($C27="",0,OFFSET($C55,MATCH($C27,$C$55:$C$514,0)+24-SUM($A$27:$A27),COLUMN(I$1)-3)) -> 597856.621 | J27: =IF($C27="",0,OFFSET($C55,MATCH($C27,$C$55:$C$514,0)+24-SUM($A$27:$A27),COLUMN(J$1)-3)) -> 1017 | K27: =IF($C27="",0,OFFSET($C55,MATCH($C27,$C$55:$C$514,0)+24-SUM($A$27:$A27),COLUMN(K$1)-3)) -> 0 | L27: =IF($C27="",0,OFFSET($C55,MATCH($C27,$C$55:$C$514,0)+24-SUM($A$27:$A27),COLUMN(L$1)-3)) -> 0
A28: =IF(LEN(C28)>1,1,0) -> 1 | B28: 2 | C28: Citizen Affairs | D28: =IF($C28="",0,OFFSET($C56,MATCH($C28,$C$55:$C$514,0)+24-SUM($A$27:$A28),COLUMN(D$1)-3)) -> 5388 | F28: =IF($C28="",0,OFFSET($C56,MATCH($C28,$C$55:$C$514,0)+24-SUM($A$27:$A28),COLUMN(F$1)-3)) -> 5238.5 | G28: =IF($C28="",0,OFFSET($C56,MATCH($C28,$C$55:$C$514,0)+24-SUM($A$27:$A28),COLUMN(G$1)-3)) -> 417.7580538 | H28: =IF($C28="",0,OFFSET($C56,MATCH($C28,$C$55:$C$514,0)+24-SUM($A$27:$A28),COLUMN(H$1)-3)) -> 0 | I28: =IF($C28="",0,OFFSET($C56,MATCH($C28,$C$55:$C$514,0)+24-SUM($A$27:$A28),COLUMN(I$1)-3)) -> 2188425.565 | J28: =IF($C28="",0,OFFSET($C56,MATCH($C28,$C$55:$C$514,0)+24-SUM($A$27:$A28),COLUMN(J$1)-3)) -> 5367 | K28: =IF($C28="",0,OFFSET($C56,MATCH($C28,$C$55:$C$514,0)+24-SUM($A$27:$A28),COLUMN(K$1)-3)) -> 0 | L28: =IF($C28="",0,OFFSET($C56,MATCH($C28,$C$55:$C$514,0)+24-SUM($A$27:$A28),COLUMN(L$1)-3)) -> 0
A29: 1 | B29: 3 | C29: Immigration Affairs | D29: =IF($C29="",0,OFFSET($C57,MATCH($C29,$C$55:$C$514,0)+24-SUM($A$27:$A29),COLUMN(D$1)-3)) -> 1876 | E29: =IF($C29="",0,OFFSET($C57,MATCH($C29,$C$55:$C$514,0)+24-SUM($A$27:$A29),COLUMN(E$1)-3)) -> 0 | F29: =IF($C29="",0,OFFSET($C57,MATCH($C29,$C$55:$C$514,0)+24-SUM($A$27:$A29),COLUMN(F$1)-3)) -> 1894.333333 | G29: =IF($C29="",0,OFFSET($C57,MATCH($C29,$C$55:$C$514,0)+24-SUM($A$27:$A29),COLUMN(G$1)-3)) -> 444.4781285 | H29: =IF($C29="",0,OFFSET($C57,MATCH($C29,$C$55:$C$514,0)+24-SUM($A$27:$A29),COLUMN(H$1)-3)) -> 0 | I29: =IF($C29="",0,OFFSET($C57,MATCH($C29,$C$55:$C$514,0)+24-SUM($A$27:$A29),COLUMN(I$1)-3)) -> 841989.7347 | J29: =IF($C29="",0,OFFSET($C57,MATCH($C29,$C$55:$C$514,0)+24-SUM($A$27:$A29),COLUMN(J$1)-3)) -> 1875 | K29: =IF($C29="",0,OFFSET($C57,MATCH($C29,$C$55:$C$514,0)+24-SUM($A$27:$A29),COLUMN(K$1)-3)) -> 0 | L29: =IF($C29="",0,OFFSET($C57,MATCH($C29,$C$55:$C$514,0)+24-SUM($A$27:$A29),COLUMN(L$1)-3)) -> 0
A30: 1 | B30: 4 | C30: Institutional Support and Transfers | D30: =IF($C30="",0,OFFSET($C58,MATCH($C30,$C$55:$C$514,0)+24-SUM($A$27:$A30),COLUMN(D$1)-3)) -> 0 | E30: =IF($C30="",0,OFFSET($C58,MATCH($C30,$C$55:$C$514,0)+24-SUM($A$27:$A30),COLUMN(E$1)-3)) -> 0 | F30: =IF($C30="",0,OFFSET($C58,MATCH($C30,$C$55:$C$514,0)+24-SUM($A$27:$A30),COLUMN(F$1)-3)) -> 0.5 | G30: =IF($C30="",0,OFFSET($C58,MATCH($C30,$C$55:$C$514,0)+24-SUM($A$27:$A30),COLUMN(G$1)-3)) -> 1520.8554 | H30: =IF($C30="",0,OFFSET($C58,MATCH($C30,$C$55:$C$514,0)+24-SUM($A$27:$A30),COLUMN(H$1)-3)) -> 0 | I30: =IF($C30="",0,OFFSET($C58,MATCH($C30,$C$55:$C$514,0)+24-SUM($A$27:$A30),COLUMN(I$1)-3)) -> 760.4277 | J30: =IF($C30="",0,OFFSET($C58,MATCH($C30,$C$55:$C$514,0)+24-SUM($A$27:$A30),COLUMN(J$1)-3)) -> 8 | K30: =IF($C30="",0,OFFSET($C58,MATCH($C30,$C$55:$C$514,0)+24-SUM($A$27:$A30),COLUMN(K$1)-3)) -> 0 | L30: =IF($C30="",0,OFFSET($C58,MATCH($C30,$C$55:$C$514,0)+24-SUM($A$27:$A30),COLUMN(L$1)-3)) -> 0
A31: 0 | D31: =IF($C31="",0,OFFSET($C59,MATCH($C31,$C$55:$C$514,0)+24-SUM($A$27:$A31),COLUMN(D$1)-3)) -> 0 | E31: =IF($C31="",0,OFFSET($C59,MATCH($C31,$C$55:$C$514,0)+24-SUM($A$27:$A31),COLUMN(E$1)-3)) -> 0 | F31: =IF($C31="",0,OFFSET($C59,MATCH($C31,$C$55:$C$514,0)+24-SUM($A$27:$A31),COLUMN(F$1)-3)) -> 0 | G31: =IF($C31="",0,OFFSET($C59,MATCH($C31,$C$55:$C$514,0)+24-SUM($A$27:$A31),COLUMN(G$1)-3)) -> 0 | H31: =IF($C31="",0,OFFSET($C59,MATCH($C31,$C$55:$C$514,0)+24-SUM($A$27:$A31),COLUMN(H$1)-3)) -> 0 | I31: =IF($C31="",0,OFFSET($C59,MATCH($C31,$C$55:$C$514,0)+24-SUM($A$27:$A31),COLUMN(I$1)-3)) -> 0 | J31: =IF($C31="",0,OFFSET($C59,MATCH($C31,$C$55:$C$514,0)+24-SUM($A$27:$A31),COLUMN(J$1)-3)) -> 0 | K31: =IF($C31="",0,OFFSET($C59,MATCH($C31,$C$55:$C$514,0)+24-SUM($A$27:$A31),COLUMN(K$1)-3)) -> 0 | L31: =IF($C31="",0,OFFSET($C59,MATCH($C31,$C$55:$C$514,0)+24-SUM($A$27:$A31),COLUMN(L$1)-3)) -> 0
A32: 0 | D32: =IF($C32="",0,OFFSET($C60,MATCH($C32,$C$55:$C$514,0)+24-SUM($A$27:$A32),COLUMN(D$1)-3)) -> 0 | E32: =IF($C32="",0,OFFSET($C60,MATCH($C32,$C$55:$C$514,0)+24-SUM($A$27:$A32),COLUMN(E$1)-3)) -> 0 | F32: =IF($C32="",0,OFFSET($C60,MATCH($C32,$C$55:$C$514,0)+24-SUM($A$27:$A32),COLUMN(F$1)-3)) -> 0 | G32: =IF($C32="",0,OFFSET($C60,MATCH($C32,$C$55:$C$514,0)+24-SUM($A$27:$A32),COLUMN(G$1)-3)) -> 0 | H32: =IF($C32="",0,OFFSET($C60,MATCH($C32,$C$55:$C$514,0)+24-SUM($A$27:$A32),COLUMN(H$1)-3)) -> 0 | I32: =IF($C32="",0,OFFSET($C60,MATCH($C32,$C$55:$C$514,0)+24-SUM($A$27:$A32),COLUMN(I$1)-3)) -> 0 | J32: =IF($C32="",0,OFFSET($C60,MATCH($C32,$C$55:$C$514,0)+24-SUM($A$27:$A32),COLUMN(J$1)-3)) -> 0 | K32: =IF($C32="",0,OFFSET($C60,MATCH($C32,$C$55:$C$514,0)+24-SUM($A$27:$A32),COLUMN(K$1)-3)) -> 0 | L32: =IF($C32="",0,OFFSET($C60,MATCH($C32,$C$55:$C$514,0)+24-SUM($A$27:$A32),COLUMN(L$1)-3)) -> 0
A33: 0 | D33: =IF($C33="",0,OFFSET($C61,MATCH($C33,$C$55:$C$514,0)+24-SUM($A$27:$A33),COLUMN(D$1)-3)) -> 0 | E33: =IF($C33="",0,OFFSET($C61,MATCH($C33,$C$55:$C$514,0)+24-SUM($A$27:$A33),COLUMN(E$1)-3)) -> 0 | F33: =IF($C33="",0,OFFSET($C61,MATCH($C33,$C$55:$C$514,0)+24-SUM($A$27:$A33),COLUMN(F$1)-3)) -> 0 | G33: =IF($C33="",0,OFFSET($C61,MATCH($C33,$C$55:$C$514,0)+24-SUM($A$27:$A33),COLUMN(G$1)-3)) -> 0 | H33: =IF($C33="",0,OFFSET($C61,MATCH($C33,$C$55:$C$514,0)+24-SUM($A$27:$A33),COLUMN(H$1)-3)) -> 0 | I33: =IF($C33="",0,OFFSET($C61,MATCH($C33,$C$55:$C$514,0)+24-SUM($A$27:$A33),COLUMN(I$1)-3)) -> 0 | J33: =IF($C33="",0,OFFSET($C61,MATCH($C33,$C$55:$C$514,0)+24-SUM($A$27:$A33),COLUMN(J$1)-3)) -> 0 | K33: =IF($C33="",0,OFFSET($C61,MATCH($C33,$C$55:$C$514,0)+24-SUM($A$27:$A33),COLUMN(K$1)-3)) -> 0 | L33: =IF($C33="",0,OFFSET($C61,MATCH($C33,$C$55:$C$514,0)+24-SUM($A$27:$A33),COLUMN(L$1)-3)) -> 0
A34: 0 | D34: =IF($C34="",0,OFFSET($C62,MATCH($C34,$C$55:$C$514,0)+24-SUM($A$27:$A34),COLUMN(D$1)-3)) -> 0 | E34: =IF($C34="",0,OFFSET($C62,MATCH($C34,$C$55:$C$514,0)+24-SUM($A$27:$A34),COLUMN(E$1)-3)) -> 0 | F34: =IF($C34="",0,OFFSET($C62,MATCH($C34,$C$55:$C$514,0)+24-SUM($A$27:$A34),COLUMN(F$1)-3)) -> 0 | G34: =IF($C34="",0,OFFSET($C62,MATCH($C34,$C$55:$C$514,0)+24-SUM($A$27:$A34),COLUMN(G$1)-3)) -> 0 | H34: =IF($C34="",0,OFFSET($C62,MATCH($C34,$C$55:$C$514,0)+24-SUM($A$27:$A34),COLUMN(H$1)-3)) -> 0 | I34: =IF($C34="",0,OFFSET($C62,MATCH($C34,$C$55:$C$514,0)+24-SUM($A$27:$A34),COLUMN(I$1)-3)) -> 0 | J34: =IF($C34="",0,OFFSET($C62,MATCH($C34,$C$55:$C$514,0)+24-SUM($A$27:$A34),COLUMN(J$1)-3)) -> 0 | K34: =IF($C34="",0,OFFSET($C62,MATCH($C34,$C$55:$C$514,0)+24-SUM($A$27:$A34),COLUMN(K$1)-3)) -> 0 | L34: =IF($C34="",0,OFFSET($C62,MATCH($C34,$C$55:$C$514,0)+24-SUM($A$27:$A34),COLUMN(L$1)-3)) -> 0
A35: 0 | D35: =IF($C35="",0,OFFSET($C63,MATCH($C35,$C$55:$C$514,0)+24-SUM($A$27:$A35),COLUMN(D$1)-3)) -> 0 | E35: =IF($C35="",0,OFFSET($C63,MATCH($C35,$C$55:$C$514,0)+24-SUM($A$27:$A35),COLUMN(E$1)-3)) -> 0 | F35: =IF($C35="",0,OFFSET($C63,MATCH($C35,$C$55:$C$514,0)+24-SUM($A$27:$A35),COLUMN(F$1)-3)) -> 0 | G35: =IF($C35="",0,OFFSET($C63,MATCH($C35,$C$55:$C$514,0)+24-SUM($A$27:$A35),COLUMN(G$1)-3)) -> 0 | H35: =IF($C35="",0,OFFSET($C63,MATCH($C35,$C$55:$C$514,0)+24-SUM($A$27:$A35),COLUMN(H$1)-3)) -> 0 | I35: =IF($C35="",0,OFFSET($C63,MATCH($C35,$C$55:$C$514,0)+24-SUM($A$27:$A35),COLUMN(I$1)-3)) -> 0 | J35: =IF($C35="",0,OFFSET($C63,MATCH($C35,$C$55:$C$514,0)+24-SUM($A$27:$A35),COLUMN(J$1)-3)) -> 0 | K35: =IF($C35="",0,OFFSET($C63,MATCH($C35,$C$55:$C$514,0)+24-SUM($A$27:$A35),COLUMN(K$1)-3)) -> 0 | L35: =IF($C35="",0,OFFSET($C63,MATCH($C35,$C$55:$C$514,0)+24-SUM($A$27:$A35),COLUMN(L$1)-3)) -> 0
A36: 0 | D36: =IF($C36="",0,OFFSET($C64,MATCH($C36,$C$55:$C$514,0)+24-SUM($A$27:$A36),COLUMN(D$1)-3)) -> 0 | E36: =IF($C36="",0,OFFSET($C64,MATCH($C36,$C$55:$C$514,0)+24-SUM($A$27:$A36),COLUMN(E$1)-3)) -> 0 | F36: =IF($C36="",0,OFFSET($C64,MATCH($C36,$C$55:$C$514,0)+24-SUM($A$27:$A36),COLUMN(F$1)-3)) -> 0 | G36: =IF($C36="",0,OFFSET($C64,MATCH($C36,$C$55:$C$514,0)+24-SUM($A$27:$A36),COLUMN(G$1)-3)) -> 0 | H36: =IF($C36="",0,OFFSET($C64,MATCH($C36,$C$55:$C$514,0)+24-SUM($A$27:$A36),COLUMN(H$1)-3)) -> 0 | I36: =IF($C36="",0,OFFSET($C64,MATCH($C36,$C$55:$C$514,0)+24-SUM($A$27:$A36),COLUMN(I$1)-3)) -> 0 | J36: =IF($C36="",0,OFFSET($C64,MATCH($C36,$C$55:$C$514,0)+24-SUM($A$27:$A36),COLUMN(J$1)-3)) -> 0 | K36: =IF($C36="",0,OFFSET($C64,MATCH($C36,$C$55:$C$514,0)+24-SUM($A$27:$A36),COLUMN(K$1)-3)) -> 0 | L36: =IF($C36="",0,OFFSET($C64,MATCH($C36,$C$55:$C$514,0)+24-SUM($A$27:$A36),COLUMN(L$1)-3)) -> 0
A37: 0 | D37: =IF($C37="",0,OFFSET($C65,MATCH($C37,$C$55:$C$514,0)+24-SUM($A$27:$A37),COLUMN(D$1)-3)) -> 0 | E37: =IF($C37="",0,OFFSET($C65,MATCH($C37,$C$55:$C$514,0)+24-SUM($A$27:$A37),COLUMN(E$1)-3)) -> 0 | F37: =IF($C37="",0,OFFSET($C65,MATCH($C37,$C$55:$C$514,0)+24-SUM($A$27:$A37),COLUMN(F$1)-3)) -> 0 | G37: =IF($C37="",0,OFFSET($C65,MATCH($C37,$C$55:$C$514,0)+24-SUM($A$27:$A37),COLUMN(G$1)-3)) -> 0 | H37: =IF($C37="",0,OFFSET($C65,MATCH($C37,$C$55:$C$514,0)+24-SUM($A$27:$A37),COLUMN(H$1)-3)) -> 0 | I37: =IF($C37="",0,OFFSET($C65,MATCH($C37,$C$55:$C$514,0)+24-SUM($A$27:$A37),COLUMN(I$1)-3)) -> 0 | J37: =IF($C37="",0,OFFSET($C65,MATCH($C37,$C$55:$C$514,0)+24-SUM($A$27:$A37),COLUMN(J$1)-3)) -> 0 | K37: =IF($C37="",0,OFFSET($C65,MATCH($C37,$C$55:$C$514,0)+24-SUM($A$27:$A37),COLUMN(K$1)-3)) -> 0 | L37: =IF($C37="",0,OFFSET($C65,MATCH($C37,$C$55:$C$514,0)+24-SUM($A$27:$A37),COLUMN(L$1)-3)) -> 0
A38: 0 | D38: =IF($C38="",0,OFFSET($C66,MATCH($C38,$C$55:$C$514,0)+24-SUM($A$27:$A38),COLUMN(D$1)-3)) -> 0 | E38: =IF($C38="",0,OFFSET($C66,MATCH($C38,$C$55:$C$514,0)+24-SUM($A$27:$A38),COLUMN(E$1)-3)) -> 0 | F38: =IF($C38="",0,OFFSET($C66,MATCH($C38,$C$55:$C$514,0)+24-SUM($A$27:$A38),COLUMN(F$1)-3)) -> 0 | G38: =IF($C38="",0,OFFSET($C66,MATCH($C38,$C$55:$C$514,0)+24-SUM($A$27:$A38),COLUMN(G$1)-3)) -> 0 | H38: =IF($C38="",0,OFFSET($C66,MATCH($C38,$C$55:$C$514,0)+24-SUM($A$27:$A38),COLUMN(H$1)-3)) -> 0 | I38: =IF($C38="",0,OFFSET($C66,MATCH($C38,$C$55:$C$514,0)+24-SUM($A$27:$A38),COLUMN(I$1)-3)) -> 0 | J38: =IF($C38="",0,OFFSET($C66,MATCH($C38,$C$55:$C$514,0)+24-SUM($A$27:$A38),COLUMN(J$1)-3)) -> 0 | K38: =IF($C38="",0,OFFSET($C66,MATCH($C38,$C$55:$C$514,0)+24-SUM($A$27:$A38),COLUMN(K$1)-3)) -> 0 | L38: =IF($C38="",0,OFFSET($C66,MATCH($C38,$C$55:$C$514,0)+24-SUM($A$27:$A38),COLUMN(L$1)-3)) -> 0
A39: 0 | D39: =IF($C39="",0,OFFSET($C67,MATCH($C39,$C$55:$C$514,0)+24-SUM($A$27:$A39),COLUMN(D$1)-3)) -> 0 | E39: =IF($C39="",0,OFFSET($C67,MATCH($C39,$C$55:$C$514,0)+24-SUM($A$27:$A39),COLUMN(E$1)-3)) -> 0 | F39: =IF($C39="",0,OFFSET($C67,MATCH($C39,$C$55:$C$514,0)+24-SUM($A$27:$A39),COLUMN(F$1)-3)) -> 0 | G39: =IF($C39="",0,OFFSET($C67,MATCH($C39,$C$55:$C$514,0)+24-SUM($A$27:$A39),COLUMN(G$1)-3)) -> 0 | H39: =IF($C39="",0,OFFSET($C67,MATCH($C39,$C$55:$C$514,0)+24-SUM($A$27:$A39),COLUMN(H$1)-3)) -> 0 | I39: =IF($C39="",0,OFFSET($C67,MATCH($C39,$C$55:$C$514,0)+24-SUM($A$27:$A39),COLUMN(I$1)-3)) -> 0 | J39: =IF($C39="",0,OFFSET($C67,MATCH($C39,$C$55:$C$514,0)+24-SUM($A$27:$A39),COLUMN(J$1)-3)) -> 0 | K39: =IF($C39="",0,OFFSET($C67,MATCH($C39,$C$55:$C$514,0)+24-SUM($A$27:$A39),COLUMN(K$1)-3)) -> 0 | L39: =IF($C39="",0,OFFSET($C67,MATCH($C39,$C$55:$C$514,0)+24-SUM($A$27:$A39),COLUMN(L$1)-3)) -> 0
A40: 0 | D40: =IF($C40="",0,OFFSET($C68,MATCH($C40,$C$55:$C$514,0)+24-SUM($A$27:$A40),COLUMN(D$1)-3)) -> 0 | E40: =IF($C40="",0,OFFSET($C68,MATCH($C40,$C$55:$C$514,0)+24-SUM($A$27:$A40),COLUMN(E$1)-3)) -> 0 | F40: =IF($C40="",0,OFFSET($C68,MATCH($C40,$C$55:$C$514,0)+24-SUM($A$27:$A40),COLUMN(F$1)-3)) -> 0 | G40: =IF($C40="",0,OFFSET($C68,MATCH($C40,$C$55:$C$514,0)+24-SUM($A$27:$A40),COLUMN(G$1)-3)) -> 0 | H40: =IF($C40="",0,OFFSET($C68,MATCH($C40,$C$55:$C$514,0)+24-SUM($A$27:$A40),COLUMN(H$1)-3)) -> 0 | I40: =IF($C40="",0,OFFSET($C68,MATCH($C40,$C$55:$C$514,0)+24-SUM($A$27:$A40),COLUMN(I$1)-3)) -> 0 | J40: =IF($C40="",0,OFFSET($C68,MATCH($C40,$C$55:$C$514,0)+24-SUM($A$27:$A40),COLUMN(J$1)-3)) -> 0 | K40: =IF($C40="",0,OFFSET($C68,MATCH($C40,$C$55:$C$514,0)+24-SUM($A$27:$A40),COLUMN(K$1)-3)) -> 0 | L40: =IF($C40="",0,OFFSET($C68,MATCH($C40,$C$55:$C$514,0)+24-SUM($A$27:$A40),COLUMN(L$1)-3)) -> 0
A41: 0 | D41: =IF($C41="",0,OFFSET($C69,MATCH($C41,$C$55:$C$514,0)+24-SUM($A$27:$A41),COLUMN(D$1)-3)) -> 0 | E41: =IF($C41="",0,OFFSET($C69,MATCH($C41,$C$55:$C$514,0)+24-SUM($A$27:$A41),COLUMN(E$1)-3)) -> 0 | F41: =IF($C41="",0,OFFSET($C69,MATCH($C41,$C$55:$C$514,0)+24-SUM($A$27:$A41),COLUMN(F$1)-3)) -> 0 | G41: =IF($C41="",0,OFFSET($C69,MATCH($C41,$C$55:$C$514,0)+24-SUM($A$27:$A41),COLUMN(G$1)-3)) -> 0 | H41: =IF($C41="",0,OFFSET($C69,MATCH($C41,$C$55:$C$514,0)+24-SUM($A$27:$A41),COLUMN(H$1)-3)) -> 0 | I41: =IF($C41="",0,OFFSET($C69,MATCH($C41,$C$55:$C$514,0)+24-SUM($A$27:$A41),COLUMN(I$1)-3)) -> 0 | J41: =IF($C41="",0,OFFSET($C69,MATCH($C41,$C$55:$C$514,0)+24-SUM($A$27:$A41),COLUMN(J$1)-3)) -> 0 | K41: =IF($C41="",0,OFFSET($C69,MATCH($C41,$C$55:$C$514,0)+24-SUM($A$27:$A41),COLUMN(K$1)-3)) -> 0 | L41: =IF($C41="",0,OFFSET($C69,MATCH($C41,$C$55:$C$514,0)+24-SUM($A$27:$A41),COLUMN(L$1)-3)) -> 0
A42: 0 | D42: =IF($C42="",0,OFFSET($C70,MATCH($C42,$C$55:$C$514,0)+24-SUM($A$27:$A42),COLUMN(D$1)-3)) -> 0 | E42: =IF($C42="",0,OFFSET($C70,MATCH($C42,$C$55:$C$514,0)+24-SUM($A$27:$A42),COLUMN(E$1)-3)) -> 0 | F42: =IF($C42="",0,OFFSET($C70,MATCH($C42,$C$55:$C$514,0)+24-SUM($A$27:$A42),COLUMN(F$1)-3)) -> 0 | G42: =IF($C42="",0,OFFSET($C70,MATCH($C42,$C$55:$C$514,0)+24-SUM($A$27:$A42),COLUMN(G$1)-3)) -> 0 | H42: =IF($C42="",0,OFFSET($C70,MATCH($C42,$C$55:$C$514,0)+24-SUM($A$27:$A42),COLUMN(H$1)-3)) -> 0 | I42: =IF($C42="",0,OFFSET($C70,MATCH($C42,$C$55:$C$514,0)+24-SUM($A$27:$A42),COLUMN(I$1)-3)) -> 0 | J42: =IF($C42="",0,OFFSET($C70,MATCH($C42,$C$55:$C$514,0)+24-SUM($A$27:$A42),COLUMN(J$1)-3)) -> 0 | K42: =IF($C42="",0,OFFSET($C70,MATCH($C42,$C$55:$C$514,0)+24-SUM($A$27:$A42),COLUMN(K$1)-3)) -> 0 | L42: =IF($C42="",0,OFFSET($C70,MATCH($C42,$C$55:$C$514,0)+24-SUM($A$27:$A42),COLUMN(L$1)-3)) -> 0
A43: 1 | C43: Total | D43: =SUM(D23:D42) -> 8283 | E43: =SUM(E23:E42) -> 33 | F43: =SUM(F23:F42) -> 8168 | G43: =IFERROR(I43/F43,0) -> 444.2987694 | H43: =IFERROR(SUM(H27:H42)/COUNTIF(H27:H42,">0"),0) -> 0 | I43: =SUM(I23:I42) -> 3629032.348 | J43: =SUM(J23:J42) -> 8267 | K43: =IFERROR(#REF!/#REF!,0) -> 0 | L43: =IFERROR(SUM(L27:L42)/COUNTIF(L27:L42,">0"),0) -> 0
A44: 1 | C44: Salary Bands
A45: 1 | C45: 1 - 6 | D45: =SUMIFS(D$55:D$514,$C$55:$C$514,">=1",$C$55:$C$514,"<=6") -> 5487 | E45: =SUMIFS(E$55:E$514,$C$55:$C$514,">=1",$C$55:$C$514,"<=6") -> 0 | F45: =SUMIFS(F$55:F$514,$C$55:$C$514,">=1",$C$55:$C$514,"<=6") -> 5334.833333 | G45: =IFERROR(I45/F45,0) -> 364.1342271 | H45: =IFERROR(SUMIFS(H$55:H$514,$B$55:$B$514,">=1",$C$55:$C$514,"<>Total",$C$55:$C$514,">=1",$C$55:$C$514,"<=6")/COUNTIFS($B$55:$B$514,">=1",$C$55:$C$514,">=1",$C$55:$C$514,"<=6",#REF!,">0"),0) -> 0 | I45: =SUMIFS(I$55:I$514,$C$55:$C$514,">=1",$C$55:$C$514,"<=6") -> 1942595.413 | J45: =SUMIFS(J$55:J$514,$C$55:$C$514,">=1",$C$55:$C$514,"<=6") -> 5460 | K45: =IFERROR(#REF!/#REF!,0) -> 0 | L45: =IFERROR(SUMIFS(L$55:L$514,$B$55:$B$514,">=1",$C$55:$C$514,"<>Total",$C$55:$C$514,">=1",$C$55:$C$514,"<=6")/COUNTIFS($B$55:$B$514,">=1",$C$55:$C$514,">=1",$C$55:$C$514,"<=6",#REF!,">0"),0) -> 0
A46: 1 | C46: 7 - 10 | D46: =SUMIFS(D$55:D$514,$C$55:$C$514,">=7",$C$55:$C$514,"<=10") -> 2415 | E46: =SUMIFS(E$55:E$514,$C$55:$C$514,">=7",$C$55:$C$514,"<=10") -> 0 | F46: =SUMIFS(F$55:F$514,$C$55:$C$514,">=7",$C$55:$C$514,"<=10") -> 2451.583333 | G46: 519.1255471 | H46: =IFERROR(SUMIFS(H$55:H$514,$B$55:$B$514,">=1",$C$55:$C$514,"<>Total",$C$55:$C$514,">=7",$C$55:$C$514,"<=10")/COUNTIFS($B$55:$B$514,">=1",$C$55:$C$514,">=7",$C$55:$C$514,"<=10",#REF!,">0"),0) -> 0 | I46: =SUMIFS(I$55:I$514,$C$55:$C$514,">=7",$C$55:$C$514,"<=10") -> 1272679.539 | J46: =SUMIFS(J$55:J$514,$C$55:$C$514,">=7",$C$55:$C$514,"<=10") -> 2421 | K46: =IFERROR(#REF!/#REF!,0) -> 0 | L46: =IFERROR(SUMIFS(L$55:L$514,$B$55:$B$514,">=1",$C$55:$C$514,"<>Total",$C$55:$C$514,">=7",$C$55:$C$514,"<=10")/COUNTIFS($B$55:$B$514,">=1",$C$55:$C$514,">=7",$C$55:$C$514,"<=10",#REF!,">0"),0) -> 0
A47: 1 | C47: 11 - 12 | D47: =SUMIFS(D$55:D$514,$C$55:$C$514,">=11",$C$55:$C$514,"<=12") -> 212 | E47: =SUMIFS(E$55:E$514,$C$55:$C$514,">=11",$C$55:$C$514,"<=12") -> 0 | F47: =SUMIFS(F$55:F$514,$C$55:$C$514,">=11",$C$55:$C$514,"<=12") -> 214.3333333 | G47: 997.890281 | H47: =IFERROR(SUMIFS(H$55:H$514,$B$55:$B$514,">=1",$C$55:$C$514,"<>Total",$C$55:$C$514,">=11",$C$55:$C$514,"<=12")/COUNTIFS($B$55:$B$514,">=1",$C$55:$C$514,">=11",$C$55:$C$514,"<=12",#REF!,">0"),0) -> 0 | I47: =SUMIFS(I$55:I$514,$C$55:$C$514,">=11",$C$55:$C$514,"<=12") -> 213881.1502 | J47: =SUMIFS(J$55:J$514,$C$55:$C$514,">=11",$C$55:$C$514,"<=12") -> 212 | K47: =IFERROR(#REF!/#REF!,0) -> 0 | L47: =IFERROR(SUMIFS(L$55:L$514,$B$55:$B$514,">=1",$C$55:$C$514,"<>Total",$C$55:$C$514,">=11",$C$55:$C$514,"<=12")/COUNTIFS($B$55:$B$514,">=1",$C$55:$C$514,">=11",$C$55:$C$514,"<=12",#REF!,">0"),0) -> 0
A48: 1 | C48: 13 - 16 | D48: =SUMIFS(D$55:D$514,$C$55:$C$514,">=13",$C$55:$C$514,"<=16") -> 131 | E48: =SUMIFS(E$55:E$514,$C$55:$C$514,">=13",$C$55:$C$514,"<=16") -> 0 | F48: =SUMIFS(F$55:F$514,$C$55:$C$514,">=13",$C$55:$C$514,"<=16") -> 133.8333333 | G48: 1336.60384 | H48: =IFERROR(SUMIFS(H$55:H$514,$B$55:$B$514,">=1",$C$55:$C$514,"<>Total",$C$55:$C$514,">=13",$C$55:$C$514,"<=16")/COUNTIFS($B$55:$B$514,">=1",$C$55:$C$514,">=13",$C$55:$C$514,"<=16",#REF!,">0"),0) -> 0 | I48: =SUMIFS(I$55:I$514,$C$55:$C$514,">=13",$C$55:$C$514,"<=16") -> 178882.1473 | J48: =SUMIFS(J$55:J$514,$C$55:$C$514,">=13",$C$55:$C$514,"<=16") -> 135 | K48: =IFERROR(#REF!/#REF!,0) -> 0 | L48: =IFERROR(SUMIFS(L$55:L$514,$B$55:$B$514,">=1",$C$55:$C$514,"<>Total",$C$55:$C$514,">=13",$C$55:$C$514,"<=16")/COUNTIFS($B$55:$B$514,">=1",$C$55:$C$514,">=13",$C$55:$C$514,"<=16",#REF!,">0"),0) -> 0
A49: 1 | C49: Other | D49: =D43-SUM(D45:D48) -> 38 | E49: =E43-SUM(E45:E48) -> 33 | F49: =F43-SUM(F45:F48) -> 33.41666667 | G49: 628.252335 | H49: =IFERROR((SUMIFS(H$55:H$514,$B$55:$B$514,">=1",$C$55:$C$514,"<>Total")-SUMIFS(H$55:H$514,$B$55:$B$514,">=1",$C$55:$C$514,"<=16"))/(COUNTIFS($B$55:$B$514,">=1",$C$55:$C$514,"<>Total",#REF!,">0")-COUNTIFS($B$55:$B$514,">=1",$C$55:$C$514,"<=16",#REF!,">0"=(SUMIFS(H$55:H$514,$B$55:$B$514,">=1",$C$55:$C$514,"<>Total")-SUMIFS(H$55:H$514,$B$55:$B$514,">=1",$C$55:$C$514,"<=16"))/(COUNTIFS($B$55:$B$514,">=1",$C$55:$C$514,"<>Total",#REF!,">0")-COUNTIFS($B$55:$B$514,">=1",$C$55:$C$514,"<=16",#REF!,">0")))),0) -> 0 | I49: =I43-SUM(I45:I48) -> 20994.09886 | J49: =J43-SUM(J45:J48) -> 39 | K49: =IFERROR(#REF!/#REF!,0) -> 0 | L49: =IFERROR((SUMIFS(L$55:L$514,$B$55:$B$514,">=1",$C$55:$C$514,"<>Total")-SUMIFS(L$55:L$514,$B$55:$B$514,">=1",$C$55:$C$514,"<=16"))/(COUNTIFS($B$55:$B$514,">=1",$C$55:$C$514,"<>Total",#REF!,">0")-COUNTIFS($B$55:$B$514,">=1",$C$55:$C$514,"<=16",#REF!,">0"=(SUMIFS(L$55:L$514,$B$55:$B$514,">=1",$C$55:$C$514,"<>Total")-SUMIFS(L$55:L$514,$B$55:$B$514,">=1",$C$55:$C$514,"<=16"))/(COUNTIFS($B$55:$B$514,">=1",$C$55:$C$514,"<>Total",#REF!,">0")-COUNTIFS($B$55:$B$514,">=1",$C$55:$C$514,"<=16",#REF!,">0")))),0) -> 0
A50: 1 | C50: Total | D50: =SUM(D45:D49) -> 8283 | E50: =SUM(E45:E49) -> 33 | F50: =SUM(F45:F49) -> 8168 | G50: 444.2987694 | H50: =IFERROR(SUMIF($C$55:$C$514,"Total",H$55:H$514)/COUNTIF(H27:H42,">0"),0) -> 0 | I50: =SUM(I45:I49) -> 3629032.348 | J50: =SUM(J45:J49) -> 8267 | K50: =IFERROR(#REF!/#REF!,0) -> 0 | L50: =IFERROR(SUMIF($C$55:$C$514,"Total",L$55:L$514)/COUNTIF(L27:L42,">0"),0) -> 0
A51: 1 | C51: Checks | D51: =D43-D50 -> 0 | E51: 0 | F51: 0 | G51: 0 | H51: 0 | I51: 0 | J51: 0 | K51: 0 | L51: 0
A52: 1
A53: 1 | C53: Department Programme Details
A54: 1
A55: =$A$27 -> 1 | C55: =$C$27 -> Administration
A56: =A$55 -> 1 | D56: Establishment Structure | F56: Previous Financial Year | J56: Medium-term expenditure estimates
A57: 1 | D57: As at 31 March 2022 | F57: =LEFT($D$3,4)-1 & "/" & RIGHT($D$3,2)-1 -> 2021/22
A58: 1 | B58: ProgNo. | C58: Salary level | D58: Total number of funded posts | E58: of which: number of funded posts additional to the establishment | F58: FTE Headcount | G58: Unit Costs | H58: of which: Once-off Payments per person | I58: Total Annual Cost | J58: Initial Headcount | K58: Unit Costs | L58: of which: Once-off Payments per person
A59: 1 | B59: 1 | C59: 1 | G59: =IFERROR(IF(I59=0,O59,I59/F59),0) -> 99.95105925 | H59: =1220/1000*12 -> 14.64 | K59: 101.2331598 | L59: =1220/1000*12 -> 14.64 | O59: 99.95105925
A60: 1 | B60: 1 | C60: 2 | D60: 1 | F60: 1 | G60: =IFERROR(IF(I60=0,O60,I60/F60),0) -> 156.80226 | H60: =1220/1000*12 -> 14.64 | I60: 156.80226 | J60: 1 | K60: 160.4670429 | L60: =1220/1000*12 -> 14.64 | O60: 179.5147433
A61: 1 | B61: 1 | C61: 3 | D61: 41 | F61: 41.58333333 | G61: 223.3540838 | H61: =1220/1000*12 -> 14.64 | I61: 9287.80732 | J61: 41 | K61: 228.8364969 | L61: =1220/1000*12 -> 14.64 | O61: 216.6722944
A62: 1 | B62: 1 | C62: 4 | G62: 236.0392102 | H62: =1220/1000*12 -> 14.64 | K62: 241.9499725 | L62: =1220/1000*12 -> 14.64 | O62: 236.0392102
A63: 1 | B63: 1 | C63: 5 | D63: 25 | F63: 26.83333333 | G63: 307.40208 | H63: =1220/1000*12 -> 14.64 | I63: 8248.62248 | J63: 25 | K63: 314.1530911 | L63: =1220/1000*12 -> 14.64 | O63: 290.5081548
A64: 1 | B64: 1 | C64: 6 | D64: 343 | F64: 350.3333333 | G64: 359.5366964 | H64: =1352/1000*12 -> 16.224 | I64: 125957.6893 | J64: 339 | K64: 367.6731136 | L64: =1352/1000*12 -> 16.224 | O64: 341.7085708
A65: 1 | B65: 1 | C65: 7 | D65: 95 | F65: 93.16666667 | G65: 419.9187211 | H65: =1352/1000*12 -> 16.224 | I65: 39122.42752 | J65: 96 | K65: 428.584074 | L65: =1352/1000*12 -> 16.224 | O65: 455.5004418
A66: 1 | B66: 1 | C66: 8 | D66: 160 | F66: 164.1666667 | G66: 498.9986661 | H66: =1450/1000*12 -> 17.4 | I66: 81918.94769 | J66: 160 | K66: 509.6202311 | L66: =1450/1000*12 -> 17.4 | O66: 520.4674487
A67: 1 | B67: 1 | C67: 9 | D67: 23 | F67: 23 | G67: 549.6596852 | H67: =1450/1000*12 -> 17.4 | I67: 12642.17276 | J67: 24 | K67: 561.7540195 | L67: =1450/1000*12 -> 17.4 | O67: 586.4171069
A68: 1 | B68: 1 | C68: 10 | D68: 94 | F68: 100.1666667 | G68: 725.7252857 | H68: =1640/1000*12 -> 19.68 | I68: 72693.48278 | J68: 94 | K68: 738.9628311 | L68: =1640/1000*12 -> 19.68 | O68: 699.4852566
A69: 1 | B69: 1 | C69: 11 | D69: 44 | F69: 40.58333333 | G69: 820.9281324 | H69: =1640/1000*12 -> 19.68 | I69: 33316.00004 | J69: 44 | K69: 836.7904691 | L69: =1640/1000*12 -> 19.68 | O69: 799.6834333
A70: 1 | B70: 1 | C70: 12 | D70: 83 | F70: 85.33333333 | G70: 1096.039199 | H70: =1695/1000*12 -> 20.34 | I70: 93528.67833 | J70: 83 | K70: 1115.8242 | L70: =1695/1000*12 -> 20.34 | O70: 1014.272904
A71: 1 | B71: 1 | C71: 13 | D71: 49 | F71: 51.08333333 | G71: 1209.255145 | H71: =1695/1000*12 -> 20.34 | I71: 61772.78368 | J71: 48 | K71: 1230.525373 | L71: =1695/1000*12 -> 20.34 | O71: 1152.258047
A72: 1 | B72: 1 | C72: 14 | D72: 14 | F72: 13.66666667 | G72: 1435.658055 | H72: 20.34 | I72: 19620.66008 | J72: 14 | K72: 1460.688124 | L72: 20.34 | O72: 1409.161406
A73: 1 | B73: 1 | C73: 15 | D73: 6 | F73: 7 | G73: 1606.591047 | H73: 20.34 | I73: 11246.13733 | J73: 6 | K73: 1634.016393 | L73: 20.34 | O73: 1703.285814
A74: 1 | B74: 1 | C74: 16 | D74: 3 | F74: 3.333333333 | G74: 2205.093159 | H74: =1818/1000*12 -> 21.816 | I74: 7350.31053 | J74: 3 | K74: 2237.823148 | L74: =1818/1000*12 -> 21.816 | O74: 2168.595147
A75: 1 | B75: 1 | C75: Deputy Minister | G75: 2007.461925 | K75: 2037.990877 | O75: 2007.461925
A76: 1 | B76: 1 | C76: Minister | G76: 2437.657495 | K76: 2474.728748 | O76: 2437.657495
A77: 1 | B77: 1 | C77: Other | D77: 38 | E77: 33 | F77: 33.41666667 | G77: 628.252335 | I77: 20994.09886 | J77: 39 | K77: 637.6784241 | O77: 259.6159983
A78: 1 | B78: 1 | C78: Other | G78: 259.6159983 | K78: 263.5111904 | O78: 259.6159983
A79: 1 | B79: 1 | C79: Total | D79: =SUM(D59:D78) -> 1019 | E79: =SUM(E59:E78) -> 33 | F79: 1034.666667 | G79: =IFERROR(I79/F79,0) -> 577.8253424 | H79: =IFERROR(SUM(H59:H78)/K79,0) -> 0 | I79: =SUM(I59:I78) -> 597856.621 | J79: =SUM(J59:J78) -> 1017 | K79: =IFERROR(#REF!/#REF!,0) -> 0 | L79: =IFERROR(SUM(L59:L78)/#REF!,0) -> 0
A80: 1
A81: 1
A82: 1
A83: 1
A84: =$A$28 -> 1 | C84: =$C$28 -> Citizen Affairs
A85: =A$84 -> 1 | D85: Establishment Structure | F85: Previous Financial Year | J85: Medium-term expenditure estimates
A86: 1 | D86: As at 31 March 2022 | F86: =LEFT($D$3,4)-1 & "/" & RIGHT($D$3,2)-1 -> 2021/22
A87: 1 | C87: Salary level | D87: Total number of funded posts | E87: of which: number of funded posts additional to the establishment | F87: FTE Headcount | G87: Unit Costs | H87: of which: Once-off Payments per person | I87: Total Annual Cost | J87: Initial Headcount | K87: Unit Costs | L87: of which: Once-off Payments per person
A88: 1 | B88: 2 | C88: 1 | G88: =IFERROR(IF(I88=0,O88,I88/F88),0) -> 99.95105925 | H88: =1220/1000*12 -> 14.64 | K88: 101.2331598 | L88: =1220/1000*12 -> 14.64 | O88: 99.95105925
A89: 1 | B89: 2 | C89: 2 | G89: =IFERROR(IF(I89=0,O89,I89/F89),0) -> 179.5147433 | H89: =1220/1000*12 -> 14.64 | K89: 183.7650284 | L89: =1220/1000*12 -> 14.64 | O89: 179.5147433
A90: 1 | B90: 2 | C90: 3 | D90: 251 | G90: 216.6722944 | H90: =1220/1000*12 -> 14.64 | J90: 251 | K90: 221.9791931 | L90: =1220/1000*12 -> 14.64 | O90: 216.6722944
A91: 1 | B91: 2 | C91: 4 | G91: 236.0392102 | H91: =1220/1000*12 -> 14.64 | K91: 241.9499725 | L91: =1220/1000*12 -> 14.64 | O91: 236.0392102
A92: 1 | B92: 2 | C92: 5 | D92: 166 | F92: 168.4166667 | G92: 308.1109055 | H92: =1220/1000*12 -> 14.64 | I92: 51891.01166 | J92: 165 | K92: 314.8782619 | L92: =1220/1000*12 -> 14.64 | O92: 290.5081548
A93: 1 | B93: 2 | C93: 6 | D93: 3373 | F93: 3438.083333 | G93: 367.9812662 | H93: =1352/1000*12 -> 16.224 | I93: 1265150.258 | J93: 3357 | K93: 376.3178174 | L93: =1352/1000*12 -> 16.224 | O93: 341.7085708
A94: 1 | B94: 2 | C94: 7 | D94: 752 | F94: 787.9166667 | G94: 421.9335129 | H94: =1352/1000*12 -> 16.224 | I94: 332448.4471 | J94: 741 | K94: 430.6421135 | L94: =1352/1000*12 -> 16.224 | O94: 455.5004418
A95: 1 | B95: 2 | C95: 8 | D95: 498 | F95: 488.75 | G95: 505.2792002 | H95: =1450/1000*12 -> 17.4 | I95: 246955.2091 | J95: 506 | K95: 516.0392811 | L95: =1450/1000*12 -> 17.4 | O95: 520.4674487
A96: 1 | B96: 2 | C96: 9 | D96: 36 | F96: 37.16666667 | G96: 557.03713 | H96: =1450/1000*12 -> 17.4 | I96: 20703.21333 | J96: 36 | K96: 569.2990991 | L96: =1450/1000*12 -> 17.4 | O96: 586.4171069
A97: 1 | B97: 2 | C97: 10 | D97: 217 | F97: 221.5 | G97: 727.6516978 | H97: =1640/1000*12 -> 19.68 | I97: 161174.8511 | J97: 216 | K97: 740.9253612 | L97: =1640/1000*12 -> 19.68 | O97: 699.4852566
A98: 1 | B98: 2 | C98: 11 | D98: 9 | F98: 9 | G98: 814.8177511 | H98: =1640/1000*12 -> 19.68 | I98: 7333.35976 | J98: 9 | K98: 830.5591204 | L98: =1640/1000*12 -> 19.68 | O98: 799.6834333
A99: 1 | B99: 2 | C99: 12 | D99: 45 | F99: 47.08333333 | G99: 1006.104717 | H99: =1695/1000*12 -> 20.34 | I99: 47370.76376 | J99: 45 | K99: 1024.235581 | L99: =1695/1000*12 -> 20.34 | O99: 1014.272904
A100: 1 | B100: 2 | C100: 13 | D100: 30 | F100: 30.58333333 | G100: 1361.033069 | H100: =1695/1000*12 -> 20.34 | I100: 41624.92804 | J100: 30 | K100: 1385.018672 | L100: =1695/1000*12 -> 20.34 | O100: 1152.258047
A101: 1 | B101: 2 | C101: 14 | D101: 10 | F101: 9 | G101: 1356.517612 | H101: 20.34 | I101: 12208.65851 | J101: 10 | K101: 1380.148073 | L101: 20.34 | O101: 1409.161406
A102: 1 | B102: 2 | C102: 15 | D102: 1 | F102: 1 | G102: 1564.86419 | H102: 20.34 | I102: 1564.86419 | J102: 1 | K102: 1591.568103 | L102: 20.34 | O102: 1703.285814
A103: 1 | B103: 2 | C103: 16 | G103: 2168.595147 | H103: =1818/1000*12 -> 21.816 | K103: 2200.777986 | L103: =1818/1000*12 -> 21.816 | O103: 2168.595147
A104: 1 | B104: 2 | C104: Other | G104: 2007.461925 | K104: 2037.581216 | O104: 2007.461925
A105: 1 | B105: 2 | C105: Other | G105: 2437.657495 | K105: 2474.231298 | O105: 2437.657495
A106: 1 | B106: 2 | C106: Other | G106: 259.6159983 | K106: 263.5111904 | O106: 259.6159983
A107: 1 | B107: 2 | C107: Other | G107: 259.6159983 | K107: 263.5111904 | O107: 259.6159983
A108: 1 | B108: 2 | C108: Total | D108: =SUM(D88:D107) -> 5388 | E108: =SUM(E88:E107) -> 0 | F108: 5238.5 | G108: =IFERROR(I108/F108,0) -> 417.7580538 | H108: =IFERROR(SUM(H88:H107)/K108,0) -> 0 | I108: =SUM(I88:I107) -> 2188425.565 | J108: =SUM(J88:J107) -> 5367 | K108: =IFERROR(#REF!/#REF!,0) -> 0 | L108: =IFERROR(SUM(L88:L107)/#REF!,0) -> 0
A109: 1
A110: 1
A111: 1
A112: 1
A113: =$A$29 -> 1 | C113: =$C$29 -> Immigration Affairs
A114: =A$113 -> 1 | D114: Establishment Structure | F114: Previous Financial Year | J114: Medium-term expenditure estimates
A115: 1 | D115: As at 31 March 2022 | F115: =LEFT($D$3,4)-1 & "/" & RIGHT($D$3,2)-1 -> 2021/22
A116: 1 | C116: Salary level | D116: Total number of funded posts | E116: of which: number of funded posts additional to the establishment | F116: FTE Headcount | G116: Unit Costs | H116: of which: Once-off Payments per person | I116: Total Annual Cost | J116: Initial Headcount | K116: Unit Costs | L116: of which: Once-off Payments per person
A117: 1 | B117: 3 | C117: 1 | G117: =IFERROR(IF(I117=0,O117,I117/F117),0) -> 99.95105925 | H117: =1220/1000*12 -> 14.64 | K117: 101.2331598 | L117: =1220/1000*12 -> 14.64 | O117: 99.95105925
A118: 1 | B118: 3 | C118: 2 | G118: =IFERROR(IF(I118=0,O118,I118/F118),0) -> 179.5147433 | H118: =1220/1000*12 -> 14.64 | K118: 183.7650284 | L118: =1220/1000*12 -> 14.64 | O118: 179.5147433
A119: 1 | B119: 3 | C119: 3 | D119: 58 | F119: 59.16666667 | G119: 241.8495176 | H119: =1220/1000*12 -> 14.64 | I119: 14309.42979 | J119: 58 | K119: 247.8177608 | L119: =1220/1000*12 -> 14.64 | O119: 216.6722944
A120: 1 | B120: 3 | C120: 4 | D120: 4 | F120: 4.583333333 | G120: 228.8959549 | H120: =1220/1000*12 -> 14.64 | I120: 1049.10646 | J120: 4 | K120: 234.6160115 | L120: =1220/1000*12 -> 14.64 | O120: 236.0392102
A121: 1 | B121: 3 | C121: 5 | D121: 12 | F121: 12.41666667 | G121: 312.6182867 | H121: =1220/1000*12 -> 14.64 | I121: 3881.67706 | J121: 11 | K121: 319.4895821 | L121: =1220/1000*12 -> 14.64 | O121: 290.5081548
A122: 1 | B122: 3 | C122: 6 | D122: 1213 | F122: 1232.25 | G122: 375.4287205 | H122: =1352/1000*12 -> 16.224 | I122: 462622.0408 | J122: 1206 | K122: 383.9417743 | L122: =1352/1000*12 -> 16.224 | O122: 341.7085708
A123: 1 | B123: 3 | C123: 7 | D123: 66 | F123: 56.33333333 | G123: 423.0520756 | H123: =1352/1000*12 -> 16.224 | I123: 23831.93359 | J123: 71 | K123: 431.7846862 | L123: =1352/1000*12 -> 16.224 | O123: 455.5004418
A124: 1 | B124: 3 | C124: 8 | D124: 374 | F124: 378.9166667 | G124: 526.7920641 | H124: =1450/1000*12 -> 17.4 | I124: 199610.2929 | J124: 374 | K124: 538.026607 | L124: =1450/1000*12 -> 17.4 | O124: 520.4674487
A125: 1 | B125: 3 | C125: 9 | D125: 3 | F125: 3 | G125: 589.5499433 | H125: =1450/1000*12 -> 17.4 | I125: 1768.64983 | J125: 4 | K125: 602.5506888 | L125: =1450/1000*12 -> 17.4 | O125: 586.4171069
A126: 1 | B126: 3 | C126: 10 | D126: 97 | F126: 97.33333333 | G126: 819.1093587 | H126: =1640/1000*12 -> 19.68 | I126: 79726.64425 | J126: 97 | K126: 834.0977492 | L126: =1640/1000*12 -> 19.68 | O126: 699.4852566
A127: 1 | B127: 3 | C127: 11 | G127: 799.6834333 | H127: =1640/1000*12 -> 19.68 | K127: 815.125188 | L127: =1640/1000*12 -> 19.68 | O127: 799.6834333
A128: 1 | B128: 3 | C128: 12 | D128: 31 | F128: 32.33333333 | G128: 999.9695363 | H128: =1695/1000*12 -> 20.34 | I128: 32332.34834 | J128: 31 | K128: 1017.987558 | L128: =1695/1000*12 -> 20.34 | O128: 1014.272904
A129: 1 | B129: 3 | C129: 13 | D129: 12 | F129: 12 | G129: 1169.493216 | H129: =1695/1000*12 -> 20.34 | I129: 14033.91859 | J129: 13 | K129: 1190.052085 | L129: =1695/1000*12 -> 20.34 | O129: 1152.258047
A130: 1 | B130: 3 | C130: 14 | D130: 5 | F130: 5 | G130: 1412.691972 | H130: 20.34 | I130: 7063.45986 | J130: 5 | K130: 1437.315883 | L130: 20.34 | O130: 1409.161406
A131: 1 | B131: 3 | C131: 15 | D131: 1 | F131: 1 | G131: 1760.23314 | H131: 20.34 | I131: 1760.23314 | J131: 1 | K131: 1790.314867 | L131: 20.34 | O131: 1703.285814
A132: 1 | B132: 3 | C132: 16 | G132: 2168.595147 | H132: =1818/1000*12 -> 21.816 | K132: 2200.777986 | L132: =1818/1000*12 -> 21.816 | O132: 2168.595147
A133: 1 | B133: 3 | C133: Other | G133: 2007.461925 | K133: 2037.581216 | O133: 2007.461925
A134: 1 | B134: 3 | C134: Other | G134: 2437.657495 | K134: 2474.231298 | O134: 2437.657495
A135: 1 | B135: 3 | C135: Other | G135: 259.6159983 | K135: 263.5111904 | O135: 259.6159983
A136: 1 | B136: 3 | C136: Other | G136: 259.6159983 | K136: 263.5111904 | O136: 259.6159983
A137: 1 | B137: 3 | C137: Total | D137: =SUM(D117:D136) -> 1876 | E137: =SUM(E117:E136) -> 0 | F137: 1894.333333 | G137: =IFERROR(I137/F137,0) -> 444.4781285 | H137: =IFERROR(SUM(H117:H136)/K137,0) -> 0 | I137: =SUM(I117:I136) -> 841989.7347 | J137: =SUM(J117:J136) -> 1875 | K137: =IFERROR(#REF!/#REF!,0) -> 0 | L137: =IFERROR(SUM(L117:L136)/#REF!,0) -> 0
A138: 1
A139: 1
A140: 1
A141: 1
A142: =$A$30 -> 1 | C142: =$C$30 -> Institutional Support and Transfers
A143: =A$142 -> 1 | D143: Establishment Structure | F143: Previous Financial Year | J143: Medium-term expenditure estimates
A144: 1 | D144: As at 31 March 2022 | F144: =LEFT($D$3,4)-1 & "/" & RIGHT($D$3,2)-1 -> 2021/22
A145: 1 | C145: Salary level | D145: Total number of funded posts | E145: of which: number of funded posts additional to the establishment | F145: FTE Headcount | G145: Unit Costs | H145: of which: Once-off Payments per person | I145: Total Annual Cost | J145: Initial Headcount | K145: Unit Costs | L145: of which: Once-off Payments per person
A146: 1 | B146: 4 | C146: 1 | G146: =IFERROR(IF(I146=0,O146,I146/F146),0) -> 99.95105925 | H146: =1220/1000*12 -> 14.64 | K146: 101.2331598 | L146: =1220/1000*12 -> 14.64 | O146: 99.95105925
A147: 1 | B147: 4 | C147: 2 | G147: =IFERROR(IF(I147=0,O147,I147/F147),0) -> 179.5147433 | H147: =1220/1000*12 -> 14.64 | K147: 183.7650284 | L147: =1220/1000*12 -> 14.64 | O147: 179.5147433
A148: 1 | B148: 4 | C148: 3 | F148: 0.08333333333 | G148: 185.22396 | H148: =1220/1000*12 -> 14.64 | I148: 15.43533 | J148: 1 | K148: 189.7047871 | L148: =1220/1000*12 -> 14.64 | O148: 216.6722944
A149: 1 | B149: 4 | C149: 4 | G149: 236.0392102 | H149: =1220/1000*12 -> 14.64 | K149: 241.9499725 | L149: =1220/1000*12 -> 14.64 | O149: 236.0392102
A150: 1 | B150: 4 | C150: 5 | G150: 290.5081548 | H150: =1220/1000*12 -> 14.64 | K150: 296.8695967 | L150: =1220/1000*12 -> 14.64 | O150: 290.5081548
A151: 1 | B151: 4 | C151: 6 | F151: 0.08333333333 | G151: 306.38016 | H151: =1352/1000*12 -> 16.224 | I151: 25.53168 | J151: 1 | K151: 313.2567818 | L151: =1352/1000*12 -> 16.224 | O151: 341.7085708
A152: 1 | B152: 4 | C152: 7 | G152: 455.5004418 | H152: =1352/1000*12 -> 16.224 | K152: 464.9295602 | L152: =1352/1000*12 -> 16.224 | O152: 455.5004418
A153: 1 | B153: 4 | C153: 8 | F153: 0.08333333333 | G153: 458.02332 | H153: =1450/1000*12 -> 17.4 | I153: 38.16861 | J153: 1 | K153: 467.7411816 | L153: =1450/1000*12 -> 17.4 | O153: 520.4674487
A154: 1 | B154: 4 | C154: 9 | F154: 0.08333333333 | G154: 541.185 | H154: =1450/1000*12 -> 17.4 | I154: 45.09875 | J154: 1 | K154: 553.0867673 | L154: =1450/1000*12 -> 17.4 | O154: 586.4171069
A155: 1 | B155: 4 | C155: 10 | G155: 699.4852566 | H155: =1640/1000*12 -> 19.68 | K155: 712.2308313 | L155: =1640/1000*12 -> 19.68 | O155: 699.4852566
A156: 1 | B156: 4 | C156: 11 | G156: 799.6834333 | H156: =1640/1000*12 -> 19.68 | K156: 815.125188 | L156: =1640/1000*12 -> 19.68 | O156: 799.6834333
A157: 1 | B157: 4 | C157: 12 | G157: 1014.272904 | H157: =1695/1000*12 -> 20.34 | K157: 1032.554003 | L157: =1695/1000*12 -> 20.34 | O157: 1014.272904
A158: 1 | B158: 4 | C158: 13 | G158: 1152.258047 | H158: =1695/1000*12 -> 20.34 | K158: 1172.50857 | L158: =1695/1000*12 -> 20.34 | O158: 1152.258047
A159: 1 | B159: 4 | C159: 14 | G159: 1409.161406 | H159: 20.34 | K159: 1433.722878 | L159: 20.34 | O159: 1409.161406
A160: 1 | B160: 4 | C160: 15 | F160: 0.08333333333 | G160: 5294.58996 | H160: 20.34 | I160: 441.21583 | J160: 3 | K160: 5385.778635 | L160: 20.34 | O160: 1703.285814
A161: 1 | B161: 4 | C161: 16 | F161: 0.08333333333 | G161: 2339.73 | H161: =1818/1000*12 -> 21.816 | I161: 194.9775 | J161: 1 | K161: 2374.478359 | L161: =1818/1000*12 -> 21.816 | O161: 2168.595147
A162: 1 | B162: 4 | C162: Other | G162: 2007.461925 | K162: 2037.581216 | O162: 2007.461925
A163: 1 | B163: 4 | C163: Other | G163: 2437.657495 | K163: 2474.231298 | O163: 2437.657495
A164: 1 | B164: 4 | C164: Other | G164: 259.6159983 | K164: 263.5111904 | O164: 259.6159983
A165: 1 | B165: 4 | C165: Other | G165: 259.6159983 | K165: 263.5111904 | O165: 259.6159983
A166: 1 | B166: 4 | C166: Total | D166: =SUM(D146:D165) -> 0 | E166: =SUM(E146:E165) -> 0 | F166: 0.5 | G166: =IFERROR(I166/F166,0) -> 1520.8554 | H166: =IFERROR(SUM(H146:H165)/K166,0) -> 0 | I166: =SUM(I146:I165) -> 760.4277 | J166: =SUM(J146:J165) -> 8 | K166: =IFERROR(#REF!/#REF!,0) -> 0 | L166: =IFERROR(SUM(L146:L165)/#REF!,0) -> 0
A167: 1
A168: 1
A169: 1
A170: 1
A171: =$A$31 -> 0 | C171: =$C$31 -> 0
A172: =A$171 -> 0 | D172: Establishment Structure | F172: Previous Financial Year | J172: Medium-term expenditure estimates
A173: 0 | D173: As at 31 March 2022 | F173: =LEFT($D$3,4)-1 & "/" & RIGHT($D$3,2)-1 -> 2021/22
A174: 0 | C174: Salary level | D174: Total number of funded posts | E174: of which: number of funded posts additional to the establishment | F174: FTE Headcount | G174: Unit Costs | H174: of which: Once-off Payments per person | I174: Total Annual Cost | J174: Initial Headcount | K174: Unit Costs | L174: of which: Once-off Payments per person
A175: 0 | B175: 5 | C175: 1 | G175: =IFERROR(IF(I175=0,O175,I175/F175),0) -> 99.95105925 | H175: =1220/1000*12 -> 14.64 | K175: 101.2331598 | L175: =1220/1000*12 -> 14.64 | O175: 99.95105925
A176: 0 | B176: 5 | C176: 2 | G176: =IFERROR(IF(I176=0,O176,I176/F176),0) -> 179.5147433 | H176: =1220/1000*12 -> 14.64 | K176: 183.7650284 | L176: =1220/1000*12 -> 14.64 | O176: 179.5147433
A177: 0 | B177: 5 | C177: 3 | G177: 216.6722944 | H177: =1220/1000*12 -> 14.64 | K177: 221.9791931 | L177: =1220/1000*12 -> 14.64 | O177: 216.6722944
A178: 0 | B178: 5 | C178: 4 | G178: 236.0392102 | H178: =1220/1000*12 -> 14.64 | K178: 241.9499725 | L178: =1220/1000*12 -> 14.64 | O178: 236.0392102
A179: 0 | B179: 5 | C179: 5 | G179: 290.5081548 | H179: =1220/1000*12 -> 14.64 | K179: 296.8695967 | L179: =1220/1000*12 -> 14.64 | O179: 290.5081548
A180: 0 | B180: 5 | C180: 6 | G180: 341.7085708 | H180: =1352/1000*12 -> 16.224 | K180: 349.4224663 | L180: =1352/1000*12 -> 16.224 | O180: 341.7085708
A181: 0 | B181: 5 | C181: 7 | G181: 455.5004418 | H181: =1352/1000*12 -> 16.224 | K181: 464.9295602 | L181: =1352/1000*12 -> 16.224 | O181: 455.5004418
A182: 0 | B182: 5 | C182: 8 | G182: 520.4674487 | H182: =1450/1000*12 -> 17.4 | K182: 531.5625035 | L182: =1450/1000*12 -> 17.4 | O182: 520.4674487
A183: 0 | B183: 5 | C183: 9 | G183: 586.4171069 | H183: =1450/1000*12 -> 17.4 | K183: 599.3466661 | L183: =1450/1000*12 -> 17.4 | O183: 586.4171069
A184: 0 | B184: 5 | C184: 10 | G184: 699.4852566 | H184: =1640/1000*12 -> 19.68 | K184: 712.2308313 | L184: =1640/1000*12 -> 19.68 | O184: 699.4852566
A185: 0 | B185: 5 | C185: 11 | G185: 799.6834333 | H185: =1640/1000*12 -> 19.68 | K185: 815.125188 | L185: =1640/1000*12 -> 19.68 | O185: 799.6834333
A186: 0 | B186: 5 | C186: 12 | G186: 1014.272904 | H186: =1695/1000*12 -> 20.34 | K186: 1032.554003 | L186: =1695/1000*12 -> 20.34 | O186: 1014.272904
A187: 0 | B187: 5 | C187: 13 | G187: 1152.258047 | H187: =1695/1000*12 -> 20.34 | K187: 1172.50857 | L187: =1695/1000*12 -> 20.34 | O187: 1152.258047
A188: 0 | B188: 5 | C188: 14 | G188: 1409.161406 | H188: 20.34 | K188: 1433.722878 | L188: 20.34 | O188: 1409.161406
A189: 0 | B189: 5 | C189: 15 | G189: 1703.285814 | H189: 20.34 | K189: 1732.382956 | L189: 20.34 | O189: 1703.285814
A190: 0 | B190: 5 | C190: 16 | G190: 2168.595147 | H190: =1818/1000*12 -> 21.816 | K190: 2200.777986 | L190: =1818/1000*12 -> 21.816 | O190: 2168.595147
A191: 0 | B191: 5 | C191: Other | G191: 2007.461925 | K191: 2037.581216 | O191: 2007.461925
A192: 0 | B192: 5 | C192: Other | G192: 2437.657495 | K192: 2474.231298 | O192: 2437.657495
A193: 0 | B193: 5 | C193: Other | G193: 259.6159983 | K193: 263.5111904 | O193: 259.6159983
A194: 0 | B194: 5 | C194: Other | G194: 259.6159983 | K194: 263.5111904 | O194: 259.6159983
A195: 0 | B195: 5 | C195: Total | D195: =SUM(D175:D194) -> 0 | E195: =SUM(E175:E194) -> 0 | F195: 0 | G195: =IFERROR(I195/F195,0) -> 0 | H195: =IFERROR(SUM(H175:H194)/K195,0) -> 0 | I195: =SUM(I175:I194) -> 0 | J195: =SUM(J175:J194) -> 0 | K195: =IFERROR(#REF!/#REF!,0) -> 0 | L195: =IFERROR(SUM(L175:L194)/#REF!,0) -> 0
A196: 0
A197: 0
A198: 0
A199: 0
A200: =$A$32 -> 0 | C200: =$C$32 -> 0
... 314 more rows

Sheet 6 (hidden)
A1: Filter | C1: HUMAN RESOURCE BUDGET PLAN | K1: 1
A2: 1
A3: 1 | C3: Financial Year: | D3: 2022/23
A4: 1 | C4: Sphere of Government: | D4: National
A5: 1 | C5: Name of Department: | D5: =Options!H46 -> Vote 06: International Relations and Cooperation
A6: -14
A7: -13
A8: -12
A9: -11
A10: -10
A11: -9
A12: -8
A13: -7
A14: -6
A15: -5
A16: -4
A17: -3
A18: -2
A19: -1
A20: 0
A21: 1
A22: 1 | C22: Department Summary Details
A23: 1
A24: 1 | D24: Establishment Structure | F24: Previous Financial Year | J24: Medium-term expenditure estimates
A25: 1 | D25: As at 31 March 2022 | F25: =LEFT($D$3,4)-1 & "/" & RIGHT($D$3,2)-1 -> 2021/22
A26: 1 | C26: Programmes | D26: Total number of funded posts | E26: of which: number of funded posts additional to the establishment | F26: FTE Headcount | G26: Unit Costs | H26: of which: Once-off Payments per person | I26: Total Annual Cost | J26: Initial Headcount | K26: Unit Costs | L26: of which: Once-off Payments per person
A27: 1 | B27: =IF(LEN(C27)>2,ROW()-26,"") -> 1 | C27: Administration | D27: =IF($C27="",0,OFFSET($C55,MATCH($C27,$C$55:$C$514,0)+24-SUM($A$27:$A27),COLUMN(D$1)-3)) -> 773 | E27: =IF($C27="",0,OFFSET($C55,MATCH($C27,$C$55:$C$514,0)+24-SUM($A$27:$A27),COLUMN(E$1)-3)) -> 26 | F27: =IF($C27="",0,OFFSET($C55,MATCH($C27,$C$55:$C$514,0)+24-SUM($A$27:$A27),COLUMN(F$1)-3)) -> 770.75 | G27: =IF($C27="",0,OFFSET($C55,MATCH($C27,$C$55:$C$514,0)+24-SUM($A$27:$A27),COLUMN(G$1)-3)) -> 635.364363 | H27: =IF($C27="",0,OFFSET($C55,MATCH($C27,$C$55:$C$514,0)+24-SUM($A$27:$A27),COLUMN(H$1)-3)) -> 0 | I27: =IF($C27="",0,OFFSET($C55,MATCH($C27,$C$55:$C$514,0)+24-SUM($A$27:$A27),COLUMN(I$1)-3)) -> 489707.0828 | J27: =IF($C27="",0,OFFSET($C55,MATCH($C27,$C$55:$C$514,0)+24-SUM($A$27:$A27),COLUMN(J$1)-3)) -> 761 | K27: =IF($C27="",0,OFFSET($C55,MATCH($C27,$C$55:$C$514,0)+24-SUM($A$27:$A27),COLUMN(K$1)-3)) -> 0 | L27: =IF($C27="",0,OFFSET($C55,MATCH($C27,$C$55:$C$514,0)+24-SUM($A$27:$A27),COLUMN(L$1)-3)) -> 0
A28: =IF(LEN(C28)>1,1,0) -> 1 | B28: 2 | C28: International Relations | D28: =IF($C28="",0,OFFSET($C56,MATCH($C28,$C$55:$C$514,0)+24-SUM($A$27:$A28),COLUMN(D$1)-3)) -> 748 | E28: =IF($C28="",0,OFFSET($C56,MATCH($C28,$C$55:$C$514,0)+24-SUM($A$27:$A28),COLUMN(E$1)-3)) -> 1 | F28: =IF($C28="",0,OFFSET($C56,MATCH($C28,$C$55:$C$514,0)+24-SUM($A$27:$A28),COLUMN(F$1)-3)) -> 780.8333333 | G28: =IF($C28="",0,OFFSET($C56,MATCH($C28,$C$55:$C$514,0)+24-SUM($A$27:$A28),COLUMN(G$1)-3)) -> 843.3013538 | H28: =IF($C28="",0,OFFSET($C56,MATCH($C28,$C$55:$C$514,0)+24-SUM($A$27:$A28),COLUMN(H$1)-3)) -> 0 | I28: =IF($C28="",0,OFFSET($C56,MATCH($C28,$C$55:$C$514,0)+24-SUM($A$27:$A28),COLUMN(I$1)-3)) -> 658477.8071 | J28: =IF($C28="",0,OFFSET($C56,MATCH($C28,$C$55:$C$514,0)+24-SUM($A$27:$A28),COLUMN(J$1)-3)) -> 742 | K28: =IF($C28="",0,OFFSET($C56,MATCH($C28,$C$55:$C$514,0)+24-SUM($A$27:$A28),COLUMN(K$1)-3)) -> 0 | L28: =IF($C28="",0,OFFSET($C56,MATCH($C28,$C$55:$C$514,0)+24-SUM($A$27:$A28),COLUMN(L$1)-3)) -> 0
A29: 1 | B29: 3 | C29: International Cooperation | D29: =IF($C29="",0,OFFSET($C57,MATCH($C29,$C$55:$C$514,0)+24-SUM($A$27:$A29),COLUMN(D$1)-3)) -> 205 | E29: =IF($C29="",0,OFFSET($C57,MATCH($C29,$C$55:$C$514,0)+24-SUM($A$27:$A29),COLUMN(E$1)-3)) -> 1 | F29: =IF($C29="",0,OFFSET($C57,MATCH($C29,$C$55:$C$514,0)+24-SUM($A$27:$A29),COLUMN(F$1)-3)) -> 200.8333333 | G29: =IF($C29="",0,OFFSET($C57,MATCH($C29,$C$55:$C$514,0)+24-SUM($A$27:$A29),COLUMN(G$1)-3)) -> 806.3873525 | H29: =IF($C29="",0,OFFSET($C57,MATCH($C29,$C$55:$C$514,0)+24-SUM($A$27:$A29),COLUMN(H$1)-3)) -> 0 | I29: =IF($C29="",0,OFFSET($C57,MATCH($C29,$C$55:$C$514,0)+24-SUM($A$27:$A29),COLUMN(I$1)-3)) -> 161949.46 | J29: =IF($C29="",0,OFFSET($C57,MATCH($C29,$C$55:$C$514,0)+24-SUM($A$27:$A29),COLUMN(J$1)-3)) -> 204 | K29: =IF($C29="",0,OFFSET($C57,MATCH($C29,$C$55:$C$514,0)+24-SUM($A$27:$A29),COLUMN(K$1)-3)) -> 0 | L29: =IF($C29="",0,OFFSET($C57,MATCH($C29,$C$55:$C$514,0)+24-SUM($A$27:$A29),COLUMN(L$1)-3)) -> 0
A30: 1 | B30: 4 | C30: Public Diplomacy and Protocol Services | D30: =IF($C30="",0,OFFSET($C58,MATCH($C30,$C$55:$C$514,0)+24-SUM($A$27:$A30),COLUMN(D$1)-3)) -> 263 | E30: =IF($C30="",0,OFFSET($C58,MATCH($C30,$C$55:$C$514,0)+24-SUM($A$27:$A30),COLUMN(E$1)-3)) -> 0 | F30: =IF($C30="",0,OFFSET($C58,MATCH($C30,$C$55:$C$514,0)+24-SUM($A$27:$A30),COLUMN(F$1)-3)) -> 262.0833333 | G30: =IF($C30="",0,OFFSET($C58,MATCH($C30,$C$55:$C$514,0)+24-SUM($A$27:$A30),COLUMN(G$1)-3)) -> 663.0596364 | H30: =IF($C30="",0,OFFSET($C58,MATCH($C30,$C$55:$C$514,0)+24-SUM($A$27:$A30),COLUMN(H$1)-3)) -> 0 | I30: =IF($C30="",0,OFFSET($C58,MATCH($C30,$C$55:$C$514,0)+24-SUM($A$27:$A30),COLUMN(I$1)-3)) -> 173776.8797 | J30: =IF($C30="",0,OFFSET($C58,MATCH($C30,$C$55:$C$514,0)+24-SUM($A$27:$A30),COLUMN(J$1)-3)) -> 264 | K30: =IF($C30="",0,OFFSET($C58,MATCH($C30,$C$55:$C$514,0)+24-SUM($A$27:$A30),COLUMN(K$1)-3)) -> 0 | L30: =IF($C30="",0,OFFSET($C58,MATCH($C30,$C$55:$C$514,0)+24-SUM($A$27:$A30),COLUMN(L$1)-3)) -> 0
A31: 0 | D31: =IF($C31="",0,OFFSET($C59,MATCH($C31,$C$55:$C$514,0)+24-SUM($A$27:$A31),COLUMN(D$1)-3)) -> 0 | E31: =IF($C31="",0,OFFSET($C59,MATCH($C31,$C$55:$C$514,0)+24-SUM($A$27:$A31),COLUMN(E$1)-3)) -> 0 | F31: =IF($C31="",0,OFFSET($C59,MATCH($C31,$C$55:$C$514,0)+24-SUM($A$27:$A31),COLUMN(F$1)-3)) -> 0 | G31: =IF($C31="",0,OFFSET($C59,MATCH($C31,$C$55:$C$514,0)+24-SUM($A$27:$A31),COLUMN(G$1)-3)) -> 0 | H31: =IF($C31="",0,OFFSET($C59,MATCH($C31,$C$55:$C$514,0)+24-SUM($A$27:$A31),COLUMN(H$1)-3)) -> 0 | I31: =IF($C31="",0,OFFSET($C59,MATCH($C31,$C$55:$C$514,0)+24-SUM($A$27:$A31),COLUMN(I$1)-3)) -> 0 | J31: =IF($C31="",0,OFFSET($C59,MATCH($C31,$C$55:$C$514,0)+24-SUM($A$27:$A31),COLUMN(J$1)-3)) -> 0 | K31: =IF($C31="",0,OFFSET($C59,MATCH($C31,$C$55:$C$514,0)+24-SUM($A$27:$A31),COLUMN(K$1)-3)) -> 0 | L31: =IF($C31="",0,OFFSET($C59,MATCH($C31,$C$55:$C$514,0)+24-SUM($A$27:$A31),COLUMN(L$1)-3)) -> 0
A32: 0 | D32: =IF($C32="",0,OFFSET($C60,MATCH($C32,$C$55:$C$514,0)+24-SUM($A$27:$A32),COLUMN(D$1)-3)) -> 0 | E32: =IF($C32="",0,OFFSET($C60,MATCH($C32,$C$55:$C$514,0)+24-SUM($A$27:$A32),COLUMN(E$1)-3)) -> 0 | F32: =IF($C32="",0,OFFSET($C60,MATCH($C32,$C$55:$C$514,0)+24-SUM($A$27:$A32),COLUMN(F$1)-3)) -> 0 | G32: =IF($C32="",0,OFFSET($C60,MATCH($C32,$C$55:$C$514,0)+24-SUM($A$27:$A32),COLUMN(G$1)-3)) -> 0 | H32: =IF($C32="",0,OFFSET($C60,MATCH($C32,$C$55:$C$514,0)+24-SUM($A$27:$A32),COLUMN(H$1)-3)) -> 0 | I32: =IF($C32="",0,OFFSET($C60,MATCH($C32,$C$55:$C$514,0)+24-SUM($A$27:$A32),COLUMN(I$1)-3)) -> 0 | J32: =IF($C32="",0,OFFSET($C60,MATCH($C32,$C$55:$C$514,0)+24-SUM($A$27:$A32),COLUMN(J$1)-3)) -> 0 | K32: =IF($C32="",0,OFFSET($C60,MATCH($C32,$C$55:$C$514,0)+24-SUM($A$27:$A32),COLUMN(K$1)-3)) -> 0 | L32: =IF($C32="",0,OFFSET($C60,MATCH($C32,$C$55:$C$514,0)+24-SUM($A$27:$A32),COLUMN(L$1)-3)) -> 0
A33: 0 | D33: =IF($C33="",0,OFFSET($C61,MATCH($C33,$C$55:$C$514,0)+24-SUM($A$27:$A33),COLUMN(D$1)-3)) -> 0 | E33: =IF($C33="",0,OFFSET($C61,MATCH($C33,$C$55:$C$514,0)+24-SUM($A$27:$A33),COLUMN(E$1)-3)) -> 0 | F33: =IF($C33="",0,OFFSET($C61,MATCH($C33,$C$55:$C$514,0)+24-SUM($A$27:$A33),COLUMN(F$1)-3)) -> 0 | G33: =IF($C33="",0,OFFSET($C61,MATCH($C33,$C$55:$C$514,0)+24-SUM($A$27:$A33),COLUMN(G$1)-3)) -> 0 | H33: =IF($C33="",0,OFFSET($C61,MATCH($C33,$C$55:$C$514,0)+24-SUM($A$27:$A33),COLUMN(H$1)-3)) -> 0 | I33: =IF($C33="",0,OFFSET($C61,MATCH($C33,$C$55:$C$514,0)+24-SUM($A$27:$A33),COLUMN(I$1)-3)) -> 0 | J33: =IF($C33="",0,OFFSET($C61,MATCH($C33,$C$55:$C$514,0)+24-SUM($A$27:$A33),COLUMN(J$1)-3)) -> 0 | K33: =IF($C33="",0,OFFSET($C61,MATCH($C33,$C$55:$C$514,0)+24-SUM($A$27:$A33),COLUMN(K$1)-3)) -> 0 | L33: =IF($C33="",0,OFFSET($C61,MATCH($C33,$C$55:$C$514,0)+24-SUM($A$27:$A33),COLUMN(L$1)-3)) -> 0
A34: 0 | D34: =IF($C34="",0,OFFSET($C62,MATCH($C34,$C$55:$C$514,0)+24-SUM($A$27:$A34),COLUMN(D$1)-3)) -> 0 | E34: =IF($C34="",0,OFFSET($C62,MATCH($C34,$C$55:$C$514,0)+24-SUM($A$27:$A34),COLUMN(E$1)-3)) -> 0 | F34: =IF($C34="",0,OFFSET($C62,MATCH($C34,$C$55:$C$514,0)+24-SUM($A$27:$A34),COLUMN(F$1)-3)) -> 0 | G34: =IF($C34="",0,OFFSET($C62,MATCH($C34,$C$55:$C$514,0)+24-SUM($A$27:$A34),COLUMN(G$1)-3)) -> 0 | H34: =IF($C34="",0,OFFSET($C62,MATCH($C34,$C$55:$C$514,0)+24-SUM($A$27:$A34),COLUMN(H$1)-3)) -> 0 | I34: =IF($C34="",0,OFFSET($C62,MATCH($C34,$C$55:$C$514,0)+24-SUM($A$27:$A34),COLUMN(I$1)-3)) -> 0 | J34: =IF($C34="",0,OFFSET($C62,MATCH($C34,$C$55:$C$514,0)+24-SUM($A$27:$A34),COLUMN(J$1)-3)) -> 0 | K34: =IF($C34="",0,OFFSET($C62,MATCH($C34,$C$55:$C$514,0)+24-SUM($A$27:$A34),COLUMN(K$1)-3)) -> 0 | L34: =IF($C34="",0,OFFSET($C62,MATCH($C34,$C$55:$C$514,0)+24-SUM($A$27:$A34),COLUMN(L$1)-3)) -> 0
A35: 0 | D35: =IF($C35="",0,OFFSET($C63,MATCH($C35,$C$55:$C$514,0)+24-SUM($A$27:$A35),COLUMN(D$1)-3)) -> 0 | E35: =IF($C35="",0,OFFSET($C63,MATCH($C35,$C$55:$C$514,0)+24-SUM($A$27:$A35),COLUMN(E$1)-3)) -> 0 | F35: =IF($C35="",0,OFFSET($C63,MATCH($C35,$C$55:$C$514,0)+24-SUM($A$27:$A35),COLUMN(F$1)-3)) -> 0 | G35: =IF($C35="",0,OFFSET($C63,MATCH($C35,$C$55:$C$514,0)+24-SUM($A$27:$A35),COLUMN(G$1)-3)) -> 0 | H35: =IF($C35="",0,OFFSET($C63,MATCH($C35,$C$55:$C$514,0)+24-SUM($A$27:$A35),COLUMN(H$1)-3)) -> 0 | I35: =IF($C35="",0,OFFSET($C63,MATCH($C35,$C$55:$C$514,0)+24-SUM($A$27:$A35),COLUMN(I$1)-3)) -> 0 | J35: =IF($C35="",0,OFFSET($C63,MATCH($C35,$C$55:$C$514,0)+24-SUM($A$27:$A35),COLUMN(J$1)-3)) -> 0 | K35: =IF($C35="",0,OFFSET($C63,MATCH($C35,$C$55:$C$514,0)+24-SUM($A$27:$A35),COLUMN(K$1)-3)) -> 0 | L35: =IF($C35="",0,OFFSET($C63,MATCH($C35,$C$55:$C$514,0)+24-SUM($A$27:$A35),COLUMN(L$1)-3)) -> 0
A36: 0 | D36: =IF($C36="",0,OFFSET($C64,MATCH($C36,$C$55:$C$514,0)+24-SUM($A$27:$A36),COLUMN(D$1)-3)) -> 0 | E36: =IF($C36="",0,OFFSET($C64,MATCH($C36,$C$55:$C$514,0)+24-SUM($A$27:$A36),COLUMN(E$1)-3)) -> 0 | F36: =IF($C36="",0,OFFSET($C64,MATCH($C36,$C$55:$C$514,0)+24-SUM($A$27:$A36),COLUMN(F$1)-3)) -> 0 | G36: =IF($C36="",0,OFFSET($C64,MATCH($C36,$C$55:$C$514,0)+24-SUM($A$27:$A36),COLUMN(G$1)-3)) -> 0 | H36: =IF($C36="",0,OFFSET($C64,MATCH($C36,$C$55:$C$514,0)+24-SUM($A$27:$A36),COLUMN(H$1)-3)) -> 0 | I36: =IF($C36="",0,OFFSET($C64,MATCH($C36,$C$55:$C$514,0)+24-SUM($A$27:$A36),COLUMN(I$1)-3)) -> 0 | J36: =IF($C36="",0,OFFSET($C64,MATCH($C36,$C$55:$C$514,0)+24-SUM($A$27:$A36),COLUMN(J$1)-3)) -> 0 | K36: =IF($C36="",0,OFFSET($C64,MATCH($C36,$C$55:$C$514,0)+24-SUM($A$27:$A36),COLUMN(K$1)-3)) -> 0 | L36: =IF($C36="",0,OFFSET($C64,MATCH($C36,$C$55:$C$514,0)+24-SUM($A$27:$A36),COLUMN(L$1)-3)) -> 0
A37: 0 | D37: =IF($C37="",0,OFFSET($C65,MATCH($C37,$C$55:$C$514,0)+24-SUM($A$27:$A37),COLUMN(D$1)-3)) -> 0 | E37: =IF($C37="",0,OFFSET($C65,MATCH($C37,$C$55:$C$514,0)+24-SUM($A$27:$A37),COLUMN(E$1)-3)) -> 0 | F37: =IF($C37="",0,OFFSET($C65,MATCH($C37,$C$55:$C$514,0)+24-SUM($A$27:$A37),COLUMN(F$1)-3)) -> 0 | G37: =IF($C37="",0,OFFSET($C65,MATCH($C37,$C$55:$C$514,0)+24-SUM($A$27:$A37),COLUMN(G$1)-3)) -> 0 | H37: =IF($C37="",0,OFFSET($C65,MATCH($C37,$C$55:$C$514,0)+24-SUM($A$27:$A37),COLUMN(H$1)-3)) -> 0 | I37: =IF($C37="",0,OFFSET($C65,MATCH($C37,$C$55:$C$514,0)+24-SUM($A$27:$A37),COLUMN(I$1)-3)) -> 0 | J37: =IF($C37="",0,OFFSET($C65,MATCH($C37,$C$55:$C$514,0)+24-SUM($A$27:$A37),COLUMN(J$1)-3)) -> 0 | K37: =IF($C37="",0,OFFSET($C65,MATCH($C37,$C$55:$C$514,0)+24-SUM($A$27:$A37),COLUMN(K$1)-3)) -> 0 | L37: =IF($C37="",0,OFFSET($C65,MATCH($C37,$C$55:$C$514,0)+24-SUM($A$27:$A37),COLUMN(L$1)-3)) -> 0
A38: 0 | D38: =IF($C38="",0,OFFSET($C66,MATCH($C38,$C$55:$C$514,0)+24-SUM($A$27:$A38),COLUMN(D$1)-3)) -> 0 | E38: =IF($C38="",0,OFFSET($C66,MATCH($C38,$C$55:$C$514,0)+24-SUM($A$27:$A38),COLUMN(E$1)-3)) -> 0 | F38: =IF($C38="",0,OFFSET($C66,MATCH($C38,$C$55:$C$514,0)+24-SUM($A$27:$A38),COLUMN(F$1)-3)) -> 0 | G38: =IF($C38="",0,OFFSET($C66,MATCH($C38,$C$55:$C$514,0)+24-SUM($A$27:$A38),COLUMN(G$1)-3)) -> 0 | H38: =IF($C38="",0,OFFSET($C66,MATCH($C38,$C$55:$C$514,0)+24-SUM($A$27:$A38),COLUMN(H$1)-3)) -> 0 | I38: =IF($C38="",0,OFFSET($C66,MATCH($C38,$C$55:$C$514,0)+24-SUM($A$27:$A38),COLUMN(I$1)-3)) -> 0 | J38: =IF($C38="",0,OFFSET($C66,MATCH($C38,$C$55:$C$514,0)+24-SUM($A$27:$A38),COLUMN(J$1)-3)) -> 0 | K38: =IF($C38="",0,OFFSET($C66,MATCH($C38,$C$55:$C$514,0)+24-SUM($A$27:$A38),COLUMN(K$1)-3)) -> 0 | L38: =IF($C38="",0,OFFSET($C66,MATCH($C38,$C$55:$C$514,0)+24-SUM($A$27:$A38),COLUMN(L$1)-3)) -> 0
A39: 0 | D39: =IF($C39="",0,OFFSET($C67,MATCH($C39,$C$55:$C$514,0)+24-SUM($A$27:$A39),COLUMN(D$1)-3)) -> 0 | E39: =IF($C39="",0,OFFSET($C67,MATCH($C39,$C$55:$C$514,0)+24-SUM($A$27:$A39),COLUMN(E$1)-3)) -> 0 | F39: =IF($C39="",0,OFFSET($C67,MATCH($C39,$C$55:$C$514,0)+24-SUM($A$27:$A39),COLUMN(F$1)-3)) -> 0 | G39: =IF($C39="",0,OFFSET($C67,MATCH($C39,$C$55:$C$514,0)+24-SUM($A$27:$A39),COLUMN(G$1)-3)) -> 0 | H39: =IF($C39="",0,OFFSET($C67,MATCH($C39,$C$55:$C$514,0)+24-SUM($A$27:$A39),COLUMN(H$1)-3)) -> 0 | I39: =IF($C39="",0,OFFSET($C67,MATCH($C39,$C$55:$C$514,0)+24-SUM($A$27:$A39),COLUMN(I$1)-3)) -> 0 | J39: =IF($C39="",0,OFFSET($C67,MATCH($C39,$C$55:$C$514,0)+24-SUM($A$27:$A39),COLUMN(J$1)-3)) -> 0 | K39: =IF($C39="",0,OFFSET($C67,MATCH($C39,$C$55:$C$514,0)+24-SUM($A$27:$A39),COLUMN(K$1)-3)) -> 0 | L39: =IF($C39="",0,OFFSET($C67,MATCH($C39,$C$55:$C$514,0)+24-SUM($A$27:$A39),COLUMN(L$1)-3)) -> 0
